{"text_format":"1","workbook":"xlsx","n_sheets":19,"sheets":["Directions","Example Data","January","February","March","April","May","June","July","August","September","October","November","December","Trending Charts","Detail Charts","Trending Data","Drop Downs","Sheet1"],"not_rendered":{"charts":46,"images":1,"macros":1,"external_links":0,"defined_names":25,"comments":0,"pivot_tables":0},"unopened":[],"bounds":{"document_bytes":16777216,"sheet_cells":100000,"rows_first":2000,"rows_last":500,"rows_between":2000,"halvings":0,"cell_chars":16384,"cell_head_chars":4096},"cells_cut":0,"cells_raw":0,"read":"whole","date_system":"1900"}

{"sheet":"Directions","index":0,"n_rows":22,"n_cols":2,"rows_kept":22,"cut":false,"hidden":false,"merged":[[0,0,0,1]]}
["Directions"]
[1,"In the first month's worksheet, please make a complete entry (complete all applicable columns) for each resident that is taking an antipsychotic.  If the resident is taking two antipsychotics, enter each antipsychotic on a separate line. "]
[2,"Enter your end of month census in cell D1.  As you enter your residents on antipsychotics, the number of current residents on antipsychotics will automatically populate in cell G1 and your antipsychotic rate will automatically calculate in cell I1. Duplicate resident lines will be excluded from the count of current residents on antipsychotics in cell G1."]
[4,"Use the \"Populate Previous Month's Data\" button to copy the previous months data into the current month and update data from there"]
[3,"If you need to delete an entry, please highlight the cells and hit the delete key.  DO NOT DELETE THE ENTIRE ROW"]
[5,"Column D: Type of Stay - short term < 100 days, long term > 100 days"]
[6,"Column L: Diagnosis appropriate -Conditions other than dementia\nHuntington disease*\nSchizophrenia*, \nTourette’s Disorder*\n----------------------------------------------------------------------------------------------------------------------------------------------------------------------------------------------------------------------\nDelusional disorder\nHiccups (not induced by other medications)\nMedical illness with psychotic symptoms (neoplastic disease or delirium) and/or treatment related psychosis or mania (high dose steroids)\nMood disorders (bipolar, severe depression)\nNausea and vomiting associated with cancer or chemotherapy\nPsychosis in the absence of dementia\nSchizo-affective disorder, Schizophreniform disorder"]
[7,"Column N: BPSD = Behavioral or Psychological Symptoms of Dementia"]
[]
[null,"*Diagnoses labeled with an * are the only approved antipsychotic medication diagnosis for MDS 3.0 purposes."]
[]
[null,"Acronym Index"]
[null,"BPSD - Behavior or Psychological Symptoms of Dementia"]
[null,"GDR - Gradual Dose Reduction"]
[]
[]
[]
[]
[]
[]
[]
[null,"This material was prepared by the Great Plains Quality Innovation Network, the Medicare Quality Improvement Organization for Kansas, Nebraska, North Dakota and South Dakota, under contract with the Centers for Medicare & Medicaid Services (CMS), an agency of the U.S. Department of Health and Human Services. The contents presented do not necessarily reflect CMS policy. 11S0W-GPQIN-NE-C2-193/1117"]

{"sheet":"Example Data","index":1,"n_rows":219,"n_cols":54,"rows_kept":219,"cut":false,"hidden":false,"merged":[[0,0,0,2],[0,4,0,5],[1,0,1,4],[1,5,1,21]]}
["End of Month Census :",null,null,55," Current residents on antipsychotics:",null,{"$f":"SUMPRODUCT((A4:A111<>\"\")/COUNTIF(A4:A111,A4:A111&\"\"))","v":9},"Percentage of residents on antipsychotic:",{"$f":"IFERROR((G1/D1)*100, \"---\")","v":16.363636363636363}]
["Resident Information",null,null,null,null,"Antipsychotic Medication Information"]
["Room #","Last Name","First Name","Type of Stay","Notes (New Admit, etc)","Antipsychotic Drug Prescribed","Prescriber","Dose Schedule","Date Started","Where was medication started?","Diagnosis associated with antipsychotic","Is Dx Appropriate? (See directions)","List BPSD","Appropriate BPSD documented?","List Non Drug Interventions tried","Non Drug Intv documented?","Date of most recent GDR","Outcome of GDR","GDR Needed?","Reasons for no GDR being attempted","Has resident experienced adverse drug effects?","If yes, describe adverse effects"]
["209D","Jones","Jason","long term","New Admit","Seroquel ","Dr. Stenger","Scheduled","2009-07-23","hospital","psychotic disorder","No","List all BPSD in this area","yes","List all non-drug interventions attempted","Yes","2013-10-01","Dose reduced","no","Resident on lowest possible dose","No",null,null,null,null,null,null,null,null,null,null,null,null,null,null,null,null,null,null,null,null,null,null,null,null,null,null,null,null,null,null,null,null,{"$f":"CONCATENATE(C4,B4)","v":"JasonJones"}]
["214W","Smith","Esther","long term","Readmit","seroquel","Dr. Stenger","PRN","2014-02-28","SNF","anxiety","Yes","List all BPSD in this area","yes","List all non-drug interventions attempted","Yes",null,"Drug discontinued","no","Resident on lowest possible dose","No",null,null,null,null,null,null,null,null,null,null,null,null,null,null,null,null,null,null,null,null,null,null,null,null,null,null,null,null,null,null,null,null,{"$f":"CONCATENATE(C5,B5)","v":"EstherSmith"}]
["218W","Jackson","Goldie","Long Term","Transfer from Skilled","zyprexa","Dr. Capan","Both","1905-06-30","Outpatient","psychosis","No","List all BPSD in this area","yes","List all non-drug interventions attempted","Yes","2014-10-13","Return to previous dose","no","Contraindicated per prescriber","No",null,null,null,null,null,null,null,null,null,null,null,null,null,null,null,null,null,null,null,null,null,null,null,null,null,null,null,null,null,null,null,null,"GoldieJackson"]
["208W","Brown","Frieda","long term","New Admit","seroquel","Dr. Capan","Scheduled","1905-07-03","Outpatient","anxiety","No","List all BPSD in this area","yes","List all non-drug interventions attempted","No","2014-12-13","Dose reduced","no","Other","Yes","Enter a description here",null,null,null,null,null,null,null,null,null,null,null,null,null,null,null,null,null,null,null,null,null,null,null,null,null,null,null,null,null,null,null,"FriedaBrown"]
["212W","Green","Helen","long term","Readmit","zyprexa","psych","PRN","1905-06-29","Outpatient","psychosis","No","List all BPSD in this area","yes","List all non-drug interventions attempted","Yes","2013-02-28","Dose reduced","yes","Resident on lowest possible dose","No",null,null,null,null,null,null,null,null,null,null,null,null,null,null,null,null,null,null,null,null,null,null,null,null,null,null,null,null,null,null,null,null,"HelenGreen"]
["216E","Yellow","Marvin","Short Term","Transfer from Skilled","Seroquel","Dr. Capan","Both","1905-07-01","SNF","anxiety disorder","Yes","List all BPSD in this area","yes","List all non-drug interventions attempted","N/A","2014-01-14","Dose reduced","no","Resident on lowest possible dose","No",null,null,null,null,null,null,null,null,null,null,null,null,null,null,null,null,null,null,null,null,null,null,null,null,null,null,null,null,null,null,null,null,"MarvinYellow"]
["219D","James","Mildred","Short Term","New Admit","Seroquel","Dr Capan","Scheduled","1905-07-04","hospital","anxiety","No","List all BPSD in this area","yes","List all non-drug interventions attempted","N/A","2014-01-01","Drug discontinued","Yes","Resident on lowest possible dose","No",null,null,null,null,null,null,null,null,null,null,null,null,null,null,null,null,null,null,null,null,null,null,null,null,null,null,null,null,null,null,null,null,"MildredJames"]
["221D","Sanchez","Mary Ann","long term","Readmit","Seroquel","Dr. Capan","Scheduled","1905-07-04","SNF","anxiety","Yes","List all BPSD in this area","yes","List all non-drug interventions attempted","No","2013-10-01","Drug discontinued","Yes","Resident on lowest possible dose","No",null,null,null,null,null,null,null,null,null,null,null,null,null,null,null,null,null,null,null,null,null,null,null,null,null,null,null,null,null,null,null,null,"Mary AnnSanchez"]
["205D","Poe","Sylvester","long term","Transfer from Skilled","olanzapine","Dr.  Capan","PRN","1905-07-05","Outpatient","anxiety","No","List all BPSD in this area","yes","List all non-drug interventions attempted","No",null,"Return to previous dose","no","Other","Yes","Enter a description here",null,null,null,null,null,null,null,null,null,null,null,null,null,null,null,null,null,null,null,null,null,null,null,null,null,null,null,null,null,null,null,"SylvesterPoe"]
["209D","Rey","Hildegarde","Short Term","New Admit","Seroquel ","Dr. Stenger","Scheduled","2009-07-23","hospital","psychotic disorder","No","List all BPSD in this area","yes","List all non-drug interventions attempted","Yes","2013-10-01","Dose reduced","no","Resident on lowest possible dose","No",null,null,null,null,null,null,null,null,null,null,null,null,null,null,null,null,null,null,null,null,null,null,null,null,null,null,null,null,null,null,null,null,{"$f":"CONCATENATE(C13,B13)","v":"HildegardeRey"}]
[null,null,null,null,null,null,null,null,null,null,null,null,null,null,null,null,null,null,null,null,null,null,null,null,null,null,null,null,null,null,null,null,null,null,null,null,null,null,null,null,null,null,null,null,null,null,null,null,null,null,null,null,null,""]
[null,null,null,null,null,null,null,null,null,null,null,null,null,null,null,null,null,null,null,null,null,null,null,null,null,null,null,null,null,null,null,null,null,null,null,null,null,null,null,null,null,null,null,null,null,null,null,null,null,null,null,null,null,""]
[null,null,null,null,null,null,null,null,null,null,null,null,null,null,null,null,null,null,null,null,null,null,null,null,null,null,null,null,null,null,null,null,null,null,null,null,null,null,null,null,null,null,null,null,null,null,null,null,null,null,null,null,null,""]
[null,null,null,null,null,null,null,null,null,null,null,null,null,null,null,null,null,null,null,null,null,null,null,null,null,null,null,null,null,null,null,null,null,null,null,null,null,null,null,null,null,null,null,null,null,null,null,null,null,null,null,null,null,""]
[null,null,null,null,null,null,null,null,null,null,null,null,null,null,null,null,null,null,null,null,null,null,null,null,null,null,null,null,null,null,null,null,null,null,null,null,null,null,null,null,null,null,null,null,null,null,null,null,null,null,null,null,null,""]
[null,null,null,null,null,null,null,null,null,null,null,null,null,null,null,null,null,null,null,null,null,null,null,null,null,null,null,null,null,null,null,null,null,null,null,null,null,null,null,null,null,null,null,null,null,null,null,null,null,null,null,null,null,""]
[null,null,null,null,null,null,null,null,null,null,null,null,null,null,null,null,null,null,null,null,null,null,null,null,null,null,null,null,null,null,null,null,null,null,null,null,null,null,null,null,null,null,null,null,null,null,null,null,null,null,null,null,null,""]
[null,null,null,null,null,null,null,null,null,null,null,null,null,null,null,null,null,null,null,null,null,null,null,null,null,null,null,null,null,null,null,null,null,null,null,null,null,null,null,null,null,null,null,null,null,null,null,null,null,null,null,null,null,""]
[null,null,null,null,null,null,null,null,null,null,null,null,null,null,null,null,null,null,null,null,null,null,null,null,null,null,null,null,null,null,null,null,null,null,null,null,null,null,null,null,null,null,null,null,null,null,null,null,null,null,null,null,null,""]
[null,null,null,null,null,null,null,null,null,null,null,null,null,null,null,null,null,null,null,null,null,null,null,null,null,null,null,null,null,null,null,null,null,null,null,null,null,null,null,null,null,null,null,null,null,null,null,null,null,null,null,null,null,""]
[null,null,null,null,null,null,null,null,null,null,null,null,null,null,null,null,null,null,null,null,null,null,null,null,null,null,null,null,null,null,null,null,null,null,null,null,null,null,null,null,null,null,null,null,null,null,null,null,null,null,null,null,null,""]
[null,null,null,null,null,null,null,null,null,null,null,null,null,null,null,null,null,null,null,null,null,null,null,null,null,null,null,null,null,null,null,null,null,null,null,null,null,null,null,null,null,null,null,null,null,null,null,null,null,null,null,null,null,""]
[null,null,null,null,null,null,null,null,null,null,null,null,null,null,null,null,null,null,null,null,null,null,null,null,null,null,null,null,null,null,null,null,null,null,null,null,null,null,null,null,null,null,null,null,null,null,null,null,null,null,null,null,null,""]
[null,null,null,null,null,null,null,null,null,null,null,null,null,null,null,null,null,null,null,null,null,null,null,null,null,null,null,null,null,null,null,null,null,null,null,null,null,null,null,null,null,null,null,null,null,null,null,null,null,null,null,null,null,""]
[null,null,null,null,null,null,null,null,null,null,null,null,null,null,null,null,null,null,null,null,null,null,null,null,null,null,null,null,null,null,null,null,null,null,null,null,null,null,null,null,null,null,null,null,null,null,null,null,null,null,null,null,null,""]
[null,null,null,null,null,null,null,null,null,null,null,null,null,null,null,null,null,null,null,null,null,null,null,null,null,null,null,null,null,null,null,null,null,null,null,null,null,null,null,null,null,null,null,null,null,null,null,null,null,null,null,null,null,""]
[null,null,null,null,null,null,null,null,null,null,null,null,null,null,null,null,null,null,null,null,null,null,null,null,null,null,null,null,null,null,null,null,null,null,null,null,null,null,null,null,null,null,null,null,null,null,null,null,null,null,null,null,null,""]
[null,null,null,null,null,null,null,null,null,null,null,null,null,null,null,null,null,null,null,null,null,null,null,null,null,null,null,null,null,null,null,null,null,null,null,null,null,null,null,null,null,null,null,null,null,null,null,null,null,null,null,null,null,""]
[null,null,null,null,null,null,null,null,null,null,null,null,null,null,null,null,null,null,null,null,null,null,null,null,null,null,null,null,null,null,null,null,null,null,null,null,null,null,null,null,null,null,null,null,null,null,null,null,null,null,null,null,null,""]
[null,null,null,null,null,null,null,null,null,null,null,null,null,null,null,null,null,null,null,null,null,null,null,null,null,null,null,null,null,null,null,null,null,null,null,null,null,null,null,null,null,null,null,null,null,null,null,null,null,null,null,null,null,""]
[null,null,null,null,null,null,null,null,null,null,null,null,null,null,null,null,null,null,null,null,null,null,null,null,null,null,null,null,null,null,null,null,null,null,null,null,null,null,null,null,null,null,null,null,null,null,null,null,null,null,null,null,null,""]
[null,null,null,null,null,null,null,null,null,null,null,null,null,null,null,null,null,null,null,null,null,null,null,null,null,null,null,null,null,null,null,null,null,null,null,null,null,null,null,null,null,null,null,null,null,null,null,null,null,null,null,null,null,""]
[null,null,null,null,null,null,null,null,null,null,null,null,null,null,null,null,null,null,null,null,null,null,null,null,null,null,null,null,null,null,null,null,null,null,null,null,null,null,null,null,null,null,null,null,null,null,null,null,null,null,null,null,null,""]
[null,null,null,null,null,null,null,null,null,null,null,null,null,null,null,null,null,null,null,null,null,null,null,null,null,null,null,null,null,null,null,null,null,null,null,null,null,null,null,null,null,null,null,null,null,null,null,null,null,null,null,null,null,""]
[null,null,null,null,null,null,null,null,null,null,null,null,null,null,null,null,null,null,null,null,null,null,null,null,null,null,null,null,null,null,null,null,null,null,null,null,null,null,null,null,null,null,null,null,null,null,null,null,null,null,null,null,null,""]
[null,null,null,null,null,null,null,null,null,null,null,null,null,null,null,null,null,null,null,null,null,null,null,null,null,null,null,null,null,null,null,null,null,null,null,null,null,null,null,null,null,null,null,null,null,null,null,null,null,null,null,null,null,""]
[null,null,null,null,null,null,null,null,null,null,null,null,null,null,null,null,null,null,null,null,null,null,null,null,null,null,null,null,null,null,null,null,null,null,null,null,null,null,null,null,null,null,null,null,null,null,null,null,null,null,null,null,null,""]
[null,null,null,null,null,null,null,null,null,null,null,null,null,null,null,null,null,null,null,null,null,null,null,null,null,null,null,null,null,null,null,null,null,null,null,null,null,null,null,null,null,null,null,null,null,null,null,null,null,null,null,null,null,""]
[null,null,null,null,null,null,null,null,null,null,null,null,null,null,null,null,null,null,null,null,null,null,null,null,null,null,null,null,null,null,null,null,null,null,null,null,null,null,null,null,null,null,null,null,null,null,null,null,null,null,null,null,null,""]
[null,null,null,null,null,null,null,null,null,null,null,null,null,null,null,null,null,null,null,null,null,null,null,null,null,null,null,null,null,null,null,null,null,null,null,null,null,null,null,null,null,null,null,null,null,null,null,null,null,null,null,null,null,""]
[null,null,null,null,null,null,null,null,null,null,null,null,null,null,null,null,null,null,null,null,null,null,null,null,null,null,null,null,null,null,null,null,null,null,null,null,null,null,null,null,null,null,null,null,null,null,null,null,null,null,null,null,null,""]
[null,null,null,null,null,null,null,null,null,null,null,null,null,null,null,null,null,null,null,null,null,null,null,null,null,null,null,null,null,null,null,null,null,null,null,null,null,null,null,null,null,null,null,null,null,null,null,null,null,null,null,null,null,""]
[null,null,null,null,null,null,null,null,null,null,null,null,null,null,null,null,null,null,null,null,null,null,null,null,null,null,null,null,null,null,null,null,null,null,null,null,null,null,null,null,null,null,null,null,null,null,null,null,null,null,null,null,null,""]
[null,null,null,null,null,null,null,null,null,null,null,null,null,null,null,null,null,null,null,null,null,null,null,null,null,null,null,null,null,null,null,null,null,null,null,null,null,null,null,null,null,null,null,null,null,null,null,null,null,null,null,null,null,""]
[null,null,null,null,null,null,null,null,null,null,null,null,null,null,null,null,null,null,null,null,null,null,null,null,null,null,null,null,null,null,null,null,null,null,null,null,null,null,null,null,null,null,null,null,null,null,null,null,null,null,null,null,null,""]
[null,null,null,null,null,null,null,null,null,null,null,null,null,null,null,null,null,null,null,null,null,null,null,null,null,null,null,null,null,null,null,null,null,null,null,null,null,null,null,null,null,null,null,null,null,null,null,null,null,null,null,null,null,""]
[null,null,null,null,null,null,null,null,null,null,null,null,null,null,null,null,null,null,null,null,null,null,null,null,null,null,null,null,null,null,null,null,null,null,null,null,null,null,null,null,null,null,null,null,null,null,null,null,null,null,null,null,null,""]
[null,null,null,null,null,null,null,null,null,null,null,null,null,null,null,null,null,null,null,null,null,null,null,null,null,null,null,null,null,null,null,null,null,null,null,null,null,null,null,null,null,null,null,null,null,null,null,null,null,null,null,null,null,""]
[null,null,null,null,null,null,null,null,null,null,null,null,null,null,null,null,null,null,null,null,null,null,null,null,null,null,null,null,null,null,null,null,null,null,null,null,null,null,null,null,null,null,null,null,null,null,null,null,null,null,null,null,null,""]
[null,null,null,null,null,null,null,null,null,null,null,null,null,null,null,null,null,null,null,null,null,null,null,null,null,null,null,null,null,null,null,null,null,null,null,null,null,null,null,null,null,null,null,null,null,null,null,null,null,null,null,null,null,""]
[null,null,null,null,null,null,null,null,null,null,null,null,null,null,null,null,null,null,null,null,null,null,null,null,null,null,null,null,null,null,null,null,null,null,null,null,null,null,null,null,null,null,null,null,null,null,null,null,null,null,null,null,null,""]
[null,null,null,null,null,null,null,null,null,null,null,null,null,null,null,null,null,null,null,null,null,null,null,null,null,null,null,null,null,null,null,null,null,null,null,null,null,null,null,null,null,null,null,null,null,null,null,null,null,null,null,null,null,""]
[null,null,null,null,null,null,null,null,null,null,null,null,null,null,null,null,null,null,null,null,null,null,null,null,null,null,null,null,null,null,null,null,null,null,null,null,null,null,null,null,null,null,null,null,null,null,null,null,null,null,null,null,null,""]
[null,null,null,null,null,null,null,null,null,null,null,null,null,null,null,null,null,null,null,null,null,null,null,null,null,null,null,null,null,null,null,null,null,null,null,null,null,null,null,null,null,null,null,null,null,null,null,null,null,null,null,null,null,""]
[null,null,null,null,null,null,null,null,null,null,null,null,null,null,null,null,null,null,null,null,null,null,null,null,null,null,null,null,null,null,null,null,null,null,null,null,null,null,null,null,null,null,null,null,null,null,null,null,null,null,null,null,null,""]
[null,null,null,null,null,null,null,null,null,null,null,null,null,null,null,null,null,null,null,null,null,null,null,null,null,null,null,null,null,null,null,null,null,null,null,null,null,null,null,null,null,null,null,null,null,null,null,null,null,null,null,null,null,""]
[null,null,null,null,null,null,null,null,null,null,null,null,null,null,null,null,null,null,null,null,null,null,null,null,null,null,null,null,null,null,null,null,null,null,null,null,null,null,null,null,null,null,null,null,null,null,null,null,null,null,null,null,null,""]
[null,null,null,null,null,null,null,null,null,null,null,null,null,null,null,null,null,null,null,null,null,null,null,null,null,null,null,null,null,null,null,null,null,null,null,null,null,null,null,null,null,null,null,null,null,null,null,null,null,null,null,null,null,""]
[null,null,null,null,null,null,null,null,null,null,null,null,null,null,null,null,null,null,null,null,null,null,null,null,null,null,null,null,null,null,null,null,null,null,null,null,null,null,null,null,null,null,null,null,null,null,null,null,null,null,null,null,null,""]
[null,null,null,null,null,null,null,null,null,null,null,null,null,null,null,null,null,null,null,null,null,null,null,null,null,null,null,null,null,null,null,null,null,null,null,null,null,null,null,null,null,null,null,null,null,null,null,null,null,null,null,null,null,""]
[null,null,null,null,null,null,null,null,null,null,null,null,null,null,null,null,null,null,null,null,null,null,null,null,null,null,null,null,null,null,null,null,null,null,null,null,null,null,null,null,null,null,null,null,null,null,null,null,null,null,null,null,null,""]
[null,null,null,null,null,null,null,null,null,null,null,null,null,null,null,null,null,null,null,null,null,null,null,null,null,null,null,null,null,null,null,null,null,null,null,null,null,null,null,null,null,null,null,null,null,null,null,null,null,null,null,null,null,""]
[null,null,null,null,null,null,null,null,null,null,null,null,null,null,null,null,null,null,null,null,null,null,null,null,null,null,null,null,null,null,null,null,null,null,null,null,null,null,null,null,null,null,null,null,null,null,null,null,null,null,null,null,null,""]
[null,null,null,null,null,null,null,null,null,null,null,null,null,null,null,null,null,null,null,null,null,null,null,null,null,null,null,null,null,null,null,null,null,null,null,null,null,null,null,null,null,null,null,null,null,null,null,null,null,null,null,null,null,""]
[null,null,null,null,null,null,null,null,null,null,null,null,null,null,null,null,null,null,null,null,null,null,null,null,null,null,null,null,null,null,null,null,null,null,null,null,null,null,null,null,null,null,null,null,null,null,null,null,null,null,null,null,null,""]
[null,null,null,null,null,null,null,null,null,null,null,null,null,null,null,null,null,null,null,null,null,null,null,null,null,null,null,null,null,null,null,null,null,null,null,null,null,null,null,null,null,null,null,null,null,null,null,null,null,null,null,null,null,""]
[null,null,null,null,null,null,null,null,null,null,null,null,null,null,null,null,null,null,null,null,null,null,null,null,null,null,null,null,null,null,null,null,null,null,null,null,null,null,null,null,null,null,null,null,null,null,null,null,null,null,null,null,null,{"$f":"CONCATENATE(C70,B70)","v":""}]
[null,null,null,null,null,null,null,null,null,null,null,null,null,null,null,null,null,null,null,null,null,null,null,null,null,null,null,null,null,null,null,null,null,null,null,null,null,null,null,null,null,null,null,null,null,null,null,null,null,null,null,null,null,""]
[null,null,null,null,null,null,null,null,null,null,null,null,null,null,null,null,null,null,null,null,null,null,null,null,null,null,null,null,null,null,null,null,null,null,null,null,null,null,null,null,null,null,null,null,null,null,null,null,null,null,null,null,null,""]
[null,null,null,null,null,null,null,null,null,null,null,null,null,null,null,null,null,null,null,null,null,null,null,null,null,null,null,null,null,null,null,null,null,null,null,null,null,null,null,null,null,null,null,null,null,null,null,null,null,null,null,null,null,""]
[null,null,null,null,null,null,null,null,null,null,null,null,null,null,null,null,null,null,null,null,null,null,null,null,null,null,null,null,null,null,null,null,null,null,null,null,null,null,null,null,null,null,null,null,null,null,null,null,null,null,null,null,null,""]
[null,null,null,null,null,null,null,null,null,null,null,null,null,null,null,null,null,null,null,null,null,null,null,null,null,null,null,null,null,null,null,null,null,null,null,null,null,null,null,null,null,null,null,null,null,null,null,null,null,null,null,null,null,""]
[null,null,null,null,null,null,null,null,null,null,null,null,null,null,null,null,null,null,null,null,null,null,null,null,null,null,null,null,null,null,null,null,null,null,null,null,null,null,null,null,null,null,null,null,null,null,null,null,null,null,null,null,null,""]
[null,null,null,null,null,null,null,null,null,null,null,null,null,null,null,null,null,null,null,null,null,null,null,null,null,null,null,null,null,null,null,null,null,null,null,null,null,null,null,null,null,null,null,null,null,null,null,null,null,null,null,null,null,""]
[null,null,null,null,null,null,null,null,null,null,null,null,null,null,null,null,null,null,null,null,null,null,null,null,null,null,null,null,null,null,null,null,null,null,null,null,null,null,null,null,null,null,null,null,null,null,null,null,null,null,null,null,null,""]
[null,null,null,null,null,null,null,null,null,null,null,null,null,null,null,null,null,null,null,null,null,null,null,null,null,null,null,null,null,null,null,null,null,null,null,null,null,null,null,null,null,null,null,null,null,null,null,null,null,null,null,null,null,""]
[null,null,null,null,null,null,null,null,null,null,null,null,null,null,null,null,null,null,null,null,null,null,null,null,null,null,null,null,null,null,null,null,null,null,null,null,null,null,null,null,null,null,null,null,null,null,null,null,null,null,null,null,null,""]
[null,null,null,null,null,null,null,null,null,null,null,null,null,null,null,null,null,null,null,null,null,null,null,null,null,null,null,null,null,null,null,null,null,null,null,null,null,null,null,null,null,null,null,null,null,null,null,null,null,null,null,null,null,""]
[null,null,null,null,null,null,null,null,null,null,null,null,null,null,null,null,null,null,null,null,null,null,null,null,null,null,null,null,null,null,null,null,null,null,null,null,null,null,null,null,null,null,null,null,null,null,null,null,null,null,null,null,null,""]
[null,null,null,null,null,null,null,null,null,null,null,null,null,null,null,null,null,null,null,null,null,null,null,null,null,null,null,null,null,null,null,null,null,null,null,null,null,null,null,null,null,null,null,null,null,null,null,null,null,null,null,null,null,""]
[null,null,null,null,null,null,null,null,null,null,null,null,null,null,null,null,null,null,null,null,null,null,null,null,null,null,null,null,null,null,null,null,null,null,null,null,null,null,null,null,null,null,null,null,null,null,null,null,null,null,null,null,null,""]
[null,null,null,null,null,null,null,null,null,null,null,null,null,null,null,null,null,null,null,null,null,null,null,null,null,null,null,null,null,null,null,null,null,null,null,null,null,null,null,null,null,null,null,null,null,null,null,null,null,null,null,null,null,""]
[null,null,null,null,null,null,null,null,null,null,null,null,null,null,null,null,null,null,null,null,null,null,null,null,null,null,null,null,null,null,null,null,null,null,null,null,null,null,null,null,null,null,null,null,null,null,null,null,null,null,null,null,null,""]
[null,null,null,null,null,null,null,null,null,null,null,null,null,null,null,null,null,null,null,null,null,null,null,null,null,null,null,null,null,null,null,null,null,null,null,null,null,null,null,null,null,null,null,null,null,null,null,null,null,null,null,null,null,""]
[null,null,null,null,null,null,null,null,null,null,null,null,null,null,null,null,null,null,null,null,null,null,null,null,null,null,null,null,null,null,null,null,null,null,null,null,null,null,null,null,null,null,null,null,null,null,null,null,null,null,null,null,null,""]
[null,null,null,null,null,null,null,null,null,null,null,null,null,null,null,null,null,null,null,null,null,null,null,null,null,null,null,null,null,null,null,null,null,null,null,null,null,null,null,null,null,null,null,null,null,null,null,null,null,null,null,null,null,""]
[null,null,null,null,null,null,null,null,null,null,null,null,null,null,null,null,null,null,null,null,null,null,null,null,null,null,null,null,null,null,null,null,null,null,null,null,null,null,null,null,null,null,null,null,null,null,null,null,null,null,null,null,null,""]
[null,null,null,null,null,null,null,null,null,null,null,null,null,null,null,null,null,null,null,null,null,null,null,null,null,null,null,null,null,null,null,null,null,null,null,null,null,null,null,null,null,null,null,null,null,null,null,null,null,null,null,null,null,""]
[null,null,null,null,null,null,null,null,null,null,null,null,null,null,null,null,null,null,null,null,null,null,null,null,null,null,null,null,null,null,null,null,null,null,null,null,null,null,null,null,null,null,null,null,null,null,null,null,null,null,null,null,null,""]
[null,null,null,null,null,null,null,null,null,null,null,null,null,null,null,null,null,null,null,null,null,null,null,null,null,null,null,null,null,null,null,null,null,null,null,null,null,null,null,null,null,null,null,null,null,null,null,null,null,null,null,null,null,""]
[null,null,null,null,null,null,null,null,null,null,null,null,null,null,null,null,null,null,null,null,null,null,null,null,null,null,null,null,null,null,null,null,null,null,null,null,null,null,null,null,null,null,null,null,null,null,null,null,null,null,null,null,null,""]
[null,null,null,null,null,null,null,null,null,null,null,null,null,null,null,null,null,null,null,null,null,null,null,null,null,null,null,null,null,null,null,null,null,null,null,null,null,null,null,null,null,null,null,null,null,null,null,null,null,null,null,null,null,""]
[null,null,null,null,null,null,null,null,null,null,null,null,null,null,null,null,null,null,null,null,null,null,null,null,null,null,null,null,null,null,null,null,null,null,null,null,null,null,null,null,null,null,null,null,null,null,null,null,null,null,null,null,null,""]
[null,null,null,null,null,null,null,null,null,null,null,null,null,null,null,null,null,null,null,null,null,null,null,null,null,null,null,null,null,null,null,null,null,null,null,null,null,null,null,null,null,null,null,null,null,null,null,null,null,null,null,null,null,""]
[null,null,null,null,null,null,null,null,null,null,null,null,null,null,null,null,null,null,null,null,null,null,null,null,null,null,null,null,null,null,null,null,null,null,null,null,null,null,null,null,null,null,null,null,null,null,null,null,null,null,null,null,null,""]
[null,null,null,null,null,null,null,null,null,null,null,null,null,null,null,null,null,null,null,null,null,null,null,null,null,null,null,null,null,null,null,null,null,null,null,null,null,null,null,null,null,null,null,null,null,null,null,null,null,null,null,null,null,""]
[null,null,null,null,null,null,null,null,null,null,null,null,null,null,null,null,null,null,null,null,null,null,null,null,null,null,null,null,null,null,null,null,null,null,null,null,null,null,null,null,null,null,null,null,null,null,null,null,null,null,null,null,null,""]
[null,null,null,null,null,null,null,null,null,null,null,null,null,null,null,null,null,null,null,null,null,null,null,null,null,null,null,null,null,null,null,null,null,null,null,null,null,null,null,null,null,null,null,null,null,null,null,null,null,null,null,null,null,""]
[null,null,null,null,null,null,null,null,null,null,null,null,null,null,null,null,null,null,null,null,null,null,null,null,null,null,null,null,null,null,null,null,null,null,null,null,null,null,null,null,null,null,null,null,null,null,null,null,null,null,null,null,null,""]
[null,null,null,null,null,null,null,null,null,null,null,null,null,null,null,null,null,null,null,null,null,null,null,null,null,null,null,null,null,null,null,null,null,null,null,null,null,null,null,null,null,null,null,null,null,null,null,null,null,null,null,null,null,""]
[null,null,null,null,null,null,null,null,null,null,null,null,null,null,null,null,null,null,null,null,null,null,null,null,null,null,null,null,null,null,null,null,null,null,null,null,null,null,null,null,null,null,null,null,null,null,null,null,null,null,null,null,null,""]
[null,null,null,null,null,null,null,null,null,null,null,null,null,null,null,null,null,null,null,null,null,null,null,null,null,null,null,null,null,null,null,null,null,null,null,null,null,null,null,null,null,null,null,null,null,null,null,null,null,null,null,null,null,""]
[null,null,null,null,null,null,null,null,null,null,null,null,null,null,null,null,null,null,null,null,null,null,null,null,null,null,null,null,null,null,null,null,null,null,null,null,null,null,null,null,null,null,null,null,null,null,null,null,null,null,null,null,null,""]
[null,null,null,null,null,null,null,null,null,null,null,null,null,null,null,null,null,null,null,null,null,null,null,null,null,null,null,null,null,null,null,null,null,null,null,null,null,null,null,null,null,null,null,null,null,null,null,null,null,null,null,null,null,""]
[null,null,null,null,null,null,null,null,null,null,null,null,null,null,null,null,null,null,null,null,null,null,null,null,null,null,null,null,null,null,null,null,null,null,null,null,null,null,null,null,null,null,null,null,null,null,null,null,null,null,null,null,null,""]
[null,null,null,null,null,null,null,null,null,null,null,null,null,null,null,null,null,null,null,null,null,null,null,null,null,null,null,null,null,null,null,null,null,null,null,null,null,null,null,null,null,null,null,null,null,null,null,null,null,null,null,null,null,""]
[null,null,null,null,null,null,null,null,null,null,null,null,null,null,null,null,null,null,null,null,null,null,null,null,null,null,null,null,null,null,null,null,null,null,null,null,null,null,null,null,null,null,null,null,null,null,null,null,null,null,null,null,null,""]
[null,null,null,null,null,null,null,null,null,null,null,null,null,null,null,null,null,null,null,null,null,null,null,null,null,null,null,null,null,null,null,null,null,null,null,null,null,null,null,null,null,null,null,null,null,null,null,null,null,null,null,null,null,""]
[null,null,"TOTALS",null,null,null,null,null,null,null,null,{"$f":"COUNTIF(L4:L111,\"Yes\")","v":3},{"$f":"COUNTIF(M4:M111,\"Yes\")","v":0},{"$f":"COUNTIF(N4:N111,\"Yes\")","v":10},{"$f":"COUNTIF(P4:P111,\"Yes\")","v":5},{"$f":"COUNTIF(Q4:Q111,\"Yes\")","v":0},null,{"$f":"SUM(S4:S111)","v":0},{"$f":"SUM(T4:T111)","v":0}]
[]
[]
[]
[]
[]
[]
["Type of Stay Breakdown"]
["Short Stay",{"$f":"COUNTIF(D4:D111,\"Short Term\")","v":3}]
["Long Stay",{"$f":"COUNTIF(D4:D111,\"Long Term\")","v":7}]
["Total",{"$f":"B120+B121","v":10}]
[]
[]
[]
["Dose Schedule","Total","Short Stay","Long Stay"]
["Scheduled",{"$f":"COUNTIFS(H4:H111,\"Scheduled\")","v":5},{"$f":"COUNTIFS(H4:H111,\"Scheduled\",D4:D111,\"Short Term\")","v":2},{"$f":"COUNTIFS(H4:H111,\"Scheduled\",D4:D111,\"Long Term\")","v":3}]
["PRN",{"$f":"COUNTIFS(H4:H111,\"PRN\")","v":3},{"$f":"COUNTIFS(H4:H111,\"PRN\",D4:D111,\"Short Term\")","v":0},{"$f":"COUNTIFS(H4:H111,\"PRN\",D4:D111,\"Long Term\")","v":3}]
["Both",{"$f":"COUNTIFS(H4:H111,\"Both\")","v":2},{"$f":"COUNTIFS(H4:H111,\"Both\",D4:D111,\"Short Term\")","v":1},{"$f":"COUNTIFS(H4:H111,\"Both\",D4:D111,\"Long Term\")","v":1}]
["Total",{"$f":"SUM(B127:B129)","v":10},{"$f":"SUM(C127:C129)","v":3},7]
["Scheduled + both",{"$f":"B127+B129","v":7},{"$f":"C127+C129","v":3},4]
["PRN + both",{"$f":"B128+B129","v":5},{"$f":"C128+C129","v":1},4]
["% on a scheduled dose (sched + both)",{"$f":"IFERROR(((B131/B130)*100), \"---\")","v":70},{"$f":"IFERROR(((C131/C130)*100), \"---\")","v":100},{"$f":"IFERROR(((D131/D130)*100), \"---\")","v":57.142857142857139}]
["% on a PRN dose (PRN + both)",{"$f":"IFERROR(((B132/B130)*100), \"---\")","v":50},{"$f":"IFERROR(((C132/C130)*100), \"---\")","v":33.333333333333329},{"$f":"IFERROR(((D132/D130)*100), \"---\")","v":57.142857142857139}]
["% on both sched & PRN",{"$f":"IFERROR(((B129/B130)*100), \"---\")","v":20},{"$f":"IFERROR(((C129/C130)*100),\"---\")","v":33.333333333333329},{"$f":"IFERROR(((D129/D130)*100), \"---\")","v":14.285714285714285}]
[]
[]
[]
["Where Medication Started","Total","Short Stay","Long Stay"]
["SNF",{"$f":"COUNTIFS(J4:J111,\"SNF\")","v":3},{"$f":"COUNTIFS(J4:J111,\"SNF\",D4:D111,\"Short Term\")","v":1},{"$f":"COUNTIFS(J4:J111,\"SNF\",D4:D111,\"Long Term\")","v":2}]
["Hospital",{"$f":"COUNTIFS(J4:J111,\"Hospital\")","v":3},{"$f":"COUNTIFS(J4:J111,\"Hospital\",D4:D111,\"Short Term\")","v":2},{"$f":"COUNTIFS(J4:J111,\"Hospital\",D4:D111,\"Long Term\")","v":1}]
["Outpatient",{"$f":"COUNTIFS(J4:J111,\"Outpatient\")","v":4},{"$f":"COUNTIFS(J4:J111,\"Outpatient\",D4:D111,\"Short Term\")","v":0},{"$f":"COUNTIFS(J4:J111,\"Outpatient\",D4:D111,\"Long Term\")","v":4}]
["Total",{"$f":"SUM(B140:B142)","v":10},{"$f":"SUM(C140:C142)","v":3},7]
["% started in SNF",{"$f":"IFERROR(((B140/B143)*100), \"---\")","v":30},{"$f":"IFERROR(((C140/C143)*100), \"---\")","v":33.333333333333329},{"$f":"IFERROR(((D140/D143)*100), \"---\")","v":28.571428571428569}]
["% started in hospital",{"$f":"IFERROR(((B141/B143)*100), \"---\")","v":30},{"$f":"IFERROR(((C141/C143)*100), \"---\")","v":66.666666666666657},{"$f":"IFERROR(((D141/D143)*100), \"---\")","v":14.285714285714285}]
["% started in outpatient",{"$f":"IFERROR(((B142/B143)*100), \"---\")","v":40},{"$f":"IFERROR(((C142/C143)*100), \"---\")","v":0},{"$f":"IFERROR(((D142/D143)*100), \"---\")","v":57.142857142857139}]
[]
[]
[]
[]
["Dx appropriate","Total","Short Stay","Long Stay"]
["Yes",{"$f":"COUNTIFS(L4:L111,\"Yes\")","v":3},{"$f":"COUNTIFS(L4:L111,\"Yes\",D4:D111,\"Short Term\")","v":1},{"$f":"COUNTIFS(L4:L111,\"Yes\",D4:D111,\"Long Term\")","v":2}]
["No",{"$f":"COUNTIFS(L4:L111,\"No\")","v":7},{"$f":"COUNTIFS(L4:L111,\"No\",D4:D111,\"Short Term\")","v":2},{"$f":"COUNTIFS(L4:L111,\"No\",D4:D111,\"Long Term\")","v":5}]
["Total",{"$f":"SUM(B152:B153)","v":10},{"$f":"SUM(C152:C153)","v":3},7]
["% with appropriate diagnosis",{"$f":"IFERROR(((B152/B154)*100), \"---\")","v":30},{"$f":"IFERROR(((C152/C154)*100), \"---\")","v":33.333333333333329},{"$f":"IFERROR(((D152/D154)*100), \"---\")","v":28.571428571428569}]
[]
[]
[]
[]
["BPSD documented","Total","Short Stay","Long Stay"]
["Yes",{"$f":"COUNTIFS(N4:N111,\"Yes\")","v":10},{"$f":"COUNTIFS(N4:N111,\"Yes\",D4:D111,\"Short Term\")","v":3},{"$f":"COUNTIFS(N4:N111,\"Yes\",D4:D111,\"Long Term\")","v":7}]
["No",{"$f":"COUNTIFS(N4:N111,\"No\")","v":0},{"$f":"COUNTIFS(N4:N111,\"No\",D4:D111,\"Short Term\")","v":0},{"$f":"COUNTIFS(N4:N111,\"No\",D4:D111,\"Long Term\")","v":0}]
["N/A",{"$f":"COUNTIFS(N4:N111,\"N/A\")","v":0},{"$f":"COUNTIFS(N4:N111,\"N/A\",D4:D111,\"Short Term\")","v":0},{"$f":"COUNTIFS(N4:N111,\"N/A\",D4:D111,\"Long Term\")","v":0}]
["Total",{"$f":"SUM(B161:B163)","v":10},{"$f":"SUM(C161:C163)","v":3},7]
["% needing BPSD documented",{"$f":"IFERROR(((B162/(B161+B162))*100),\"---\")","v":0},{"$f":"IFERROR(((C162/(C161+C162))*100), \"---\")","v":0},{"$f":"IFERROR(((D162/(D161+D162))*100), \"---\")","v":0}]
[]
[]
[]
[]
["Non drug interventions documented","Total","Short Stay","Long Stay"]
["Yes",{"$f":"COUNTIFS(P4:P111,\"Yes\")","v":5},{"$f":"COUNTIFS(P4:P111,\"Yes\",D4:D111,\"Short Term\")","v":1},{"$f":"COUNTIFS(P4:P111,\"Yes\",D4:D111,\"Long Term\")","v":4}]
["No",{"$f":"COUNTIFS(P4:P111,\"No\")","v":3},{"$f":"COUNTIFS(P4:P111,\"No\",D4:D111,\"Short Term\")","v":0},{"$f":"COUNTIFS(P4:P111,\"No\",D4:D111,\"Long Term\")","v":3}]
["N/A",{"$f":"COUNTIFS(P4:P111,\"N/A\")","v":2},{"$f":"COUNTIFS(P4:P111,\"N/A\",D4:D111,\"Short Term\")","v":2},{"$f":"COUNTIFS(P4:P111,\"N/A\",D4:D111,\"Long Term\")","v":0}]
["Total",{"$f":"SUM(B171:B173)","v":10},{"$f":"SUM(C171:C173)","v":3},7]
["% without non drug interventions documented",{"$f":"IFERROR((B172/(B171+B172))*100, \"---\")","v":37.5},{"$f":"IFERROR((C72/(C171+C172)*100), \"---\")","v":0},{"$f":"IFERROR((D172/(D171+D172)*100), \"---\")","v":42.857142857142854}]
[]
[]
[]
[]
["GDR Outcome","Total","Short Stay","Long Stay"]
["Dose reduced",{"$f":"COUNTIFS(R4:R111,\"Dose reduced\")","v":5},{"$f":"COUNTIFS(R4:R111,\"Dose reduced\",D4:D111,\"Short Term\")","v":2},{"$f":"COUNTIFS(R4:R111,\"Dose reduced\",D4:D111,\"Long Term\")","v":3}]
["Dose discontinued",{"$f":"COUNTIFS(R4:R111,\"Drug discontinued\")","v":3},{"$f":"COUNTIFS(R4:R111,\"Drug discontinued\",D4:D111,\"Short Term\")","v":1},{"$f":"COUNTIFS(R4:R111,\"Drug discontinued\",D4:D111,\"Long Term\")","v":2}]
["Return to previous dose",{"$f":"COUNTIFS(R4:R111,\"Return to previous dose\")","v":2},{"$f":"COUNTIFS(R4:R111,\"Return to previous dose\",D4:D111,\"Short Term\")","v":0},{"$f":"COUNTIFS(R4:R111,\"Return to previous dose\",D4:D111,\"Long Term\")","v":2}]
["Total",{"$f":"SUM(B181:B183)","v":10},{"$f":"SUM(C181:C183)","v":3},7]
["dose reduced or dc'd",{"$f":"B181+B182","v":8},{"$f":"C181+C182","v":3},5]
["% dose reduction",{"$f":"IFERROR((B181/B184)*100, \"---\")","v":50},{"$f":"IFERROR((C181/C184)*100, \"---\")","v":66.666666666666657},{"$f":"IFERROR((D181/D184)*100, \"---\")","v":42.857142857142854}]
["% dose discontinued",{"$f":"IFERROR((B182/B184)*100, \"---\")","v":30},{"$f":"IFERROR((C182/C184)*100, \"---\")","v":33.333333333333329},{"$f":"IFERROR((D182/D184)*100, \"---\")","v":28.571428571428569}]
["% dose reduced or discontinued",{"$f":"IFERROR((B185/B184)*100, \"---\")","v":80},{"$f":"IFERROR((C185/C184)*100, \"---\")","v":100},{"$f":"IFERROR((D185/D184)*100, \"---\")","v":71.428571428571431}]
[]
[]
[]
[]
["GDR needed","Total","Short Stay","Long Stay"]
["Yes",{"$f":"COUNTIFS(S4:S111,\"Yes\")","v":3},{"$f":"COUNTIFS(S4:S111,\"Yes\",D4:D111,\"Short Term\")","v":1},{"$f":"COUNTIFS(S4:S111,\"Yes\",D4:D111,\"Long Term\")","v":2}]
["No",{"$f":"COUNTIFS(S4:S111,\"No\")","v":7},{"$f":"COUNTIFS(S4:S111,\"No\",D4:D111,\"Short Term\")","v":2},{"$f":"COUNTIFS(S4:S111,\"No\",D4:D111,\"Long Term\")","v":5}]
["Total",{"$f":"SUM(B194:B195)","v":10},{"$f":"SUM(C194:C195)","v":3},7]
["% needing GDR",{"$f":"IFERROR((B194/B196)*100, \"---\")","v":30},{"$f":"IFERROR((C194/C196)*100, \"---\")","v":33.333333333333329},{"$f":"IFERROR((D194/D196)*100, \"---\")","v":28.571428571428569}]
[]
[]
[]
[]
["Reason no GDR attempted","Total","Short Stay","Long Stay"]
["N/A",{"$f":"COUNTIFS(T4:T111,\"N/A\")","v":0},{"$f":"COUNTIFS(T4:T111,\"N/A\",D4:D111,\"Short Term\")","v":0},{"$f":"COUNTIFS(T4:T111,\"N/A\",D4:D111,\"Long Term\")","v":0}]
["Resident on lowest possible dose",{"$f":"COUNTIFS(T4:T111,\"Resident on lowest possible dose\")","v":7},{"$f":"COUNTIFS(T4:T111,\"Resident on lowest possible dose\",D4:D111,\"Short Term\")","v":3},{"$f":"COUNTIFS(T4:T111,\"Resident on lowest possible dose\",D4:D111,\"Long Term\")","v":4}]
["Contraindicated per prescriber",{"$f":"COUNTIFS(T4:T111,\"Contraindicated per prescriber\")","v":1},{"$f":"COUNTIFS(T4:T111,\"Contraindicated per prescriber\",D4:D111,\"Short Term\")","v":0},{"$f":"COUNTIFS(T4:T111,\"Contraindicated per prescriber\",D4:D111,\"Long Term\")","v":1}]
["Other",{"$f":"COUNTIFS(T4:T111,\"Other\")","v":2},{"$f":"COUNTIFS(T4:T111,\"Other\",D4:D111,\"Short Term\")","v":0},{"$f":"COUNTIFS(T4:T111,\"Other\",D4:D111,\"Long Term\")","v":2}]
["Total",{"$f":"SUM(B203:B206)","v":10},{"$f":"SUM(C203:C206)","v":3},7]
["% resident on lowest possible dose",{"$f":"IFERROR((B204/B207)*100, \"---\")","v":70},{"$f":"IFERROR((C204/C207)*100, \"---\")","v":100},{"$f":"IFERROR((D204/D207)*100, \"---\")","v":57.142857142857139}]
["% contraindicated per prescriber",{"$f":"IFERROR((B205/B207)*100, \"---\")","v":10},{"$f":"IFERROR((C205/C207)*100, \"---\")","v":0},{"$f":"IFERROR((D205/D207)*100, \"---\")","v":14.285714285714285}]
["% other",{"$f":"IFERROR((B206/B207)*100, \"---\")","v":20},{"$f":"IFERROR((C206/C207)*100, \"---\")","v":0},{"$f":"IFERROR((D206/D207)*100, \"---\")","v":28.571428571428569}]
[]
[]
[]
[]
["Adverse Effects","Total","Short Stay","Long Stay"]
["Yes",{"$f":"COUNTIFS(U4:U111,\"Yes\")","v":2},{"$f":"COUNTIFS(U4:U111,\"Yes\",D4:D111,\"Short Term\")","v":0},{"$f":"COUNTIFS(U4:U111,\"Yes\",D4:D111,\"Long Term\")","v":2}]
["No",{"$f":"COUNTIFS(U4:U111,\"No\")","v":8},{"$f":"COUNTIFS(U4:U111,\"No\",D4:D111,\"Short Term\")","v":3},{"$f":"COUNTIFS(U4:U111,\"No\",D4:D111,\"Long Term\")","v":5}]
["Total",{"$f":"SUM(B216:B217)","v":10},{"$f":"SUM(C216:C217)","v":3},7]
["% with adverse effects",{"$f":"IFERROR((B216/B218)*100, \"---\")","v":20},{"$f":"IFERROR((C216/C218)*100, \"---\")","v":0},{"$f":"IFERROR((D216/D218)*100, \"---\")","v":28.571428571428569}]

{"sheet":"January","index":2,"n_rows":217,"n_cols":54,"rows_kept":217,"cut":false,"hidden":false,"merged":[[0,0,0,2],[0,4,0,5],[1,0,1,4],[1,5,1,21]]}
["End of Month Census :",null,null,50," Current residents on antipsychotics:",null,{"$f":"SUMPRODUCT((A4:A111<>\"\")/COUNTIF(A4:A111,A4:A111&\"\"))","v":0},"Percentage of residents on antipsychotic:",{"$f":"IFERROR((G1/D1)*100, \"---\")","v":0}]
["Resident Information",null,null,null,null,"Antipsychotic Medication Information"]
["Room #","Last Name","First Name","Type of Stay","Notes (New Admit, etc)","Antipsychotic Drug Prescribed","Prescriber","Dose Schedule","Date Started","Where was medication started?","Diagnosis associated with antipsychotic","Is Dx Appropriate? (See directions)","List BPSD","Appropriate BPSD documented?","List Non Drug Interventions tried","Non Drug Intv documented?","Date of most recent GDR","Outcome of GDR","GDR Needed?","Reasons for no GDR being attempted","Has resident experienced adverse drug effects?","If yes, describe adverse effects"]
[]
[]
[]
[]
[]
[]
[]
[]
[]
[]
[null,null,null,null,null,null,null,null,null,null,null,null,null,null,null,null,null,null,null,null,null,null,null,null,null,null,null,null,null,null,null,null,null,null,null,null,null,null,null,null,null,null,null,null,null,null,null,null,null,null,null,null,null,{"$f":"CONCATENATE(C14,B14)","v":""}]
[null,null,null,null,null,null,null,null,null,null,null,null,null,null,null,null,null,null,null,null,null,null,null,null,null,null,null,null,null,null,null,null,null,null,null,null,null,null,null,null,null,null,null,null,null,null,null,null,null,null,null,null,null,""]
[null,null,null,null,null,null,null,null,null,null,null,null,null,null,null,null,null,null,null,null,null,null,null,null,null,null,null,null,null,null,null,null,null,null,null,null,null,null,null,null,null,null,null,null,null,null,null,null,null,null,null,null,null,""]
[null,null,null,null,null,null,null,null,null,null,null,null,null,null,null,null,null,null,null,null,null,null,null,null,null,null,null,null,null,null,null,null,null,null,null,null,null,null,null,null,null,null,null,null,null,null,null,null,null,null,null,null,null,""]
[null,null,null,null,null,null,null,null,null,null,null,null,null,null,null,null,null,null,null,null,null,null,null,null,null,null,null,null,null,null,null,null,null,null,null,null,null,null,null,null,null,null,null,null,null,null,null,null,null,null,null,null,null,""]
[null,null,null,null,null,null,null,null,null,null,null,null,null,null,null,null,null,null,null,null,null,null,null,null,null,null,null,null,null,null,null,null,null,null,null,null,null,null,null,null,null,null,null,null,null,null,null,null,null,null,null,null,null,""]
[null,null,null,null,null,null,null,null,null,null,null,null,null,null,null,null,null,null,null,null,null,null,null,null,null,null,null,null,null,null,null,null,null,null,null,null,null,null,null,null,null,null,null,null,null,null,null,null,null,null,null,null,null,""]
[null,null,null,null,null,null,null,null,null,null,null,null,null,null,null,null,null,null,null,null,null,null,null,null,null,null,null,null,null,null,null,null,null,null,null,null,null,null,null,null,null,null,null,null,null,null,null,null,null,null,null,null,null,""]
[null,null,null,null,null,null,null,null,null,null,null,null,null,null,null,null,null,null,null,null,null,null,null,null,null,null,null,null,null,null,null,null,null,null,null,null,null,null,null,null,null,null,null,null,null,null,null,null,null,null,null,null,null,""]
[null,null,null,null,null,null,null,null,null,null,null,null,null,null,null,null,null,null,null,null,null,null,null,null,null,null,null,null,null,null,null,null,null,null,null,null,null,null,null,null,null,null,null,null,null,null,null,null,null,null,null,null,null,""]
[null,null,null,null,null,null,null,null,null,null,null,null,null,null,null,null,null,null,null,null,null,null,null,null,null,null,null,null,null,null,null,null,null,null,null,null,null,null,null,null,null,null,null,null,null,null,null,null,null,null,null,null,null,""]
[null,null,null,null,null,null,null,null,null,null,null,null,null,null,null,null,null,null,null,null,null,null,null,null,null,null,null,null,null,null,null,null,null,null,null,null,null,null,null,null,null,null,null,null,null,null,null,null,null,null,null,null,null,""]
[null,null,null,null,null,null,null,null,null,null,null,null,null,null,null,null,null,null,null,null,null,null,null,null,null,null,null,null,null,null,null,null,null,null,null,null,null,null,null,null,null,null,null,null,null,null,null,null,null,null,null,null,null,""]
[null,null,null,null,null,null,null,null,null,null,null,null,null,null,null,null,null,null,null,null,null,null,null,null,null,null,null,null,null,null,null,null,null,null,null,null,null,null,null,null,null,null,null,null,null,null,null,null,null,null,null,null,null,""]
[null,null,null,null,null,null,null,null,null,null,null,null,null,null,null,null,null,null,null,null,null,null,null,null,null,null,null,null,null,null,null,null,null,null,null,null,null,null,null,null,null,null,null,null,null,null,null,null,null,null,null,null,null,""]
[null,null,null,null,null,null,null,null,null,null,null,null,null,null,null,null,null,null,null,null,null,null,null,null,null,null,null,null,null,null,null,null,null,null,null,null,null,null,null,null,null,null,null,null,null,null,null,null,null,null,null,null,null,""]
[null,null,null,null,null,null,null,null,null,null,null,null,null,null,null,null,null,null,null,null,null,null,null,null,null,null,null,null,null,null,null,null,null,null,null,null,null,null,null,null,null,null,null,null,null,null,null,null,null,null,null,null,null,""]
[null,null,null,null,null,null,null,null,null,null,null,null,null,null,null,null,null,null,null,null,null,null,null,null,null,null,null,null,null,null,null,null,null,null,null,null,null,null,null,null,null,null,null,null,null,null,null,null,null,null,null,null,null,""]
[null,null,null,null,null,null,null,null,null,null,null,null,null,null,null,null,null,null,null,null,null,null,null,null,null,null,null,null,null,null,null,null,null,null,null,null,null,null,null,null,null,null,null,null,null,null,null,null,null,null,null,null,null,""]
[null,null,null,null,null,null,null,null,null,null,null,null,null,null,null,null,null,null,null,null,null,null,null,null,null,null,null,null,null,null,null,null,null,null,null,null,null,null,null,null,null,null,null,null,null,null,null,null,null,null,null,null,null,""]
[null,null,null,null,null,null,null,null,null,null,null,null,null,null,null,null,null,null,null,null,null,null,null,null,null,null,null,null,null,null,null,null,null,null,null,null,null,null,null,null,null,null,null,null,null,null,null,null,null,null,null,null,null,""]
[null,null,null,null,null,null,null,null,null,null,null,null,null,null,null,null,null,null,null,null,null,null,null,null,null,null,null,null,null,null,null,null,null,null,null,null,null,null,null,null,null,null,null,null,null,null,null,null,null,null,null,null,null,""]
[null,null,null,null,null,null,null,null,null,null,null,null,null,null,null,null,null,null,null,null,null,null,null,null,null,null,null,null,null,null,null,null,null,null,null,null,null,null,null,null,null,null,null,null,null,null,null,null,null,null,null,null,null,""]
[null,null,null,null,null,null,null,null,null,null,null,null,null,null,null,null,null,null,null,null,null,null,null,null,null,null,null,null,null,null,null,null,null,null,null,null,null,null,null,null,null,null,null,null,null,null,null,null,null,null,null,null,null,""]
[null,null,null,null,null,null,null,null,null,null,null,null,null,null,null,null,null,null,null,null,null,null,null,null,null,null,null,null,null,null,null,null,null,null,null,null,null,null,null,null,null,null,null,null,null,null,null,null,null,null,null,null,null,""]
[null,null,null,null,null,null,null,null,null,null,null,null,null,null,null,null,null,null,null,null,null,null,null,null,null,null,null,null,null,null,null,null,null,null,null,null,null,null,null,null,null,null,null,null,null,null,null,null,null,null,null,null,null,""]
[null,null,null,null,null,null,null,null,null,null,null,null,null,null,null,null,null,null,null,null,null,null,null,null,null,null,null,null,null,null,null,null,null,null,null,null,null,null,null,null,null,null,null,null,null,null,null,null,null,null,null,null,null,""]
[null,null,null,null,null,null,null,null,null,null,null,null,null,null,null,null,null,null,null,null,null,null,null,null,null,null,null,null,null,null,null,null,null,null,null,null,null,null,null,null,null,null,null,null,null,null,null,null,null,null,null,null,null,""]
[null,null,null,null,null,null,null,null,null,null,null,null,null,null,null,null,null,null,null,null,null,null,null,null,null,null,null,null,null,null,null,null,null,null,null,null,null,null,null,null,null,null,null,null,null,null,null,null,null,null,null,null,null,""]
[null,null,null,null,null,null,null,null,null,null,null,null,null,null,null,null,null,null,null,null,null,null,null,null,null,null,null,null,null,null,null,null,null,null,null,null,null,null,null,null,null,null,null,null,null,null,null,null,null,null,null,null,null,""]
[null,null,null,null,null,null,null,null,null,null,null,null,null,null,null,null,null,null,null,null,null,null,null,null,null,null,null,null,null,null,null,null,null,null,null,null,null,null,null,null,null,null,null,null,null,null,null,null,null,null,null,null,null,""]
[null,null,null,null,null,null,null,null,null,null,null,null,null,null,null,null,null,null,null,null,null,null,null,null,null,null,null,null,null,null,null,null,null,null,null,null,null,null,null,null,null,null,null,null,null,null,null,null,null,null,null,null,null,""]
[null,null,null,null,null,null,null,null,null,null,null,null,null,null,null,null,null,null,null,null,null,null,null,null,null,null,null,null,null,null,null,null,null,null,null,null,null,null,null,null,null,null,null,null,null,null,null,null,null,null,null,null,null,""]
[null,null,null,null,null,null,null,null,null,null,null,null,null,null,null,null,null,null,null,null,null,null,null,null,null,null,null,null,null,null,null,null,null,null,null,null,null,null,null,null,null,null,null,null,null,null,null,null,null,null,null,null,null,""]
[null,null,null,null,null,null,null,null,null,null,null,null,null,null,null,null,null,null,null,null,null,null,null,null,null,null,null,null,null,null,null,null,null,null,null,null,null,null,null,null,null,null,null,null,null,null,null,null,null,null,null,null,null,""]
[null,null,null,null,null,null,null,null,null,null,null,null,null,null,null,null,null,null,null,null,null,null,null,null,null,null,null,null,null,null,null,null,null,null,null,null,null,null,null,null,null,null,null,null,null,null,null,null,null,null,null,null,null,""]
[null,null,null,null,null,null,null,null,null,null,null,null,null,null,null,null,null,null,null,null,null,null,null,null,null,null,null,null,null,null,null,null,null,null,null,null,null,null,null,null,null,null,null,null,null,null,null,null,null,null,null,null,null,""]
[null,null,null,null,null,null,null,null,null,null,null,null,null,null,null,null,null,null,null,null,null,null,null,null,null,null,null,null,null,null,null,null,null,null,null,null,null,null,null,null,null,null,null,null,null,null,null,null,null,null,null,null,null,""]
[null,null,null,null,null,null,null,null,null,null,null,null,null,null,null,null,null,null,null,null,null,null,null,null,null,null,null,null,null,null,null,null,null,null,null,null,null,null,null,null,null,null,null,null,null,null,null,null,null,null,null,null,null,""]
[null,null,null,null,null,null,null,null,null,null,null,null,null,null,null,null,null,null,null,null,null,null,null,null,null,null,null,null,null,null,null,null,null,null,null,null,null,null,null,null,null,null,null,null,null,null,null,null,null,null,null,null,null,""]
[null,null,null,null,null,null,null,null,null,null,null,null,null,null,null,null,null,null,null,null,null,null,null,null,null,null,null,null,null,null,null,null,null,null,null,null,null,null,null,null,null,null,null,null,null,null,null,null,null,null,null,null,null,""]
[null,null,null,null,null,null,null,null,null,null,null,null,null,null,null,null,null,null,null,null,null,null,null,null,null,null,null,null,null,null,null,null,null,null,null,null,null,null,null,null,null,null,null,null,null,null,null,null,null,null,null,null,null,""]
[null,null,null,null,null,null,null,null,null,null,null,null,null,null,null,null,null,null,null,null,null,null,null,null,null,null,null,null,null,null,null,null,null,null,null,null,null,null,null,null,null,null,null,null,null,null,null,null,null,null,null,null,null,""]
[null,null,null,null,null,null,null,null,null,null,null,null,null,null,null,null,null,null,null,null,null,null,null,null,null,null,null,null,null,null,null,null,null,null,null,null,null,null,null,null,null,null,null,null,null,null,null,null,null,null,null,null,null,""]
[null,null,null,null,null,null,null,null,null,null,null,null,null,null,null,null,null,null,null,null,null,null,null,null,null,null,null,null,null,null,null,null,null,null,null,null,null,null,null,null,null,null,null,null,null,null,null,null,null,null,null,null,null,""]
[null,null,null,null,null,null,null,null,null,null,null,null,null,null,null,null,null,null,null,null,null,null,null,null,null,null,null,null,null,null,null,null,null,null,null,null,null,null,null,null,null,null,null,null,null,null,null,null,null,null,null,null,null,""]
[null,null,null,null,null,null,null,null,null,null,null,null,null,null,null,null,null,null,null,null,null,null,null,null,null,null,null,null,null,null,null,null,null,null,null,null,null,null,null,null,null,null,null,null,null,null,null,null,null,null,null,null,null,""]
[null,null,null,null,null,null,null,null,null,null,null,null,null,null,null,null,null,null,null,null,null,null,null,null,null,null,null,null,null,null,null,null,null,null,null,null,null,null,null,null,null,null,null,null,null,null,null,null,null,null,null,null,null,""]
[null,null,null,null,null,null,null,null,null,null,null,null,null,null,null,null,null,null,null,null,null,null,null,null,null,null,null,null,null,null,null,null,null,null,null,null,null,null,null,null,null,null,null,null,null,null,null,null,null,null,null,null,null,""]
[null,null,null,null,null,null,null,null,null,null,null,null,null,null,null,null,null,null,null,null,null,null,null,null,null,null,null,null,null,null,null,null,null,null,null,null,null,null,null,null,null,null,null,null,null,null,null,null,null,null,null,null,null,""]
[null,null,null,null,null,null,null,null,null,null,null,null,null,null,null,null,null,null,null,null,null,null,null,null,null,null,null,null,null,null,null,null,null,null,null,null,null,null,null,null,null,null,null,null,null,null,null,null,null,null,null,null,null,""]
[null,null,null,null,null,null,null,null,null,null,null,null,null,null,null,null,null,null,null,null,null,null,null,null,null,null,null,null,null,null,null,null,null,null,null,null,null,null,null,null,null,null,null,null,null,null,null,null,null,null,null,null,null,""]
[null,null,null,null,null,null,null,null,null,null,null,null,null,null,null,null,null,null,null,null,null,null,null,null,null,null,null,null,null,null,null,null,null,null,null,null,null,null,null,null,null,null,null,null,null,null,null,null,null,null,null,null,null,""]
[null,null,null,null,null,null,null,null,null,null,null,null,null,null,null,null,null,null,null,null,null,null,null,null,null,null,null,null,null,null,null,null,null,null,null,null,null,null,null,null,null,null,null,null,null,null,null,null,null,null,null,null,null,""]
[null,null,null,null,null,null,null,null,null,null,null,null,null,null,null,null,null,null,null,null,null,null,null,null,null,null,null,null,null,null,null,null,null,null,null,null,null,null,null,null,null,null,null,null,null,null,null,null,null,null,null,null,null,""]
[null,null,null,null,null,null,null,null,null,null,null,null,null,null,null,null,null,null,null,null,null,null,null,null,null,null,null,null,null,null,null,null,null,null,null,null,null,null,null,null,null,null,null,null,null,null,null,null,null,null,null,null,null,""]
[null,null,null,null,null,null,null,null,null,null,null,null,null,null,null,null,null,null,null,null,null,null,null,null,null,null,null,null,null,null,null,null,null,null,null,null,null,null,null,null,null,null,null,null,null,null,null,null,null,null,null,null,null,""]
[null,null,null,null,null,null,null,null,null,null,null,null,null,null,null,null,null,null,null,null,null,null,null,null,null,null,null,null,null,null,null,null,null,null,null,null,null,null,null,null,null,null,null,null,null,null,null,null,null,null,null,null,null,""]
[null,null,null,null,null,null,null,null,null,null,null,null,null,null,null,null,null,null,null,null,null,null,null,null,null,null,null,null,null,null,null,null,null,null,null,null,null,null,null,null,null,null,null,null,null,null,null,null,null,null,null,null,null,""]
[null,null,null,null,null,null,null,null,null,null,null,null,null,null,null,null,null,null,null,null,null,null,null,null,null,null,null,null,null,null,null,null,null,null,null,null,null,null,null,null,null,null,null,null,null,null,null,null,null,null,null,null,null,""]
[null,null,null,null,null,null,null,null,null,null,null,null,null,null,null,null,null,null,null,null,null,null,null,null,null,null,null,null,null,null,null,null,null,null,null,null,null,null,null,null,null,null,null,null,null,null,null,null,null,null,null,null,null,""]
[null,null,null,null,null,null,null,null,null,null,null,null,null,null,null,null,null,null,null,null,null,null,null,null,null,null,null,null,null,null,null,null,null,null,null,null,null,null,null,null,null,null,null,null,null,null,null,null,null,null,null,null,null,""]
[null,null,null,null,null,null,null,null,null,null,null,null,null,null,null,null,null,null,null,null,null,null,null,null,null,null,null,null,null,null,null,null,null,null,null,null,null,null,null,null,null,null,null,null,null,null,null,null,null,null,null,null,null,""]
[null,null,null,null,null,null,null,null,null,null,null,null,null,null,null,null,null,null,null,null,null,null,null,null,null,null,null,null,null,null,null,null,null,null,null,null,null,null,null,null,null,null,null,null,null,null,null,null,null,null,null,null,null,""]
[null,null,null,null,null,null,null,null,null,null,null,null,null,null,null,null,null,null,null,null,null,null,null,null,null,null,null,null,null,null,null,null,null,null,null,null,null,null,null,null,null,null,null,null,null,null,null,null,null,null,null,null,null,{"$f":"CONCATENATE(C78,B78)","v":""}]
[null,null,null,null,null,null,null,null,null,null,null,null,null,null,null,null,null,null,null,null,null,null,null,null,null,null,null,null,null,null,null,null,null,null,null,null,null,null,null,null,null,null,null,null,null,null,null,null,null,null,null,null,null,""]
[null,null,null,null,null,null,null,null,null,null,null,null,null,null,null,null,null,null,null,null,null,null,null,null,null,null,null,null,null,null,null,null,null,null,null,null,null,null,null,null,null,null,null,null,null,null,null,null,null,null,null,null,null,""]
[null,null,null,null,null,null,null,null,null,null,null,null,null,null,null,null,null,null,null,null,null,null,null,null,null,null,null,null,null,null,null,null,null,null,null,null,null,null,null,null,null,null,null,null,null,null,null,null,null,null,null,null,null,""]
[null,null,null,null,null,null,null,null,null,null,null,null,null,null,null,null,null,null,null,null,null,null,null,null,null,null,null,null,null,null,null,null,null,null,null,null,null,null,null,null,null,null,null,null,null,null,null,null,null,null,null,null,null,""]
[null,null,null,null,null,null,null,null,null,null,null,null,null,null,null,null,null,null,null,null,null,null,null,null,null,null,null,null,null,null,null,null,null,null,null,null,null,null,null,null,null,null,null,null,null,null,null,null,null,null,null,null,null,""]
[null,null,null,null,null,null,null,null,null,null,null,null,null,null,null,null,null,null,null,null,null,null,null,null,null,null,null,null,null,null,null,null,null,null,null,null,null,null,null,null,null,null,null,null,null,null,null,null,null,null,null,null,null,""]
[null,null,null,null,null,null,null,null,null,null,null,null,null,null,null,null,null,null,null,null,null,null,null,null,null,null,null,null,null,null,null,null,null,null,null,null,null,null,null,null,null,null,null,null,null,null,null,null,null,null,null,null,null,""]
[null,null,null,null,null,null,null,null,null,null,null,null,null,null,null,null,null,null,null,null,null,null,null,null,null,null,null,null,null,null,null,null,null,null,null,null,null,null,null,null,null,null,null,null,null,null,null,null,null,null,null,null,null,""]
[null,null,null,null,null,null,null,null,null,null,null,null,null,null,null,null,null,null,null,null,null,null,null,null,null,null,null,null,null,null,null,null,null,null,null,null,null,null,null,null,null,null,null,null,null,null,null,null,null,null,null,null,null,""]
[null,null,null,null,null,null,null,null,null,null,null,null,null,null,null,null,null,null,null,null,null,null,null,null,null,null,null,null,null,null,null,null,null,null,null,null,null,null,null,null,null,null,null,null,null,null,null,null,null,null,null,null,null,""]
[null,null,null,null,null,null,null,null,null,null,null,null,null,null,null,null,null,null,null,null,null,null,null,null,null,null,null,null,null,null,null,null,null,null,null,null,null,null,null,null,null,null,null,null,null,null,null,null,null,null,null,null,null,""]
[null,null,null,null,null,null,null,null,null,null,null,null,null,null,null,null,null,null,null,null,null,null,null,null,null,null,null,null,null,null,null,null,null,null,null,null,null,null,null,null,null,null,null,null,null,null,null,null,null,null,null,null,null,""]
[null,null,null,null,null,null,null,null,null,null,null,null,null,null,null,null,null,null,null,null,null,null,null,null,null,null,null,null,null,null,null,null,null,null,null,null,null,null,null,null,null,null,null,null,null,null,null,null,null,null,null,null,null,""]
[null,null,null,null,null,null,null,null,null,null,null,null,null,null,null,null,null,null,null,null,null,null,null,null,null,null,null,null,null,null,null,null,null,null,null,null,null,null,null,null,null,null,null,null,null,null,null,null,null,null,null,null,null,""]
[null,null,null,null,null,null,null,null,null,null,null,null,null,null,null,null,null,null,null,null,null,null,null,null,null,null,null,null,null,null,null,null,null,null,null,null,null,null,null,null,null,null,null,null,null,null,null,null,null,null,null,null,null,""]
[null,null,null,null,null,null,null,null,null,null,null,null,null,null,null,null,null,null,null,null,null,null,null,null,null,null,null,null,null,null,null,null,null,null,null,null,null,null,null,null,null,null,null,null,null,null,null,null,null,null,null,null,null,""]
[null,null,null,null,null,null,null,null,null,null,null,null,null,null,null,null,null,null,null,null,null,null,null,null,null,null,null,null,null,null,null,null,null,null,null,null,null,null,null,null,null,null,null,null,null,null,null,null,null,null,null,null,null,""]
[null,null,null,null,null,null,null,null,null,null,null,null,null,null,null,null,null,null,null,null,null,null,null,null,null,null,null,null,null,null,null,null,null,null,null,null,null,null,null,null,null,null,null,null,null,null,null,null,null,null,null,null,null,""]
[null,null,null,null,null,null,null,null,null,null,null,null,null,null,null,null,null,null,null,null,null,null,null,null,null,null,null,null,null,null,null,null,null,null,null,null,null,null,null,null,null,null,null,null,null,null,null,null,null,null,null,null,null,""]
[null,null,null,null,null,null,null,null,null,null,null,null,null,null,null,null,null,null,null,null,null,null,null,null,null,null,null,null,null,null,null,null,null,null,null,null,null,null,null,null,null,null,null,null,null,null,null,null,null,null,null,null,null,""]
[null,null,null,null,null,null,null,null,null,null,null,null,null,null,null,null,null,null,null,null,null,null,null,null,null,null,null,null,null,null,null,null,null,null,null,null,null,null,null,null,null,null,null,null,null,null,null,null,null,null,null,null,null,""]
[null,null,null,null,null,null,null,null,null,null,null,null,null,null,null,null,null,null,null,null,null,null,null,null,null,null,null,null,null,null,null,null,null,null,null,null,null,null,null,null,null,null,null,null,null,null,null,null,null,null,null,null,null,""]
[null,null,null,null,null,null,null,null,null,null,null,null,null,null,null,null,null,null,null,null,null,null,null,null,null,null,null,null,null,null,null,null,null,null,null,null,null,null,null,null,null,null,null,null,null,null,null,null,null,null,null,null,null,""]
[null,null,null,null,null,null,null,null,null,null,null,null,null,null,null,null,null,null,null,null,null,null,null,null,null,null,null,null,null,null,null,null,null,null,null,null,null,null,null,null,null,null,null,null,null,null,null,null,null,null,null,null,null,""]
[null,null,null,null,null,null,null,null,null,null,null,null,null,null,null,null,null,null,null,null,null,null,null,null,null,null,null,null,null,null,null,null,null,null,null,null,null,null,null,null,null,null,null,null,null,null,null,null,null,null,null,null,null,""]
[null,null,null,null,null,null,null,null,null,null,null,null,null,null,null,null,null,null,null,null,null,null,null,null,null,null,null,null,null,null,null,null,null,null,null,null,null,null,null,null,null,null,null,null,null,null,null,null,null,null,null,null,null,""]
[null,null,null,null,null,null,null,null,null,null,null,null,null,null,null,null,null,null,null,null,null,null,null,null,null,null,null,null,null,null,null,null,null,null,null,null,null,null,null,null,null,null,null,null,null,null,null,null,null,null,null,null,null,""]
[null,null,null,null,null,null,null,null,null,null,null,null,null,null,null,null,null,null,null,null,null,null,null,null,null,null,null,null,null,null,null,null,null,null,null,null,null,null,null,null,null,null,null,null,null,null,null,null,null,null,null,null,null,""]
[null,null,null,null,null,null,null,null,null,null,null,null,null,null,null,null,null,null,null,null,null,null,null,null,null,null,null,null,null,null,null,null,null,null,null,null,null,null,null,null,null,null,null,null,null,null,null,null,null,null,null,null,null,""]
[null,null,null,null,null,null,null,null,null,null,null,null,null,null,null,null,null,null,null,null,null,null,null,null,null,null,null,null,null,null,null,null,null,null,null,null,null,null,null,null,null,null,null,null,null,null,null,null,null,null,null,null,null,""]
[null,null,null,null,null,null,null,null,null,null,null,null,null,null,null,null,null,null,null,null,null,null,null,null,null,null,null,null,null,null,null,null,null,null,null,null,null,null,null,null,null,null,null,null,null,null,null,null,null,null,null,null,null,""]
[null,null,null,null,null,null,null,null,null,null,null,null,null,null,null,null,null,null,null,null,null,null,null,null,null,null,null,null,null,null,null,null,null,null,null,null,null,null,null,null,null,null,null,null,null,null,null,null,null,null,null,null,null,""]
[null,null,null,null,null,null,null,null,null,null,null,null,null,null,null,null,null,null,null,null,null,null,null,null,null,null,null,null,null,null,null,null,null,null,null,null,null,null,null,null,null,null,null,null,null,null,null,null,null,null,null,null,null,""]
[null,null,"TOTALS",null,null,null,null,null,null,null,null,{"$f":"COUNTIF(L4:L111,\"Yes\")","v":0},{"$f":"COUNTIF(M4:M111,\"Yes\")","v":0},{"$f":"COUNTIF(N4:N111,\"Yes\")","v":0},{"$f":"COUNTIF(P4:P111,\"Yes\")","v":0},{"$f":"COUNTIF(Q4:Q111,\"Yes\")","v":0},null,{"$f":"SUM(S4:S111)","v":0},{"$f":"SUM(T4:T111)","v":0}]
[]
[]
[]
[]
[]
[]
["Type of Stay Breakdown"]
["Short Stay",{"$f":"COUNTIF(D4:D111,\"Short Term\")","v":0}]
["Long Stay",{"$f":"COUNTIF(D4:D111,\"Long Term\")","v":0}]
["Total",{"$f":"B120+B121","v":0}]
[]
[]
[]
["Dose Schedule","Total","Short Stay","Long Stay"]
["Scheduled",{"$f":"COUNTIFS(H4:H111,\"Scheduled\")","v":0},{"$f":"COUNTIFS(H4:H111,\"Scheduled\",D4:D111,\"Short Term\")","v":0},{"$f":"COUNTIFS(H4:H111,\"Scheduled\",D4:D111,\"Long Term\")","v":0}]
["PRN",{"$f":"COUNTIFS(H4:H111,\"PRN\")","v":0},{"$f":"COUNTIFS(H4:H111,\"PRN\",D4:D111,\"Short Term\")","v":0},{"$f":"COUNTIFS(H4:H111,\"PRN\",D4:D111,\"Long Term\")","v":0}]
["Both",{"$f":"COUNTIFS(H4:H111,\"Both\")","v":0},{"$f":"COUNTIFS(H4:H111,\"Both\",D4:D111,\"Short Term\")","v":0},{"$f":"COUNTIFS(H4:H111,\"Both\",D4:D111,\"Long Term\")","v":0}]
["Total",{"$f":"SUM(B127:B129)","v":0},{"$f":"SUM(C127:C129)","v":0},0]
["% on a scheduled dose",{"$f":"IFERROR(((B127/$B$130)*100), \"---\")","v":"---"},{"$f":"IFERROR(((C127/C130)*100), \"---\")","v":"---"},{"$f":"IFERROR(((D127/D130)*100), \"---\")","v":"---"}]
["% on a PRN dose",{"$f":"IFERROR(((B128/$B$130)*100), \"---\")","v":"---"},{"$f":"IFERROR(((C128/$C$130)*100), \"---\")","v":"---"},{"$f":"IFERROR(((D128/$D$130)*100), \"---\")","v":"---"}]
["% on both sched & PRN","---",{"$f":"IFERROR(((C129/C130)*100),\"---\")","v":"---"},{"$f":"IFERROR(((D129/D130)*100), \"---\")","v":"---"}]
[]
[]
[]
["Where Medication Started","Total","Short Stay","Long Stay"]
["SNF",{"$f":"COUNTIFS(J4:J111,\"SNF\")","v":0},{"$f":"COUNTIFS(J4:J111,\"SNF\",D4:D111,\"Short Term\")","v":0},{"$f":"COUNTIFS(J4:J111,\"SNF\",D4:D111,\"Long Term\")","v":0}]
["Hospital",{"$f":"COUNTIFS(J4:J111,\"Hospital\")","v":0},{"$f":"COUNTIFS(J4:J111,\"Hospital\",D4:D111,\"Short Term\")","v":0},{"$f":"COUNTIFS(J4:J111,\"Hospital\",D4:D111,\"Long Term\")","v":0}]
["Outpatient",{"$f":"COUNTIFS(J4:J111,\"Outpatient\")","v":0},{"$f":"COUNTIFS(J4:J111,\"Outpatient\",D4:D111,\"Short Term\")","v":0},{"$f":"COUNTIFS(J4:J111,\"Outpatient\",D4:D111,\"Long Term\")","v":0}]
["Total",{"$f":"SUM(B138:B140)","v":0},{"$f":"SUM(C138:C140)","v":0},0]
["% started in SNF",{"$f":"IFERROR(((B138/B141)*100), \"---\")","v":"---"},{"$f":"IFERROR(((C138/C141)*100), \"---\")","v":"---"},{"$f":"IFERROR(((D138/D141)*100), \"---\")","v":"---"}]
["% started in hospital",{"$f":"IFERROR(((B139/B141)*100), \"---\")","v":"---"},{"$f":"IFERROR(((C139/C141)*100), \"---\")","v":"---"},{"$f":"IFERROR(((D139/D141)*100), \"---\")","v":"---"}]
["% started in outpatient",{"$f":"IFERROR(((B140/B141)*100), \"---\")","v":"---"},{"$f":"IFERROR(((C140/C141)*100), \"---\")","v":"---"},{"$f":"IFERROR(((D140/D141)*100), \"---\")","v":"---"}]
[]
[]
[]
[]
["Dx appropriate","Total","Short Stay","Long Stay"]
["Yes",{"$f":"COUNTIFS(L4:L111,\"Yes\")","v":0},{"$f":"COUNTIFS(L4:L111,\"Yes\",D4:D111,\"Short Term\")","v":0},{"$f":"COUNTIFS(L4:L111,\"Yes\",D4:D111,\"Long Term\")","v":0}]
["No",{"$f":"COUNTIFS(L4:L111,\"No\")","v":0},{"$f":"COUNTIFS(L4:L111,\"No\",D4:D111,\"Short Term\")","v":0},{"$f":"COUNTIFS(L4:L111,\"No\",D4:D111,\"Long Term\")","v":0}]
["Total",{"$f":"SUM(B150:B151)","v":0},{"$f":"SUM(C150:C151)","v":0},0]
["% with appropriate diagnosis",{"$f":"IFERROR(((B150/B152)*100), \"---\")","v":"---"},{"$f":"IFERROR(((C150/C152)*100), \"---\")","v":"---"},{"$f":"IFERROR(((D150/D152)*100), \"---\")","v":"---"}]
[]
[]
[]
[]
["BPSD documented","Total","Short Stay","Long Stay"]
["Yes",{"$f":"COUNTIFS(N4:N111,\"Yes\")","v":0},{"$f":"COUNTIFS(N4:N111,\"Yes\",D4:D111,\"Short Term\")","v":0},{"$f":"COUNTIFS(N4:N111,\"Yes\",D4:D111,\"Long Term\")","v":0}]
["No",{"$f":"COUNTIFS(N4:N111,\"No\")","v":0},{"$f":"COUNTIFS(N4:N111,\"No\",D4:D111,\"Short Term\")","v":0},{"$f":"COUNTIFS(N4:N111,\"No\",D4:D111,\"Long Term\")","v":0}]
["N/A",{"$f":"COUNTIFS(N4:N111,\"N/A\")","v":0},{"$f":"COUNTIFS(N4:N111,\"N/A\",D4:D111,\"Short Term\")","v":0},{"$f":"COUNTIFS(N4:N111,\"N/A\",D4:D111,\"Long Term\")","v":0}]
["Total",{"$f":"SUM(B159:B161)","v":0},{"$f":"SUM(C159:C161)","v":0},0]
["% needing BPSD documented",{"$f":"IFERROR(((B160/(B159+B160))*100),\"---\")","v":"---"},{"$f":"IFERROR(((C160/(C159+C160))*100), \"---\")","v":"---"},{"$f":"IFERROR(((D160/(D159+D160))*100), \"---\")","v":"---"}]
[]
[]
[]
[]
["Non drug interventions documented","Total","Short Stay","Long Stay"]
["Yes",{"$f":"COUNTIFS(P4:P111,\"Yes\")","v":0},{"$f":"COUNTIFS(P4:P111,\"Yes\",D4:D111,\"Short Term\")","v":0},{"$f":"COUNTIFS(P4:P111,\"Yes\",D4:D111,\"Long Term\")","v":0}]
["No",{"$f":"COUNTIFS(P4:P111,\"No\")","v":0},{"$f":"COUNTIFS(P4:P111,\"No\",D4:D111,\"Short Term\")","v":0},{"$f":"COUNTIFS(P4:P111,\"No\",D4:D111,\"Long Term\")","v":0}]
["N/A",{"$f":"COUNTIFS(P4:P111,\"N/A\")","v":0},{"$f":"COUNTIFS(P4:P111,\"N/A\",D4:D111,\"Short Term\")","v":0},{"$f":"COUNTIFS(P4:P111,\"N/A\",D4:D111,\"Long Term\")","v":0}]
["Total",{"$f":"SUM(B169:B171)","v":0},{"$f":"SUM(C169:C171)","v":0},0]
["% without non drug interventions documented",{"$f":"IFERROR((B170/(B169+B170))*100, \"---\")","v":"---"},{"$f":"IFERROR((C72/(C169+C170)*100), \"---\")","v":"---"},{"$f":"IFERROR((D170/(D169+D170)*100), \"---\")","v":"---"}]
[]
[]
[]
[]
["GDR Outcome","Total","Short Stay","Long Stay"]
["Dose reduced",{"$f":"COUNTIFS(R4:R111,\"Dose reduced\")","v":0},{"$f":"COUNTIFS(R4:R111,\"Dose reduced\",D4:D111,\"Short Term\")","v":0},{"$f":"COUNTIFS(R4:R111,\"Dose reduced\",D4:D111,\"Long Term\")","v":0}]
["Dose discontinued",{"$f":"COUNTIFS(R4:R111,\"Drug discontinued\")","v":0},{"$f":"COUNTIFS(R4:R111,\"Drug discontinued\",D4:D111,\"Short Term\")","v":0},{"$f":"COUNTIFS(R4:R111,\"Drug discontinued\",D4:D111,\"Long Term\")","v":0}]
["Return to previous dose",{"$f":"COUNTIFS(R4:R111,\"Return to previous dose\")","v":0},{"$f":"COUNTIFS(R4:R111,\"Return to previous dose\",D4:D111,\"Short Term\")","v":0},{"$f":"COUNTIFS(R4:R111,\"Return to previous dose\",D4:D111,\"Long Term\")","v":0}]
["Total",{"$f":"SUM(B179:B181)","v":0},{"$f":"SUM(C179:C181)","v":0},0]
["dose reduced or dc'd",{"$f":"B179+B180","v":0},{"$f":"C179+C180","v":0},0]
["% dose reduction",{"$f":"IFERROR((B179/B182)*100, \"---\")","v":"---"},{"$f":"IFERROR((C179/C182)*100, \"---\")","v":"---"},{"$f":"IFERROR((D179/D182)*100, \"---\")","v":"---"}]
["% dose discontinued",{"$f":"IFERROR((B180/B182)*100, \"---\")","v":"---"},{"$f":"IFERROR((C180/C182)*100, \"---\")","v":"---"},{"$f":"IFERROR((D180/D182)*100, \"---\")","v":"---"}]
["% dose reduced or discontinued",{"$f":"IFERROR((B183/B182)*100, \"---\")","v":"---"},{"$f":"IFERROR((C183/C182)*100, \"---\")","v":"---"},{"$f":"IFERROR((D183/D182)*100, \"---\")","v":"---"}]
[]
[]
[]
[]
["GDR needed","Total","Short Stay","Long Stay"]
["Yes",{"$f":"COUNTIFS(S4:S111,\"Yes\")","v":0},{"$f":"COUNTIFS(S4:S111,\"Yes\",D4:D111,\"Short Term\")","v":0},{"$f":"COUNTIFS(S4:S111,\"Yes\",D4:D111,\"Long Term\")","v":0}]
["No",{"$f":"COUNTIFS(S4:S111,\"No\")","v":0},{"$f":"COUNTIFS(S4:S111,\"No\",D4:D111,\"Short Term\")","v":0},{"$f":"COUNTIFS(S4:S111,\"No\",D4:D111,\"Long Term\")","v":0}]
["Total",{"$f":"SUM(B192:B193)","v":0},{"$f":"SUM(C192:C193)","v":0},0]
["% needing GDR",{"$f":"IFERROR((B192/B194)*100, \"---\")","v":"---"},{"$f":"IFERROR((C192/C194)*100, \"---\")","v":"---"},{"$f":"IFERROR((D192/D194)*100, \"---\")","v":"---"}]
[]
[]
[]
[]
["Reason no GDR attempted","Total","Short Stay","Long Stay"]
["N/A",{"$f":"COUNTIFS(T4:T111,\"N/A\")","v":0},{"$f":"COUNTIFS(T4:T111,\"N/A\",D4:D111,\"Short Term\")","v":0},{"$f":"COUNTIFS(T4:T111,\"N/A\",D4:D111,\"Long Term\")","v":0}]
["Resident on lowest possible dose",{"$f":"COUNTIFS(T4:T111,\"Resident on lowest possible dose\")","v":0},{"$f":"COUNTIFS(T4:T111,\"Resident on lowest possible dose\",D4:D111,\"Short Term\")","v":0},{"$f":"COUNTIFS(T4:T111,\"Resident on lowest possible dose\",D4:D111,\"Long Term\")","v":0}]
["Contraindicated per prescriber",{"$f":"COUNTIFS(T4:T111,\"Contraindicated per prescriber\")","v":0},{"$f":"COUNTIFS(T4:T111,\"Contraindicated per prescriber\",D4:D111,\"Short Term\")","v":0},{"$f":"COUNTIFS(T4:T111,\"Contraindicated per prescriber\",D4:D111,\"Long Term\")","v":0}]
["Other",{"$f":"COUNTIFS(T4:T111,\"Other\")","v":0},{"$f":"COUNTIFS(T4:T111,\"Other\",D4:D111,\"Short Term\")","v":0},{"$f":"COUNTIFS(T4:T111,\"Other\",D4:D111,\"Long Term\")","v":0}]
["Total",{"$f":"SUM(B201:B204)","v":0},{"$f":"SUM(C201:C204)","v":0},0]
["% resident on lowest possible dose",{"$f":"IFERROR((B202/B205)*100, \"---\")","v":"---"},{"$f":"IFERROR((C202/C205)*100, \"---\")","v":"---"},{"$f":"IFERROR((D202/D205)*100, \"---\")","v":"---"}]
["% contraindicated per prescriber",{"$f":"IFERROR((B203/B205)*100, \"---\")","v":"---"},{"$f":"IFERROR((C203/C205)*100, \"---\")","v":"---"},{"$f":"IFERROR((D203/D205)*100, \"---\")","v":"---"}]
["% other",{"$f":"IFERROR((B204/B205)*100, \"---\")","v":"---"},{"$f":"IFERROR((C204/C205)*100, \"---\")","v":"---"},{"$f":"IFERROR((D204/D205)*100, \"---\")","v":"---"}]
[]
[]
[]
[]
["Adverse Effects","Total","Short Stay","Long Stay"]
["Yes",{"$f":"COUNTIFS(U4:U111,\"Yes\")","v":0},{"$f":"COUNTIFS(U4:U111,\"Yes\",D4:D111,\"Short Term\")","v":0},{"$f":"COUNTIFS(U4:U111,\"Yes\",D4:D111,\"Long Term\")","v":0}]
["No",{"$f":"COUNTIFS(U4:U111,\"No\")","v":0},{"$f":"COUNTIFS(U4:U111,\"No\",D4:D111,\"Short Term\")","v":0},{"$f":"COUNTIFS(U4:U111,\"No\",D4:D111,\"Long Term\")","v":0}]
["Total",{"$f":"SUM(B214:B215)","v":0},{"$f":"SUM(C214:C215)","v":0},0]
["% with adverse effects",{"$f":"IFERROR((B214/B216)*100, \"---\")","v":"---"},{"$f":"IFERROR((C214/C216)*100, \"---\")","v":"---"},{"$f":"IFERROR((D214/D216)*100, \"---\")","v":"---"}]

{"sheet":"February","index":3,"n_rows":217,"n_cols":54,"rows_kept":217,"cut":false,"hidden":false,"merged":[[0,0,0,2],[0,4,0,5],[1,0,1,4],[1,5,1,21]]}
["End of Month Census :",null,null,null," Current residents on antipsychotics:",null,{"$f":"SUMPRODUCT((A4:A111<>\"\")/COUNTIF(A4:A111,A4:A111&\"\"))","v":0},"Percentage of residents on antipsychotic:",{"$f":"IFERROR((G1/D1)*100, \"---\")","v":"---"}]
["Resident Information",null,null,null,null,"Antipsychotic Medication Information"]
["Room #","Last Name","First Name","Type of Stay","Notes (New Admit, etc)","Antipsychotic Drug Prescribed","Prescriber","Dose Schedule","Date Started","Where was medication started?","Diagnosis associated with antipsychotic","Is Dx Appropriate? (See directions)","List BPSD","Appropriate BPSD documented?","List Non Drug Interventions tried","Non Drug Intv documented?","Date of most recent GDR","Outcome of GDR","GDR Needed?","Reasons for no GDR being attempted","Has resident experienced adverse drug effects?","If yes, describe adverse effects"]
[]
[]
[]
[]
[]
[]
[]
[]
[]
[]
[]
[]
[]
[]
[]
[]
[]
[]
[]
[null,null,null,null,null,null,null,null,null,null,null,null,null,null,null,null,null,null,null,null,null,null,null,null,null,null,null,null,null,null,null,null,null,null,null,null,null,null,null,null,null,null,null,null,null,null,null,null,null,null,null,null,null,{"$f":"CONCATENATE(C23,B23)","v":""}]
[null,null,null,null,null,null,null,null,null,null,null,null,null,null,null,null,null,null,null,null,null,null,null,null,null,null,null,null,null,null,null,null,null,null,null,null,null,null,null,null,null,null,null,null,null,null,null,null,null,null,null,null,null,""]
[null,null,null,null,null,null,null,null,null,null,null,null,null,null,null,null,null,null,null,null,null,null,null,null,null,null,null,null,null,null,null,null,null,null,null,null,null,null,null,null,null,null,null,null,null,null,null,null,null,null,null,null,null,""]
[null,null,null,null,null,null,null,null,null,null,null,null,null,null,null,null,null,null,null,null,null,null,null,null,null,null,null,null,null,null,null,null,null,null,null,null,null,null,null,null,null,null,null,null,null,null,null,null,null,null,null,null,null,""]
[null,null,null,null,null,null,null,null,null,null,null,null,null,null,null,null,null,null,null,null,null,null,null,null,null,null,null,null,null,null,null,null,null,null,null,null,null,null,null,null,null,null,null,null,null,null,null,null,null,null,null,null,null,""]
[null,null,null,null,null,null,null,null,null,null,null,null,null,null,null,null,null,null,null,null,null,null,null,null,null,null,null,null,null,null,null,null,null,null,null,null,null,null,null,null,null,null,null,null,null,null,null,null,null,null,null,null,null,""]
[null,null,null,null,null,null,null,null,null,null,null,null,null,null,null,null,null,null,null,null,null,null,null,null,null,null,null,null,null,null,null,null,null,null,null,null,null,null,null,null,null,null,null,null,null,null,null,null,null,null,null,null,null,""]
[null,null,null,null,null,null,null,null,null,null,null,null,null,null,null,null,null,null,null,null,null,null,null,null,null,null,null,null,null,null,null,null,null,null,null,null,null,null,null,null,null,null,null,null,null,null,null,null,null,null,null,null,null,""]
[null,null,null,null,null,null,null,null,null,null,null,null,null,null,null,null,null,null,null,null,null,null,null,null,null,null,null,null,null,null,null,null,null,null,null,null,null,null,null,null,null,null,null,null,null,null,null,null,null,null,null,null,null,""]
[null,null,null,null,null,null,null,null,null,null,null,null,null,null,null,null,null,null,null,null,null,null,null,null,null,null,null,null,null,null,null,null,null,null,null,null,null,null,null,null,null,null,null,null,null,null,null,null,null,null,null,null,null,""]
[null,null,null,null,null,null,null,null,null,null,null,null,null,null,null,null,null,null,null,null,null,null,null,null,null,null,null,null,null,null,null,null,null,null,null,null,null,null,null,null,null,null,null,null,null,null,null,null,null,null,null,null,null,""]
[null,null,null,null,null,null,null,null,null,null,null,null,null,null,null,null,null,null,null,null,null,null,null,null,null,null,null,null,null,null,null,null,null,null,null,null,null,null,null,null,null,null,null,null,null,null,null,null,null,null,null,null,null,""]
[null,null,null,null,null,null,null,null,null,null,null,null,null,null,null,null,null,null,null,null,null,null,null,null,null,null,null,null,null,null,null,null,null,null,null,null,null,null,null,null,null,null,null,null,null,null,null,null,null,null,null,null,null,""]
[null,null,null,null,null,null,null,null,null,null,null,null,null,null,null,null,null,null,null,null,null,null,null,null,null,null,null,null,null,null,null,null,null,null,null,null,null,null,null,null,null,null,null,null,null,null,null,null,null,null,null,null,null,""]
[null,null,null,null,null,null,null,null,null,null,null,null,null,null,null,null,null,null,null,null,null,null,null,null,null,null,null,null,null,null,null,null,null,null,null,null,null,null,null,null,null,null,null,null,null,null,null,null,null,null,null,null,null,""]
[null,null,null,null,null,null,null,null,null,null,null,null,null,null,null,null,null,null,null,null,null,null,null,null,null,null,null,null,null,null,null,null,null,null,null,null,null,null,null,null,null,null,null,null,null,null,null,null,null,null,null,null,null,""]
[null,null,null,null,null,null,null,null,null,null,null,null,null,null,null,null,null,null,null,null,null,null,null,null,null,null,null,null,null,null,null,null,null,null,null,null,null,null,null,null,null,null,null,null,null,null,null,null,null,null,null,null,null,""]
[null,null,null,null,null,null,null,null,null,null,null,null,null,null,null,null,null,null,null,null,null,null,null,null,null,null,null,null,null,null,null,null,null,null,null,null,null,null,null,null,null,null,null,null,null,null,null,null,null,null,null,null,null,""]
[null,null,null,null,null,null,null,null,null,null,null,null,null,null,null,null,null,null,null,null,null,null,null,null,null,null,null,null,null,null,null,null,null,null,null,null,null,null,null,null,null,null,null,null,null,null,null,null,null,null,null,null,null,""]
[null,null,null,null,null,null,null,null,null,null,null,null,null,null,null,null,null,null,null,null,null,null,null,null,null,null,null,null,null,null,null,null,null,null,null,null,null,null,null,null,null,null,null,null,null,null,null,null,null,null,null,null,null,""]
[null,null,null,null,null,null,null,null,null,null,null,null,null,null,null,null,null,null,null,null,null,null,null,null,null,null,null,null,null,null,null,null,null,null,null,null,null,null,null,null,null,null,null,null,null,null,null,null,null,null,null,null,null,""]
[null,null,null,null,null,null,null,null,null,null,null,null,null,null,null,null,null,null,null,null,null,null,null,null,null,null,null,null,null,null,null,null,null,null,null,null,null,null,null,null,null,null,null,null,null,null,null,null,null,null,null,null,null,""]
[null,null,null,null,null,null,null,null,null,null,null,null,null,null,null,null,null,null,null,null,null,null,null,null,null,null,null,null,null,null,null,null,null,null,null,null,null,null,null,null,null,null,null,null,null,null,null,null,null,null,null,null,null,""]
[null,null,null,null,null,null,null,null,null,null,null,null,null,null,null,null,null,null,null,null,null,null,null,null,null,null,null,null,null,null,null,null,null,null,null,null,null,null,null,null,null,null,null,null,null,null,null,null,null,null,null,null,null,""]
[null,null,null,null,null,null,null,null,null,null,null,null,null,null,null,null,null,null,null,null,null,null,null,null,null,null,null,null,null,null,null,null,null,null,null,null,null,null,null,null,null,null,null,null,null,null,null,null,null,null,null,null,null,""]
[null,null,null,null,null,null,null,null,null,null,null,null,null,null,null,null,null,null,null,null,null,null,null,null,null,null,null,null,null,null,null,null,null,null,null,null,null,null,null,null,null,null,null,null,null,null,null,null,null,null,null,null,null,""]
[null,null,null,null,null,null,null,null,null,null,null,null,null,null,null,null,null,null,null,null,null,null,null,null,null,null,null,null,null,null,null,null,null,null,null,null,null,null,null,null,null,null,null,null,null,null,null,null,null,null,null,null,null,""]
[null,null,null,null,null,null,null,null,null,null,null,null,null,null,null,null,null,null,null,null,null,null,null,null,null,null,null,null,null,null,null,null,null,null,null,null,null,null,null,null,null,null,null,null,null,null,null,null,null,null,null,null,null,""]
[null,null,null,null,null,null,null,null,null,null,null,null,null,null,null,null,null,null,null,null,null,null,null,null,null,null,null,null,null,null,null,null,null,null,null,null,null,null,null,null,null,null,null,null,null,null,null,null,null,null,null,null,null,""]
[null,null,null,null,null,null,null,null,null,null,null,null,null,null,null,null,null,null,null,null,null,null,null,null,null,null,null,null,null,null,null,null,null,null,null,null,null,null,null,null,null,null,null,null,null,null,null,null,null,null,null,null,null,""]
[null,null,null,null,null,null,null,null,null,null,null,null,null,null,null,null,null,null,null,null,null,null,null,null,null,null,null,null,null,null,null,null,null,null,null,null,null,null,null,null,null,null,null,null,null,null,null,null,null,null,null,null,null,""]
[null,null,null,null,null,null,null,null,null,null,null,null,null,null,null,null,null,null,null,null,null,null,null,null,null,null,null,null,null,null,null,null,null,null,null,null,null,null,null,null,null,null,null,null,null,null,null,null,null,null,null,null,null,""]
[null,null,null,null,null,null,null,null,null,null,null,null,null,null,null,null,null,null,null,null,null,null,null,null,null,null,null,null,null,null,null,null,null,null,null,null,null,null,null,null,null,null,null,null,null,null,null,null,null,null,null,null,null,""]
[null,null,null,null,null,null,null,null,null,null,null,null,null,null,null,null,null,null,null,null,null,null,null,null,null,null,null,null,null,null,null,null,null,null,null,null,null,null,null,null,null,null,null,null,null,null,null,null,null,null,null,null,null,""]
[null,null,null,null,null,null,null,null,null,null,null,null,null,null,null,null,null,null,null,null,null,null,null,null,null,null,null,null,null,null,null,null,null,null,null,null,null,null,null,null,null,null,null,null,null,null,null,null,null,null,null,null,null,""]
[null,null,null,null,null,null,null,null,null,null,null,null,null,null,null,null,null,null,null,null,null,null,null,null,null,null,null,null,null,null,null,null,null,null,null,null,null,null,null,null,null,null,null,null,null,null,null,null,null,null,null,null,null,""]
[null,null,null,null,null,null,null,null,null,null,null,null,null,null,null,null,null,null,null,null,null,null,null,null,null,null,null,null,null,null,null,null,null,null,null,null,null,null,null,null,null,null,null,null,null,null,null,null,null,null,null,null,null,""]
[null,null,null,null,null,null,null,null,null,null,null,null,null,null,null,null,null,null,null,null,null,null,null,null,null,null,null,null,null,null,null,null,null,null,null,null,null,null,null,null,null,null,null,null,null,null,null,null,null,null,null,null,null,""]
[null,null,null,null,null,null,null,null,null,null,null,null,null,null,null,null,null,null,null,null,null,null,null,null,null,null,null,null,null,null,null,null,null,null,null,null,null,null,null,null,null,null,null,null,null,null,null,null,null,null,null,null,null,""]
[null,null,null,null,null,null,null,null,null,null,null,null,null,null,null,null,null,null,null,null,null,null,null,null,null,null,null,null,null,null,null,null,null,null,null,null,null,null,null,null,null,null,null,null,null,null,null,null,null,null,null,null,null,""]
[null,null,null,null,null,null,null,null,null,null,null,null,null,null,null,null,null,null,null,null,null,null,null,null,null,null,null,null,null,null,null,null,null,null,null,null,null,null,null,null,null,null,null,null,null,null,null,null,null,null,null,null,null,""]
[null,null,null,null,null,null,null,null,null,null,null,null,null,null,null,null,null,null,null,null,null,null,null,null,null,null,null,null,null,null,null,null,null,null,null,null,null,null,null,null,null,null,null,null,null,null,null,null,null,null,null,null,null,""]
[null,null,null,null,null,null,null,null,null,null,null,null,null,null,null,null,null,null,null,null,null,null,null,null,null,null,null,null,null,null,null,null,null,null,null,null,null,null,null,null,null,null,null,null,null,null,null,null,null,null,null,null,null,""]
[null,null,null,null,null,null,null,null,null,null,null,null,null,null,null,null,null,null,null,null,null,null,null,null,null,null,null,null,null,null,null,null,null,null,null,null,null,null,null,null,null,null,null,null,null,null,null,null,null,null,null,null,null,""]
[null,null,null,null,null,null,null,null,null,null,null,null,null,null,null,null,null,null,null,null,null,null,null,null,null,null,null,null,null,null,null,null,null,null,null,null,null,null,null,null,null,null,null,null,null,null,null,null,null,null,null,null,null,""]
[null,null,null,null,null,null,null,null,null,null,null,null,null,null,null,null,null,null,null,null,null,null,null,null,null,null,null,null,null,null,null,null,null,null,null,null,null,null,null,null,null,null,null,null,null,null,null,null,null,null,null,null,null,""]
[null,null,null,null,null,null,null,null,null,null,null,null,null,null,null,null,null,null,null,null,null,null,null,null,null,null,null,null,null,null,null,null,null,null,null,null,null,null,null,null,null,null,null,null,null,null,null,null,null,null,null,null,null,""]
[null,null,null,null,null,null,null,null,null,null,null,null,null,null,null,null,null,null,null,null,null,null,null,null,null,null,null,null,null,null,null,null,null,null,null,null,null,null,null,null,null,null,null,null,null,null,null,null,null,null,null,null,null,""]
[null,null,null,null,null,null,null,null,null,null,null,null,null,null,null,null,null,null,null,null,null,null,null,null,null,null,null,null,null,null,null,null,null,null,null,null,null,null,null,null,null,null,null,null,null,null,null,null,null,null,null,null,null,""]
[null,null,null,null,null,null,null,null,null,null,null,null,null,null,null,null,null,null,null,null,null,null,null,null,null,null,null,null,null,null,null,null,null,null,null,null,null,null,null,null,null,null,null,null,null,null,null,null,null,null,null,null,null,""]
[null,null,null,null,null,null,null,null,null,null,null,null,null,null,null,null,null,null,null,null,null,null,null,null,null,null,null,null,null,null,null,null,null,null,null,null,null,null,null,null,null,null,null,null,null,null,null,null,null,null,null,null,null,""]
[null,null,null,null,null,null,null,null,null,null,null,null,null,null,null,null,null,null,null,null,null,null,null,null,null,null,null,null,null,null,null,null,null,null,null,null,null,null,null,null,null,null,null,null,null,null,null,null,null,null,null,null,null,""]
[null,null,null,null,null,null,null,null,null,null,null,null,null,null,null,null,null,null,null,null,null,null,null,null,null,null,null,null,null,null,null,null,null,null,null,null,null,null,null,null,null,null,null,null,null,null,null,null,null,null,null,null,null,""]
[null,null,null,null,null,null,null,null,null,null,null,null,null,null,null,null,null,null,null,null,null,null,null,null,null,null,null,null,null,null,null,null,null,null,null,null,null,null,null,null,null,null,null,null,null,null,null,null,null,null,null,null,null,""]
[null,null,null,null,null,null,null,null,null,null,null,null,null,null,null,null,null,null,null,null,null,null,null,null,null,null,null,null,null,null,null,null,null,null,null,null,null,null,null,null,null,null,null,null,null,null,null,null,null,null,null,null,null,""]
[null,null,null,null,null,null,null,null,null,null,null,null,null,null,null,null,null,null,null,null,null,null,null,null,null,null,null,null,null,null,null,null,null,null,null,null,null,null,null,null,null,null,null,null,null,null,null,null,null,null,null,null,null,{"$f":"CONCATENATE(C78,B78)","v":""}]
[null,null,null,null,null,null,null,null,null,null,null,null,null,null,null,null,null,null,null,null,null,null,null,null,null,null,null,null,null,null,null,null,null,null,null,null,null,null,null,null,null,null,null,null,null,null,null,null,null,null,null,null,null,""]
[null,null,null,null,null,null,null,null,null,null,null,null,null,null,null,null,null,null,null,null,null,null,null,null,null,null,null,null,null,null,null,null,null,null,null,null,null,null,null,null,null,null,null,null,null,null,null,null,null,null,null,null,null,""]
[null,null,null,null,null,null,null,null,null,null,null,null,null,null,null,null,null,null,null,null,null,null,null,null,null,null,null,null,null,null,null,null,null,null,null,null,null,null,null,null,null,null,null,null,null,null,null,null,null,null,null,null,null,""]
[null,null,null,null,null,null,null,null,null,null,null,null,null,null,null,null,null,null,null,null,null,null,null,null,null,null,null,null,null,null,null,null,null,null,null,null,null,null,null,null,null,null,null,null,null,null,null,null,null,null,null,null,null,""]
[null,null,null,null,null,null,null,null,null,null,null,null,null,null,null,null,null,null,null,null,null,null,null,null,null,null,null,null,null,null,null,null,null,null,null,null,null,null,null,null,null,null,null,null,null,null,null,null,null,null,null,null,null,""]
[null,null,null,null,null,null,null,null,null,null,null,null,null,null,null,null,null,null,null,null,null,null,null,null,null,null,null,null,null,null,null,null,null,null,null,null,null,null,null,null,null,null,null,null,null,null,null,null,null,null,null,null,null,""]
[null,null,null,null,null,null,null,null,null,null,null,null,null,null,null,null,null,null,null,null,null,null,null,null,null,null,null,null,null,null,null,null,null,null,null,null,null,null,null,null,null,null,null,null,null,null,null,null,null,null,null,null,null,""]
[null,null,null,null,null,null,null,null,null,null,null,null,null,null,null,null,null,null,null,null,null,null,null,null,null,null,null,null,null,null,null,null,null,null,null,null,null,null,null,null,null,null,null,null,null,null,null,null,null,null,null,null,null,""]
[null,null,null,null,null,null,null,null,null,null,null,null,null,null,null,null,null,null,null,null,null,null,null,null,null,null,null,null,null,null,null,null,null,null,null,null,null,null,null,null,null,null,null,null,null,null,null,null,null,null,null,null,null,""]
[null,null,null,null,null,null,null,null,null,null,null,null,null,null,null,null,null,null,null,null,null,null,null,null,null,null,null,null,null,null,null,null,null,null,null,null,null,null,null,null,null,null,null,null,null,null,null,null,null,null,null,null,null,""]
[null,null,null,null,null,null,null,null,null,null,null,null,null,null,null,null,null,null,null,null,null,null,null,null,null,null,null,null,null,null,null,null,null,null,null,null,null,null,null,null,null,null,null,null,null,null,null,null,null,null,null,null,null,""]
[null,null,null,null,null,null,null,null,null,null,null,null,null,null,null,null,null,null,null,null,null,null,null,null,null,null,null,null,null,null,null,null,null,null,null,null,null,null,null,null,null,null,null,null,null,null,null,null,null,null,null,null,null,""]
[null,null,null,null,null,null,null,null,null,null,null,null,null,null,null,null,null,null,null,null,null,null,null,null,null,null,null,null,null,null,null,null,null,null,null,null,null,null,null,null,null,null,null,null,null,null,null,null,null,null,null,null,null,""]
[null,null,null,null,null,null,null,null,null,null,null,null,null,null,null,null,null,null,null,null,null,null,null,null,null,null,null,null,null,null,null,null,null,null,null,null,null,null,null,null,null,null,null,null,null,null,null,null,null,null,null,null,null,""]
[null,null,null,null,null,null,null,null,null,null,null,null,null,null,null,null,null,null,null,null,null,null,null,null,null,null,null,null,null,null,null,null,null,null,null,null,null,null,null,null,null,null,null,null,null,null,null,null,null,null,null,null,null,""]
[null,null,null,null,null,null,null,null,null,null,null,null,null,null,null,null,null,null,null,null,null,null,null,null,null,null,null,null,null,null,null,null,null,null,null,null,null,null,null,null,null,null,null,null,null,null,null,null,null,null,null,null,null,""]
[null,null,null,null,null,null,null,null,null,null,null,null,null,null,null,null,null,null,null,null,null,null,null,null,null,null,null,null,null,null,null,null,null,null,null,null,null,null,null,null,null,null,null,null,null,null,null,null,null,null,null,null,null,""]
[null,null,null,null,null,null,null,null,null,null,null,null,null,null,null,null,null,null,null,null,null,null,null,null,null,null,null,null,null,null,null,null,null,null,null,null,null,null,null,null,null,null,null,null,null,null,null,null,null,null,null,null,null,""]
[null,null,null,null,null,null,null,null,null,null,null,null,null,null,null,null,null,null,null,null,null,null,null,null,null,null,null,null,null,null,null,null,null,null,null,null,null,null,null,null,null,null,null,null,null,null,null,null,null,null,null,null,null,""]
[null,null,null,null,null,null,null,null,null,null,null,null,null,null,null,null,null,null,null,null,null,null,null,null,null,null,null,null,null,null,null,null,null,null,null,null,null,null,null,null,null,null,null,null,null,null,null,null,null,null,null,null,null,""]
[null,null,null,null,null,null,null,null,null,null,null,null,null,null,null,null,null,null,null,null,null,null,null,null,null,null,null,null,null,null,null,null,null,null,null,null,null,null,null,null,null,null,null,null,null,null,null,null,null,null,null,null,null,""]
[null,null,null,null,null,null,null,null,null,null,null,null,null,null,null,null,null,null,null,null,null,null,null,null,null,null,null,null,null,null,null,null,null,null,null,null,null,null,null,null,null,null,null,null,null,null,null,null,null,null,null,null,null,""]
[null,null,null,null,null,null,null,null,null,null,null,null,null,null,null,null,null,null,null,null,null,null,null,null,null,null,null,null,null,null,null,null,null,null,null,null,null,null,null,null,null,null,null,null,null,null,null,null,null,null,null,null,null,""]
[null,null,null,null,null,null,null,null,null,null,null,null,null,null,null,null,null,null,null,null,null,null,null,null,null,null,null,null,null,null,null,null,null,null,null,null,null,null,null,null,null,null,null,null,null,null,null,null,null,null,null,null,null,""]
[null,null,null,null,null,null,null,null,null,null,null,null,null,null,null,null,null,null,null,null,null,null,null,null,null,null,null,null,null,null,null,null,null,null,null,null,null,null,null,null,null,null,null,null,null,null,null,null,null,null,null,null,null,""]
[null,null,null,null,null,null,null,null,null,null,null,null,null,null,null,null,null,null,null,null,null,null,null,null,null,null,null,null,null,null,null,null,null,null,null,null,null,null,null,null,null,null,null,null,null,null,null,null,null,null,null,null,null,""]
[null,null,null,null,null,null,null,null,null,null,null,null,null,null,null,null,null,null,null,null,null,null,null,null,null,null,null,null,null,null,null,null,null,null,null,null,null,null,null,null,null,null,null,null,null,null,null,null,null,null,null,null,null,""]
[null,null,null,null,null,null,null,null,null,null,null,null,null,null,null,null,null,null,null,null,null,null,null,null,null,null,null,null,null,null,null,null,null,null,null,null,null,null,null,null,null,null,null,null,null,null,null,null,null,null,null,null,null,""]
[null,null,null,null,null,null,null,null,null,null,null,null,null,null,null,null,null,null,null,null,null,null,null,null,null,null,null,null,null,null,null,null,null,null,null,null,null,null,null,null,null,null,null,null,null,null,null,null,null,null,null,null,null,""]
[null,null,null,null,null,null,null,null,null,null,null,null,null,null,null,null,null,null,null,null,null,null,null,null,null,null,null,null,null,null,null,null,null,null,null,null,null,null,null,null,null,null,null,null,null,null,null,null,null,null,null,null,null,""]
[null,null,null,null,null,null,null,null,null,null,null,null,null,null,null,null,null,null,null,null,null,null,null,null,null,null,null,null,null,null,null,null,null,null,null,null,null,null,null,null,null,null,null,null,null,null,null,null,null,null,null,null,null,""]
[null,null,null,null,null,null,null,null,null,null,null,null,null,null,null,null,null,null,null,null,null,null,null,null,null,null,null,null,null,null,null,null,null,null,null,null,null,null,null,null,null,null,null,null,null,null,null,null,null,null,null,null,null,""]
[null,null,null,null,null,null,null,null,null,null,null,null,null,null,null,null,null,null,null,null,null,null,null,null,null,null,null,null,null,null,null,null,null,null,null,null,null,null,null,null,null,null,null,null,null,null,null,null,null,null,null,null,null,""]
[null,null,"TOTALS",null,null,null,null,null,null,null,null,{"$f":"COUNTIF(L4:L111,\"Yes\")","v":0},{"$f":"COUNTIF(M4:M111,\"Yes\")","v":0},{"$f":"COUNTIF(N4:N111,\"Yes\")","v":0},{"$f":"COUNTIF(P4:P111,\"Yes\")","v":0},{"$f":"COUNTIF(Q4:Q111,\"Yes\")","v":0},null,{"$f":"SUM(S4:S111)","v":0},{"$f":"SUM(T4:T111)","v":0}]
[]
[]
[]
[]
[]
[]
["Type of Stay Breakdown"]
["Short Stay",{"$f":"COUNTIF(D4:D111,\"Short Term\")","v":0}]
["Long Stay",{"$f":"COUNTIF(D4:D111,\"Long Term\")","v":0}]
["Total",{"$f":"B120+B121","v":0}]
[]
[]
[]
["Dose Schedule","Total","Short Stay","Long Stay"]
["Scheduled",{"$f":"COUNTIFS(H4:H111,\"Scheduled\")","v":0},{"$f":"COUNTIFS(H4:H111,\"Scheduled\",D4:D111,\"Short Term\")","v":0},{"$f":"COUNTIFS(H4:H111,\"Scheduled\",D4:D111,\"Long Term\")","v":0}]
["PRN",{"$f":"COUNTIFS(H4:H111,\"PRN\")","v":0},{"$f":"COUNTIFS(H4:H111,\"PRN\",D4:D111,\"Short Term\")","v":0},{"$f":"COUNTIFS(H4:H111,\"PRN\",D4:D111,\"Long Term\")","v":0}]
["Both",{"$f":"COUNTIFS(H4:H111,\"Both\")","v":0},{"$f":"COUNTIFS(H4:H111,\"Both\",D4:D111,\"Short Term\")","v":0},{"$f":"COUNTIFS(H4:H111,\"Both\",D4:D111,\"Long Term\")","v":0}]
["Total",{"$f":"SUM(B127:B129)","v":0},{"$f":"SUM(C127:C129)","v":0},0]
["% on a scheduled dose",{"$f":"IFERROR(((B127/$B$130)*100), \"---\")","v":"---"},{"$f":"IFERROR(((C127/C130)*100), \"---\")","v":"---"},{"$f":"IFERROR(((D127/D130)*100), \"---\")","v":"---"}]
["% on a PRN dose",{"$f":"IFERROR(((B128/$B$130)*100), \"---\")","v":"---"},{"$f":"IFERROR(((C128/$C$130)*100), \"---\")","v":"---"},{"$f":"IFERROR(((D128/$D$130)*100), \"---\")","v":"---"}]
["% on both sched & PRN","---",{"$f":"IFERROR(((C129/C130)*100),\"---\")","v":"---"},{"$f":"IFERROR(((D129/D130)*100), \"---\")","v":"---"}]
[]
[]
[]
["Where Medication Started","Total","Short Stay","Long Stay"]
["SNF",{"$f":"COUNTIFS(J4:J111,\"SNF\")","v":0},{"$f":"COUNTIFS(J4:J111,\"SNF\",D4:D111,\"Short Term\")","v":0},{"$f":"COUNTIFS(J4:J111,\"SNF\",D4:D111,\"Long Term\")","v":0}]
["Hospital",{"$f":"COUNTIFS(J4:J111,\"Hospital\")","v":0},{"$f":"COUNTIFS(J4:J111,\"Hospital\",D4:D111,\"Short Term\")","v":0},{"$f":"COUNTIFS(J4:J111,\"Hospital\",D4:D111,\"Long Term\")","v":0}]
["Outpatient",{"$f":"COUNTIFS(J4:J111,\"Outpatient\")","v":0},{"$f":"COUNTIFS(J4:J111,\"Outpatient\",D4:D111,\"Short Term\")","v":0},{"$f":"COUNTIFS(J4:J111,\"Outpatient\",D4:D111,\"Long Term\")","v":0}]
["Total",{"$f":"SUM(B138:B140)","v":0},{"$f":"SUM(C138:C140)","v":0},0]
["% started in SNF",{"$f":"IFERROR(((B138/B141)*100), \"---\")","v":"---"},{"$f":"IFERROR(((C138/C141)*100), \"---\")","v":"---"},{"$f":"IFERROR(((D138/D141)*100), \"---\")","v":"---"}]
["% started in hospital",{"$f":"IFERROR(((B139/B141)*100), \"---\")","v":"---"},{"$f":"IFERROR(((C139/C141)*100), \"---\")","v":"---"},{"$f":"IFERROR(((D139/D141)*100), \"---\")","v":"---"}]
["% started in outpatient",{"$f":"IFERROR(((B140/B141)*100), \"---\")","v":"---"},{"$f":"IFERROR(((C140/C141)*100), \"---\")","v":"---"},{"$f":"IFERROR(((D140/D141)*100), \"---\")","v":"---"}]
[]
[]
[]
[]
["Dx appropriate","Total","Short Stay","Long Stay"]
["Yes",{"$f":"COUNTIFS(L4:L111,\"Yes\")","v":0},{"$f":"COUNTIFS(L4:L111,\"Yes\",D4:D111,\"Short Term\")","v":0},{"$f":"COUNTIFS(L4:L111,\"Yes\",D4:D111,\"Long Term\")","v":0}]
["No",{"$f":"COUNTIFS(L4:L111,\"No\")","v":0},{"$f":"COUNTIFS(L4:L111,\"No\",D4:D111,\"Short Term\")","v":0},{"$f":"COUNTIFS(L4:L111,\"No\",D4:D111,\"Long Term\")","v":0}]
["Total",{"$f":"SUM(B150:B151)","v":0},{"$f":"SUM(C150:C151)","v":0},0]
["% with appropriate diagnosis",{"$f":"IFERROR(((B150/B152)*100), \"---\")","v":"---"},{"$f":"IFERROR(((C150/C152)*100), \"---\")","v":"---"},{"$f":"IFERROR(((D150/D152)*100), \"---\")","v":"---"}]
[]
[]
[]
[]
["BPSD documented","Total","Short Stay","Long Stay"]
["Yes",{"$f":"COUNTIFS(N4:N111,\"Yes\")","v":0},{"$f":"COUNTIFS(N4:N111,\"Yes\",D4:D111,\"Short Term\")","v":0},{"$f":"COUNTIFS(N4:N111,\"Yes\",D4:D111,\"Long Term\")","v":0}]
["No",{"$f":"COUNTIFS(N4:N111,\"No\")","v":0},{"$f":"COUNTIFS(N4:N111,\"No\",D4:D111,\"Short Term\")","v":0},{"$f":"COUNTIFS(N4:N111,\"No\",D4:D111,\"Long Term\")","v":0}]
["N/A",{"$f":"COUNTIFS(N4:N111,\"N/A\")","v":0},{"$f":"COUNTIFS(N4:N111,\"N/A\",D4:D111,\"Short Term\")","v":0},{"$f":"COUNTIFS(N4:N111,\"N/A\",D4:D111,\"Long Term\")","v":0}]
["Total",{"$f":"SUM(B159:B161)","v":0},{"$f":"SUM(C159:C161)","v":0},0]
["% needing BPSD documented",{"$f":"IFERROR(((B160/(B159+B160))*100),\"---\")","v":"---"},{"$f":"IFERROR(((C160/(C159+C160))*100), \"---\")","v":"---"},{"$f":"IFERROR(((D160/(D159+D160))*100), \"---\")","v":"---"}]
[]
[]
[]
[]
["Non drug interventions documented","Total","Short Stay","Long Stay"]
["Yes",{"$f":"COUNTIFS(P4:P111,\"Yes\")","v":0},{"$f":"COUNTIFS(P4:P111,\"Yes\",D4:D111,\"Short Term\")","v":0},{"$f":"COUNTIFS(P4:P111,\"Yes\",D4:D111,\"Long Term\")","v":0}]
["No",{"$f":"COUNTIFS(P4:P111,\"No\")","v":0},{"$f":"COUNTIFS(P4:P111,\"No\",D4:D111,\"Short Term\")","v":0},{"$f":"COUNTIFS(P4:P111,\"No\",D4:D111,\"Long Term\")","v":0}]
["N/A",{"$f":"COUNTIFS(P4:P111,\"N/A\")","v":0},{"$f":"COUNTIFS(P4:P111,\"N/A\",D4:D111,\"Short Term\")","v":0},{"$f":"COUNTIFS(P4:P111,\"N/A\",D4:D111,\"Long Term\")","v":0}]
["Total",{"$f":"SUM(B169:B171)","v":0},{"$f":"SUM(C169:C171)","v":0},0]
["% without non drug interventions documented",{"$f":"IFERROR((B170/(B169+B170))*100, \"---\")","v":"---"},{"$f":"IFERROR((C72/(C169+C170)*100), \"---\")","v":"---"},{"$f":"IFERROR((D170/(D169+D170)*100), \"---\")","v":"---"}]
[]
[]
[]
[]
["GDR Outcome","Total","Short Stay","Long Stay"]
["Dose reduced",{"$f":"COUNTIFS(R4:R111,\"Dose reduced\")","v":0},{"$f":"COUNTIFS(R4:R111,\"Dose reduced\",D4:D111,\"Short Term\")","v":0},{"$f":"COUNTIFS(R4:R111,\"Dose reduced\",D4:D111,\"Long Term\")","v":0}]
["Dose discontinued",{"$f":"COUNTIFS(R4:R111,\"Drug discontinued\")","v":0},{"$f":"COUNTIFS(R4:R111,\"Drug discontinued\",D4:D111,\"Short Term\")","v":0},{"$f":"COUNTIFS(R4:R111,\"Drug discontinued\",D4:D111,\"Long Term\")","v":0}]
["Return to previous dose",{"$f":"COUNTIFS(R4:R111,\"Return to previous dose\")","v":0},{"$f":"COUNTIFS(R4:R111,\"Return to previous dose\",D4:D111,\"Short Term\")","v":0},{"$f":"COUNTIFS(R4:R111,\"Return to previous dose\",D4:D111,\"Long Term\")","v":0}]
["Total",{"$f":"SUM(B179:B181)","v":0},{"$f":"SUM(C179:C181)","v":0},0]
["dose reduced or dc'd",{"$f":"B179+B180","v":0},{"$f":"C179+C180","v":0},0]
["% dose reduction",{"$f":"IFERROR((B179/B182)*100, \"---\")","v":"---"},{"$f":"IFERROR((C179/C182)*100, \"---\")","v":"---"},{"$f":"IFERROR((D179/D182)*100, \"---\")","v":"---"}]
["% dose discontinued",{"$f":"IFERROR((B180/B182)*100, \"---\")","v":"---"},{"$f":"IFERROR((C180/C182)*100, \"---\")","v":"---"},{"$f":"IFERROR((D180/D182)*100, \"---\")","v":"---"}]
["% dose reduced or discontinued",{"$f":"IFERROR((B183/B182)*100, \"---\")","v":"---"},{"$f":"IFERROR((C183/C182)*100, \"---\")","v":"---"},{"$f":"IFERROR((D183/D182)*100, \"---\")","v":"---"}]
[]
[]
[]
[]
["GDR needed","Total","Short Stay","Long Stay"]
["Yes",{"$f":"COUNTIFS(S4:S111,\"Yes\")","v":0},{"$f":"COUNTIFS(S4:S111,\"Yes\",D4:D111,\"Short Term\")","v":0},{"$f":"COUNTIFS(S4:S111,\"Yes\",D4:D111,\"Long Term\")","v":0}]
["No",{"$f":"COUNTIFS(S4:S111,\"No\")","v":0},{"$f":"COUNTIFS(S4:S111,\"No\",D4:D111,\"Short Term\")","v":0},{"$f":"COUNTIFS(S4:S111,\"No\",D4:D111,\"Long Term\")","v":0}]
["Total",{"$f":"SUM(B192:B193)","v":0},{"$f":"SUM(C192:C193)","v":0},0]
["% needing GDR",{"$f":"IFERROR((B192/B194)*100, \"---\")","v":"---"},{"$f":"IFERROR((C192/C194)*100, \"---\")","v":"---"},{"$f":"IFERROR((D192/D194)*100, \"---\")","v":"---"}]
[]
[]
[]
[]
["Reason no GDR attempted","Total","Short Stay","Long Stay"]
["N/A",{"$f":"COUNTIFS(T4:T111,\"N/A\")","v":0},{"$f":"COUNTIFS(T4:T111,\"N/A\",D4:D111,\"Short Term\")","v":0},{"$f":"COUNTIFS(T4:T111,\"N/A\",D4:D111,\"Long Term\")","v":0}]
["Resident on lowest possible dose",{"$f":"COUNTIFS(T4:T111,\"Resident on lowest possible dose\")","v":0},{"$f":"COUNTIFS(T4:T111,\"Resident on lowest possible dose\",D4:D111,\"Short Term\")","v":0},{"$f":"COUNTIFS(T4:T111,\"Resident on lowest possible dose\",D4:D111,\"Long Term\")","v":0}]
["Contraindicated per prescriber",{"$f":"COUNTIFS(T4:T111,\"Contraindicated per prescriber\")","v":0},{"$f":"COUNTIFS(T4:T111,\"Contraindicated per prescriber\",D4:D111,\"Short Term\")","v":0},{"$f":"COUNTIFS(T4:T111,\"Contraindicated per prescriber\",D4:D111,\"Long Term\")","v":0}]
["Other",{"$f":"COUNTIFS(T4:T111,\"Other\")","v":0},{"$f":"COUNTIFS(T4:T111,\"Other\",D4:D111,\"Short Term\")","v":0},{"$f":"COUNTIFS(T4:T111,\"Other\",D4:D111,\"Long Term\")","v":0}]
["Total",{"$f":"SUM(B201:B204)","v":0},{"$f":"SUM(C201:C204)","v":0},0]
["% resident on lowest possible dose",{"$f":"IFERROR((B202/B205)*100, \"---\")","v":"---"},{"$f":"IFERROR((C202/C205)*100, \"---\")","v":"---"},{"$f":"IFERROR((D202/D205)*100, \"---\")","v":"---"}]
["% contraindicated per prescriber",{"$f":"IFERROR((B203/B205)*100, \"---\")","v":"---"},{"$f":"IFERROR((C203/C205)*100, \"---\")","v":"---"},{"$f":"IFERROR((D203/D205)*100, \"---\")","v":"---"}]
["% other",{"$f":"IFERROR((B204/B205)*100, \"---\")","v":"---"},{"$f":"IFERROR((C204/C205)*100, \"---\")","v":"---"},{"$f":"IFERROR((D204/D205)*100, \"---\")","v":"---"}]
[]
[]
[]
[]
["Adverse Effects","Total","Short Stay","Long Stay"]
["Yes",{"$f":"COUNTIFS(U4:U111,\"Yes\")","v":0},{"$f":"COUNTIFS(U4:U111,\"Yes\",D4:D111,\"Short Term\")","v":0},{"$f":"COUNTIFS(U4:U111,\"Yes\",D4:D111,\"Long Term\")","v":0}]
["No",{"$f":"COUNTIFS(U4:U111,\"No\")","v":0},{"$f":"COUNTIFS(U4:U111,\"No\",D4:D111,\"Short Term\")","v":0},{"$f":"COUNTIFS(U4:U111,\"No\",D4:D111,\"Long Term\")","v":0}]
["Total",{"$f":"SUM(B214:B215)","v":0},{"$f":"SUM(C214:C215)","v":0},0]
["% with adverse effects",{"$f":"IFERROR((B214/B216)*100, \"---\")","v":"---"},{"$f":"IFERROR((C214/C216)*100, \"---\")","v":"---"},{"$f":"IFERROR((D214/D216)*100, \"---\")","v":"---"}]

{"sheet":"March","index":4,"n_rows":217,"n_cols":54,"rows_kept":217,"cut":false,"hidden":false,"merged":[[0,0,0,2],[0,4,0,5],[1,0,1,4],[1,5,1,21]]}
["End of Month Census :",null,null,null," Current residents on antipsychotics:",null,{"$f":"SUMPRODUCT((A4:A111<>\"\")/COUNTIF(A4:A111,A4:A111&\"\"))","v":0},"Percentage of residents on antipsychotic:",{"$f":"IFERROR((G1/D1)*100, \"---\")","v":"---"}]
["Resident Information",null,null,null,null,"Antipsychotic Medication Information"]
["Room #","Last Name","First Name","Type of Stay","Notes (New Admit, etc)","Antipsychotic Drug Prescribed","Prescriber","Dose Schedule","Date Started","Where was medication started?","Diagnosis associated with antipsychotic","Is Dx Appropriate? (See directions)","List BPSD","Appropriate BPSD documented?","List Non Drug Interventions tried","Non Drug Intv documented?","Date of most recent GDR","Outcome of GDR","GDR Needed?","Reasons for no GDR being attempted","Has resident experienced adverse drug effects?","If yes, describe adverse effects"]
[]
[]
[]
[]
[]
[]
[]
[]
[]
[]
[null,null,null,null,null,null,null,null,null,null,null,null,null,null,null,null,null,null,null,null,null,null,null,null,null,null,null,null,null,null,null,null,null,null,null,null,null,null,null,null,null,null,null,null,null,null,null,null,null,null,null,null,null,{"$f":"CONCATENATE(C14,B14)","v":""}]
[null,null,null,null,null,null,null,null,null,null,null,null,null,null,null,null,null,null,null,null,null,null,null,null,null,null,null,null,null,null,null,null,null,null,null,null,null,null,null,null,null,null,null,null,null,null,null,null,null,null,null,null,null,""]
[null,null,null,null,null,null,null,null,null,null,null,null,null,null,null,null,null,null,null,null,null,null,null,null,null,null,null,null,null,null,null,null,null,null,null,null,null,null,null,null,null,null,null,null,null,null,null,null,null,null,null,null,null,""]
[null,null,null,null,null,null,null,null,null,null,null,null,null,null,null,null,null,null,null,null,null,null,null,null,null,null,null,null,null,null,null,null,null,null,null,null,null,null,null,null,null,null,null,null,null,null,null,null,null,null,null,null,null,""]
[null,null,null,null,null,null,null,null,null,null,null,null,null,null,null,null,null,null,null,null,null,null,null,null,null,null,null,null,null,null,null,null,null,null,null,null,null,null,null,null,null,null,null,null,null,null,null,null,null,null,null,null,null,""]
[null,null,null,null,null,null,null,null,null,null,null,null,null,null,null,null,null,null,null,null,null,null,null,null,null,null,null,null,null,null,null,null,null,null,null,null,null,null,null,null,null,null,null,null,null,null,null,null,null,null,null,null,null,""]
[null,null,null,null,null,null,null,null,null,null,null,null,null,null,null,null,null,null,null,null,null,null,null,null,null,null,null,null,null,null,null,null,null,null,null,null,null,null,null,null,null,null,null,null,null,null,null,null,null,null,null,null,null,""]
[null,null,null,null,null,null,null,null,null,null,null,null,null,null,null,null,null,null,null,null,null,null,null,null,null,null,null,null,null,null,null,null,null,null,null,null,null,null,null,null,null,null,null,null,null,null,null,null,null,null,null,null,null,""]
[null,null,null,null,null,null,null,null,null,null,null,null,null,null,null,null,null,null,null,null,null,null,null,null,null,null,null,null,null,null,null,null,null,null,null,null,null,null,null,null,null,null,null,null,null,null,null,null,null,null,null,null,null,""]
[null,null,null,null,null,null,null,null,null,null,null,null,null,null,null,null,null,null,null,null,null,null,null,null,null,null,null,null,null,null,null,null,null,null,null,null,null,null,null,null,null,null,null,null,null,null,null,null,null,null,null,null,null,""]
[null,null,null,null,null,null,null,null,null,null,null,null,null,null,null,null,null,null,null,null,null,null,null,null,null,null,null,null,null,null,null,null,null,null,null,null,null,null,null,null,null,null,null,null,null,null,null,null,null,null,null,null,null,""]
[null,null,null,null,null,null,null,null,null,null,null,null,null,null,null,null,null,null,null,null,null,null,null,null,null,null,null,null,null,null,null,null,null,null,null,null,null,null,null,null,null,null,null,null,null,null,null,null,null,null,null,null,null,""]
[null,null,null,null,null,null,null,null,null,null,null,null,null,null,null,null,null,null,null,null,null,null,null,null,null,null,null,null,null,null,null,null,null,null,null,null,null,null,null,null,null,null,null,null,null,null,null,null,null,null,null,null,null,""]
[null,null,null,null,null,null,null,null,null,null,null,null,null,null,null,null,null,null,null,null,null,null,null,null,null,null,null,null,null,null,null,null,null,null,null,null,null,null,null,null,null,null,null,null,null,null,null,null,null,null,null,null,null,""]
[null,null,null,null,null,null,null,null,null,null,null,null,null,null,null,null,null,null,null,null,null,null,null,null,null,null,null,null,null,null,null,null,null,null,null,null,null,null,null,null,null,null,null,null,null,null,null,null,null,null,null,null,null,""]
[null,null,null,null,null,null,null,null,null,null,null,null,null,null,null,null,null,null,null,null,null,null,null,null,null,null,null,null,null,null,null,null,null,null,null,null,null,null,null,null,null,null,null,null,null,null,null,null,null,null,null,null,null,""]
[null,null,null,null,null,null,null,null,null,null,null,null,null,null,null,null,null,null,null,null,null,null,null,null,null,null,null,null,null,null,null,null,null,null,null,null,null,null,null,null,null,null,null,null,null,null,null,null,null,null,null,null,null,""]
[null,null,null,null,null,null,null,null,null,null,null,null,null,null,null,null,null,null,null,null,null,null,null,null,null,null,null,null,null,null,null,null,null,null,null,null,null,null,null,null,null,null,null,null,null,null,null,null,null,null,null,null,null,""]
[null,null,null,null,null,null,null,null,null,null,null,null,null,null,null,null,null,null,null,null,null,null,null,null,null,null,null,null,null,null,null,null,null,null,null,null,null,null,null,null,null,null,null,null,null,null,null,null,null,null,null,null,null,""]
[null,null,null,null,null,null,null,null,null,null,null,null,null,null,null,null,null,null,null,null,null,null,null,null,null,null,null,null,null,null,null,null,null,null,null,null,null,null,null,null,null,null,null,null,null,null,null,null,null,null,null,null,null,""]
[null,null,null,null,null,null,null,null,null,null,null,null,null,null,null,null,null,null,null,null,null,null,null,null,null,null,null,null,null,null,null,null,null,null,null,null,null,null,null,null,null,null,null,null,null,null,null,null,null,null,null,null,null,""]
[null,null,null,null,null,null,null,null,null,null,null,null,null,null,null,null,null,null,null,null,null,null,null,null,null,null,null,null,null,null,null,null,null,null,null,null,null,null,null,null,null,null,null,null,null,null,null,null,null,null,null,null,null,""]
[null,null,null,null,null,null,null,null,null,null,null,null,null,null,null,null,null,null,null,null,null,null,null,null,null,null,null,null,null,null,null,null,null,null,null,null,null,null,null,null,null,null,null,null,null,null,null,null,null,null,null,null,null,""]
[null,null,null,null,null,null,null,null,null,null,null,null,null,null,null,null,null,null,null,null,null,null,null,null,null,null,null,null,null,null,null,null,null,null,null,null,null,null,null,null,null,null,null,null,null,null,null,null,null,null,null,null,null,""]
[null,null,null,null,null,null,null,null,null,null,null,null,null,null,null,null,null,null,null,null,null,null,null,null,null,null,null,null,null,null,null,null,null,null,null,null,null,null,null,null,null,null,null,null,null,null,null,null,null,null,null,null,null,""]
[null,null,null,null,null,null,null,null,null,null,null,null,null,null,null,null,null,null,null,null,null,null,null,null,null,null,null,null,null,null,null,null,null,null,null,null,null,null,null,null,null,null,null,null,null,null,null,null,null,null,null,null,null,""]
[null,null,null,null,null,null,null,null,null,null,null,null,null,null,null,null,null,null,null,null,null,null,null,null,null,null,null,null,null,null,null,null,null,null,null,null,null,null,null,null,null,null,null,null,null,null,null,null,null,null,null,null,null,""]
[null,null,null,null,null,null,null,null,null,null,null,null,null,null,null,null,null,null,null,null,null,null,null,null,null,null,null,null,null,null,null,null,null,null,null,null,null,null,null,null,null,null,null,null,null,null,null,null,null,null,null,null,null,""]
[null,null,null,null,null,null,null,null,null,null,null,null,null,null,null,null,null,null,null,null,null,null,null,null,null,null,null,null,null,null,null,null,null,null,null,null,null,null,null,null,null,null,null,null,null,null,null,null,null,null,null,null,null,""]
[null,null,null,null,null,null,null,null,null,null,null,null,null,null,null,null,null,null,null,null,null,null,null,null,null,null,null,null,null,null,null,null,null,null,null,null,null,null,null,null,null,null,null,null,null,null,null,null,null,null,null,null,null,""]
[null,null,null,null,null,null,null,null,null,null,null,null,null,null,null,null,null,null,null,null,null,null,null,null,null,null,null,null,null,null,null,null,null,null,null,null,null,null,null,null,null,null,null,null,null,null,null,null,null,null,null,null,null,""]
[null,null,null,null,null,null,null,null,null,null,null,null,null,null,null,null,null,null,null,null,null,null,null,null,null,null,null,null,null,null,null,null,null,null,null,null,null,null,null,null,null,null,null,null,null,null,null,null,null,null,null,null,null,""]
[null,null,null,null,null,null,null,null,null,null,null,null,null,null,null,null,null,null,null,null,null,null,null,null,null,null,null,null,null,null,null,null,null,null,null,null,null,null,null,null,null,null,null,null,null,null,null,null,null,null,null,null,null,""]
[null,null,null,null,null,null,null,null,null,null,null,null,null,null,null,null,null,null,null,null,null,null,null,null,null,null,null,null,null,null,null,null,null,null,null,null,null,null,null,null,null,null,null,null,null,null,null,null,null,null,null,null,null,""]
[null,null,null,null,null,null,null,null,null,null,null,null,null,null,null,null,null,null,null,null,null,null,null,null,null,null,null,null,null,null,null,null,null,null,null,null,null,null,null,null,null,null,null,null,null,null,null,null,null,null,null,null,null,""]
[null,null,null,null,null,null,null,null,null,null,null,null,null,null,null,null,null,null,null,null,null,null,null,null,null,null,null,null,null,null,null,null,null,null,null,null,null,null,null,null,null,null,null,null,null,null,null,null,null,null,null,null,null,""]
[null,null,null,null,null,null,null,null,null,null,null,null,null,null,null,null,null,null,null,null,null,null,null,null,null,null,null,null,null,null,null,null,null,null,null,null,null,null,null,null,null,null,null,null,null,null,null,null,null,null,null,null,null,""]
[null,null,null,null,null,null,null,null,null,null,null,null,null,null,null,null,null,null,null,null,null,null,null,null,null,null,null,null,null,null,null,null,null,null,null,null,null,null,null,null,null,null,null,null,null,null,null,null,null,null,null,null,null,""]
[null,null,null,null,null,null,null,null,null,null,null,null,null,null,null,null,null,null,null,null,null,null,null,null,null,null,null,null,null,null,null,null,null,null,null,null,null,null,null,null,null,null,null,null,null,null,null,null,null,null,null,null,null,""]
[null,null,null,null,null,null,null,null,null,null,null,null,null,null,null,null,null,null,null,null,null,null,null,null,null,null,null,null,null,null,null,null,null,null,null,null,null,null,null,null,null,null,null,null,null,null,null,null,null,null,null,null,null,""]
[null,null,null,null,null,null,null,null,null,null,null,null,null,null,null,null,null,null,null,null,null,null,null,null,null,null,null,null,null,null,null,null,null,null,null,null,null,null,null,null,null,null,null,null,null,null,null,null,null,null,null,null,null,""]
[null,null,null,null,null,null,null,null,null,null,null,null,null,null,null,null,null,null,null,null,null,null,null,null,null,null,null,null,null,null,null,null,null,null,null,null,null,null,null,null,null,null,null,null,null,null,null,null,null,null,null,null,null,""]
[null,null,null,null,null,null,null,null,null,null,null,null,null,null,null,null,null,null,null,null,null,null,null,null,null,null,null,null,null,null,null,null,null,null,null,null,null,null,null,null,null,null,null,null,null,null,null,null,null,null,null,null,null,""]
[null,null,null,null,null,null,null,null,null,null,null,null,null,null,null,null,null,null,null,null,null,null,null,null,null,null,null,null,null,null,null,null,null,null,null,null,null,null,null,null,null,null,null,null,null,null,null,null,null,null,null,null,null,""]
[null,null,null,null,null,null,null,null,null,null,null,null,null,null,null,null,null,null,null,null,null,null,null,null,null,null,null,null,null,null,null,null,null,null,null,null,null,null,null,null,null,null,null,null,null,null,null,null,null,null,null,null,null,""]
[null,null,null,null,null,null,null,null,null,null,null,null,null,null,null,null,null,null,null,null,null,null,null,null,null,null,null,null,null,null,null,null,null,null,null,null,null,null,null,null,null,null,null,null,null,null,null,null,null,null,null,null,null,""]
[null,null,null,null,null,null,null,null,null,null,null,null,null,null,null,null,null,null,null,null,null,null,null,null,null,null,null,null,null,null,null,null,null,null,null,null,null,null,null,null,null,null,null,null,null,null,null,null,null,null,null,null,null,""]
[null,null,null,null,null,null,null,null,null,null,null,null,null,null,null,null,null,null,null,null,null,null,null,null,null,null,null,null,null,null,null,null,null,null,null,null,null,null,null,null,null,null,null,null,null,null,null,null,null,null,null,null,null,""]
[null,null,null,null,null,null,null,null,null,null,null,null,null,null,null,null,null,null,null,null,null,null,null,null,null,null,null,null,null,null,null,null,null,null,null,null,null,null,null,null,null,null,null,null,null,null,null,null,null,null,null,null,null,""]
[null,null,null,null,null,null,null,null,null,null,null,null,null,null,null,null,null,null,null,null,null,null,null,null,null,null,null,null,null,null,null,null,null,null,null,null,null,null,null,null,null,null,null,null,null,null,null,null,null,null,null,null,null,""]
[null,null,null,null,null,null,null,null,null,null,null,null,null,null,null,null,null,null,null,null,null,null,null,null,null,null,null,null,null,null,null,null,null,null,null,null,null,null,null,null,null,null,null,null,null,null,null,null,null,null,null,null,null,""]
[null,null,null,null,null,null,null,null,null,null,null,null,null,null,null,null,null,null,null,null,null,null,null,null,null,null,null,null,null,null,null,null,null,null,null,null,null,null,null,null,null,null,null,null,null,null,null,null,null,null,null,null,null,""]
[null,null,null,null,null,null,null,null,null,null,null,null,null,null,null,null,null,null,null,null,null,null,null,null,null,null,null,null,null,null,null,null,null,null,null,null,null,null,null,null,null,null,null,null,null,null,null,null,null,null,null,null,null,""]
[null,null,null,null,null,null,null,null,null,null,null,null,null,null,null,null,null,null,null,null,null,null,null,null,null,null,null,null,null,null,null,null,null,null,null,null,null,null,null,null,null,null,null,null,null,null,null,null,null,null,null,null,null,""]
[null,null,null,null,null,null,null,null,null,null,null,null,null,null,null,null,null,null,null,null,null,null,null,null,null,null,null,null,null,null,null,null,null,null,null,null,null,null,null,null,null,null,null,null,null,null,null,null,null,null,null,null,null,""]
[null,null,null,null,null,null,null,null,null,null,null,null,null,null,null,null,null,null,null,null,null,null,null,null,null,null,null,null,null,null,null,null,null,null,null,null,null,null,null,null,null,null,null,null,null,null,null,null,null,null,null,null,null,""]
[null,null,null,null,null,null,null,null,null,null,null,null,null,null,null,null,null,null,null,null,null,null,null,null,null,null,null,null,null,null,null,null,null,null,null,null,null,null,null,null,null,null,null,null,null,null,null,null,null,null,null,null,null,""]
[null,null,null,null,null,null,null,null,null,null,null,null,null,null,null,null,null,null,null,null,null,null,null,null,null,null,null,null,null,null,null,null,null,null,null,null,null,null,null,null,null,null,null,null,null,null,null,null,null,null,null,null,null,""]
[null,null,null,null,null,null,null,null,null,null,null,null,null,null,null,null,null,null,null,null,null,null,null,null,null,null,null,null,null,null,null,null,null,null,null,null,null,null,null,null,null,null,null,null,null,null,null,null,null,null,null,null,null,""]
[null,null,null,null,null,null,null,null,null,null,null,null,null,null,null,null,null,null,null,null,null,null,null,null,null,null,null,null,null,null,null,null,null,null,null,null,null,null,null,null,null,null,null,null,null,null,null,null,null,null,null,null,null,""]
[null,null,null,null,null,null,null,null,null,null,null,null,null,null,null,null,null,null,null,null,null,null,null,null,null,null,null,null,null,null,null,null,null,null,null,null,null,null,null,null,null,null,null,null,null,null,null,null,null,null,null,null,null,""]
[null,null,null,null,null,null,null,null,null,null,null,null,null,null,null,null,null,null,null,null,null,null,null,null,null,null,null,null,null,null,null,null,null,null,null,null,null,null,null,null,null,null,null,null,null,null,null,null,null,null,null,null,null,""]
[null,null,null,null,null,null,null,null,null,null,null,null,null,null,null,null,null,null,null,null,null,null,null,null,null,null,null,null,null,null,null,null,null,null,null,null,null,null,null,null,null,null,null,null,null,null,null,null,null,null,null,null,null,""]
[null,null,null,null,null,null,null,null,null,null,null,null,null,null,null,null,null,null,null,null,null,null,null,null,null,null,null,null,null,null,null,null,null,null,null,null,null,null,null,null,null,null,null,null,null,null,null,null,null,null,null,null,null,""]
[null,null,null,null,null,null,null,null,null,null,null,null,null,null,null,null,null,null,null,null,null,null,null,null,null,null,null,null,null,null,null,null,null,null,null,null,null,null,null,null,null,null,null,null,null,null,null,null,null,null,null,null,null,{"$f":"CONCATENATE(C78,B78)","v":""}]
[null,null,null,null,null,null,null,null,null,null,null,null,null,null,null,null,null,null,null,null,null,null,null,null,null,null,null,null,null,null,null,null,null,null,null,null,null,null,null,null,null,null,null,null,null,null,null,null,null,null,null,null,null,""]
[null,null,null,null,null,null,null,null,null,null,null,null,null,null,null,null,null,null,null,null,null,null,null,null,null,null,null,null,null,null,null,null,null,null,null,null,null,null,null,null,null,null,null,null,null,null,null,null,null,null,null,null,null,""]
[null,null,null,null,null,null,null,null,null,null,null,null,null,null,null,null,null,null,null,null,null,null,null,null,null,null,null,null,null,null,null,null,null,null,null,null,null,null,null,null,null,null,null,null,null,null,null,null,null,null,null,null,null,""]
[null,null,null,null,null,null,null,null,null,null,null,null,null,null,null,null,null,null,null,null,null,null,null,null,null,null,null,null,null,null,null,null,null,null,null,null,null,null,null,null,null,null,null,null,null,null,null,null,null,null,null,null,null,""]
[null,null,null,null,null,null,null,null,null,null,null,null,null,null,null,null,null,null,null,null,null,null,null,null,null,null,null,null,null,null,null,null,null,null,null,null,null,null,null,null,null,null,null,null,null,null,null,null,null,null,null,null,null,""]
[null,null,null,null,null,null,null,null,null,null,null,null,null,null,null,null,null,null,null,null,null,null,null,null,null,null,null,null,null,null,null,null,null,null,null,null,null,null,null,null,null,null,null,null,null,null,null,null,null,null,null,null,null,""]
[null,null,null,null,null,null,null,null,null,null,null,null,null,null,null,null,null,null,null,null,null,null,null,null,null,null,null,null,null,null,null,null,null,null,null,null,null,null,null,null,null,null,null,null,null,null,null,null,null,null,null,null,null,""]
[null,null,null,null,null,null,null,null,null,null,null,null,null,null,null,null,null,null,null,null,null,null,null,null,null,null,null,null,null,null,null,null,null,null,null,null,null,null,null,null,null,null,null,null,null,null,null,null,null,null,null,null,null,""]
[null,null,null,null,null,null,null,null,null,null,null,null,null,null,null,null,null,null,null,null,null,null,null,null,null,null,null,null,null,null,null,null,null,null,null,null,null,null,null,null,null,null,null,null,null,null,null,null,null,null,null,null,null,""]
[null,null,null,null,null,null,null,null,null,null,null,null,null,null,null,null,null,null,null,null,null,null,null,null,null,null,null,null,null,null,null,null,null,null,null,null,null,null,null,null,null,null,null,null,null,null,null,null,null,null,null,null,null,""]
[null,null,null,null,null,null,null,null,null,null,null,null,null,null,null,null,null,null,null,null,null,null,null,null,null,null,null,null,null,null,null,null,null,null,null,null,null,null,null,null,null,null,null,null,null,null,null,null,null,null,null,null,null,""]
[null,null,null,null,null,null,null,null,null,null,null,null,null,null,null,null,null,null,null,null,null,null,null,null,null,null,null,null,null,null,null,null,null,null,null,null,null,null,null,null,null,null,null,null,null,null,null,null,null,null,null,null,null,""]
[null,null,null,null,null,null,null,null,null,null,null,null,null,null,null,null,null,null,null,null,null,null,null,null,null,null,null,null,null,null,null,null,null,null,null,null,null,null,null,null,null,null,null,null,null,null,null,null,null,null,null,null,null,""]
[null,null,null,null,null,null,null,null,null,null,null,null,null,null,null,null,null,null,null,null,null,null,null,null,null,null,null,null,null,null,null,null,null,null,null,null,null,null,null,null,null,null,null,null,null,null,null,null,null,null,null,null,null,""]
[null,null,null,null,null,null,null,null,null,null,null,null,null,null,null,null,null,null,null,null,null,null,null,null,null,null,null,null,null,null,null,null,null,null,null,null,null,null,null,null,null,null,null,null,null,null,null,null,null,null,null,null,null,""]
[null,null,null,null,null,null,null,null,null,null,null,null,null,null,null,null,null,null,null,null,null,null,null,null,null,null,null,null,null,null,null,null,null,null,null,null,null,null,null,null,null,null,null,null,null,null,null,null,null,null,null,null,null,""]
[null,null,null,null,null,null,null,null,null,null,null,null,null,null,null,null,null,null,null,null,null,null,null,null,null,null,null,null,null,null,null,null,null,null,null,null,null,null,null,null,null,null,null,null,null,null,null,null,null,null,null,null,null,""]
[null,null,null,null,null,null,null,null,null,null,null,null,null,null,null,null,null,null,null,null,null,null,null,null,null,null,null,null,null,null,null,null,null,null,null,null,null,null,null,null,null,null,null,null,null,null,null,null,null,null,null,null,null,""]
[null,null,null,null,null,null,null,null,null,null,null,null,null,null,null,null,null,null,null,null,null,null,null,null,null,null,null,null,null,null,null,null,null,null,null,null,null,null,null,null,null,null,null,null,null,null,null,null,null,null,null,null,null,""]
[null,null,null,null,null,null,null,null,null,null,null,null,null,null,null,null,null,null,null,null,null,null,null,null,null,null,null,null,null,null,null,null,null,null,null,null,null,null,null,null,null,null,null,null,null,null,null,null,null,null,null,null,null,""]
[null,null,null,null,null,null,null,null,null,null,null,null,null,null,null,null,null,null,null,null,null,null,null,null,null,null,null,null,null,null,null,null,null,null,null,null,null,null,null,null,null,null,null,null,null,null,null,null,null,null,null,null,null,""]
[null,null,null,null,null,null,null,null,null,null,null,null,null,null,null,null,null,null,null,null,null,null,null,null,null,null,null,null,null,null,null,null,null,null,null,null,null,null,null,null,null,null,null,null,null,null,null,null,null,null,null,null,null,""]
[null,null,null,null,null,null,null,null,null,null,null,null,null,null,null,null,null,null,null,null,null,null,null,null,null,null,null,null,null,null,null,null,null,null,null,null,null,null,null,null,null,null,null,null,null,null,null,null,null,null,null,null,null,""]
[null,null,null,null,null,null,null,null,null,null,null,null,null,null,null,null,null,null,null,null,null,null,null,null,null,null,null,null,null,null,null,null,null,null,null,null,null,null,null,null,null,null,null,null,null,null,null,null,null,null,null,null,null,""]
[null,null,null,null,null,null,null,null,null,null,null,null,null,null,null,null,null,null,null,null,null,null,null,null,null,null,null,null,null,null,null,null,null,null,null,null,null,null,null,null,null,null,null,null,null,null,null,null,null,null,null,null,null,""]
[null,null,null,null,null,null,null,null,null,null,null,null,null,null,null,null,null,null,null,null,null,null,null,null,null,null,null,null,null,null,null,null,null,null,null,null,null,null,null,null,null,null,null,null,null,null,null,null,null,null,null,null,null,""]
[null,null,null,null,null,null,null,null,null,null,null,null,null,null,null,null,null,null,null,null,null,null,null,null,null,null,null,null,null,null,null,null,null,null,null,null,null,null,null,null,null,null,null,null,null,null,null,null,null,null,null,null,null,""]
[null,null,null,null,null,null,null,null,null,null,null,null,null,null,null,null,null,null,null,null,null,null,null,null,null,null,null,null,null,null,null,null,null,null,null,null,null,null,null,null,null,null,null,null,null,null,null,null,null,null,null,null,null,""]
[null,null,null,null,null,null,null,null,null,null,null,null,null,null,null,null,null,null,null,null,null,null,null,null,null,null,null,null,null,null,null,null,null,null,null,null,null,null,null,null,null,null,null,null,null,null,null,null,null,null,null,null,null,""]
[null,null,null,null,null,null,null,null,null,null,null,null,null,null,null,null,null,null,null,null,null,null,null,null,null,null,null,null,null,null,null,null,null,null,null,null,null,null,null,null,null,null,null,null,null,null,null,null,null,null,null,null,null,""]
[null,null,null,null,null,null,null,null,null,null,null,null,null,null,null,null,null,null,null,null,null,null,null,null,null,null,null,null,null,null,null,null,null,null,null,null,null,null,null,null,null,null,null,null,null,null,null,null,null,null,null,null,null,""]
[null,null,null,null,null,null,null,null,null,null,null,null,null,null,null,null,null,null,null,null,null,null,null,null,null,null,null,null,null,null,null,null,null,null,null,null,null,null,null,null,null,null,null,null,null,null,null,null,null,null,null,null,null,""]
[null,null,null,null,null,null,null,null,null,null,null,null,null,null,null,null,null,null,null,null,null,null,null,null,null,null,null,null,null,null,null,null,null,null,null,null,null,null,null,null,null,null,null,null,null,null,null,null,null,null,null,null,null,""]
[null,null,"TOTALS",null,null,null,null,null,null,null,null,{"$f":"COUNTIF(L4:L111,\"Yes\")","v":0},{"$f":"COUNTIF(M4:M111,\"Yes\")","v":0},{"$f":"COUNTIF(N4:N111,\"Yes\")","v":0},{"$f":"COUNTIF(P4:P111,\"Yes\")","v":0},{"$f":"COUNTIF(Q4:Q111,\"Yes\")","v":0},null,{"$f":"SUM(S4:S111)","v":0},{"$f":"SUM(T4:T111)","v":0}]
[]
[]
[]
[]
[]
[]
["Type of Stay Breakdown"]
["Short Stay",{"$f":"COUNTIF(D4:D111,\"Short Term\")","v":0}]
["Long Stay",{"$f":"COUNTIF(D4:D111,\"Long Term\")","v":0}]
["Total",{"$f":"B120+B121","v":0}]
[]
[]
[]
["Dose Schedule","Total","Short Stay","Long Stay"]
["Scheduled",{"$f":"COUNTIFS(H4:H111,\"Scheduled\")","v":0},{"$f":"COUNTIFS(H4:H111,\"Scheduled\",D4:D111,\"Short Term\")","v":0},{"$f":"COUNTIFS(H4:H111,\"Scheduled\",D4:D111,\"Long Term\")","v":0}]
["PRN",{"$f":"COUNTIFS(H4:H111,\"PRN\")","v":0},{"$f":"COUNTIFS(H4:H111,\"PRN\",D4:D111,\"Short Term\")","v":0},{"$f":"COUNTIFS(H4:H111,\"PRN\",D4:D111,\"Long Term\")","v":0}]
["Both",{"$f":"COUNTIFS(H4:H111,\"Both\")","v":0},{"$f":"COUNTIFS(H4:H111,\"Both\",D4:D111,\"Short Term\")","v":0},{"$f":"COUNTIFS(H4:H111,\"Both\",D4:D111,\"Long Term\")","v":0}]
["Total",{"$f":"SUM(B127:B129)","v":0},{"$f":"SUM(C127:C129)","v":0},0]
["% on a scheduled dose",{"$f":"IFERROR(((B127/$B$130)*100), \"---\")","v":"---"},{"$f":"IFERROR(((C127/C130)*100), \"---\")","v":"---"},{"$f":"IFERROR(((D127/D130)*100), \"---\")","v":"---"}]
["% on a PRN dose",{"$f":"IFERROR(((B128/$B$130)*100), \"---\")","v":"---"},{"$f":"IFERROR(((C128/$C$130)*100), \"---\")","v":"---"},{"$f":"IFERROR(((D128/$D$130)*100), \"---\")","v":"---"}]
["% on both sched & PRN","---",{"$f":"IFERROR(((C129/C130)*100),\"---\")","v":"---"},{"$f":"IFERROR(((D129/D130)*100), \"---\")","v":"---"}]
[]
[]
[]
["Where Medication Started","Total","Short Stay","Long Stay"]
["SNF",{"$f":"COUNTIFS(J4:J111,\"SNF\")","v":0},{"$f":"COUNTIFS(J4:J111,\"SNF\",D4:D111,\"Short Term\")","v":0},{"$f":"COUNTIFS(J4:J111,\"SNF\",D4:D111,\"Long Term\")","v":0}]
["Hospital",{"$f":"COUNTIFS(J4:J111,\"Hospital\")","v":0},{"$f":"COUNTIFS(J4:J111,\"Hospital\",D4:D111,\"Short Term\")","v":0},{"$f":"COUNTIFS(J4:J111,\"Hospital\",D4:D111,\"Long Term\")","v":0}]
["Outpatient",{"$f":"COUNTIFS(J4:J111,\"Outpatient\")","v":0},{"$f":"COUNTIFS(J4:J111,\"Outpatient\",D4:D111,\"Short Term\")","v":0},{"$f":"COUNTIFS(J4:J111,\"Outpatient\",D4:D111,\"Long Term\")","v":0}]
["Total",{"$f":"SUM(B138:B140)","v":0},{"$f":"SUM(C138:C140)","v":0},0]
["% started in SNF",{"$f":"IFERROR(((B138/B141)*100), \"---\")","v":"---"},{"$f":"IFERROR(((C138/C141)*100), \"---\")","v":"---"},{"$f":"IFERROR(((D138/D141)*100), \"---\")","v":"---"}]
["% started in hospital",{"$f":"IFERROR(((B139/B141)*100), \"---\")","v":"---"},{"$f":"IFERROR(((C139/C141)*100), \"---\")","v":"---"},{"$f":"IFERROR(((D139/D141)*100), \"---\")","v":"---"}]
["% started in outpatient",{"$f":"IFERROR(((B140/B141)*100), \"---\")","v":"---"},{"$f":"IFERROR(((C140/C141)*100), \"---\")","v":"---"},{"$f":"IFERROR(((D140/D141)*100), \"---\")","v":"---"}]
[]
[]
[]
[]
["Dx appropriate","Total","Short Stay","Long Stay"]
["Yes",{"$f":"COUNTIFS(L4:L111,\"Yes\")","v":0},{"$f":"COUNTIFS(L4:L111,\"Yes\",D4:D111,\"Short Term\")","v":0},{"$f":"COUNTIFS(L4:L111,\"Yes\",D4:D111,\"Long Term\")","v":0}]
["No",{"$f":"COUNTIFS(L4:L111,\"No\")","v":0},{"$f":"COUNTIFS(L4:L111,\"No\",D4:D111,\"Short Term\")","v":0},{"$f":"COUNTIFS(L4:L111,\"No\",D4:D111,\"Long Term\")","v":0}]
["Total",{"$f":"SUM(B150:B151)","v":0},{"$f":"SUM(C150:C151)","v":0},0]
["% with appropriate diagnosis",{"$f":"IFERROR(((B150/B152)*100), \"---\")","v":"---"},{"$f":"IFERROR(((C150/C152)*100), \"---\")","v":"---"},{"$f":"IFERROR(((D150/D152)*100), \"---\")","v":"---"}]
[]
[]
[]
[]
["BPSD documented","Total","Short Stay","Long Stay"]
["Yes",{"$f":"COUNTIFS(N4:N111,\"Yes\")","v":0},{"$f":"COUNTIFS(N4:N111,\"Yes\",D4:D111,\"Short Term\")","v":0},{"$f":"COUNTIFS(N4:N111,\"Yes\",D4:D111,\"Long Term\")","v":0}]
["No",{"$f":"COUNTIFS(N4:N111,\"No\")","v":0},{"$f":"COUNTIFS(N4:N111,\"No\",D4:D111,\"Short Term\")","v":0},{"$f":"COUNTIFS(N4:N111,\"No\",D4:D111,\"Long Term\")","v":0}]
["N/A",{"$f":"COUNTIFS(N4:N111,\"N/A\")","v":0},{"$f":"COUNTIFS(N4:N111,\"N/A\",D4:D111,\"Short Term\")","v":0},{"$f":"COUNTIFS(N4:N111,\"N/A\",D4:D111,\"Long Term\")","v":0}]
["Total",{"$f":"SUM(B159:B161)","v":0},{"$f":"SUM(C159:C161)","v":0},0]
["% needing BPSD documented",{"$f":"IFERROR(((B160/(B159+B160))*100),\"---\")","v":"---"},{"$f":"IFERROR(((C160/(C159+C160))*100), \"---\")","v":"---"},{"$f":"IFERROR(((D160/(D159+D160))*100), \"---\")","v":"---"}]
[]
[]
[]
[]
["Non drug interventions documented","Total","Short Stay","Long Stay"]
["Yes",{"$f":"COUNTIFS(P4:P111,\"Yes\")","v":0},{"$f":"COUNTIFS(P4:P111,\"Yes\",D4:D111,\"Short Term\")","v":0},{"$f":"COUNTIFS(P4:P111,\"Yes\",D4:D111,\"Long Term\")","v":0}]
["No",{"$f":"COUNTIFS(P4:P111,\"No\")","v":0},{"$f":"COUNTIFS(P4:P111,\"No\",D4:D111,\"Short Term\")","v":0},{"$f":"COUNTIFS(P4:P111,\"No\",D4:D111,\"Long Term\")","v":0}]
["N/A",{"$f":"COUNTIFS(P4:P111,\"N/A\")","v":0},{"$f":"COUNTIFS(P4:P111,\"N/A\",D4:D111,\"Short Term\")","v":0},{"$f":"COUNTIFS(P4:P111,\"N/A\",D4:D111,\"Long Term\")","v":0}]
["Total",{"$f":"SUM(B169:B171)","v":0},{"$f":"SUM(C169:C171)","v":0},0]
["% without non drug interventions documented",{"$f":"IFERROR((B170/(B169+B170))*100, \"---\")","v":"---"},{"$f":"IFERROR((C72/(C169+C170)*100), \"---\")","v":"---"},{"$f":"IFERROR((D170/(D169+D170)*100), \"---\")","v":"---"}]
[]
[]
[]
[]
["GDR Outcome","Total","Short Stay","Long Stay"]
["Dose reduced",{"$f":"COUNTIFS(R4:R111,\"Dose reduced\")","v":0},{"$f":"COUNTIFS(R4:R111,\"Dose reduced\",D4:D111,\"Short Term\")","v":0},{"$f":"COUNTIFS(R4:R111,\"Dose reduced\",D4:D111,\"Long Term\")","v":0}]
["Dose discontinued",{"$f":"COUNTIFS(R4:R111,\"Drug discontinued\")","v":0},{"$f":"COUNTIFS(R4:R111,\"Drug discontinued\",D4:D111,\"Short Term\")","v":0},{"$f":"COUNTIFS(R4:R111,\"Drug discontinued\",D4:D111,\"Long Term\")","v":0}]
["Return to previous dose",{"$f":"COUNTIFS(R4:R111,\"Return to previous dose\")","v":0},{"$f":"COUNTIFS(R4:R111,\"Return to previous dose\",D4:D111,\"Short Term\")","v":0},{"$f":"COUNTIFS(R4:R111,\"Return to previous dose\",D4:D111,\"Long Term\")","v":0}]
["Total",{"$f":"SUM(B179:B181)","v":0},{"$f":"SUM(C179:C181)","v":0},0]
["dose reduced or dc'd",{"$f":"B179+B180","v":0},{"$f":"C179+C180","v":0},0]
["% dose reduction",{"$f":"IFERROR((B179/B182)*100, \"---\")","v":"---"},{"$f":"IFERROR((C179/C182)*100, \"---\")","v":"---"},{"$f":"IFERROR((D179/D182)*100, \"---\")","v":"---"}]
["% dose discontinued",{"$f":"IFERROR((B180/B182)*100, \"---\")","v":"---"},{"$f":"IFERROR((C180/C182)*100, \"---\")","v":"---"},{"$f":"IFERROR((D180/D182)*100, \"---\")","v":"---"}]
["% dose reduced or discontinued",{"$f":"IFERROR((B183/B182)*100, \"---\")","v":"---"},{"$f":"IFERROR((C183/C182)*100, \"---\")","v":"---"},{"$f":"IFERROR((D183/D182)*100, \"---\")","v":"---"}]
[]
[]
[]
[]
["GDR needed","Total","Short Stay","Long Stay"]
["Yes",{"$f":"COUNTIFS(S4:S111,\"Yes\")","v":0},{"$f":"COUNTIFS(S4:S111,\"Yes\",D4:D111,\"Short Term\")","v":0},{"$f":"COUNTIFS(S4:S111,\"Yes\",D4:D111,\"Long Term\")","v":0}]
["No",{"$f":"COUNTIFS(S4:S111,\"No\")","v":0},{"$f":"COUNTIFS(S4:S111,\"No\",D4:D111,\"Short Term\")","v":0},{"$f":"COUNTIFS(S4:S111,\"No\",D4:D111,\"Long Term\")","v":0}]
["Total",{"$f":"SUM(B192:B193)","v":0},{"$f":"SUM(C192:C193)","v":0},0]
["% needing GDR",{"$f":"IFERROR((B192/B194)*100, \"---\")","v":"---"},{"$f":"IFERROR((C192/C194)*100, \"---\")","v":"---"},{"$f":"IFERROR((D192/D194)*100, \"---\")","v":"---"}]
[]
[]
[]
[]
["Reason no GDR attempted","Total","Short Stay","Long Stay"]
["N/A",{"$f":"COUNTIFS(T4:T111,\"N/A\")","v":0},{"$f":"COUNTIFS(T4:T111,\"N/A\",D4:D111,\"Short Term\")","v":0},{"$f":"COUNTIFS(T4:T111,\"N/A\",D4:D111,\"Long Term\")","v":0}]
["Resident on lowest possible dose",{"$f":"COUNTIFS(T4:T111,\"Resident on lowest possible dose\")","v":0},{"$f":"COUNTIFS(T4:T111,\"Resident on lowest possible dose\",D4:D111,\"Short Term\")","v":0},{"$f":"COUNTIFS(T4:T111,\"Resident on lowest possible dose\",D4:D111,\"Long Term\")","v":0}]
["Contraindicated per prescriber",{"$f":"COUNTIFS(T4:T111,\"Contraindicated per prescriber\")","v":0},{"$f":"COUNTIFS(T4:T111,\"Contraindicated per prescriber\",D4:D111,\"Short Term\")","v":0},{"$f":"COUNTIFS(T4:T111,\"Contraindicated per prescriber\",D4:D111,\"Long Term\")","v":0}]
["Other",{"$f":"COUNTIFS(T4:T111,\"Other\")","v":0},{"$f":"COUNTIFS(T4:T111,\"Other\",D4:D111,\"Short Term\")","v":0},{"$f":"COUNTIFS(T4:T111,\"Other\",D4:D111,\"Long Term\")","v":0}]
["Total",{"$f":"SUM(B201:B204)","v":0},{"$f":"SUM(C201:C204)","v":0},0]
["% resident on lowest possible dose",{"$f":"IFERROR((B202/B205)*100, \"---\")","v":"---"},{"$f":"IFERROR((C202/C205)*100, \"---\")","v":"---"},{"$f":"IFERROR((D202/D205)*100, \"---\")","v":"---"}]
["% contraindicated per prescriber",{"$f":"IFERROR((B203/B205)*100, \"---\")","v":"---"},{"$f":"IFERROR((C203/C205)*100, \"---\")","v":"---"},{"$f":"IFERROR((D203/D205)*100, \"---\")","v":"---"}]
["% other",{"$f":"IFERROR((B204/B205)*100, \"---\")","v":"---"},{"$f":"IFERROR((C204/C205)*100, \"---\")","v":"---"},{"$f":"IFERROR((D204/D205)*100, \"---\")","v":"---"}]
[]
[]
[]
[]
["Adverse Effects","Total","Short Stay","Long Stay"]
["Yes",{"$f":"COUNTIFS(U4:U111,\"Yes\")","v":0},{"$f":"COUNTIFS(U4:U111,\"Yes\",D4:D111,\"Short Term\")","v":0},{"$f":"COUNTIFS(U4:U111,\"Yes\",D4:D111,\"Long Term\")","v":0}]
["No",{"$f":"COUNTIFS(U4:U111,\"No\")","v":0},{"$f":"COUNTIFS(U4:U111,\"No\",D4:D111,\"Short Term\")","v":0},{"$f":"COUNTIFS(U4:U111,\"No\",D4:D111,\"Long Term\")","v":0}]
["Total",{"$f":"SUM(B214:B215)","v":0},{"$f":"SUM(C214:C215)","v":0},0]
["% with adverse effects",{"$f":"IFERROR((B214/B216)*100, \"---\")","v":"---"},{"$f":"IFERROR((C214/C216)*100, \"---\")","v":"---"},{"$f":"IFERROR((D214/D216)*100, \"---\")","v":"---"}]

{"sheet":"April","index":5,"n_rows":217,"n_cols":54,"rows_kept":217,"cut":false,"hidden":false,"merged":[[0,0,0,2],[0,4,0,5],[1,0,1,4],[1,5,1,21]]}
["End of Month Census :",null,null,null," Current residents on antipsychotics:",null,{"$f":"SUMPRODUCT((A4:A111<>\"\")/COUNTIF(A4:A111,A4:A111&\"\"))","v":0},"Percentage of residents on antipsychotic:",{"$f":"IFERROR((G1/D1)*100, \"---\")","v":"---"}]
["Resident Information",null,null,null,null,"Antipsychotic Medication Information"]
["Room #","Last Name","First Name","Type of Stay","Notes (New Admit, etc)","Antipsychotic Drug Prescribed","Prescriber","Dose Schedule","Date Started","Where was medication started?","Diagnosis associated with antipsychotic","Is Dx Appropriate? (See directions)","List BPSD","Appropriate BPSD documented?","List Non Drug Interventions tried","Non Drug Intv documented?","Date of most recent GDR","Outcome of GDR","GDR Needed?","Reasons for no GDR being attempted","Has resident experienced adverse drug effects?","If yes, describe adverse effects"]
[]
[]
[]
[]
[]
[]
[]
[]
[]
[]
[null,null,null,null,null,null,null,null,null,null,null,null,null,null,null,null,null,null,null,null,null,null,null,null,null,null,null,null,null,null,null,null,null,null,null,null,null,null,null,null,null,null,null,null,null,null,null,null,null,null,null,null,null,{"$f":"CONCATENATE(C14,B14)","v":""}]
[null,null,null,null,null,null,null,null,null,null,null,null,null,null,null,null,null,null,null,null,null,null,null,null,null,null,null,null,null,null,null,null,null,null,null,null,null,null,null,null,null,null,null,null,null,null,null,null,null,null,null,null,null,""]
[null,null,null,null,null,null,null,null,null,null,null,null,null,null,null,null,null,null,null,null,null,null,null,null,null,null,null,null,null,null,null,null,null,null,null,null,null,null,null,null,null,null,null,null,null,null,null,null,null,null,null,null,null,""]
[null,null,null,null,null,null,null,null,null,null,null,null,null,null,null,null,null,null,null,null,null,null,null,null,null,null,null,null,null,null,null,null,null,null,null,null,null,null,null,null,null,null,null,null,null,null,null,null,null,null,null,null,null,""]
[null,null,null,null,null,null,null,null,null,null,null,null,null,null,null,null,null,null,null,null,null,null,null,null,null,null,null,null,null,null,null,null,null,null,null,null,null,null,null,null,null,null,null,null,null,null,null,null,null,null,null,null,null,""]
[null,null,null,null,null,null,null,null,null,null,null,null,null,null,null,null,null,null,null,null,null,null,null,null,null,null,null,null,null,null,null,null,null,null,null,null,null,null,null,null,null,null,null,null,null,null,null,null,null,null,null,null,null,""]
[null,null,null,null,null,null,null,null,null,null,null,null,null,null,null,null,null,null,null,null,null,null,null,null,null,null,null,null,null,null,null,null,null,null,null,null,null,null,null,null,null,null,null,null,null,null,null,null,null,null,null,null,null,""]
[null,null,null,null,null,null,null,null,null,null,null,null,null,null,null,null,null,null,null,null,null,null,null,null,null,null,null,null,null,null,null,null,null,null,null,null,null,null,null,null,null,null,null,null,null,null,null,null,null,null,null,null,null,""]
[null,null,null,null,null,null,null,null,null,null,null,null,null,null,null,null,null,null,null,null,null,null,null,null,null,null,null,null,null,null,null,null,null,null,null,null,null,null,null,null,null,null,null,null,null,null,null,null,null,null,null,null,null,""]
[null,null,null,null,null,null,null,null,null,null,null,null,null,null,null,null,null,null,null,null,null,null,null,null,null,null,null,null,null,null,null,null,null,null,null,null,null,null,null,null,null,null,null,null,null,null,null,null,null,null,null,null,null,""]
[null,null,null,null,null,null,null,null,null,null,null,null,null,null,null,null,null,null,null,null,null,null,null,null,null,null,null,null,null,null,null,null,null,null,null,null,null,null,null,null,null,null,null,null,null,null,null,null,null,null,null,null,null,""]
[null,null,null,null,null,null,null,null,null,null,null,null,null,null,null,null,null,null,null,null,null,null,null,null,null,null,null,null,null,null,null,null,null,null,null,null,null,null,null,null,null,null,null,null,null,null,null,null,null,null,null,null,null,""]
[null,null,null,null,null,null,null,null,null,null,null,null,null,null,null,null,null,null,null,null,null,null,null,null,null,null,null,null,null,null,null,null,null,null,null,null,null,null,null,null,null,null,null,null,null,null,null,null,null,null,null,null,null,""]
[null,null,null,null,null,null,null,null,null,null,null,null,null,null,null,null,null,null,null,null,null,null,null,null,null,null,null,null,null,null,null,null,null,null,null,null,null,null,null,null,null,null,null,null,null,null,null,null,null,null,null,null,null,""]
[null,null,null,null,null,null,null,null,null,null,null,null,null,null,null,null,null,null,null,null,null,null,null,null,null,null,null,null,null,null,null,null,null,null,null,null,null,null,null,null,null,null,null,null,null,null,null,null,null,null,null,null,null,""]
[null,null,null,null,null,null,null,null,null,null,null,null,null,null,null,null,null,null,null,null,null,null,null,null,null,null,null,null,null,null,null,null,null,null,null,null,null,null,null,null,null,null,null,null,null,null,null,null,null,null,null,null,null,""]
[null,null,null,null,null,null,null,null,null,null,null,null,null,null,null,null,null,null,null,null,null,null,null,null,null,null,null,null,null,null,null,null,null,null,null,null,null,null,null,null,null,null,null,null,null,null,null,null,null,null,null,null,null,""]
[null,null,null,null,null,null,null,null,null,null,null,null,null,null,null,null,null,null,null,null,null,null,null,null,null,null,null,null,null,null,null,null,null,null,null,null,null,null,null,null,null,null,null,null,null,null,null,null,null,null,null,null,null,""]
[null,null,null,null,null,null,null,null,null,null,null,null,null,null,null,null,null,null,null,null,null,null,null,null,null,null,null,null,null,null,null,null,null,null,null,null,null,null,null,null,null,null,null,null,null,null,null,null,null,null,null,null,null,""]
[null,null,null,null,null,null,null,null,null,null,null,null,null,null,null,null,null,null,null,null,null,null,null,null,null,null,null,null,null,null,null,null,null,null,null,null,null,null,null,null,null,null,null,null,null,null,null,null,null,null,null,null,null,""]
[null,null,null,null,null,null,null,null,null,null,null,null,null,null,null,null,null,null,null,null,null,null,null,null,null,null,null,null,null,null,null,null,null,null,null,null,null,null,null,null,null,null,null,null,null,null,null,null,null,null,null,null,null,""]
[null,null,null,null,null,null,null,null,null,null,null,null,null,null,null,null,null,null,null,null,null,null,null,null,null,null,null,null,null,null,null,null,null,null,null,null,null,null,null,null,null,null,null,null,null,null,null,null,null,null,null,null,null,""]
[null,null,null,null,null,null,null,null,null,null,null,null,null,null,null,null,null,null,null,null,null,null,null,null,null,null,null,null,null,null,null,null,null,null,null,null,null,null,null,null,null,null,null,null,null,null,null,null,null,null,null,null,null,""]
[null,null,null,null,null,null,null,null,null,null,null,null,null,null,null,null,null,null,null,null,null,null,null,null,null,null,null,null,null,null,null,null,null,null,null,null,null,null,null,null,null,null,null,null,null,null,null,null,null,null,null,null,null,""]
[null,null,null,null,null,null,null,null,null,null,null,null,null,null,null,null,null,null,null,null,null,null,null,null,null,null,null,null,null,null,null,null,null,null,null,null,null,null,null,null,null,null,null,null,null,null,null,null,null,null,null,null,null,""]
[null,null,null,null,null,null,null,null,null,null,null,null,null,null,null,null,null,null,null,null,null,null,null,null,null,null,null,null,null,null,null,null,null,null,null,null,null,null,null,null,null,null,null,null,null,null,null,null,null,null,null,null,null,""]
[null,null,null,null,null,null,null,null,null,null,null,null,null,null,null,null,null,null,null,null,null,null,null,null,null,null,null,null,null,null,null,null,null,null,null,null,null,null,null,null,null,null,null,null,null,null,null,null,null,null,null,null,null,""]
[null,null,null,null,null,null,null,null,null,null,null,null,null,null,null,null,null,null,null,null,null,null,null,null,null,null,null,null,null,null,null,null,null,null,null,null,null,null,null,null,null,null,null,null,null,null,null,null,null,null,null,null,null,""]
[null,null,null,null,null,null,null,null,null,null,null,null,null,null,null,null,null,null,null,null,null,null,null,null,null,null,null,null,null,null,null,null,null,null,null,null,null,null,null,null,null,null,null,null,null,null,null,null,null,null,null,null,null,""]
[null,null,null,null,null,null,null,null,null,null,null,null,null,null,null,null,null,null,null,null,null,null,null,null,null,null,null,null,null,null,null,null,null,null,null,null,null,null,null,null,null,null,null,null,null,null,null,null,null,null,null,null,null,""]
[null,null,null,null,null,null,null,null,null,null,null,null,null,null,null,null,null,null,null,null,null,null,null,null,null,null,null,null,null,null,null,null,null,null,null,null,null,null,null,null,null,null,null,null,null,null,null,null,null,null,null,null,null,""]
[null,null,null,null,null,null,null,null,null,null,null,null,null,null,null,null,null,null,null,null,null,null,null,null,null,null,null,null,null,null,null,null,null,null,null,null,null,null,null,null,null,null,null,null,null,null,null,null,null,null,null,null,null,""]
[null,null,null,null,null,null,null,null,null,null,null,null,null,null,null,null,null,null,null,null,null,null,null,null,null,null,null,null,null,null,null,null,null,null,null,null,null,null,null,null,null,null,null,null,null,null,null,null,null,null,null,null,null,""]
[null,null,null,null,null,null,null,null,null,null,null,null,null,null,null,null,null,null,null,null,null,null,null,null,null,null,null,null,null,null,null,null,null,null,null,null,null,null,null,null,null,null,null,null,null,null,null,null,null,null,null,null,null,""]
[null,null,null,null,null,null,null,null,null,null,null,null,null,null,null,null,null,null,null,null,null,null,null,null,null,null,null,null,null,null,null,null,null,null,null,null,null,null,null,null,null,null,null,null,null,null,null,null,null,null,null,null,null,""]
[null,null,null,null,null,null,null,null,null,null,null,null,null,null,null,null,null,null,null,null,null,null,null,null,null,null,null,null,null,null,null,null,null,null,null,null,null,null,null,null,null,null,null,null,null,null,null,null,null,null,null,null,null,""]
[null,null,null,null,null,null,null,null,null,null,null,null,null,null,null,null,null,null,null,null,null,null,null,null,null,null,null,null,null,null,null,null,null,null,null,null,null,null,null,null,null,null,null,null,null,null,null,null,null,null,null,null,null,""]
[null,null,null,null,null,null,null,null,null,null,null,null,null,null,null,null,null,null,null,null,null,null,null,null,null,null,null,null,null,null,null,null,null,null,null,null,null,null,null,null,null,null,null,null,null,null,null,null,null,null,null,null,null,""]
[null,null,null,null,null,null,null,null,null,null,null,null,null,null,null,null,null,null,null,null,null,null,null,null,null,null,null,null,null,null,null,null,null,null,null,null,null,null,null,null,null,null,null,null,null,null,null,null,null,null,null,null,null,""]
[null,null,null,null,null,null,null,null,null,null,null,null,null,null,null,null,null,null,null,null,null,null,null,null,null,null,null,null,null,null,null,null,null,null,null,null,null,null,null,null,null,null,null,null,null,null,null,null,null,null,null,null,null,""]
[null,null,null,null,null,null,null,null,null,null,null,null,null,null,null,null,null,null,null,null,null,null,null,null,null,null,null,null,null,null,null,null,null,null,null,null,null,null,null,null,null,null,null,null,null,null,null,null,null,null,null,null,null,""]
[null,null,null,null,null,null,null,null,null,null,null,null,null,null,null,null,null,null,null,null,null,null,null,null,null,null,null,null,null,null,null,null,null,null,null,null,null,null,null,null,null,null,null,null,null,null,null,null,null,null,null,null,null,""]
[null,null,null,null,null,null,null,null,null,null,null,null,null,null,null,null,null,null,null,null,null,null,null,null,null,null,null,null,null,null,null,null,null,null,null,null,null,null,null,null,null,null,null,null,null,null,null,null,null,null,null,null,null,""]
[null,null,null,null,null,null,null,null,null,null,null,null,null,null,null,null,null,null,null,null,null,null,null,null,null,null,null,null,null,null,null,null,null,null,null,null,null,null,null,null,null,null,null,null,null,null,null,null,null,null,null,null,null,""]
[null,null,null,null,null,null,null,null,null,null,null,null,null,null,null,null,null,null,null,null,null,null,null,null,null,null,null,null,null,null,null,null,null,null,null,null,null,null,null,null,null,null,null,null,null,null,null,null,null,null,null,null,null,""]
[null,null,null,null,null,null,null,null,null,null,null,null,null,null,null,null,null,null,null,null,null,null,null,null,null,null,null,null,null,null,null,null,null,null,null,null,null,null,null,null,null,null,null,null,null,null,null,null,null,null,null,null,null,""]
[null,null,null,null,null,null,null,null,null,null,null,null,null,null,null,null,null,null,null,null,null,null,null,null,null,null,null,null,null,null,null,null,null,null,null,null,null,null,null,null,null,null,null,null,null,null,null,null,null,null,null,null,null,""]
[null,null,null,null,null,null,null,null,null,null,null,null,null,null,null,null,null,null,null,null,null,null,null,null,null,null,null,null,null,null,null,null,null,null,null,null,null,null,null,null,null,null,null,null,null,null,null,null,null,null,null,null,null,""]
[null,null,null,null,null,null,null,null,null,null,null,null,null,null,null,null,null,null,null,null,null,null,null,null,null,null,null,null,null,null,null,null,null,null,null,null,null,null,null,null,null,null,null,null,null,null,null,null,null,null,null,null,null,""]
[null,null,null,null,null,null,null,null,null,null,null,null,null,null,null,null,null,null,null,null,null,null,null,null,null,null,null,null,null,null,null,null,null,null,null,null,null,null,null,null,null,null,null,null,null,null,null,null,null,null,null,null,null,""]
[null,null,null,null,null,null,null,null,null,null,null,null,null,null,null,null,null,null,null,null,null,null,null,null,null,null,null,null,null,null,null,null,null,null,null,null,null,null,null,null,null,null,null,null,null,null,null,null,null,null,null,null,null,""]
[null,null,null,null,null,null,null,null,null,null,null,null,null,null,null,null,null,null,null,null,null,null,null,null,null,null,null,null,null,null,null,null,null,null,null,null,null,null,null,null,null,null,null,null,null,null,null,null,null,null,null,null,null,""]
[null,null,null,null,null,null,null,null,null,null,null,null,null,null,null,null,null,null,null,null,null,null,null,null,null,null,null,null,null,null,null,null,null,null,null,null,null,null,null,null,null,null,null,null,null,null,null,null,null,null,null,null,null,""]
[null,null,null,null,null,null,null,null,null,null,null,null,null,null,null,null,null,null,null,null,null,null,null,null,null,null,null,null,null,null,null,null,null,null,null,null,null,null,null,null,null,null,null,null,null,null,null,null,null,null,null,null,null,""]
[null,null,null,null,null,null,null,null,null,null,null,null,null,null,null,null,null,null,null,null,null,null,null,null,null,null,null,null,null,null,null,null,null,null,null,null,null,null,null,null,null,null,null,null,null,null,null,null,null,null,null,null,null,""]
[null,null,null,null,null,null,null,null,null,null,null,null,null,null,null,null,null,null,null,null,null,null,null,null,null,null,null,null,null,null,null,null,null,null,null,null,null,null,null,null,null,null,null,null,null,null,null,null,null,null,null,null,null,""]
[null,null,null,null,null,null,null,null,null,null,null,null,null,null,null,null,null,null,null,null,null,null,null,null,null,null,null,null,null,null,null,null,null,null,null,null,null,null,null,null,null,null,null,null,null,null,null,null,null,null,null,null,null,""]
[null,null,null,null,null,null,null,null,null,null,null,null,null,null,null,null,null,null,null,null,null,null,null,null,null,null,null,null,null,null,null,null,null,null,null,null,null,null,null,null,null,null,null,null,null,null,null,null,null,null,null,null,null,""]
[null,null,null,null,null,null,null,null,null,null,null,null,null,null,null,null,null,null,null,null,null,null,null,null,null,null,null,null,null,null,null,null,null,null,null,null,null,null,null,null,null,null,null,null,null,null,null,null,null,null,null,null,null,""]
[null,null,null,null,null,null,null,null,null,null,null,null,null,null,null,null,null,null,null,null,null,null,null,null,null,null,null,null,null,null,null,null,null,null,null,null,null,null,null,null,null,null,null,null,null,null,null,null,null,null,null,null,null,""]
[null,null,null,null,null,null,null,null,null,null,null,null,null,null,null,null,null,null,null,null,null,null,null,null,null,null,null,null,null,null,null,null,null,null,null,null,null,null,null,null,null,null,null,null,null,null,null,null,null,null,null,null,null,""]
[null,null,null,null,null,null,null,null,null,null,null,null,null,null,null,null,null,null,null,null,null,null,null,null,null,null,null,null,null,null,null,null,null,null,null,null,null,null,null,null,null,null,null,null,null,null,null,null,null,null,null,null,null,""]
[null,null,null,null,null,null,null,null,null,null,null,null,null,null,null,null,null,null,null,null,null,null,null,null,null,null,null,null,null,null,null,null,null,null,null,null,null,null,null,null,null,null,null,null,null,null,null,null,null,null,null,null,null,""]
[null,null,null,null,null,null,null,null,null,null,null,null,null,null,null,null,null,null,null,null,null,null,null,null,null,null,null,null,null,null,null,null,null,null,null,null,null,null,null,null,null,null,null,null,null,null,null,null,null,null,null,null,null,""]
[null,null,null,null,null,null,null,null,null,null,null,null,null,null,null,null,null,null,null,null,null,null,null,null,null,null,null,null,null,null,null,null,null,null,null,null,null,null,null,null,null,null,null,null,null,null,null,null,null,null,null,null,null,{"$f":"CONCATENATE(C78,B78)","v":""}]
[null,null,null,null,null,null,null,null,null,null,null,null,null,null,null,null,null,null,null,null,null,null,null,null,null,null,null,null,null,null,null,null,null,null,null,null,null,null,null,null,null,null,null,null,null,null,null,null,null,null,null,null,null,""]
[null,null,null,null,null,null,null,null,null,null,null,null,null,null,null,null,null,null,null,null,null,null,null,null,null,null,null,null,null,null,null,null,null,null,null,null,null,null,null,null,null,null,null,null,null,null,null,null,null,null,null,null,null,""]
[null,null,null,null,null,null,null,null,null,null,null,null,null,null,null,null,null,null,null,null,null,null,null,null,null,null,null,null,null,null,null,null,null,null,null,null,null,null,null,null,null,null,null,null,null,null,null,null,null,null,null,null,null,""]
[null,null,null,null,null,null,null,null,null,null,null,null,null,null,null,null,null,null,null,null,null,null,null,null,null,null,null,null,null,null,null,null,null,null,null,null,null,null,null,null,null,null,null,null,null,null,null,null,null,null,null,null,null,""]
[null,null,null,null,null,null,null,null,null,null,null,null,null,null,null,null,null,null,null,null,null,null,null,null,null,null,null,null,null,null,null,null,null,null,null,null,null,null,null,null,null,null,null,null,null,null,null,null,null,null,null,null,null,""]
[null,null,null,null,null,null,null,null,null,null,null,null,null,null,null,null,null,null,null,null,null,null,null,null,null,null,null,null,null,null,null,null,null,null,null,null,null,null,null,null,null,null,null,null,null,null,null,null,null,null,null,null,null,""]
[null,null,null,null,null,null,null,null,null,null,null,null,null,null,null,null,null,null,null,null,null,null,null,null,null,null,null,null,null,null,null,null,null,null,null,null,null,null,null,null,null,null,null,null,null,null,null,null,null,null,null,null,null,""]
[null,null,null,null,null,null,null,null,null,null,null,null,null,null,null,null,null,null,null,null,null,null,null,null,null,null,null,null,null,null,null,null,null,null,null,null,null,null,null,null,null,null,null,null,null,null,null,null,null,null,null,null,null,""]
[null,null,null,null,null,null,null,null,null,null,null,null,null,null,null,null,null,null,null,null,null,null,null,null,null,null,null,null,null,null,null,null,null,null,null,null,null,null,null,null,null,null,null,null,null,null,null,null,null,null,null,null,null,""]
[null,null,null,null,null,null,null,null,null,null,null,null,null,null,null,null,null,null,null,null,null,null,null,null,null,null,null,null,null,null,null,null,null,null,null,null,null,null,null,null,null,null,null,null,null,null,null,null,null,null,null,null,null,""]
[null,null,null,null,null,null,null,null,null,null,null,null,null,null,null,null,null,null,null,null,null,null,null,null,null,null,null,null,null,null,null,null,null,null,null,null,null,null,null,null,null,null,null,null,null,null,null,null,null,null,null,null,null,""]
[null,null,null,null,null,null,null,null,null,null,null,null,null,null,null,null,null,null,null,null,null,null,null,null,null,null,null,null,null,null,null,null,null,null,null,null,null,null,null,null,null,null,null,null,null,null,null,null,null,null,null,null,null,""]
[null,null,null,null,null,null,null,null,null,null,null,null,null,null,null,null,null,null,null,null,null,null,null,null,null,null,null,null,null,null,null,null,null,null,null,null,null,null,null,null,null,null,null,null,null,null,null,null,null,null,null,null,null,""]
[null,null,null,null,null,null,null,null,null,null,null,null,null,null,null,null,null,null,null,null,null,null,null,null,null,null,null,null,null,null,null,null,null,null,null,null,null,null,null,null,null,null,null,null,null,null,null,null,null,null,null,null,null,""]
[null,null,null,null,null,null,null,null,null,null,null,null,null,null,null,null,null,null,null,null,null,null,null,null,null,null,null,null,null,null,null,null,null,null,null,null,null,null,null,null,null,null,null,null,null,null,null,null,null,null,null,null,null,""]
[null,null,null,null,null,null,null,null,null,null,null,null,null,null,null,null,null,null,null,null,null,null,null,null,null,null,null,null,null,null,null,null,null,null,null,null,null,null,null,null,null,null,null,null,null,null,null,null,null,null,null,null,null,""]
[null,null,null,null,null,null,null,null,null,null,null,null,null,null,null,null,null,null,null,null,null,null,null,null,null,null,null,null,null,null,null,null,null,null,null,null,null,null,null,null,null,null,null,null,null,null,null,null,null,null,null,null,null,""]
[null,null,null,null,null,null,null,null,null,null,null,null,null,null,null,null,null,null,null,null,null,null,null,null,null,null,null,null,null,null,null,null,null,null,null,null,null,null,null,null,null,null,null,null,null,null,null,null,null,null,null,null,null,""]
[null,null,null,null,null,null,null,null,null,null,null,null,null,null,null,null,null,null,null,null,null,null,null,null,null,null,null,null,null,null,null,null,null,null,null,null,null,null,null,null,null,null,null,null,null,null,null,null,null,null,null,null,null,""]
[null,null,null,null,null,null,null,null,null,null,null,null,null,null,null,null,null,null,null,null,null,null,null,null,null,null,null,null,null,null,null,null,null,null,null,null,null,null,null,null,null,null,null,null,null,null,null,null,null,null,null,null,null,""]
[null,null,null,null,null,null,null,null,null,null,null,null,null,null,null,null,null,null,null,null,null,null,null,null,null,null,null,null,null,null,null,null,null,null,null,null,null,null,null,null,null,null,null,null,null,null,null,null,null,null,null,null,null,""]
[null,null,null,null,null,null,null,null,null,null,null,null,null,null,null,null,null,null,null,null,null,null,null,null,null,null,null,null,null,null,null,null,null,null,null,null,null,null,null,null,null,null,null,null,null,null,null,null,null,null,null,null,null,""]
[null,null,null,null,null,null,null,null,null,null,null,null,null,null,null,null,null,null,null,null,null,null,null,null,null,null,null,null,null,null,null,null,null,null,null,null,null,null,null,null,null,null,null,null,null,null,null,null,null,null,null,null,null,""]
[null,null,null,null,null,null,null,null,null,null,null,null,null,null,null,null,null,null,null,null,null,null,null,null,null,null,null,null,null,null,null,null,null,null,null,null,null,null,null,null,null,null,null,null,null,null,null,null,null,null,null,null,null,""]
[null,null,null,null,null,null,null,null,null,null,null,null,null,null,null,null,null,null,null,null,null,null,null,null,null,null,null,null,null,null,null,null,null,null,null,null,null,null,null,null,null,null,null,null,null,null,null,null,null,null,null,null,null,""]
[null,null,null,null,null,null,null,null,null,null,null,null,null,null,null,null,null,null,null,null,null,null,null,null,null,null,null,null,null,null,null,null,null,null,null,null,null,null,null,null,null,null,null,null,null,null,null,null,null,null,null,null,null,""]
[null,null,null,null,null,null,null,null,null,null,null,null,null,null,null,null,null,null,null,null,null,null,null,null,null,null,null,null,null,null,null,null,null,null,null,null,null,null,null,null,null,null,null,null,null,null,null,null,null,null,null,null,null,""]
[null,null,null,null,null,null,null,null,null,null,null,null,null,null,null,null,null,null,null,null,null,null,null,null,null,null,null,null,null,null,null,null,null,null,null,null,null,null,null,null,null,null,null,null,null,null,null,null,null,null,null,null,null,""]
[null,null,null,null,null,null,null,null,null,null,null,null,null,null,null,null,null,null,null,null,null,null,null,null,null,null,null,null,null,null,null,null,null,null,null,null,null,null,null,null,null,null,null,null,null,null,null,null,null,null,null,null,null,""]
[null,null,null,null,null,null,null,null,null,null,null,null,null,null,null,null,null,null,null,null,null,null,null,null,null,null,null,null,null,null,null,null,null,null,null,null,null,null,null,null,null,null,null,null,null,null,null,null,null,null,null,null,null,""]
[null,null,null,null,null,null,null,null,null,null,null,null,null,null,null,null,null,null,null,null,null,null,null,null,null,null,null,null,null,null,null,null,null,null,null,null,null,null,null,null,null,null,null,null,null,null,null,null,null,null,null,null,null,""]
[null,null,null,null,null,null,null,null,null,null,null,null,null,null,null,null,null,null,null,null,null,null,null,null,null,null,null,null,null,null,null,null,null,null,null,null,null,null,null,null,null,null,null,null,null,null,null,null,null,null,null,null,null,""]
[null,null,null,null,null,null,null,null,null,null,null,null,null,null,null,null,null,null,null,null,null,null,null,null,null,null,null,null,null,null,null,null,null,null,null,null,null,null,null,null,null,null,null,null,null,null,null,null,null,null,null,null,null,""]
[null,null,"TOTALS",null,null,null,null,null,null,null,null,{"$f":"COUNTIF(L4:L111,\"Yes\")","v":0},{"$f":"COUNTIF(M4:M111,\"Yes\")","v":0},{"$f":"COUNTIF(N4:N111,\"Yes\")","v":0},{"$f":"COUNTIF(P4:P111,\"Yes\")","v":0},{"$f":"COUNTIF(Q4:Q111,\"Yes\")","v":0},null,{"$f":"SUM(S4:S111)","v":0},{"$f":"SUM(T4:T111)","v":0}]
[]
[]
[]
[]
[]
[]
["Type of Stay Breakdown"]
["Short Stay",{"$f":"COUNTIF(D4:D111,\"Short Term\")","v":0}]
["Long Stay",{"$f":"COUNTIF(D4:D111,\"Long Term\")","v":0}]
["Total",{"$f":"B120+B121","v":0}]
[]
[]
[]
["Dose Schedule","Total","Short Stay","Long Stay"]
["Scheduled",{"$f":"COUNTIFS(H4:H111,\"Scheduled\")","v":0},{"$f":"COUNTIFS(H4:H111,\"Scheduled\",D4:D111,\"Short Term\")","v":0},{"$f":"COUNTIFS(H4:H111,\"Scheduled\",D4:D111,\"Long Term\")","v":0}]
["PRN",{"$f":"COUNTIFS(H4:H111,\"PRN\")","v":0},{"$f":"COUNTIFS(H4:H111,\"PRN\",D4:D111,\"Short Term\")","v":0},{"$f":"COUNTIFS(H4:H111,\"PRN\",D4:D111,\"Long Term\")","v":0}]
["Both",{"$f":"COUNTIFS(H4:H111,\"Both\")","v":0},{"$f":"COUNTIFS(H4:H111,\"Both\",D4:D111,\"Short Term\")","v":0},{"$f":"COUNTIFS(H4:H111,\"Both\",D4:D111,\"Long Term\")","v":0}]
["Total",{"$f":"SUM(B127:B129)","v":0},{"$f":"SUM(C127:C129)","v":0},0]
["% on a scheduled dose",{"$f":"IFERROR(((B127/$B$130)*100), \"---\")","v":"---"},{"$f":"IFERROR(((C127/C130)*100), \"---\")","v":"---"},{"$f":"IFERROR(((D127/D130)*100), \"---\")","v":"---"}]
["% on a PRN dose",{"$f":"IFERROR(((B128/$B$130)*100), \"---\")","v":"---"},{"$f":"IFERROR(((C128/$C$130)*100), \"---\")","v":"---"},{"$f":"IFERROR(((D128/$D$130)*100), \"---\")","v":"---"}]
["% on both sched & PRN","---",{"$f":"IFERROR(((C129/C130)*100),\"---\")","v":"---"},{"$f":"IFERROR(((D129/D130)*100), \"---\")","v":"---"}]
[]
[]
[]
["Where Medication Started","Total","Short Stay","Long Stay"]
["SNF",{"$f":"COUNTIFS(J4:J111,\"SNF\")","v":0},{"$f":"COUNTIFS(J4:J111,\"SNF\",D4:D111,\"Short Term\")","v":0},{"$f":"COUNTIFS(J4:J111,\"SNF\",D4:D111,\"Long Term\")","v":0}]
["Hospital",{"$f":"COUNTIFS(J4:J111,\"Hospital\")","v":0},{"$f":"COUNTIFS(J4:J111,\"Hospital\",D4:D111,\"Short Term\")","v":0},{"$f":"COUNTIFS(J4:J111,\"Hospital\",D4:D111,\"Long Term\")","v":0}]
["Outpatient",{"$f":"COUNTIFS(J4:J111,\"Outpatient\")","v":0},{"$f":"COUNTIFS(J4:J111,\"Outpatient\",D4:D111,\"Short Term\")","v":0},{"$f":"COUNTIFS(J4:J111,\"Outpatient\",D4:D111,\"Long Term\")","v":0}]
["Total",{"$f":"SUM(B138:B140)","v":0},{"$f":"SUM(C138:C140)","v":0},0]
["% started in SNF",{"$f":"IFERROR(((B138/B141)*100), \"---\")","v":"---"},{"$f":"IFERROR(((C138/C141)*100), \"---\")","v":"---"},{"$f":"IFERROR(((D138/D141)*100), \"---\")","v":"---"}]
["% started in hospital",{"$f":"IFERROR(((B139/B141)*100), \"---\")","v":"---"},{"$f":"IFERROR(((C139/C141)*100), \"---\")","v":"---"},{"$f":"IFERROR(((D139/D141)*100), \"---\")","v":"---"}]
["% started in outpatient",{"$f":"IFERROR(((B140/B141)*100), \"---\")","v":"---"},{"$f":"IFERROR(((C140/C141)*100), \"---\")","v":"---"},{"$f":"IFERROR(((D140/D141)*100), \"---\")","v":"---"}]
[]
[]
[]
[]
["Dx appropriate","Total","Short Stay","Long Stay"]
["Yes",{"$f":"COUNTIFS(L4:L111,\"Yes\")","v":0},{"$f":"COUNTIFS(L4:L111,\"Yes\",D4:D111,\"Short Term\")","v":0},{"$f":"COUNTIFS(L4:L111,\"Yes\",D4:D111,\"Long Term\")","v":0}]
["No",{"$f":"COUNTIFS(L4:L111,\"No\")","v":0},{"$f":"COUNTIFS(L4:L111,\"No\",D4:D111,\"Short Term\")","v":0},{"$f":"COUNTIFS(L4:L111,\"No\",D4:D111,\"Long Term\")","v":0}]
["Total",{"$f":"SUM(B150:B151)","v":0},{"$f":"SUM(C150:C151)","v":0},0]
["% with appropriate diagnosis",{"$f":"IFERROR(((B150/B152)*100), \"---\")","v":"---"},{"$f":"IFERROR(((C150/C152)*100), \"---\")","v":"---"},{"$f":"IFERROR(((D150/D152)*100), \"---\")","v":"---"}]
[]
[]
[]
[]
["BPSD documented","Total","Short Stay","Long Stay"]
["Yes",{"$f":"COUNTIFS(N4:N111,\"Yes\")","v":0},{"$f":"COUNTIFS(N4:N111,\"Yes\",D4:D111,\"Short Term\")","v":0},{"$f":"COUNTIFS(N4:N111,\"Yes\",D4:D111,\"Long Term\")","v":0}]
["No",{"$f":"COUNTIFS(N4:N111,\"No\")","v":0},{"$f":"COUNTIFS(N4:N111,\"No\",D4:D111,\"Short Term\")","v":0},{"$f":"COUNTIFS(N4:N111,\"No\",D4:D111,\"Long Term\")","v":0}]
["N/A",{"$f":"COUNTIFS(N4:N111,\"N/A\")","v":0},{"$f":"COUNTIFS(N4:N111,\"N/A\",D4:D111,\"Short Term\")","v":0},{"$f":"COUNTIFS(N4:N111,\"N/A\",D4:D111,\"Long Term\")","v":0}]
["Total",{"$f":"SUM(B159:B161)","v":0},{"$f":"SUM(C159:C161)","v":0},0]
["% needing BPSD documented",{"$f":"IFERROR(((B160/(B159+B160))*100),\"---\")","v":"---"},{"$f":"IFERROR(((C160/(C159+C160))*100), \"---\")","v":"---"},{"$f":"IFERROR(((D160/(D159+D160))*100), \"---\")","v":"---"}]
[]
[]
[]
[]
["Non drug interventions documented","Total","Short Stay","Long Stay"]
["Yes",{"$f":"COUNTIFS(P4:P111,\"Yes\")","v":0},{"$f":"COUNTIFS(P4:P111,\"Yes\",D4:D111,\"Short Term\")","v":0},{"$f":"COUNTIFS(P4:P111,\"Yes\",D4:D111,\"Long Term\")","v":0}]
["No",{"$f":"COUNTIFS(P4:P111,\"No\")","v":0},{"$f":"COUNTIFS(P4:P111,\"No\",D4:D111,\"Short Term\")","v":0},{"$f":"COUNTIFS(P4:P111,\"No\",D4:D111,\"Long Term\")","v":0}]
["N/A",{"$f":"COUNTIFS(P4:P111,\"N/A\")","v":0},{"$f":"COUNTIFS(P4:P111,\"N/A\",D4:D111,\"Short Term\")","v":0},{"$f":"COUNTIFS(P4:P111,\"N/A\",D4:D111,\"Long Term\")","v":0}]
["Total",{"$f":"SUM(B169:B171)","v":0},{"$f":"SUM(C169:C171)","v":0},0]
["% without non drug interventions documented",{"$f":"IFERROR((B170/(B169+B170))*100, \"---\")","v":"---"},{"$f":"IFERROR((C72/(C169+C170)*100), \"---\")","v":"---"},{"$f":"IFERROR((D170/(D169+D170)*100), \"---\")","v":"---"}]
[]
[]
[]
[]
["GDR Outcome","Total","Short Stay","Long Stay"]
["Dose reduced",{"$f":"COUNTIFS(R4:R111,\"Dose reduced\")","v":0},{"$f":"COUNTIFS(R4:R111,\"Dose reduced\",D4:D111,\"Short Term\")","v":0},{"$f":"COUNTIFS(R4:R111,\"Dose reduced\",D4:D111,\"Long Term\")","v":0}]
["Dose discontinued",{"$f":"COUNTIFS(R4:R111,\"Drug discontinued\")","v":0},{"$f":"COUNTIFS(R4:R111,\"Drug discontinued\",D4:D111,\"Short Term\")","v":0},{"$f":"COUNTIFS(R4:R111,\"Drug discontinued\",D4:D111,\"Long Term\")","v":0}]
["Return to previous dose",{"$f":"COUNTIFS(R4:R111,\"Return to previous dose\")","v":0},{"$f":"COUNTIFS(R4:R111,\"Return to previous dose\",D4:D111,\"Short Term\")","v":0},{"$f":"COUNTIFS(R4:R111,\"Return to previous dose\",D4:D111,\"Long Term\")","v":0}]
["Total",{"$f":"SUM(B179:B181)","v":0},{"$f":"SUM(C179:C181)","v":0},0]
["dose reduced or dc'd",{"$f":"B179+B180","v":0},{"$f":"C179+C180","v":0},0]
["% dose reduction",{"$f":"IFERROR((B179/B182)*100, \"---\")","v":"---"},{"$f":"IFERROR((C179/C182)*100, \"---\")","v":"---"},{"$f":"IFERROR((D179/D182)*100, \"---\")","v":"---"}]
["% dose discontinued",{"$f":"IFERROR((B180/B182)*100, \"---\")","v":"---"},{"$f":"IFERROR((C180/C182)*100, \"---\")","v":"---"},{"$f":"IFERROR((D180/D182)*100, \"---\")","v":"---"}]
["% dose reduced or discontinued",{"$f":"IFERROR((B183/B182)*100, \"---\")","v":"---"},{"$f":"IFERROR((C183/C182)*100, \"---\")","v":"---"},{"$f":"IFERROR((D183/D182)*100, \"---\")","v":"---"}]
[]
[]
[]
[]
["GDR needed","Total","Short Stay","Long Stay"]
["Yes",{"$f":"COUNTIFS(S4:S111,\"Yes\")","v":0},{"$f":"COUNTIFS(S4:S111,\"Yes\",D4:D111,\"Short Term\")","v":0},{"$f":"COUNTIFS(S4:S111,\"Yes\",D4:D111,\"Long Term\")","v":0}]
["No",{"$f":"COUNTIFS(S4:S111,\"No\")","v":0},{"$f":"COUNTIFS(S4:S111,\"No\",D4:D111,\"Short Term\")","v":0},{"$f":"COUNTIFS(S4:S111,\"No\",D4:D111,\"Long Term\")","v":0}]
["Total",{"$f":"SUM(B192:B193)","v":0},{"$f":"SUM(C192:C193)","v":0},0]
["% needing GDR",{"$f":"IFERROR((B192/B194)*100, \"---\")","v":"---"},{"$f":"IFERROR((C192/C194)*100, \"---\")","v":"---"},{"$f":"IFERROR((D192/D194)*100, \"---\")","v":"---"}]
[]
[]
[]
[]
["Reason no GDR attempted","Total","Short Stay","Long Stay"]
["N/A",{"$f":"COUNTIFS(T4:T111,\"N/A\")","v":0},{"$f":"COUNTIFS(T4:T111,\"N/A\",D4:D111,\"Short Term\")","v":0},{"$f":"COUNTIFS(T4:T111,\"N/A\",D4:D111,\"Long Term\")","v":0}]
["Resident on lowest possible dose",{"$f":"COUNTIFS(T4:T111,\"Resident on lowest possible dose\")","v":0},{"$f":"COUNTIFS(T4:T111,\"Resident on lowest possible dose\",D4:D111,\"Short Term\")","v":0},{"$f":"COUNTIFS(T4:T111,\"Resident on lowest possible dose\",D4:D111,\"Long Term\")","v":0}]
["Contraindicated per prescriber",{"$f":"COUNTIFS(T4:T111,\"Contraindicated per prescriber\")","v":0},{"$f":"COUNTIFS(T4:T111,\"Contraindicated per prescriber\",D4:D111,\"Short Term\")","v":0},{"$f":"COUNTIFS(T4:T111,\"Contraindicated per prescriber\",D4:D111,\"Long Term\")","v":0}]
["Other",{"$f":"COUNTIFS(T4:T111,\"Other\")","v":0},{"$f":"COUNTIFS(T4:T111,\"Other\",D4:D111,\"Short Term\")","v":0},{"$f":"COUNTIFS(T4:T111,\"Other\",D4:D111,\"Long Term\")","v":0}]
["Total",{"$f":"SUM(B201:B204)","v":0},{"$f":"SUM(C201:C204)","v":0},0]
["% resident on lowest possible dose",{"$f":"IFERROR((B202/B205)*100, \"---\")","v":"---"},{"$f":"IFERROR((C202/C205)*100, \"---\")","v":"---"},{"$f":"IFERROR((D202/D205)*100, \"---\")","v":"---"}]
["% contraindicated per prescriber",{"$f":"IFERROR((B203/B205)*100, \"---\")","v":"---"},{"$f":"IFERROR((C203/C205)*100, \"---\")","v":"---"},{"$f":"IFERROR((D203/D205)*100, \"---\")","v":"---"}]
["% other",{"$f":"IFERROR((B204/B205)*100, \"---\")","v":"---"},{"$f":"IFERROR((C204/C205)*100, \"---\")","v":"---"},{"$f":"IFERROR((D204/D205)*100, \"---\")","v":"---"}]
[]
[]
[]
[]
["Adverse Effects","Total","Short Stay","Long Stay"]
["Yes",{"$f":"COUNTIFS(U4:U111,\"Yes\")","v":0},{"$f":"COUNTIFS(U4:U111,\"Yes\",D4:D111,\"Short Term\")","v":0},{"$f":"COUNTIFS(U4:U111,\"Yes\",D4:D111,\"Long Term\")","v":0}]
["No",{"$f":"COUNTIFS(U4:U111,\"No\")","v":0},{"$f":"COUNTIFS(U4:U111,\"No\",D4:D111,\"Short Term\")","v":0},{"$f":"COUNTIFS(U4:U111,\"No\",D4:D111,\"Long Term\")","v":0}]
["Total",{"$f":"SUM(B214:B215)","v":0},{"$f":"SUM(C214:C215)","v":0},0]
["% with adverse effects",{"$f":"IFERROR((B214/B216)*100, \"---\")","v":"---"},{"$f":"IFERROR((C214/C216)*100, \"---\")","v":"---"},{"$f":"IFERROR((D214/D216)*100, \"---\")","v":"---"}]

{"sheet":"May","index":6,"n_rows":217,"n_cols":54,"rows_kept":217,"cut":false,"hidden":false,"merged":[[0,0,0,2],[0,4,0,5],[1,0,1,4],[1,5,1,21]]}
["End of Month Census :",null,null,null," Current residents on antipsychotics:",null,{"$f":"SUMPRODUCT((A4:A111<>\"\")/COUNTIF(A4:A111,A4:A111&\"\"))","v":0},"Percentage of residents on antipsychotic:",{"$f":"IFERROR((G1/D1)*100, \"---\")","v":"---"}]
["Resident Information",null,null,null,null,"Antipsychotic Medication Information"]
["Room #","Last Name","First Name","Type of Stay","Notes (New Admit, etc)","Antipsychotic Drug Prescribed","Prescriber","Dose Schedule","Date Started","Where was medication started?","Diagnosis associated with antipsychotic","Is Dx Appropriate? (See directions)","List BPSD","Appropriate BPSD documented?","List Non Drug Interventions tried","Non Drug Intv documented?","Date of most recent GDR","Outcome of GDR","GDR Needed?","Reasons for no GDR being attempted","Has resident experienced adverse drug effects?","If yes, describe adverse effects"]
[]
[]
[]
[]
[]
[]
[]
[]
[]
[]
[null,null,null,null,null,null,null,null,null,null,null,null,null,null,null,null,null,null,null,null,null,null,null,null,null,null,null,null,null,null,null,null,null,null,null,null,null,null,null,null,null,null,null,null,null,null,null,null,null,null,null,null,null,{"$f":"CONCATENATE(C14,B14)","v":""}]
[null,null,null,null,null,null,null,null,null,null,null,null,null,null,null,null,null,null,null,null,null,null,null,null,null,null,null,null,null,null,null,null,null,null,null,null,null,null,null,null,null,null,null,null,null,null,null,null,null,null,null,null,null,""]
[null,null,null,null,null,null,null,null,null,null,null,null,null,null,null,null,null,null,null,null,null,null,null,null,null,null,null,null,null,null,null,null,null,null,null,null,null,null,null,null,null,null,null,null,null,null,null,null,null,null,null,null,null,""]
[null,null,null,null,null,null,null,null,null,null,null,null,null,null,null,null,null,null,null,null,null,null,null,null,null,null,null,null,null,null,null,null,null,null,null,null,null,null,null,null,null,null,null,null,null,null,null,null,null,null,null,null,null,""]
[null,null,null,null,null,null,null,null,null,null,null,null,null,null,null,null,null,null,null,null,null,null,null,null,null,null,null,null,null,null,null,null,null,null,null,null,null,null,null,null,null,null,null,null,null,null,null,null,null,null,null,null,null,""]
[null,null,null,null,null,null,null,null,null,null,null,null,null,null,null,null,null,null,null,null,null,null,null,null,null,null,null,null,null,null,null,null,null,null,null,null,null,null,null,null,null,null,null,null,null,null,null,null,null,null,null,null,null,""]
[null,null,null,null,null,null,null,null,null,null,null,null,null,null,null,null,null,null,null,null,null,null,null,null,null,null,null,null,null,null,null,null,null,null,null,null,null,null,null,null,null,null,null,null,null,null,null,null,null,null,null,null,null,""]
[null,null,null,null,null,null,null,null,null,null,null,null,null,null,null,null,null,null,null,null,null,null,null,null,null,null,null,null,null,null,null,null,null,null,null,null,null,null,null,null,null,null,null,null,null,null,null,null,null,null,null,null,null,""]
[null,null,null,null,null,null,null,null,null,null,null,null,null,null,null,null,null,null,null,null,null,null,null,null,null,null,null,null,null,null,null,null,null,null,null,null,null,null,null,null,null,null,null,null,null,null,null,null,null,null,null,null,null,""]
[null,null,null,null,null,null,null,null,null,null,null,null,null,null,null,null,null,null,null,null,null,null,null,null,null,null,null,null,null,null,null,null,null,null,null,null,null,null,null,null,null,null,null,null,null,null,null,null,null,null,null,null,null,""]
[null,null,null,null,null,null,null,null,null,null,null,null,null,null,null,null,null,null,null,null,null,null,null,null,null,null,null,null,null,null,null,null,null,null,null,null,null,null,null,null,null,null,null,null,null,null,null,null,null,null,null,null,null,""]
[null,null,null,null,null,null,null,null,null,null,null,null,null,null,null,null,null,null,null,null,null,null,null,null,null,null,null,null,null,null,null,null,null,null,null,null,null,null,null,null,null,null,null,null,null,null,null,null,null,null,null,null,null,""]
[null,null,null,null,null,null,null,null,null,null,null,null,null,null,null,null,null,null,null,null,null,null,null,null,null,null,null,null,null,null,null,null,null,null,null,null,null,null,null,null,null,null,null,null,null,null,null,null,null,null,null,null,null,""]
[null,null,null,null,null,null,null,null,null,null,null,null,null,null,null,null,null,null,null,null,null,null,null,null,null,null,null,null,null,null,null,null,null,null,null,null,null,null,null,null,null,null,null,null,null,null,null,null,null,null,null,null,null,""]
[null,null,null,null,null,null,null,null,null,null,null,null,null,null,null,null,null,null,null,null,null,null,null,null,null,null,null,null,null,null,null,null,null,null,null,null,null,null,null,null,null,null,null,null,null,null,null,null,null,null,null,null,null,""]
[null,null,null,null,null,null,null,null,null,null,null,null,null,null,null,null,null,null,null,null,null,null,null,null,null,null,null,null,null,null,null,null,null,null,null,null,null,null,null,null,null,null,null,null,null,null,null,null,null,null,null,null,null,""]
[null,null,null,null,null,null,null,null,null,null,null,null,null,null,null,null,null,null,null,null,null,null,null,null,null,null,null,null,null,null,null,null,null,null,null,null,null,null,null,null,null,null,null,null,null,null,null,null,null,null,null,null,null,""]
[null,null,null,null,null,null,null,null,null,null,null,null,null,null,null,null,null,null,null,null,null,null,null,null,null,null,null,null,null,null,null,null,null,null,null,null,null,null,null,null,null,null,null,null,null,null,null,null,null,null,null,null,null,""]
[null,null,null,null,null,null,null,null,null,null,null,null,null,null,null,null,null,null,null,null,null,null,null,null,null,null,null,null,null,null,null,null,null,null,null,null,null,null,null,null,null,null,null,null,null,null,null,null,null,null,null,null,null,""]
[null,null,null,null,null,null,null,null,null,null,null,null,null,null,null,null,null,null,null,null,null,null,null,null,null,null,null,null,null,null,null,null,null,null,null,null,null,null,null,null,null,null,null,null,null,null,null,null,null,null,null,null,null,""]
[null,null,null,null,null,null,null,null,null,null,null,null,null,null,null,null,null,null,null,null,null,null,null,null,null,null,null,null,null,null,null,null,null,null,null,null,null,null,null,null,null,null,null,null,null,null,null,null,null,null,null,null,null,""]
[null,null,null,null,null,null,null,null,null,null,null,null,null,null,null,null,null,null,null,null,null,null,null,null,null,null,null,null,null,null,null,null,null,null,null,null,null,null,null,null,null,null,null,null,null,null,null,null,null,null,null,null,null,""]
[null,null,null,null,null,null,null,null,null,null,null,null,null,null,null,null,null,null,null,null,null,null,null,null,null,null,null,null,null,null,null,null,null,null,null,null,null,null,null,null,null,null,null,null,null,null,null,null,null,null,null,null,null,""]
[null,null,null,null,null,null,null,null,null,null,null,null,null,null,null,null,null,null,null,null,null,null,null,null,null,null,null,null,null,null,null,null,null,null,null,null,null,null,null,null,null,null,null,null,null,null,null,null,null,null,null,null,null,""]
[null,null,null,null,null,null,null,null,null,null,null,null,null,null,null,null,null,null,null,null,null,null,null,null,null,null,null,null,null,null,null,null,null,null,null,null,null,null,null,null,null,null,null,null,null,null,null,null,null,null,null,null,null,""]
[null,null,null,null,null,null,null,null,null,null,null,null,null,null,null,null,null,null,null,null,null,null,null,null,null,null,null,null,null,null,null,null,null,null,null,null,null,null,null,null,null,null,null,null,null,null,null,null,null,null,null,null,null,""]
[null,null,null,null,null,null,null,null,null,null,null,null,null,null,null,null,null,null,null,null,null,null,null,null,null,null,null,null,null,null,null,null,null,null,null,null,null,null,null,null,null,null,null,null,null,null,null,null,null,null,null,null,null,""]
[null,null,null,null,null,null,null,null,null,null,null,null,null,null,null,null,null,null,null,null,null,null,null,null,null,null,null,null,null,null,null,null,null,null,null,null,null,null,null,null,null,null,null,null,null,null,null,null,null,null,null,null,null,""]
[null,null,null,null,null,null,null,null,null,null,null,null,null,null,null,null,null,null,null,null,null,null,null,null,null,null,null,null,null,null,null,null,null,null,null,null,null,null,null,null,null,null,null,null,null,null,null,null,null,null,null,null,null,""]
[null,null,null,null,null,null,null,null,null,null,null,null,null,null,null,null,null,null,null,null,null,null,null,null,null,null,null,null,null,null,null,null,null,null,null,null,null,null,null,null,null,null,null,null,null,null,null,null,null,null,null,null,null,""]
[null,null,null,null,null,null,null,null,null,null,null,null,null,null,null,null,null,null,null,null,null,null,null,null,null,null,null,null,null,null,null,null,null,null,null,null,null,null,null,null,null,null,null,null,null,null,null,null,null,null,null,null,null,""]
[null,null,null,null,null,null,null,null,null,null,null,null,null,null,null,null,null,null,null,null,null,null,null,null,null,null,null,null,null,null,null,null,null,null,null,null,null,null,null,null,null,null,null,null,null,null,null,null,null,null,null,null,null,""]
[null,null,null,null,null,null,null,null,null,null,null,null,null,null,null,null,null,null,null,null,null,null,null,null,null,null,null,null,null,null,null,null,null,null,null,null,null,null,null,null,null,null,null,null,null,null,null,null,null,null,null,null,null,""]
[null,null,null,null,null,null,null,null,null,null,null,null,null,null,null,null,null,null,null,null,null,null,null,null,null,null,null,null,null,null,null,null,null,null,null,null,null,null,null,null,null,null,null,null,null,null,null,null,null,null,null,null,null,""]
[null,null,null,null,null,null,null,null,null,null,null,null,null,null,null,null,null,null,null,null,null,null,null,null,null,null,null,null,null,null,null,null,null,null,null,null,null,null,null,null,null,null,null,null,null,null,null,null,null,null,null,null,null,""]
[null,null,null,null,null,null,null,null,null,null,null,null,null,null,null,null,null,null,null,null,null,null,null,null,null,null,null,null,null,null,null,null,null,null,null,null,null,null,null,null,null,null,null,null,null,null,null,null,null,null,null,null,null,""]
[null,null,null,null,null,null,null,null,null,null,null,null,null,null,null,null,null,null,null,null,null,null,null,null,null,null,null,null,null,null,null,null,null,null,null,null,null,null,null,null,null,null,null,null,null,null,null,null,null,null,null,null,null,""]
[null,null,null,null,null,null,null,null,null,null,null,null,null,null,null,null,null,null,null,null,null,null,null,null,null,null,null,null,null,null,null,null,null,null,null,null,null,null,null,null,null,null,null,null,null,null,null,null,null,null,null,null,null,""]
[null,null,null,null,null,null,null,null,null,null,null,null,null,null,null,null,null,null,null,null,null,null,null,null,null,null,null,null,null,null,null,null,null,null,null,null,null,null,null,null,null,null,null,null,null,null,null,null,null,null,null,null,null,""]
[null,null,null,null,null,null,null,null,null,null,null,null,null,null,null,null,null,null,null,null,null,null,null,null,null,null,null,null,null,null,null,null,null,null,null,null,null,null,null,null,null,null,null,null,null,null,null,null,null,null,null,null,null,""]
[null,null,null,null,null,null,null,null,null,null,null,null,null,null,null,null,null,null,null,null,null,null,null,null,null,null,null,null,null,null,null,null,null,null,null,null,null,null,null,null,null,null,null,null,null,null,null,null,null,null,null,null,null,""]
[null,null,null,null,null,null,null,null,null,null,null,null,null,null,null,null,null,null,null,null,null,null,null,null,null,null,null,null,null,null,null,null,null,null,null,null,null,null,null,null,null,null,null,null,null,null,null,null,null,null,null,null,null,""]
[null,null,null,null,null,null,null,null,null,null,null,null,null,null,null,null,null,null,null,null,null,null,null,null,null,null,null,null,null,null,null,null,null,null,null,null,null,null,null,null,null,null,null,null,null,null,null,null,null,null,null,null,null,""]
[null,null,null,null,null,null,null,null,null,null,null,null,null,null,null,null,null,null,null,null,null,null,null,null,null,null,null,null,null,null,null,null,null,null,null,null,null,null,null,null,null,null,null,null,null,null,null,null,null,null,null,null,null,""]
[null,null,null,null,null,null,null,null,null,null,null,null,null,null,null,null,null,null,null,null,null,null,null,null,null,null,null,null,null,null,null,null,null,null,null,null,null,null,null,null,null,null,null,null,null,null,null,null,null,null,null,null,null,""]
[null,null,null,null,null,null,null,null,null,null,null,null,null,null,null,null,null,null,null,null,null,null,null,null,null,null,null,null,null,null,null,null,null,null,null,null,null,null,null,null,null,null,null,null,null,null,null,null,null,null,null,null,null,""]
[null,null,null,null,null,null,null,null,null,null,null,null,null,null,null,null,null,null,null,null,null,null,null,null,null,null,null,null,null,null,null,null,null,null,null,null,null,null,null,null,null,null,null,null,null,null,null,null,null,null,null,null,null,""]
[null,null,null,null,null,null,null,null,null,null,null,null,null,null,null,null,null,null,null,null,null,null,null,null,null,null,null,null,null,null,null,null,null,null,null,null,null,null,null,null,null,null,null,null,null,null,null,null,null,null,null,null,null,""]
[null,null,null,null,null,null,null,null,null,null,null,null,null,null,null,null,null,null,null,null,null,null,null,null,null,null,null,null,null,null,null,null,null,null,null,null,null,null,null,null,null,null,null,null,null,null,null,null,null,null,null,null,null,""]
[null,null,null,null,null,null,null,null,null,null,null,null,null,null,null,null,null,null,null,null,null,null,null,null,null,null,null,null,null,null,null,null,null,null,null,null,null,null,null,null,null,null,null,null,null,null,null,null,null,null,null,null,null,""]
[null,null,null,null,null,null,null,null,null,null,null,null,null,null,null,null,null,null,null,null,null,null,null,null,null,null,null,null,null,null,null,null,null,null,null,null,null,null,null,null,null,null,null,null,null,null,null,null,null,null,null,null,null,""]
[null,null,null,null,null,null,null,null,null,null,null,null,null,null,null,null,null,null,null,null,null,null,null,null,null,null,null,null,null,null,null,null,null,null,null,null,null,null,null,null,null,null,null,null,null,null,null,null,null,null,null,null,null,""]
[null,null,null,null,null,null,null,null,null,null,null,null,null,null,null,null,null,null,null,null,null,null,null,null,null,null,null,null,null,null,null,null,null,null,null,null,null,null,null,null,null,null,null,null,null,null,null,null,null,null,null,null,null,""]
[null,null,null,null,null,null,null,null,null,null,null,null,null,null,null,null,null,null,null,null,null,null,null,null,null,null,null,null,null,null,null,null,null,null,null,null,null,null,null,null,null,null,null,null,null,null,null,null,null,null,null,null,null,""]
[null,null,null,null,null,null,null,null,null,null,null,null,null,null,null,null,null,null,null,null,null,null,null,null,null,null,null,null,null,null,null,null,null,null,null,null,null,null,null,null,null,null,null,null,null,null,null,null,null,null,null,null,null,""]
[null,null,null,null,null,null,null,null,null,null,null,null,null,null,null,null,null,null,null,null,null,null,null,null,null,null,null,null,null,null,null,null,null,null,null,null,null,null,null,null,null,null,null,null,null,null,null,null,null,null,null,null,null,""]
[null,null,null,null,null,null,null,null,null,null,null,null,null,null,null,null,null,null,null,null,null,null,null,null,null,null,null,null,null,null,null,null,null,null,null,null,null,null,null,null,null,null,null,null,null,null,null,null,null,null,null,null,null,""]
[null,null,null,null,null,null,null,null,null,null,null,null,null,null,null,null,null,null,null,null,null,null,null,null,null,null,null,null,null,null,null,null,null,null,null,null,null,null,null,null,null,null,null,null,null,null,null,null,null,null,null,null,null,""]
[null,null,null,null,null,null,null,null,null,null,null,null,null,null,null,null,null,null,null,null,null,null,null,null,null,null,null,null,null,null,null,null,null,null,null,null,null,null,null,null,null,null,null,null,null,null,null,null,null,null,null,null,null,""]
[null,null,null,null,null,null,null,null,null,null,null,null,null,null,null,null,null,null,null,null,null,null,null,null,null,null,null,null,null,null,null,null,null,null,null,null,null,null,null,null,null,null,null,null,null,null,null,null,null,null,null,null,null,""]
[null,null,null,null,null,null,null,null,null,null,null,null,null,null,null,null,null,null,null,null,null,null,null,null,null,null,null,null,null,null,null,null,null,null,null,null,null,null,null,null,null,null,null,null,null,null,null,null,null,null,null,null,null,""]
[null,null,null,null,null,null,null,null,null,null,null,null,null,null,null,null,null,null,null,null,null,null,null,null,null,null,null,null,null,null,null,null,null,null,null,null,null,null,null,null,null,null,null,null,null,null,null,null,null,null,null,null,null,""]
[null,null,null,null,null,null,null,null,null,null,null,null,null,null,null,null,null,null,null,null,null,null,null,null,null,null,null,null,null,null,null,null,null,null,null,null,null,null,null,null,null,null,null,null,null,null,null,null,null,null,null,null,null,""]
[null,null,null,null,null,null,null,null,null,null,null,null,null,null,null,null,null,null,null,null,null,null,null,null,null,null,null,null,null,null,null,null,null,null,null,null,null,null,null,null,null,null,null,null,null,null,null,null,null,null,null,null,null,""]
[null,null,null,null,null,null,null,null,null,null,null,null,null,null,null,null,null,null,null,null,null,null,null,null,null,null,null,null,null,null,null,null,null,null,null,null,null,null,null,null,null,null,null,null,null,null,null,null,null,null,null,null,null,{"$f":"CONCATENATE(C78,B78)","v":""}]
[null,null,null,null,null,null,null,null,null,null,null,null,null,null,null,null,null,null,null,null,null,null,null,null,null,null,null,null,null,null,null,null,null,null,null,null,null,null,null,null,null,null,null,null,null,null,null,null,null,null,null,null,null,""]
[null,null,null,null,null,null,null,null,null,null,null,null,null,null,null,null,null,null,null,null,null,null,null,null,null,null,null,null,null,null,null,null,null,null,null,null,null,null,null,null,null,null,null,null,null,null,null,null,null,null,null,null,null,""]
[null,null,null,null,null,null,null,null,null,null,null,null,null,null,null,null,null,null,null,null,null,null,null,null,null,null,null,null,null,null,null,null,null,null,null,null,null,null,null,null,null,null,null,null,null,null,null,null,null,null,null,null,null,""]
[null,null,null,null,null,null,null,null,null,null,null,null,null,null,null,null,null,null,null,null,null,null,null,null,null,null,null,null,null,null,null,null,null,null,null,null,null,null,null,null,null,null,null,null,null,null,null,null,null,null,null,null,null,""]
[null,null,null,null,null,null,null,null,null,null,null,null,null,null,null,null,null,null,null,null,null,null,null,null,null,null,null,null,null,null,null,null,null,null,null,null,null,null,null,null,null,null,null,null,null,null,null,null,null,null,null,null,null,""]
[null,null,null,null,null,null,null,null,null,null,null,null,null,null,null,null,null,null,null,null,null,null,null,null,null,null,null,null,null,null,null,null,null,null,null,null,null,null,null,null,null,null,null,null,null,null,null,null,null,null,null,null,null,""]
[null,null,null,null,null,null,null,null,null,null,null,null,null,null,null,null,null,null,null,null,null,null,null,null,null,null,null,null,null,null,null,null,null,null,null,null,null,null,null,null,null,null,null,null,null,null,null,null,null,null,null,null,null,""]
[null,null,null,null,null,null,null,null,null,null,null,null,null,null,null,null,null,null,null,null,null,null,null,null,null,null,null,null,null,null,null,null,null,null,null,null,null,null,null,null,null,null,null,null,null,null,null,null,null,null,null,null,null,""]
[null,null,null,null,null,null,null,null,null,null,null,null,null,null,null,null,null,null,null,null,null,null,null,null,null,null,null,null,null,null,null,null,null,null,null,null,null,null,null,null,null,null,null,null,null,null,null,null,null,null,null,null,null,""]
[null,null,null,null,null,null,null,null,null,null,null,null,null,null,null,null,null,null,null,null,null,null,null,null,null,null,null,null,null,null,null,null,null,null,null,null,null,null,null,null,null,null,null,null,null,null,null,null,null,null,null,null,null,""]
[null,null,null,null,null,null,null,null,null,null,null,null,null,null,null,null,null,null,null,null,null,null,null,null,null,null,null,null,null,null,null,null,null,null,null,null,null,null,null,null,null,null,null,null,null,null,null,null,null,null,null,null,null,""]
[null,null,null,null,null,null,null,null,null,null,null,null,null,null,null,null,null,null,null,null,null,null,null,null,null,null,null,null,null,null,null,null,null,null,null,null,null,null,null,null,null,null,null,null,null,null,null,null,null,null,null,null,null,""]
[null,null,null,null,null,null,null,null,null,null,null,null,null,null,null,null,null,null,null,null,null,null,null,null,null,null,null,null,null,null,null,null,null,null,null,null,null,null,null,null,null,null,null,null,null,null,null,null,null,null,null,null,null,""]
[null,null,null,null,null,null,null,null,null,null,null,null,null,null,null,null,null,null,null,null,null,null,null,null,null,null,null,null,null,null,null,null,null,null,null,null,null,null,null,null,null,null,null,null,null,null,null,null,null,null,null,null,null,""]
[null,null,null,null,null,null,null,null,null,null,null,null,null,null,null,null,null,null,null,null,null,null,null,null,null,null,null,null,null,null,null,null,null,null,null,null,null,null,null,null,null,null,null,null,null,null,null,null,null,null,null,null,null,""]
[null,null,null,null,null,null,null,null,null,null,null,null,null,null,null,null,null,null,null,null,null,null,null,null,null,null,null,null,null,null,null,null,null,null,null,null,null,null,null,null,null,null,null,null,null,null,null,null,null,null,null,null,null,""]
[null,null,null,null,null,null,null,null,null,null,null,null,null,null,null,null,null,null,null,null,null,null,null,null,null,null,null,null,null,null,null,null,null,null,null,null,null,null,null,null,null,null,null,null,null,null,null,null,null,null,null,null,null,""]
[null,null,null,null,null,null,null,null,null,null,null,null,null,null,null,null,null,null,null,null,null,null,null,null,null,null,null,null,null,null,null,null,null,null,null,null,null,null,null,null,null,null,null,null,null,null,null,null,null,null,null,null,null,""]
[null,null,null,null,null,null,null,null,null,null,null,null,null,null,null,null,null,null,null,null,null,null,null,null,null,null,null,null,null,null,null,null,null,null,null,null,null,null,null,null,null,null,null,null,null,null,null,null,null,null,null,null,null,""]
[null,null,null,null,null,null,null,null,null,null,null,null,null,null,null,null,null,null,null,null,null,null,null,null,null,null,null,null,null,null,null,null,null,null,null,null,null,null,null,null,null,null,null,null,null,null,null,null,null,null,null,null,null,""]
[null,null,null,null,null,null,null,null,null,null,null,null,null,null,null,null,null,null,null,null,null,null,null,null,null,null,null,null,null,null,null,null,null,null,null,null,null,null,null,null,null,null,null,null,null,null,null,null,null,null,null,null,null,""]
[null,null,null,null,null,null,null,null,null,null,null,null,null,null,null,null,null,null,null,null,null,null,null,null,null,null,null,null,null,null,null,null,null,null,null,null,null,null,null,null,null,null,null,null,null,null,null,null,null,null,null,null,null,""]
[null,null,null,null,null,null,null,null,null,null,null,null,null,null,null,null,null,null,null,null,null,null,null,null,null,null,null,null,null,null,null,null,null,null,null,null,null,null,null,null,null,null,null,null,null,null,null,null,null,null,null,null,null,""]
[null,null,null,null,null,null,null,null,null,null,null,null,null,null,null,null,null,null,null,null,null,null,null,null,null,null,null,null,null,null,null,null,null,null,null,null,null,null,null,null,null,null,null,null,null,null,null,null,null,null,null,null,null,""]
[null,null,null,null,null,null,null,null,null,null,null,null,null,null,null,null,null,null,null,null,null,null,null,null,null,null,null,null,null,null,null,null,null,null,null,null,null,null,null,null,null,null,null,null,null,null,null,null,null,null,null,null,null,""]
[null,null,null,null,null,null,null,null,null,null,null,null,null,null,null,null,null,null,null,null,null,null,null,null,null,null,null,null,null,null,null,null,null,null,null,null,null,null,null,null,null,null,null,null,null,null,null,null,null,null,null,null,null,""]
[null,null,null,null,null,null,null,null,null,null,null,null,null,null,null,null,null,null,null,null,null,null,null,null,null,null,null,null,null,null,null,null,null,null,null,null,null,null,null,null,null,null,null,null,null,null,null,null,null,null,null,null,null,""]
[null,null,null,null,null,null,null,null,null,null,null,null,null,null,null,null,null,null,null,null,null,null,null,null,null,null,null,null,null,null,null,null,null,null,null,null,null,null,null,null,null,null,null,null,null,null,null,null,null,null,null,null,null,""]
[null,null,null,null,null,null,null,null,null,null,null,null,null,null,null,null,null,null,null,null,null,null,null,null,null,null,null,null,null,null,null,null,null,null,null,null,null,null,null,null,null,null,null,null,null,null,null,null,null,null,null,null,null,""]
[null,null,null,null,null,null,null,null,null,null,null,null,null,null,null,null,null,null,null,null,null,null,null,null,null,null,null,null,null,null,null,null,null,null,null,null,null,null,null,null,null,null,null,null,null,null,null,null,null,null,null,null,null,""]
[null,null,null,null,null,null,null,null,null,null,null,null,null,null,null,null,null,null,null,null,null,null,null,null,null,null,null,null,null,null,null,null,null,null,null,null,null,null,null,null,null,null,null,null,null,null,null,null,null,null,null,null,null,""]
[null,null,null,null,null,null,null,null,null,null,null,null,null,null,null,null,null,null,null,null,null,null,null,null,null,null,null,null,null,null,null,null,null,null,null,null,null,null,null,null,null,null,null,null,null,null,null,null,null,null,null,null,null,""]
[null,null,null,null,null,null,null,null,null,null,null,null,null,null,null,null,null,null,null,null,null,null,null,null,null,null,null,null,null,null,null,null,null,null,null,null,null,null,null,null,null,null,null,null,null,null,null,null,null,null,null,null,null,""]
[null,null,"TOTALS",null,null,null,null,null,null,null,null,{"$f":"COUNTIF(L4:L111,\"Yes\")","v":0},{"$f":"COUNTIF(M4:M111,\"Yes\")","v":0},{"$f":"COUNTIF(N4:N111,\"Yes\")","v":0},{"$f":"COUNTIF(P4:P111,\"Yes\")","v":0},{"$f":"COUNTIF(Q4:Q111,\"Yes\")","v":0},null,{"$f":"SUM(S4:S111)","v":0},{"$f":"SUM(T4:T111)","v":0}]
[]
[]
[]
[]
[]
[]
["Type of Stay Breakdown"]
["Short Stay",{"$f":"COUNTIF(D4:D111,\"Short Term\")","v":0}]
["Long Stay",{"$f":"COUNTIF(D4:D111,\"Long Term\")","v":0}]
["Total",{"$f":"B120+B121","v":0}]
[]
[]
[]
["Dose Schedule","Total","Short Stay","Long Stay"]
["Scheduled",{"$f":"COUNTIFS(H4:H111,\"Scheduled\")","v":0},{"$f":"COUNTIFS(H4:H111,\"Scheduled\",D4:D111,\"Short Term\")","v":0},{"$f":"COUNTIFS(H4:H111,\"Scheduled\",D4:D111,\"Long Term\")","v":0}]
["PRN",{"$f":"COUNTIFS(H4:H111,\"PRN\")","v":0},{"$f":"COUNTIFS(H4:H111,\"PRN\",D4:D111,\"Short Term\")","v":0},{"$f":"COUNTIFS(H4:H111,\"PRN\",D4:D111,\"Long Term\")","v":0}]
["Both",{"$f":"COUNTIFS(H4:H111,\"Both\")","v":0},{"$f":"COUNTIFS(H4:H111,\"Both\",D4:D111,\"Short Term\")","v":0},{"$f":"COUNTIFS(H4:H111,\"Both\",D4:D111,\"Long Term\")","v":0}]
["Total",{"$f":"SUM(B127:B129)","v":0},{"$f":"SUM(C127:C129)","v":0},0]
["% on a scheduled dose",{"$f":"IFERROR(((B127/$B$130)*100), \"---\")","v":"---"},{"$f":"IFERROR(((C127/C130)*100), \"---\")","v":"---"},{"$f":"IFERROR(((D127/D130)*100), \"---\")","v":"---"}]
["% on a PRN dose",{"$f":"IFERROR(((B128/$B$130)*100), \"---\")","v":"---"},{"$f":"IFERROR(((C128/$C$130)*100), \"---\")","v":"---"},{"$f":"IFERROR(((D128/$D$130)*100), \"---\")","v":"---"}]
["% on both sched & PRN","---",{"$f":"IFERROR(((C129/C130)*100),\"---\")","v":"---"},{"$f":"IFERROR(((D129/D130)*100), \"---\")","v":"---"}]
[]
[]
[]
["Where Medication Started","Total","Short Stay","Long Stay"]
["SNF",{"$f":"COUNTIFS(J4:J111,\"SNF\")","v":0},{"$f":"COUNTIFS(J4:J111,\"SNF\",D4:D111,\"Short Term\")","v":0},{"$f":"COUNTIFS(J4:J111,\"SNF\",D4:D111,\"Long Term\")","v":0}]
["Hospital",{"$f":"COUNTIFS(J4:J111,\"Hospital\")","v":0},{"$f":"COUNTIFS(J4:J111,\"Hospital\",D4:D111,\"Short Term\")","v":0},{"$f":"COUNTIFS(J4:J111,\"Hospital\",D4:D111,\"Long Term\")","v":0}]
["Outpatient",{"$f":"COUNTIFS(J4:J111,\"Outpatient\")","v":0},{"$f":"COUNTIFS(J4:J111,\"Outpatient\",D4:D111,\"Short Term\")","v":0},{"$f":"COUNTIFS(J4:J111,\"Outpatient\",D4:D111,\"Long Term\")","v":0}]
["Total",{"$f":"SUM(B138:B140)","v":0},{"$f":"SUM(C138:C140)","v":0},0]
["% started in SNF",{"$f":"IFERROR(((B138/B141)*100), \"---\")","v":"---"},{"$f":"IFERROR(((C138/C141)*100), \"---\")","v":"---"},{"$f":"IFERROR(((D138/D141)*100), \"---\")","v":"---"}]
["% started in hospital",{"$f":"IFERROR(((B139/B141)*100), \"---\")","v":"---"},{"$f":"IFERROR(((C139/C141)*100), \"---\")","v":"---"},{"$f":"IFERROR(((D139/D141)*100), \"---\")","v":"---"}]
["% started in outpatient",{"$f":"IFERROR(((B140/B141)*100), \"---\")","v":"---"},{"$f":"IFERROR(((C140/C141)*100), \"---\")","v":"---"},{"$f":"IFERROR(((D140/D141)*100), \"---\")","v":"---"}]
[]
[]
[]
[]
["Dx appropriate","Total","Short Stay","Long Stay"]
["Yes",{"$f":"COUNTIFS(L4:L111,\"Yes\")","v":0},{"$f":"COUNTIFS(L4:L111,\"Yes\",D4:D111,\"Short Term\")","v":0},{"$f":"COUNTIFS(L4:L111,\"Yes\",D4:D111,\"Long Term\")","v":0}]
["No",{"$f":"COUNTIFS(L4:L111,\"No\")","v":0},{"$f":"COUNTIFS(L4:L111,\"No\",D4:D111,\"Short Term\")","v":0},{"$f":"COUNTIFS(L4:L111,\"No\",D4:D111,\"Long Term\")","v":0}]
["Total",{"$f":"SUM(B150:B151)","v":0},{"$f":"SUM(C150:C151)","v":0},0]
["% with appropriate diagnosis",{"$f":"IFERROR(((B150/B152)*100), \"---\")","v":"---"},{"$f":"IFERROR(((C150/C152)*100), \"---\")","v":"---"},{"$f":"IFERROR(((D150/D152)*100), \"---\")","v":"---"}]
[]
[]
[]
[]
["BPSD documented","Total","Short Stay","Long Stay"]
["Yes",{"$f":"COUNTIFS(N4:N111,\"Yes\")","v":0},{"$f":"COUNTIFS(N4:N111,\"Yes\",D4:D111,\"Short Term\")","v":0},{"$f":"COUNTIFS(N4:N111,\"Yes\",D4:D111,\"Long Term\")","v":0}]
["No",{"$f":"COUNTIFS(N4:N111,\"No\")","v":0},{"$f":"COUNTIFS(N4:N111,\"No\",D4:D111,\"Short Term\")","v":0},{"$f":"COUNTIFS(N4:N111,\"No\",D4:D111,\"Long Term\")","v":0}]
["N/A",{"$f":"COUNTIFS(N4:N111,\"N/A\")","v":0},{"$f":"COUNTIFS(N4:N111,\"N/A\",D4:D111,\"Short Term\")","v":0},{"$f":"COUNTIFS(N4:N111,\"N/A\",D4:D111,\"Long Term\")","v":0}]
["Total",{"$f":"SUM(B159:B161)","v":0},{"$f":"SUM(C159:C161)","v":0},0]
["% needing BPSD documented",{"$f":"IFERROR(((B160/(B159+B160))*100),\"---\")","v":"---"},{"$f":"IFERROR(((C160/(C159+C160))*100), \"---\")","v":"---"},{"$f":"IFERROR(((D160/(D159+D160))*100), \"---\")","v":"---"}]
[]
[]
[]
[]
["Non drug interventions documented","Total","Short Stay","Long Stay"]
["Yes",{"$f":"COUNTIFS(P4:P111,\"Yes\")","v":0},{"$f":"COUNTIFS(P4:P111,\"Yes\",D4:D111,\"Short Term\")","v":0},{"$f":"COUNTIFS(P4:P111,\"Yes\",D4:D111,\"Long Term\")","v":0}]
["No",{"$f":"COUNTIFS(P4:P111,\"No\")","v":0},{"$f":"COUNTIFS(P4:P111,\"No\",D4:D111,\"Short Term\")","v":0},{"$f":"COUNTIFS(P4:P111,\"No\",D4:D111,\"Long Term\")","v":0}]
["N/A",{"$f":"COUNTIFS(P4:P111,\"N/A\")","v":0},{"$f":"COUNTIFS(P4:P111,\"N/A\",D4:D111,\"Short Term\")","v":0},{"$f":"COUNTIFS(P4:P111,\"N/A\",D4:D111,\"Long Term\")","v":0}]
["Total",{"$f":"SUM(B169:B171)","v":0},{"$f":"SUM(C169:C171)","v":0},0]
["% without non drug interventions documented",{"$f":"IFERROR((B170/(B169+B170))*100, \"---\")","v":"---"},{"$f":"IFERROR((C72/(C169+C170)*100), \"---\")","v":"---"},{"$f":"IFERROR((D170/(D169+D170)*100), \"---\")","v":"---"}]
[]
[]
[]
[]
["GDR Outcome","Total","Short Stay","Long Stay"]
["Dose reduced",{"$f":"COUNTIFS(R4:R111,\"Dose reduced\")","v":0},{"$f":"COUNTIFS(R4:R111,\"Dose reduced\",D4:D111,\"Short Term\")","v":0},{"$f":"COUNTIFS(R4:R111,\"Dose reduced\",D4:D111,\"Long Term\")","v":0}]
["Dose discontinued",{"$f":"COUNTIFS(R4:R111,\"Drug discontinued\")","v":0},{"$f":"COUNTIFS(R4:R111,\"Drug discontinued\",D4:D111,\"Short Term\")","v":0},{"$f":"COUNTIFS(R4:R111,\"Drug discontinued\",D4:D111,\"Long Term\")","v":0}]
["Return to previous dose",{"$f":"COUNTIFS(R4:R111,\"Return to previous dose\")","v":0},{"$f":"COUNTIFS(R4:R111,\"Return to previous dose\",D4:D111,\"Short Term\")","v":0},{"$f":"COUNTIFS(R4:R111,\"Return to previous dose\",D4:D111,\"Long Term\")","v":0}]
["Total",{"$f":"SUM(B179:B181)","v":0},{"$f":"SUM(C179:C181)","v":0},0]
["dose reduced or dc'd",{"$f":"B179+B180","v":0},{"$f":"C179+C180","v":0},0]
["% dose reduction",{"$f":"IFERROR((B179/B182)*100, \"---\")","v":"---"},{"$f":"IFERROR((C179/C182)*100, \"---\")","v":"---"},{"$f":"IFERROR((D179/D182)*100, \"---\")","v":"---"}]
["% dose discontinued",{"$f":"IFERROR((B180/B182)*100, \"---\")","v":"---"},{"$f":"IFERROR((C180/C182)*100, \"---\")","v":"---"},{"$f":"IFERROR((D180/D182)*100, \"---\")","v":"---"}]
["% dose reduced or discontinued",{"$f":"IFERROR((B183/B182)*100, \"---\")","v":"---"},{"$f":"IFERROR((C183/C182)*100, \"---\")","v":"---"},{"$f":"IFERROR((D183/D182)*100, \"---\")","v":"---"}]
[]
[]
[]
[]
["GDR needed","Total","Short Stay","Long Stay"]
["Yes",{"$f":"COUNTIFS(S4:S111,\"Yes\")","v":0},{"$f":"COUNTIFS(S4:S111,\"Yes\",D4:D111,\"Short Term\")","v":0},{"$f":"COUNTIFS(S4:S111,\"Yes\",D4:D111,\"Long Term\")","v":0}]
["No",{"$f":"COUNTIFS(S4:S111,\"No\")","v":0},{"$f":"COUNTIFS(S4:S111,\"No\",D4:D111,\"Short Term\")","v":0},{"$f":"COUNTIFS(S4:S111,\"No\",D4:D111,\"Long Term\")","v":0}]
["Total",{"$f":"SUM(B192:B193)","v":0},{"$f":"SUM(C192:C193)","v":0},0]
["% needing GDR",{"$f":"IFERROR((B192/B194)*100, \"---\")","v":"---"},{"$f":"IFERROR((C192/C194)*100, \"---\")","v":"---"},{"$f":"IFERROR((D192/D194)*100, \"---\")","v":"---"}]
[]
[]
[]
[]
["Reason no GDR attempted","Total","Short Stay","Long Stay"]
["N/A",{"$f":"COUNTIFS(T4:T111,\"N/A\")","v":0},{"$f":"COUNTIFS(T4:T111,\"N/A\",D4:D111,\"Short Term\")","v":0},{"$f":"COUNTIFS(T4:T111,\"N/A\",D4:D111,\"Long Term\")","v":0}]
["Resident on lowest possible dose",{"$f":"COUNTIFS(T4:T111,\"Resident on lowest possible dose\")","v":0},{"$f":"COUNTIFS(T4:T111,\"Resident on lowest possible dose\",D4:D111,\"Short Term\")","v":0},{"$f":"COUNTIFS(T4:T111,\"Resident on lowest possible dose\",D4:D111,\"Long Term\")","v":0}]
["Contraindicated per prescriber",{"$f":"COUNTIFS(T4:T111,\"Contraindicated per prescriber\")","v":0},{"$f":"COUNTIFS(T4:T111,\"Contraindicated per prescriber\",D4:D111,\"Short Term\")","v":0},{"$f":"COUNTIFS(T4:T111,\"Contraindicated per prescriber\",D4:D111,\"Long Term\")","v":0}]
["Other",{"$f":"COUNTIFS(T4:T111,\"Other\")","v":0},{"$f":"COUNTIFS(T4:T111,\"Other\",D4:D111,\"Short Term\")","v":0},{"$f":"COUNTIFS(T4:T111,\"Other\",D4:D111,\"Long Term\")","v":0}]
["Total",{"$f":"SUM(B201:B204)","v":0},{"$f":"SUM(C201:C204)","v":0},0]
["% resident on lowest possible dose",{"$f":"IFERROR((B202/B205)*100, \"---\")","v":"---"},{"$f":"IFERROR((C202/C205)*100, \"---\")","v":"---"},{"$f":"IFERROR((D202/D205)*100, \"---\")","v":"---"}]
["% contraindicated per prescriber",{"$f":"IFERROR((B203/B205)*100, \"---\")","v":"---"},{"$f":"IFERROR((C203/C205)*100, \"---\")","v":"---"},{"$f":"IFERROR((D203/D205)*100, \"---\")","v":"---"}]
["% other",{"$f":"IFERROR((B204/B205)*100, \"---\")","v":"---"},{"$f":"IFERROR((C204/C205)*100, \"---\")","v":"---"},{"$f":"IFERROR((D204/D205)*100, \"---\")","v":"---"}]
[]
[]
[]
[]
["Adverse Effects","Total","Short Stay","Long Stay"]
["Yes",{"$f":"COUNTIFS(U4:U111,\"Yes\")","v":0},{"$f":"COUNTIFS(U4:U111,\"Yes\",D4:D111,\"Short Term\")","v":0},{"$f":"COUNTIFS(U4:U111,\"Yes\",D4:D111,\"Long Term\")","v":0}]
["No",{"$f":"COUNTIFS(U4:U111,\"No\")","v":0},{"$f":"COUNTIFS(U4:U111,\"No\",D4:D111,\"Short Term\")","v":0},{"$f":"COUNTIFS(U4:U111,\"No\",D4:D111,\"Long Term\")","v":0}]
["Total",{"$f":"SUM(B214:B215)","v":0},{"$f":"SUM(C214:C215)","v":0},0]
["% with adverse effects",{"$f":"IFERROR((B214/B216)*100, \"---\")","v":"---"},{"$f":"IFERROR((C214/C216)*100, \"---\")","v":"---"},{"$f":"IFERROR((D214/D216)*100, \"---\")","v":"---"}]

{"sheet":"June","index":7,"n_rows":217,"n_cols":54,"rows_kept":217,"cut":false,"hidden":false,"merged":[[0,0,0,2],[0,4,0,5],[1,0,1,4],[1,5,1,21]]}
["End of Month Census :",null,null,null," Current residents on antipsychotics:",null,{"$f":"SUMPRODUCT((A4:A111<>\"\")/COUNTIF(A4:A111,A4:A111&\"\"))","v":0},"Percentage of residents on antipsychotic:",{"$f":"IFERROR((G1/D1)*100, \"---\")","v":"---"}]
["Resident Information",null,null,null,null,"Antipsychotic Medication Information"]
["Room #","Last Name","First Name","Type of Stay","Notes (New Admit, etc)","Antipsychotic Drug Prescribed","Prescriber","Dose Schedule","Date Started","Where was medication started?","Diagnosis associated with antipsychotic","Is Dx Appropriate? (See directions)","List BPSD","Appropriate BPSD documented?","List Non Drug Interventions tried","Non Drug Intv documented?","Date of most recent GDR","Outcome of GDR","GDR Needed?","Reasons for no GDR being attempted","Has resident experienced adverse drug effects?","If yes, describe adverse effects"]
[]
[]
[]
[]
[]
[]
[]
[]
[]
[]
[null,null,null,null,null,null,null,null,null,null,null,null,null,null,null,null,null,null,null,null,null,null,null,null,null,null,null,null,null,null,null,null,null,null,null,null,null,null,null,null,null,null,null,null,null,null,null,null,null,null,null,null,null,{"$f":"CONCATENATE(C14,B14)","v":""}]
[null,null,null,null,null,null,null,null,null,null,null,null,null,null,null,null,null,null,null,null,null,null,null,null,null,null,null,null,null,null,null,null,null,null,null,null,null,null,null,null,null,null,null,null,null,null,null,null,null,null,null,null,null,""]
[null,null,null,null,null,null,null,null,null,null,null,null,null,null,null,null,null,null,null,null,null,null,null,null,null,null,null,null,null,null,null,null,null,null,null,null,null,null,null,null,null,null,null,null,null,null,null,null,null,null,null,null,null,""]
[null,null,null,null,null,null,null,null,null,null,null,null,null,null,null,null,null,null,null,null,null,null,null,null,null,null,null,null,null,null,null,null,null,null,null,null,null,null,null,null,null,null,null,null,null,null,null,null,null,null,null,null,null,""]
[null,null,null,null,null,null,null,null,null,null,null,null,null,null,null,null,null,null,null,null,null,null,null,null,null,null,null,null,null,null,null,null,null,null,null,null,null,null,null,null,null,null,null,null,null,null,null,null,null,null,null,null,null,""]
[null,null,null,null,null,null,null,null,null,null,null,null,null,null,null,null,null,null,null,null,null,null,null,null,null,null,null,null,null,null,null,null,null,null,null,null,null,null,null,null,null,null,null,null,null,null,null,null,null,null,null,null,null,""]
[null,null,null,null,null,null,null,null,null,null,null,null,null,null,null,null,null,null,null,null,null,null,null,null,null,null,null,null,null,null,null,null,null,null,null,null,null,null,null,null,null,null,null,null,null,null,null,null,null,null,null,null,null,""]
[null,null,null,null,null,null,null,null,null,null,null,null,null,null,null,null,null,null,null,null,null,null,null,null,null,null,null,null,null,null,null,null,null,null,null,null,null,null,null,null,null,null,null,null,null,null,null,null,null,null,null,null,null,""]
[null,null,null,null,null,null,null,null,null,null,null,null,null,null,null,null,null,null,null,null,null,null,null,null,null,null,null,null,null,null,null,null,null,null,null,null,null,null,null,null,null,null,null,null,null,null,null,null,null,null,null,null,null,""]
[null,null,null,null,null,null,null,null,null,null,null,null,null,null,null,null,null,null,null,null,null,null,null,null,null,null,null,null,null,null,null,null,null,null,null,null,null,null,null,null,null,null,null,null,null,null,null,null,null,null,null,null,null,""]
[null,null,null,null,null,null,null,null,null,null,null,null,null,null,null,null,null,null,null,null,null,null,null,null,null,null,null,null,null,null,null,null,null,null,null,null,null,null,null,null,null,null,null,null,null,null,null,null,null,null,null,null,null,""]
[null,null,null,null,null,null,null,null,null,null,null,null,null,null,null,null,null,null,null,null,null,null,null,null,null,null,null,null,null,null,null,null,null,null,null,null,null,null,null,null,null,null,null,null,null,null,null,null,null,null,null,null,null,""]
[null,null,null,null,null,null,null,null,null,null,null,null,null,null,null,null,null,null,null,null,null,null,null,null,null,null,null,null,null,null,null,null,null,null,null,null,null,null,null,null,null,null,null,null,null,null,null,null,null,null,null,null,null,""]
[null,null,null,null,null,null,null,null,null,null,null,null,null,null,null,null,null,null,null,null,null,null,null,null,null,null,null,null,null,null,null,null,null,null,null,null,null,null,null,null,null,null,null,null,null,null,null,null,null,null,null,null,null,""]
[null,null,null,null,null,null,null,null,null,null,null,null,null,null,null,null,null,null,null,null,null,null,null,null,null,null,null,null,null,null,null,null,null,null,null,null,null,null,null,null,null,null,null,null,null,null,null,null,null,null,null,null,null,""]
[null,null,null,null,null,null,null,null,null,null,null,null,null,null,null,null,null,null,null,null,null,null,null,null,null,null,null,null,null,null,null,null,null,null,null,null,null,null,null,null,null,null,null,null,null,null,null,null,null,null,null,null,null,""]
[null,null,null,null,null,null,null,null,null,null,null,null,null,null,null,null,null,null,null,null,null,null,null,null,null,null,null,null,null,null,null,null,null,null,null,null,null,null,null,null,null,null,null,null,null,null,null,null,null,null,null,null,null,""]
[null,null,null,null,null,null,null,null,null,null,null,null,null,null,null,null,null,null,null,null,null,null,null,null,null,null,null,null,null,null,null,null,null,null,null,null,null,null,null,null,null,null,null,null,null,null,null,null,null,null,null,null,null,""]
[null,null,null,null,null,null,null,null,null,null,null,null,null,null,null,null,null,null,null,null,null,null,null,null,null,null,null,null,null,null,null,null,null,null,null,null,null,null,null,null,null,null,null,null,null,null,null,null,null,null,null,null,null,""]
[null,null,null,null,null,null,null,null,null,null,null,null,null,null,null,null,null,null,null,null,null,null,null,null,null,null,null,null,null,null,null,null,null,null,null,null,null,null,null,null,null,null,null,null,null,null,null,null,null,null,null,null,null,""]
[null,null,null,null,null,null,null,null,null,null,null,null,null,null,null,null,null,null,null,null,null,null,null,null,null,null,null,null,null,null,null,null,null,null,null,null,null,null,null,null,null,null,null,null,null,null,null,null,null,null,null,null,null,""]
[null,null,null,null,null,null,null,null,null,null,null,null,null,null,null,null,null,null,null,null,null,null,null,null,null,null,null,null,null,null,null,null,null,null,null,null,null,null,null,null,null,null,null,null,null,null,null,null,null,null,null,null,null,""]
[null,null,null,null,null,null,null,null,null,null,null,null,null,null,null,null,null,null,null,null,null,null,null,null,null,null,null,null,null,null,null,null,null,null,null,null,null,null,null,null,null,null,null,null,null,null,null,null,null,null,null,null,null,""]
[null,null,null,null,null,null,null,null,null,null,null,null,null,null,null,null,null,null,null,null,null,null,null,null,null,null,null,null,null,null,null,null,null,null,null,null,null,null,null,null,null,null,null,null,null,null,null,null,null,null,null,null,null,""]
[null,null,null,null,null,null,null,null,null,null,null,null,null,null,null,null,null,null,null,null,null,null,null,null,null,null,null,null,null,null,null,null,null,null,null,null,null,null,null,null,null,null,null,null,null,null,null,null,null,null,null,null,null,""]
[null,null,null,null,null,null,null,null,null,null,null,null,null,null,null,null,null,null,null,null,null,null,null,null,null,null,null,null,null,null,null,null,null,null,null,null,null,null,null,null,null,null,null,null,null,null,null,null,null,null,null,null,null,""]
[null,null,null,null,null,null,null,null,null,null,null,null,null,null,null,null,null,null,null,null,null,null,null,null,null,null,null,null,null,null,null,null,null,null,null,null,null,null,null,null,null,null,null,null,null,null,null,null,null,null,null,null,null,""]
[null,null,null,null,null,null,null,null,null,null,null,null,null,null,null,null,null,null,null,null,null,null,null,null,null,null,null,null,null,null,null,null,null,null,null,null,null,null,null,null,null,null,null,null,null,null,null,null,null,null,null,null,null,""]
[null,null,null,null,null,null,null,null,null,null,null,null,null,null,null,null,null,null,null,null,null,null,null,null,null,null,null,null,null,null,null,null,null,null,null,null,null,null,null,null,null,null,null,null,null,null,null,null,null,null,null,null,null,""]
[null,null,null,null,null,null,null,null,null,null,null,null,null,null,null,null,null,null,null,null,null,null,null,null,null,null,null,null,null,null,null,null,null,null,null,null,null,null,null,null,null,null,null,null,null,null,null,null,null,null,null,null,null,""]
[null,null,null,null,null,null,null,null,null,null,null,null,null,null,null,null,null,null,null,null,null,null,null,null,null,null,null,null,null,null,null,null,null,null,null,null,null,null,null,null,null,null,null,null,null,null,null,null,null,null,null,null,null,""]
[null,null,null,null,null,null,null,null,null,null,null,null,null,null,null,null,null,null,null,null,null,null,null,null,null,null,null,null,null,null,null,null,null,null,null,null,null,null,null,null,null,null,null,null,null,null,null,null,null,null,null,null,null,""]
[null,null,null,null,null,null,null,null,null,null,null,null,null,null,null,null,null,null,null,null,null,null,null,null,null,null,null,null,null,null,null,null,null,null,null,null,null,null,null,null,null,null,null,null,null,null,null,null,null,null,null,null,null,""]
[null,null,null,null,null,null,null,null,null,null,null,null,null,null,null,null,null,null,null,null,null,null,null,null,null,null,null,null,null,null,null,null,null,null,null,null,null,null,null,null,null,null,null,null,null,null,null,null,null,null,null,null,null,""]
[null,null,null,null,null,null,null,null,null,null,null,null,null,null,null,null,null,null,null,null,null,null,null,null,null,null,null,null,null,null,null,null,null,null,null,null,null,null,null,null,null,null,null,null,null,null,null,null,null,null,null,null,null,""]
[null,null,null,null,null,null,null,null,null,null,null,null,null,null,null,null,null,null,null,null,null,null,null,null,null,null,null,null,null,null,null,null,null,null,null,null,null,null,null,null,null,null,null,null,null,null,null,null,null,null,null,null,null,""]
[null,null,null,null,null,null,null,null,null,null,null,null,null,null,null,null,null,null,null,null,null,null,null,null,null,null,null,null,null,null,null,null,null,null,null,null,null,null,null,null,null,null,null,null,null,null,null,null,null,null,null,null,null,""]
[null,null,null,null,null,null,null,null,null,null,null,null,null,null,null,null,null,null,null,null,null,null,null,null,null,null,null,null,null,null,null,null,null,null,null,null,null,null,null,null,null,null,null,null,null,null,null,null,null,null,null,null,null,""]
[null,null,null,null,null,null,null,null,null,null,null,null,null,null,null,null,null,null,null,null,null,null,null,null,null,null,null,null,null,null,null,null,null,null,null,null,null,null,null,null,null,null,null,null,null,null,null,null,null,null,null,null,null,""]
[null,null,null,null,null,null,null,null,null,null,null,null,null,null,null,null,null,null,null,null,null,null,null,null,null,null,null,null,null,null,null,null,null,null,null,null,null,null,null,null,null,null,null,null,null,null,null,null,null,null,null,null,null,""]
[null,null,null,null,null,null,null,null,null,null,null,null,null,null,null,null,null,null,null,null,null,null,null,null,null,null,null,null,null,null,null,null,null,null,null,null,null,null,null,null,null,null,null,null,null,null,null,null,null,null,null,null,null,""]
[null,null,null,null,null,null,null,null,null,null,null,null,null,null,null,null,null,null,null,null,null,null,null,null,null,null,null,null,null,null,null,null,null,null,null,null,null,null,null,null,null,null,null,null,null,null,null,null,null,null,null,null,null,""]
[null,null,null,null,null,null,null,null,null,null,null,null,null,null,null,null,null,null,null,null,null,null,null,null,null,null,null,null,null,null,null,null,null,null,null,null,null,null,null,null,null,null,null,null,null,null,null,null,null,null,null,null,null,""]
[null,null,null,null,null,null,null,null,null,null,null,null,null,null,null,null,null,null,null,null,null,null,null,null,null,null,null,null,null,null,null,null,null,null,null,null,null,null,null,null,null,null,null,null,null,null,null,null,null,null,null,null,null,""]
[null,null,null,null,null,null,null,null,null,null,null,null,null,null,null,null,null,null,null,null,null,null,null,null,null,null,null,null,null,null,null,null,null,null,null,null,null,null,null,null,null,null,null,null,null,null,null,null,null,null,null,null,null,""]
[null,null,null,null,null,null,null,null,null,null,null,null,null,null,null,null,null,null,null,null,null,null,null,null,null,null,null,null,null,null,null,null,null,null,null,null,null,null,null,null,null,null,null,null,null,null,null,null,null,null,null,null,null,""]
[null,null,null,null,null,null,null,null,null,null,null,null,null,null,null,null,null,null,null,null,null,null,null,null,null,null,null,null,null,null,null,null,null,null,null,null,null,null,null,null,null,null,null,null,null,null,null,null,null,null,null,null,null,""]
[null,null,null,null,null,null,null,null,null,null,null,null,null,null,null,null,null,null,null,null,null,null,null,null,null,null,null,null,null,null,null,null,null,null,null,null,null,null,null,null,null,null,null,null,null,null,null,null,null,null,null,null,null,""]
[null,null,null,null,null,null,null,null,null,null,null,null,null,null,null,null,null,null,null,null,null,null,null,null,null,null,null,null,null,null,null,null,null,null,null,null,null,null,null,null,null,null,null,null,null,null,null,null,null,null,null,null,null,""]
[null,null,null,null,null,null,null,null,null,null,null,null,null,null,null,null,null,null,null,null,null,null,null,null,null,null,null,null,null,null,null,null,null,null,null,null,null,null,null,null,null,null,null,null,null,null,null,null,null,null,null,null,null,""]
[null,null,null,null,null,null,null,null,null,null,null,null,null,null,null,null,null,null,null,null,null,null,null,null,null,null,null,null,null,null,null,null,null,null,null,null,null,null,null,null,null,null,null,null,null,null,null,null,null,null,null,null,null,""]
[null,null,null,null,null,null,null,null,null,null,null,null,null,null,null,null,null,null,null,null,null,null,null,null,null,null,null,null,null,null,null,null,null,null,null,null,null,null,null,null,null,null,null,null,null,null,null,null,null,null,null,null,null,""]
[null,null,null,null,null,null,null,null,null,null,null,null,null,null,null,null,null,null,null,null,null,null,null,null,null,null,null,null,null,null,null,null,null,null,null,null,null,null,null,null,null,null,null,null,null,null,null,null,null,null,null,null,null,""]
[null,null,null,null,null,null,null,null,null,null,null,null,null,null,null,null,null,null,null,null,null,null,null,null,null,null,null,null,null,null,null,null,null,null,null,null,null,null,null,null,null,null,null,null,null,null,null,null,null,null,null,null,null,""]
[null,null,null,null,null,null,null,null,null,null,null,null,null,null,null,null,null,null,null,null,null,null,null,null,null,null,null,null,null,null,null,null,null,null,null,null,null,null,null,null,null,null,null,null,null,null,null,null,null,null,null,null,null,""]
[null,null,null,null,null,null,null,null,null,null,null,null,null,null,null,null,null,null,null,null,null,null,null,null,null,null,null,null,null,null,null,null,null,null,null,null,null,null,null,null,null,null,null,null,null,null,null,null,null,null,null,null,null,""]
[null,null,null,null,null,null,null,null,null,null,null,null,null,null,null,null,null,null,null,null,null,null,null,null,null,null,null,null,null,null,null,null,null,null,null,null,null,null,null,null,null,null,null,null,null,null,null,null,null,null,null,null,null,""]
[null,null,null,null,null,null,null,null,null,null,null,null,null,null,null,null,null,null,null,null,null,null,null,null,null,null,null,null,null,null,null,null,null,null,null,null,null,null,null,null,null,null,null,null,null,null,null,null,null,null,null,null,null,""]
[null,null,null,null,null,null,null,null,null,null,null,null,null,null,null,null,null,null,null,null,null,null,null,null,null,null,null,null,null,null,null,null,null,null,null,null,null,null,null,null,null,null,null,null,null,null,null,null,null,null,null,null,null,""]
[null,null,null,null,null,null,null,null,null,null,null,null,null,null,null,null,null,null,null,null,null,null,null,null,null,null,null,null,null,null,null,null,null,null,null,null,null,null,null,null,null,null,null,null,null,null,null,null,null,null,null,null,null,""]
[null,null,null,null,null,null,null,null,null,null,null,null,null,null,null,null,null,null,null,null,null,null,null,null,null,null,null,null,null,null,null,null,null,null,null,null,null,null,null,null,null,null,null,null,null,null,null,null,null,null,null,null,null,""]
[null,null,null,null,null,null,null,null,null,null,null,null,null,null,null,null,null,null,null,null,null,null,null,null,null,null,null,null,null,null,null,null,null,null,null,null,null,null,null,null,null,null,null,null,null,null,null,null,null,null,null,null,null,""]
[null,null,null,null,null,null,null,null,null,null,null,null,null,null,null,null,null,null,null,null,null,null,null,null,null,null,null,null,null,null,null,null,null,null,null,null,null,null,null,null,null,null,null,null,null,null,null,null,null,null,null,null,null,""]
[null,null,null,null,null,null,null,null,null,null,null,null,null,null,null,null,null,null,null,null,null,null,null,null,null,null,null,null,null,null,null,null,null,null,null,null,null,null,null,null,null,null,null,null,null,null,null,null,null,null,null,null,null,""]
[null,null,null,null,null,null,null,null,null,null,null,null,null,null,null,null,null,null,null,null,null,null,null,null,null,null,null,null,null,null,null,null,null,null,null,null,null,null,null,null,null,null,null,null,null,null,null,null,null,null,null,null,null,{"$f":"CONCATENATE(C78,B78)","v":""}]
[null,null,null,null,null,null,null,null,null,null,null,null,null,null,null,null,null,null,null,null,null,null,null,null,null,null,null,null,null,null,null,null,null,null,null,null,null,null,null,null,null,null,null,null,null,null,null,null,null,null,null,null,null,""]
[null,null,null,null,null,null,null,null,null,null,null,null,null,null,null,null,null,null,null,null,null,null,null,null,null,null,null,null,null,null,null,null,null,null,null,null,null,null,null,null,null,null,null,null,null,null,null,null,null,null,null,null,null,""]
[null,null,null,null,null,null,null,null,null,null,null,null,null,null,null,null,null,null,null,null,null,null,null,null,null,null,null,null,null,null,null,null,null,null,null,null,null,null,null,null,null,null,null,null,null,null,null,null,null,null,null,null,null,""]
[null,null,null,null,null,null,null,null,null,null,null,null,null,null,null,null,null,null,null,null,null,null,null,null,null,null,null,null,null,null,null,null,null,null,null,null,null,null,null,null,null,null,null,null,null,null,null,null,null,null,null,null,null,""]
[null,null,null,null,null,null,null,null,null,null,null,null,null,null,null,null,null,null,null,null,null,null,null,null,null,null,null,null,null,null,null,null,null,null,null,null,null,null,null,null,null,null,null,null,null,null,null,null,null,null,null,null,null,""]
[null,null,null,null,null,null,null,null,null,null,null,null,null,null,null,null,null,null,null,null,null,null,null,null,null,null,null,null,null,null,null,null,null,null,null,null,null,null,null,null,null,null,null,null,null,null,null,null,null,null,null,null,null,""]
[null,null,null,null,null,null,null,null,null,null,null,null,null,null,null,null,null,null,null,null,null,null,null,null,null,null,null,null,null,null,null,null,null,null,null,null,null,null,null,null,null,null,null,null,null,null,null,null,null,null,null,null,null,""]
[null,null,null,null,null,null,null,null,null,null,null,null,null,null,null,null,null,null,null,null,null,null,null,null,null,null,null,null,null,null,null,null,null,null,null,null,null,null,null,null,null,null,null,null,null,null,null,null,null,null,null,null,null,""]
[null,null,null,null,null,null,null,null,null,null,null,null,null,null,null,null,null,null,null,null,null,null,null,null,null,null,null,null,null,null,null,null,null,null,null,null,null,null,null,null,null,null,null,null,null,null,null,null,null,null,null,null,null,""]
[null,null,null,null,null,null,null,null,null,null,null,null,null,null,null,null,null,null,null,null,null,null,null,null,null,null,null,null,null,null,null,null,null,null,null,null,null,null,null,null,null,null,null,null,null,null,null,null,null,null,null,null,null,""]
[null,null,null,null,null,null,null,null,null,null,null,null,null,null,null,null,null,null,null,null,null,null,null,null,null,null,null,null,null,null,null,null,null,null,null,null,null,null,null,null,null,null,null,null,null,null,null,null,null,null,null,null,null,""]
[null,null,null,null,null,null,null,null,null,null,null,null,null,null,null,null,null,null,null,null,null,null,null,null,null,null,null,null,null,null,null,null,null,null,null,null,null,null,null,null,null,null,null,null,null,null,null,null,null,null,null,null,null,""]
[null,null,null,null,null,null,null,null,null,null,null,null,null,null,null,null,null,null,null,null,null,null,null,null,null,null,null,null,null,null,null,null,null,null,null,null,null,null,null,null,null,null,null,null,null,null,null,null,null,null,null,null,null,""]
[null,null,null,null,null,null,null,null,null,null,null,null,null,null,null,null,null,null,null,null,null,null,null,null,null,null,null,null,null,null,null,null,null,null,null,null,null,null,null,null,null,null,null,null,null,null,null,null,null,null,null,null,null,""]
[null,null,null,null,null,null,null,null,null,null,null,null,null,null,null,null,null,null,null,null,null,null,null,null,null,null,null,null,null,null,null,null,null,null,null,null,null,null,null,null,null,null,null,null,null,null,null,null,null,null,null,null,null,""]
[null,null,null,null,null,null,null,null,null,null,null,null,null,null,null,null,null,null,null,null,null,null,null,null,null,null,null,null,null,null,null,null,null,null,null,null,null,null,null,null,null,null,null,null,null,null,null,null,null,null,null,null,null,""]
[null,null,null,null,null,null,null,null,null,null,null,null,null,null,null,null,null,null,null,null,null,null,null,null,null,null,null,null,null,null,null,null,null,null,null,null,null,null,null,null,null,null,null,null,null,null,null,null,null,null,null,null,null,""]
[null,null,null,null,null,null,null,null,null,null,null,null,null,null,null,null,null,null,null,null,null,null,null,null,null,null,null,null,null,null,null,null,null,null,null,null,null,null,null,null,null,null,null,null,null,null,null,null,null,null,null,null,null,""]
[null,null,null,null,null,null,null,null,null,null,null,null,null,null,null,null,null,null,null,null,null,null,null,null,null,null,null,null,null,null,null,null,null,null,null,null,null,null,null,null,null,null,null,null,null,null,null,null,null,null,null,null,null,""]
[null,null,null,null,null,null,null,null,null,null,null,null,null,null,null,null,null,null,null,null,null,null,null,null,null,null,null,null,null,null,null,null,null,null,null,null,null,null,null,null,null,null,null,null,null,null,null,null,null,null,null,null,null,""]
[null,null,null,null,null,null,null,null,null,null,null,null,null,null,null,null,null,null,null,null,null,null,null,null,null,null,null,null,null,null,null,null,null,null,null,null,null,null,null,null,null,null,null,null,null,null,null,null,null,null,null,null,null,""]
[null,null,null,null,null,null,null,null,null,null,null,null,null,null,null,null,null,null,null,null,null,null,null,null,null,null,null,null,null,null,null,null,null,null,null,null,null,null,null,null,null,null,null,null,null,null,null,null,null,null,null,null,null,""]
[null,null,null,null,null,null,null,null,null,null,null,null,null,null,null,null,null,null,null,null,null,null,null,null,null,null,null,null,null,null,null,null,null,null,null,null,null,null,null,null,null,null,null,null,null,null,null,null,null,null,null,null,null,""]
[null,null,null,null,null,null,null,null,null,null,null,null,null,null,null,null,null,null,null,null,null,null,null,null,null,null,null,null,null,null,null,null,null,null,null,null,null,null,null,null,null,null,null,null,null,null,null,null,null,null,null,null,null,""]
[null,null,null,null,null,null,null,null,null,null,null,null,null,null,null,null,null,null,null,null,null,null,null,null,null,null,null,null,null,null,null,null,null,null,null,null,null,null,null,null,null,null,null,null,null,null,null,null,null,null,null,null,null,""]
[null,null,null,null,null,null,null,null,null,null,null,null,null,null,null,null,null,null,null,null,null,null,null,null,null,null,null,null,null,null,null,null,null,null,null,null,null,null,null,null,null,null,null,null,null,null,null,null,null,null,null,null,null,""]
[null,null,null,null,null,null,null,null,null,null,null,null,null,null,null,null,null,null,null,null,null,null,null,null,null,null,null,null,null,null,null,null,null,null,null,null,null,null,null,null,null,null,null,null,null,null,null,null,null,null,null,null,null,""]
[null,null,null,null,null,null,null,null,null,null,null,null,null,null,null,null,null,null,null,null,null,null,null,null,null,null,null,null,null,null,null,null,null,null,null,null,null,null,null,null,null,null,null,null,null,null,null,null,null,null,null,null,null,""]
[null,null,null,null,null,null,null,null,null,null,null,null,null,null,null,null,null,null,null,null,null,null,null,null,null,null,null,null,null,null,null,null,null,null,null,null,null,null,null,null,null,null,null,null,null,null,null,null,null,null,null,null,null,""]
[null,null,null,null,null,null,null,null,null,null,null,null,null,null,null,null,null,null,null,null,null,null,null,null,null,null,null,null,null,null,null,null,null,null,null,null,null,null,null,null,null,null,null,null,null,null,null,null,null,null,null,null,null,""]
[null,null,null,null,null,null,null,null,null,null,null,null,null,null,null,null,null,null,null,null,null,null,null,null,null,null,null,null,null,null,null,null,null,null,null,null,null,null,null,null,null,null,null,null,null,null,null,null,null,null,null,null,null,""]
[null,null,null,null,null,null,null,null,null,null,null,null,null,null,null,null,null,null,null,null,null,null,null,null,null,null,null,null,null,null,null,null,null,null,null,null,null,null,null,null,null,null,null,null,null,null,null,null,null,null,null,null,null,""]
[null,null,null,null,null,null,null,null,null,null,null,null,null,null,null,null,null,null,null,null,null,null,null,null,null,null,null,null,null,null,null,null,null,null,null,null,null,null,null,null,null,null,null,null,null,null,null,null,null,null,null,null,null,""]
[null,null,"TOTALS",null,null,null,null,null,null,null,null,{"$f":"COUNTIF(L4:L111,\"Yes\")","v":0},{"$f":"COUNTIF(M4:M111,\"Yes\")","v":0},{"$f":"COUNTIF(N4:N111,\"Yes\")","v":0},{"$f":"COUNTIF(P4:P111,\"Yes\")","v":0},{"$f":"COUNTIF(Q4:Q111,\"Yes\")","v":0},null,{"$f":"SUM(S4:S111)","v":0},{"$f":"SUM(T4:T111)","v":0}]
[]
[]
[]
[]
[]
[]
["Type of Stay Breakdown"]
["Short Stay",{"$f":"COUNTIF(D4:D111,\"Short Term\")","v":0}]
["Long Stay",{"$f":"COUNTIF(D4:D111,\"Long Term\")","v":0}]
["Total",{"$f":"B120+B121","v":0}]
[]
[]
[]
["Dose Schedule","Total","Short Stay","Long Stay"]
["Scheduled",{"$f":"COUNTIFS(H4:H111,\"Scheduled\")","v":0},{"$f":"COUNTIFS(H4:H111,\"Scheduled\",D4:D111,\"Short Term\")","v":0},{"$f":"COUNTIFS(H4:H111,\"Scheduled\",D4:D111,\"Long Term\")","v":0}]
["PRN",{"$f":"COUNTIFS(H4:H111,\"PRN\")","v":0},{"$f":"COUNTIFS(H4:H111,\"PRN\",D4:D111,\"Short Term\")","v":0},{"$f":"COUNTIFS(H4:H111,\"PRN\",D4:D111,\"Long Term\")","v":0}]
["Both",{"$f":"COUNTIFS(H4:H111,\"Both\")","v":0},{"$f":"COUNTIFS(H4:H111,\"Both\",D4:D111,\"Short Term\")","v":0},{"$f":"COUNTIFS(H4:H111,\"Both\",D4:D111,\"Long Term\")","v":0}]
["Total",{"$f":"SUM(B127:B129)","v":0},{"$f":"SUM(C127:C129)","v":0},0]
["% on a scheduled dose",{"$f":"IFERROR(((B127/$B$130)*100), \"---\")","v":"---"},{"$f":"IFERROR(((C127/C130)*100), \"---\")","v":"---"},{"$f":"IFERROR(((D127/D130)*100), \"---\")","v":"---"}]
["% on a PRN dose",{"$f":"IFERROR(((B128/$B$130)*100), \"---\")","v":"---"},{"$f":"IFERROR(((C128/$C$130)*100), \"---\")","v":"---"},{"$f":"IFERROR(((D128/$D$130)*100), \"---\")","v":"---"}]
["% on both sched & PRN","---",{"$f":"IFERROR(((C129/C130)*100),\"---\")","v":"---"},{"$f":"IFERROR(((D129/D130)*100), \"---\")","v":"---"}]
[]
[]
[]
["Where Medication Started","Total","Short Stay","Long Stay"]
["SNF",{"$f":"COUNTIFS(J4:J111,\"SNF\")","v":0},{"$f":"COUNTIFS(J4:J111,\"SNF\",D4:D111,\"Short Term\")","v":0},{"$f":"COUNTIFS(J4:J111,\"SNF\",D4:D111,\"Long Term\")","v":0}]
["Hospital",{"$f":"COUNTIFS(J4:J111,\"Hospital\")","v":0},{"$f":"COUNTIFS(J4:J111,\"Hospital\",D4:D111,\"Short Term\")","v":0},{"$f":"COUNTIFS(J4:J111,\"Hospital\",D4:D111,\"Long Term\")","v":0}]
["Outpatient",{"$f":"COUNTIFS(J4:J111,\"Outpatient\")","v":0},{"$f":"COUNTIFS(J4:J111,\"Outpatient\",D4:D111,\"Short Term\")","v":0},{"$f":"COUNTIFS(J4:J111,\"Outpatient\",D4:D111,\"Long Term\")","v":0}]
["Total",{"$f":"SUM(B138:B140)","v":0},{"$f":"SUM(C138:C140)","v":0},0]
["% started in SNF",{"$f":"IFERROR(((B138/B141)*100), \"---\")","v":"---"},{"$f":"IFERROR(((C138/C141)*100), \"---\")","v":"---"},{"$f":"IFERROR(((D138/D141)*100), \"---\")","v":"---"}]
["% started in hospital",{"$f":"IFERROR(((B139/B141)*100), \"---\")","v":"---"},{"$f":"IFERROR(((C139/C141)*100), \"---\")","v":"---"},{"$f":"IFERROR(((D139/D141)*100), \"---\")","v":"---"}]
["% started in outpatient",{"$f":"IFERROR(((B140/B141)*100), \"---\")","v":"---"},{"$f":"IFERROR(((C140/C141)*100), \"---\")","v":"---"},{"$f":"IFERROR(((D140/D141)*100), \"---\")","v":"---"}]
[]
[]
[]
[]
["Dx appropriate","Total","Short Stay","Long Stay"]
["Yes",{"$f":"COUNTIFS(L4:L111,\"Yes\")","v":0},{"$f":"COUNTIFS(L4:L111,\"Yes\",D4:D111,\"Short Term\")","v":0},{"$f":"COUNTIFS(L4:L111,\"Yes\",D4:D111,\"Long Term\")","v":0}]
["No",{"$f":"COUNTIFS(L4:L111,\"No\")","v":0},{"$f":"COUNTIFS(L4:L111,\"No\",D4:D111,\"Short Term\")","v":0},{"$f":"COUNTIFS(L4:L111,\"No\",D4:D111,\"Long Term\")","v":0}]
["Total",{"$f":"SUM(B150:B151)","v":0},{"$f":"SUM(C150:C151)","v":0},0]
["% with appropriate diagnosis",{"$f":"IFERROR(((B150/B152)*100), \"---\")","v":"---"},{"$f":"IFERROR(((C150/C152)*100), \"---\")","v":"---"},{"$f":"IFERROR(((D150/D152)*100), \"---\")","v":"---"}]
[]
[]
[]
[]
["BPSD documented","Total","Short Stay","Long Stay"]
["Yes",{"$f":"COUNTIFS(N4:N111,\"Yes\")","v":0},{"$f":"COUNTIFS(N4:N111,\"Yes\",D4:D111,\"Short Term\")","v":0},{"$f":"COUNTIFS(N4:N111,\"Yes\",D4:D111,\"Long Term\")","v":0}]
["No",{"$f":"COUNTIFS(N4:N111,\"No\")","v":0},{"$f":"COUNTIFS(N4:N111,\"No\",D4:D111,\"Short Term\")","v":0},{"$f":"COUNTIFS(N4:N111,\"No\",D4:D111,\"Long Term\")","v":0}]
["N/A",{"$f":"COUNTIFS(N4:N111,\"N/A\")","v":0},{"$f":"COUNTIFS(N4:N111,\"N/A\",D4:D111,\"Short Term\")","v":0},{"$f":"COUNTIFS(N4:N111,\"N/A\",D4:D111,\"Long Term\")","v":0}]
["Total",{"$f":"SUM(B159:B161)","v":0},{"$f":"SUM(C159:C161)","v":0},0]
["% needing BPSD documented",{"$f":"IFERROR(((B160/(B159+B160))*100),\"---\")","v":"---"},{"$f":"IFERROR(((C160/(C159+C160))*100), \"---\")","v":"---"},{"$f":"IFERROR(((D160/(D159+D160))*100), \"---\")","v":"---"}]
[]
[]
[]
[]
["Non drug interventions documented","Total","Short Stay","Long Stay"]
["Yes",{"$f":"COUNTIFS(P4:P111,\"Yes\")","v":0},{"$f":"COUNTIFS(P4:P111,\"Yes\",D4:D111,\"Short Term\")","v":0},{"$f":"COUNTIFS(P4:P111,\"Yes\",D4:D111,\"Long Term\")","v":0}]
["No",{"$f":"COUNTIFS(P4:P111,\"No\")","v":0},{"$f":"COUNTIFS(P4:P111,\"No\",D4:D111,\"Short Term\")","v":0},{"$f":"COUNTIFS(P4:P111,\"No\",D4:D111,\"Long Term\")","v":0}]
["N/A",{"$f":"COUNTIFS(P4:P111,\"N/A\")","v":0},{"$f":"COUNTIFS(P4:P111,\"N/A\",D4:D111,\"Short Term\")","v":0},{"$f":"COUNTIFS(P4:P111,\"N/A\",D4:D111,\"Long Term\")","v":0}]
["Total",{"$f":"SUM(B169:B171)","v":0},{"$f":"SUM(C169:C171)","v":0},0]
["% without non drug interventions documented",{"$f":"IFERROR((B170/(B169+B170))*100, \"---\")","v":"---"},{"$f":"IFERROR((C72/(C169+C170)*100), \"---\")","v":"---"},{"$f":"IFERROR((D170/(D169+D170)*100), \"---\")","v":"---"}]
[]
[]
[]
[]
["GDR Outcome","Total","Short Stay","Long Stay"]
["Dose reduced",{"$f":"COUNTIFS(R4:R111,\"Dose reduced\")","v":0},{"$f":"COUNTIFS(R4:R111,\"Dose reduced\",D4:D111,\"Short Term\")","v":0},{"$f":"COUNTIFS(R4:R111,\"Dose reduced\",D4:D111,\"Long Term\")","v":0}]
["Dose discontinued",{"$f":"COUNTIFS(R4:R111,\"Drug discontinued\")","v":0},{"$f":"COUNTIFS(R4:R111,\"Drug discontinued\",D4:D111,\"Short Term\")","v":0},{"$f":"COUNTIFS(R4:R111,\"Drug discontinued\",D4:D111,\"Long Term\")","v":0}]
["Return to previous dose",{"$f":"COUNTIFS(R4:R111,\"Return to previous dose\")","v":0},{"$f":"COUNTIFS(R4:R111,\"Return to previous dose\",D4:D111,\"Short Term\")","v":0},{"$f":"COUNTIFS(R4:R111,\"Return to previous dose\",D4:D111,\"Long Term\")","v":0}]
["Total",{"$f":"SUM(B179:B181)","v":0},{"$f":"SUM(C179:C181)","v":0},0]
["dose reduced or dc'd",{"$f":"B179+B180","v":0},{"$f":"C179+C180","v":0},0]
["% dose reduction",{"$f":"IFERROR((B179/B182)*100, \"---\")","v":"---"},{"$f":"IFERROR((C179/C182)*100, \"---\")","v":"---"},{"$f":"IFERROR((D179/D182)*100, \"---\")","v":"---"}]
["% dose discontinued",{"$f":"IFERROR((B180/B182)*100, \"---\")","v":"---"},{"$f":"IFERROR((C180/C182)*100, \"---\")","v":"---"},{"$f":"IFERROR((D180/D182)*100, \"---\")","v":"---"}]
["% dose reduced or discontinued",{"$f":"IFERROR((B183/B182)*100, \"---\")","v":"---"},{"$f":"IFERROR((C183/C182)*100, \"---\")","v":"---"},{"$f":"IFERROR((D183/D182)*100, \"---\")","v":"---"}]
[]
[]
[]
[]
["GDR needed","Total","Short Stay","Long Stay"]
["Yes",{"$f":"COUNTIFS(S4:S111,\"Yes\")","v":0},{"$f":"COUNTIFS(S4:S111,\"Yes\",D4:D111,\"Short Term\")","v":0},{"$f":"COUNTIFS(S4:S111,\"Yes\",D4:D111,\"Long Term\")","v":0}]
["No",{"$f":"COUNTIFS(S4:S111,\"No\")","v":0},{"$f":"COUNTIFS(S4:S111,\"No\",D4:D111,\"Short Term\")","v":0},{"$f":"COUNTIFS(S4:S111,\"No\",D4:D111,\"Long Term\")","v":0}]
["Total",{"$f":"SUM(B192:B193)","v":0},{"$f":"SUM(C192:C193)","v":0},0]
["% needing GDR",{"$f":"IFERROR((B192/B194)*100, \"---\")","v":"---"},{"$f":"IFERROR((C192/C194)*100, \"---\")","v":"---"},{"$f":"IFERROR((D192/D194)*100, \"---\")","v":"---"}]
[]
[]
[]
[]
["Reason no GDR attempted","Total","Short Stay","Long Stay"]
["N/A",{"$f":"COUNTIFS(T4:T111,\"N/A\")","v":0},{"$f":"COUNTIFS(T4:T111,\"N/A\",D4:D111,\"Short Term\")","v":0},{"$f":"COUNTIFS(T4:T111,\"N/A\",D4:D111,\"Long Term\")","v":0}]
["Resident on lowest possible dose",{"$f":"COUNTIFS(T4:T111,\"Resident on lowest possible dose\")","v":0},{"$f":"COUNTIFS(T4:T111,\"Resident on lowest possible dose\",D4:D111,\"Short Term\")","v":0},{"$f":"COUNTIFS(T4:T111,\"Resident on lowest possible dose\",D4:D111,\"Long Term\")","v":0}]
["Contraindicated per prescriber",{"$f":"COUNTIFS(T4:T111,\"Contraindicated per prescriber\")","v":0},{"$f":"COUNTIFS(T4:T111,\"Contraindicated per prescriber\",D4:D111,\"Short Term\")","v":0},{"$f":"COUNTIFS(T4:T111,\"Contraindicated per prescriber\",D4:D111,\"Long Term\")","v":0}]
["Other",{"$f":"COUNTIFS(T4:T111,\"Other\")","v":0},{"$f":"COUNTIFS(T4:T111,\"Other\",D4:D111,\"Short Term\")","v":0},{"$f":"COUNTIFS(T4:T111,\"Other\",D4:D111,\"Long Term\")","v":0}]
["Total",{"$f":"SUM(B201:B204)","v":0},{"$f":"SUM(C201:C204)","v":0},0]
["% resident on lowest possible dose",{"$f":"IFERROR((B202/B205)*100, \"---\")","v":"---"},{"$f":"IFERROR((C202/C205)*100, \"---\")","v":"---"},{"$f":"IFERROR((D202/D205)*100, \"---\")","v":"---"}]
["% contraindicated per prescriber",{"$f":"IFERROR((B203/B205)*100, \"---\")","v":"---"},{"$f":"IFERROR((C203/C205)*100, \"---\")","v":"---"},{"$f":"IFERROR((D203/D205)*100, \"---\")","v":"---"}]
["% other",{"$f":"IFERROR((B204/B205)*100, \"---\")","v":"---"},{"$f":"IFERROR((C204/C205)*100, \"---\")","v":"---"},{"$f":"IFERROR((D204/D205)*100, \"---\")","v":"---"}]
[]
[]
[]
[]
["Adverse Effects","Total","Short Stay","Long Stay"]
["Yes",{"$f":"COUNTIFS(U4:U111,\"Yes\")","v":0},{"$f":"COUNTIFS(U4:U111,\"Yes\",D4:D111,\"Short Term\")","v":0},{"$f":"COUNTIFS(U4:U111,\"Yes\",D4:D111,\"Long Term\")","v":0}]
["No",{"$f":"COUNTIFS(U4:U111,\"No\")","v":0},{"$f":"COUNTIFS(U4:U111,\"No\",D4:D111,\"Short Term\")","v":0},{"$f":"COUNTIFS(U4:U111,\"No\",D4:D111,\"Long Term\")","v":0}]
["Total",{"$f":"SUM(B214:B215)","v":0},{"$f":"SUM(C214:C215)","v":0},0]
["% with adverse effects",{"$f":"IFERROR((B214/B216)*100, \"---\")","v":"---"},{"$f":"IFERROR((C214/C216)*100, \"---\")","v":"---"},{"$f":"IFERROR((D214/D216)*100, \"---\")","v":"---"}]

{"sheet":"July","index":8,"n_rows":217,"n_cols":54,"rows_kept":217,"cut":false,"hidden":false,"merged":[[1,0,1,4],[1,5,1,21],[0,0,0,2],[0,4,0,5]]}
["End of Month Census :",null,null,null," Current residents on antipsychotics:",null,{"$f":"SUMPRODUCT((A4:A111<>\"\")/COUNTIF(A4:A111,A4:A111&\"\"))","v":0},"Percentage of residents on antipsychotic:",{"$f":"IFERROR((G1/D1)*100, \"---\")","v":"---"}]
["Resident Information",null,null,null,null,"Antipsychotic Medication Information"]
["Room #","Last Name","First Name","Type of Stay","Notes (New Admit, etc)","Antipsychotic Drug Prescribed","Prescriber","Dose Schedule","Date Started","Where was medication started?","Diagnosis associated with antipsychotic","Is Dx Appropriate? (See directions)","List BPSD","Appropriate BPSD documented?","List Non Drug Interventions tried","Non Drug Intv documented?","Date of most recent GDR","Outcome of GDR","GDR Needed?","Reasons for no GDR being attempted","Has resident experienced adverse drug effects?","If yes, describe adverse effects"]
[]
[]
[]
[]
[]
[]
[]
[]
[]
[]
[null,null,null,null,null,null,null,null,null,null,null,null,null,null,null,null,null,null,null,null,null,null,null,null,null,null,null,null,null,null,null,null,null,null,null,null,null,null,null,null,null,null,null,null,null,null,null,null,null,null,null,null,null,{"$f":"CONCATENATE(C14,B14)","v":""}]
[null,null,null,null,null,null,null,null,null,null,null,null,null,null,null,null,null,null,null,null,null,null,null,null,null,null,null,null,null,null,null,null,null,null,null,null,null,null,null,null,null,null,null,null,null,null,null,null,null,null,null,null,null,""]
[null,null,null,null,null,null,null,null,null,null,null,null,null,null,null,null,null,null,null,null,null,null,null,null,null,null,null,null,null,null,null,null,null,null,null,null,null,null,null,null,null,null,null,null,null,null,null,null,null,null,null,null,null,""]
[null,null,null,null,null,null,null,null,null,null,null,null,null,null,null,null,null,null,null,null,null,null,null,null,null,null,null,null,null,null,null,null,null,null,null,null,null,null,null,null,null,null,null,null,null,null,null,null,null,null,null,null,null,""]
[null,null,null,null,null,null,null,null,null,null,null,null,null,null,null,null,null,null,null,null,null,null,null,null,null,null,null,null,null,null,null,null,null,null,null,null,null,null,null,null,null,null,null,null,null,null,null,null,null,null,null,null,null,""]
[null,null,null,null,null,null,null,null,null,null,null,null,null,null,null,null,null,null,null,null,null,null,null,null,null,null,null,null,null,null,null,null,null,null,null,null,null,null,null,null,null,null,null,null,null,null,null,null,null,null,null,null,null,""]
[null,null,null,null,null,null,null,null,null,null,null,null,null,null,null,null,null,null,null,null,null,null,null,null,null,null,null,null,null,null,null,null,null,null,null,null,null,null,null,null,null,null,null,null,null,null,null,null,null,null,null,null,null,""]
[null,null,null,null,null,null,null,null,null,null,null,null,null,null,null,null,null,null,null,null,null,null,null,null,null,null,null,null,null,null,null,null,null,null,null,null,null,null,null,null,null,null,null,null,null,null,null,null,null,null,null,null,null,""]
[null,null,null,null,null,null,null,null,null,null,null,null,null,null,null,null,null,null,null,null,null,null,null,null,null,null,null,null,null,null,null,null,null,null,null,null,null,null,null,null,null,null,null,null,null,null,null,null,null,null,null,null,null,""]
[null,null,null,null,null,null,null,null,null,null,null,null,null,null,null,null,null,null,null,null,null,null,null,null,null,null,null,null,null,null,null,null,null,null,null,null,null,null,null,null,null,null,null,null,null,null,null,null,null,null,null,null,null,""]
[null,null,null,null,null,null,null,null,null,null,null,null,null,null,null,null,null,null,null,null,null,null,null,null,null,null,null,null,null,null,null,null,null,null,null,null,null,null,null,null,null,null,null,null,null,null,null,null,null,null,null,null,null,""]
[null,null,null,null,null,null,null,null,null,null,null,null,null,null,null,null,null,null,null,null,null,null,null,null,null,null,null,null,null,null,null,null,null,null,null,null,null,null,null,null,null,null,null,null,null,null,null,null,null,null,null,null,null,""]
[null,null,null,null,null,null,null,null,null,null,null,null,null,null,null,null,null,null,null,null,null,null,null,null,null,null,null,null,null,null,null,null,null,null,null,null,null,null,null,null,null,null,null,null,null,null,null,null,null,null,null,null,null,""]
[null,null,null,null,null,null,null,null,null,null,null,null,null,null,null,null,null,null,null,null,null,null,null,null,null,null,null,null,null,null,null,null,null,null,null,null,null,null,null,null,null,null,null,null,null,null,null,null,null,null,null,null,null,""]
[null,null,null,null,null,null,null,null,null,null,null,null,null,null,null,null,null,null,null,null,null,null,null,null,null,null,null,null,null,null,null,null,null,null,null,null,null,null,null,null,null,null,null,null,null,null,null,null,null,null,null,null,null,""]
[null,null,null,null,null,null,null,null,null,null,null,null,null,null,null,null,null,null,null,null,null,null,null,null,null,null,null,null,null,null,null,null,null,null,null,null,null,null,null,null,null,null,null,null,null,null,null,null,null,null,null,null,null,""]
[null,null,null,null,null,null,null,null,null,null,null,null,null,null,null,null,null,null,null,null,null,null,null,null,null,null,null,null,null,null,null,null,null,null,null,null,null,null,null,null,null,null,null,null,null,null,null,null,null,null,null,null,null,""]
[null,null,null,null,null,null,null,null,null,null,null,null,null,null,null,null,null,null,null,null,null,null,null,null,null,null,null,null,null,null,null,null,null,null,null,null,null,null,null,null,null,null,null,null,null,null,null,null,null,null,null,null,null,""]
[null,null,null,null,null,null,null,null,null,null,null,null,null,null,null,null,null,null,null,null,null,null,null,null,null,null,null,null,null,null,null,null,null,null,null,null,null,null,null,null,null,null,null,null,null,null,null,null,null,null,null,null,null,""]
[null,null,null,null,null,null,null,null,null,null,null,null,null,null,null,null,null,null,null,null,null,null,null,null,null,null,null,null,null,null,null,null,null,null,null,null,null,null,null,null,null,null,null,null,null,null,null,null,null,null,null,null,null,""]
[null,null,null,null,null,null,null,null,null,null,null,null,null,null,null,null,null,null,null,null,null,null,null,null,null,null,null,null,null,null,null,null,null,null,null,null,null,null,null,null,null,null,null,null,null,null,null,null,null,null,null,null,null,""]
[null,null,null,null,null,null,null,null,null,null,null,null,null,null,null,null,null,null,null,null,null,null,null,null,null,null,null,null,null,null,null,null,null,null,null,null,null,null,null,null,null,null,null,null,null,null,null,null,null,null,null,null,null,""]
[null,null,null,null,null,null,null,null,null,null,null,null,null,null,null,null,null,null,null,null,null,null,null,null,null,null,null,null,null,null,null,null,null,null,null,null,null,null,null,null,null,null,null,null,null,null,null,null,null,null,null,null,null,""]
[null,null,null,null,null,null,null,null,null,null,null,null,null,null,null,null,null,null,null,null,null,null,null,null,null,null,null,null,null,null,null,null,null,null,null,null,null,null,null,null,null,null,null,null,null,null,null,null,null,null,null,null,null,""]
[null,null,null,null,null,null,null,null,null,null,null,null,null,null,null,null,null,null,null,null,null,null,null,null,null,null,null,null,null,null,null,null,null,null,null,null,null,null,null,null,null,null,null,null,null,null,null,null,null,null,null,null,null,""]
[null,null,null,null,null,null,null,null,null,null,null,null,null,null,null,null,null,null,null,null,null,null,null,null,null,null,null,null,null,null,null,null,null,null,null,null,null,null,null,null,null,null,null,null,null,null,null,null,null,null,null,null,null,""]
[null,null,null,null,null,null,null,null,null,null,null,null,null,null,null,null,null,null,null,null,null,null,null,null,null,null,null,null,null,null,null,null,null,null,null,null,null,null,null,null,null,null,null,null,null,null,null,null,null,null,null,null,null,""]
[null,null,null,null,null,null,null,null,null,null,null,null,null,null,null,null,null,null,null,null,null,null,null,null,null,null,null,null,null,null,null,null,null,null,null,null,null,null,null,null,null,null,null,null,null,null,null,null,null,null,null,null,null,""]
[null,null,null,null,null,null,null,null,null,null,null,null,null,null,null,null,null,null,null,null,null,null,null,null,null,null,null,null,null,null,null,null,null,null,null,null,null,null,null,null,null,null,null,null,null,null,null,null,null,null,null,null,null,""]
[null,null,null,null,null,null,null,null,null,null,null,null,null,null,null,null,null,null,null,null,null,null,null,null,null,null,null,null,null,null,null,null,null,null,null,null,null,null,null,null,null,null,null,null,null,null,null,null,null,null,null,null,null,""]
[null,null,null,null,null,null,null,null,null,null,null,null,null,null,null,null,null,null,null,null,null,null,null,null,null,null,null,null,null,null,null,null,null,null,null,null,null,null,null,null,null,null,null,null,null,null,null,null,null,null,null,null,null,""]
[null,null,null,null,null,null,null,null,null,null,null,null,null,null,null,null,null,null,null,null,null,null,null,null,null,null,null,null,null,null,null,null,null,null,null,null,null,null,null,null,null,null,null,null,null,null,null,null,null,null,null,null,null,""]
[null,null,null,null,null,null,null,null,null,null,null,null,null,null,null,null,null,null,null,null,null,null,null,null,null,null,null,null,null,null,null,null,null,null,null,null,null,null,null,null,null,null,null,null,null,null,null,null,null,null,null,null,null,""]
[null,null,null,null,null,null,null,null,null,null,null,null,null,null,null,null,null,null,null,null,null,null,null,null,null,null,null,null,null,null,null,null,null,null,null,null,null,null,null,null,null,null,null,null,null,null,null,null,null,null,null,null,null,""]
[null,null,null,null,null,null,null,null,null,null,null,null,null,null,null,null,null,null,null,null,null,null,null,null,null,null,null,null,null,null,null,null,null,null,null,null,null,null,null,null,null,null,null,null,null,null,null,null,null,null,null,null,null,""]
[null,null,null,null,null,null,null,null,null,null,null,null,null,null,null,null,null,null,null,null,null,null,null,null,null,null,null,null,null,null,null,null,null,null,null,null,null,null,null,null,null,null,null,null,null,null,null,null,null,null,null,null,null,""]
[null,null,null,null,null,null,null,null,null,null,null,null,null,null,null,null,null,null,null,null,null,null,null,null,null,null,null,null,null,null,null,null,null,null,null,null,null,null,null,null,null,null,null,null,null,null,null,null,null,null,null,null,null,""]
[null,null,null,null,null,null,null,null,null,null,null,null,null,null,null,null,null,null,null,null,null,null,null,null,null,null,null,null,null,null,null,null,null,null,null,null,null,null,null,null,null,null,null,null,null,null,null,null,null,null,null,null,null,""]
[null,null,null,null,null,null,null,null,null,null,null,null,null,null,null,null,null,null,null,null,null,null,null,null,null,null,null,null,null,null,null,null,null,null,null,null,null,null,null,null,null,null,null,null,null,null,null,null,null,null,null,null,null,""]
[null,null,null,null,null,null,null,null,null,null,null,null,null,null,null,null,null,null,null,null,null,null,null,null,null,null,null,null,null,null,null,null,null,null,null,null,null,null,null,null,null,null,null,null,null,null,null,null,null,null,null,null,null,""]
[null,null,null,null,null,null,null,null,null,null,null,null,null,null,null,null,null,null,null,null,null,null,null,null,null,null,null,null,null,null,null,null,null,null,null,null,null,null,null,null,null,null,null,null,null,null,null,null,null,null,null,null,null,""]
[null,null,null,null,null,null,null,null,null,null,null,null,null,null,null,null,null,null,null,null,null,null,null,null,null,null,null,null,null,null,null,null,null,null,null,null,null,null,null,null,null,null,null,null,null,null,null,null,null,null,null,null,null,""]
[null,null,null,null,null,null,null,null,null,null,null,null,null,null,null,null,null,null,null,null,null,null,null,null,null,null,null,null,null,null,null,null,null,null,null,null,null,null,null,null,null,null,null,null,null,null,null,null,null,null,null,null,null,""]
[null,null,null,null,null,null,null,null,null,null,null,null,null,null,null,null,null,null,null,null,null,null,null,null,null,null,null,null,null,null,null,null,null,null,null,null,null,null,null,null,null,null,null,null,null,null,null,null,null,null,null,null,null,""]
[null,null,null,null,null,null,null,null,null,null,null,null,null,null,null,null,null,null,null,null,null,null,null,null,null,null,null,null,null,null,null,null,null,null,null,null,null,null,null,null,null,null,null,null,null,null,null,null,null,null,null,null,null,""]
[null,null,null,null,null,null,null,null,null,null,null,null,null,null,null,null,null,null,null,null,null,null,null,null,null,null,null,null,null,null,null,null,null,null,null,null,null,null,null,null,null,null,null,null,null,null,null,null,null,null,null,null,null,""]
[null,null,null,null,null,null,null,null,null,null,null,null,null,null,null,null,null,null,null,null,null,null,null,null,null,null,null,null,null,null,null,null,null,null,null,null,null,null,null,null,null,null,null,null,null,null,null,null,null,null,null,null,null,""]
[null,null,null,null,null,null,null,null,null,null,null,null,null,null,null,null,null,null,null,null,null,null,null,null,null,null,null,null,null,null,null,null,null,null,null,null,null,null,null,null,null,null,null,null,null,null,null,null,null,null,null,null,null,""]
[null,null,null,null,null,null,null,null,null,null,null,null,null,null,null,null,null,null,null,null,null,null,null,null,null,null,null,null,null,null,null,null,null,null,null,null,null,null,null,null,null,null,null,null,null,null,null,null,null,null,null,null,null,""]
[null,null,null,null,null,null,null,null,null,null,null,null,null,null,null,null,null,null,null,null,null,null,null,null,null,null,null,null,null,null,null,null,null,null,null,null,null,null,null,null,null,null,null,null,null,null,null,null,null,null,null,null,null,""]
[null,null,null,null,null,null,null,null,null,null,null,null,null,null,null,null,null,null,null,null,null,null,null,null,null,null,null,null,null,null,null,null,null,null,null,null,null,null,null,null,null,null,null,null,null,null,null,null,null,null,null,null,null,""]
[null,null,null,null,null,null,null,null,null,null,null,null,null,null,null,null,null,null,null,null,null,null,null,null,null,null,null,null,null,null,null,null,null,null,null,null,null,null,null,null,null,null,null,null,null,null,null,null,null,null,null,null,null,""]
[null,null,null,null,null,null,null,null,null,null,null,null,null,null,null,null,null,null,null,null,null,null,null,null,null,null,null,null,null,null,null,null,null,null,null,null,null,null,null,null,null,null,null,null,null,null,null,null,null,null,null,null,null,""]
[null,null,null,null,null,null,null,null,null,null,null,null,null,null,null,null,null,null,null,null,null,null,null,null,null,null,null,null,null,null,null,null,null,null,null,null,null,null,null,null,null,null,null,null,null,null,null,null,null,null,null,null,null,""]
[null,null,null,null,null,null,null,null,null,null,null,null,null,null,null,null,null,null,null,null,null,null,null,null,null,null,null,null,null,null,null,null,null,null,null,null,null,null,null,null,null,null,null,null,null,null,null,null,null,null,null,null,null,""]
[null,null,null,null,null,null,null,null,null,null,null,null,null,null,null,null,null,null,null,null,null,null,null,null,null,null,null,null,null,null,null,null,null,null,null,null,null,null,null,null,null,null,null,null,null,null,null,null,null,null,null,null,null,""]
[null,null,null,null,null,null,null,null,null,null,null,null,null,null,null,null,null,null,null,null,null,null,null,null,null,null,null,null,null,null,null,null,null,null,null,null,null,null,null,null,null,null,null,null,null,null,null,null,null,null,null,null,null,{"$f":"CONCATENATE(C70,B70)","v":""}]
[null,null,null,null,null,null,null,null,null,null,null,null,null,null,null,null,null,null,null,null,null,null,null,null,null,null,null,null,null,null,null,null,null,null,null,null,null,null,null,null,null,null,null,null,null,null,null,null,null,null,null,null,null,""]
[null,null,null,null,null,null,null,null,null,null,null,null,null,null,null,null,null,null,null,null,null,null,null,null,null,null,null,null,null,null,null,null,null,null,null,null,null,null,null,null,null,null,null,null,null,null,null,null,null,null,null,null,null,""]
[null,null,null,null,null,null,null,null,null,null,null,null,null,null,null,null,null,null,null,null,null,null,null,null,null,null,null,null,null,null,null,null,null,null,null,null,null,null,null,null,null,null,null,null,null,null,null,null,null,null,null,null,null,""]
[null,null,null,null,null,null,null,null,null,null,null,null,null,null,null,null,null,null,null,null,null,null,null,null,null,null,null,null,null,null,null,null,null,null,null,null,null,null,null,null,null,null,null,null,null,null,null,null,null,null,null,null,null,""]
[null,null,null,null,null,null,null,null,null,null,null,null,null,null,null,null,null,null,null,null,null,null,null,null,null,null,null,null,null,null,null,null,null,null,null,null,null,null,null,null,null,null,null,null,null,null,null,null,null,null,null,null,null,""]
[null,null,null,null,null,null,null,null,null,null,null,null,null,null,null,null,null,null,null,null,null,null,null,null,null,null,null,null,null,null,null,null,null,null,null,null,null,null,null,null,null,null,null,null,null,null,null,null,null,null,null,null,null,""]
[null,null,null,null,null,null,null,null,null,null,null,null,null,null,null,null,null,null,null,null,null,null,null,null,null,null,null,null,null,null,null,null,null,null,null,null,null,null,null,null,null,null,null,null,null,null,null,null,null,null,null,null,null,""]
[null,null,null,null,null,null,null,null,null,null,null,null,null,null,null,null,null,null,null,null,null,null,null,null,null,null,null,null,null,null,null,null,null,null,null,null,null,null,null,null,null,null,null,null,null,null,null,null,null,null,null,null,null,""]
[null,null,null,null,null,null,null,null,null,null,null,null,null,null,null,null,null,null,null,null,null,null,null,null,null,null,null,null,null,null,null,null,null,null,null,null,null,null,null,null,null,null,null,null,null,null,null,null,null,null,null,null,null,""]
[null,null,null,null,null,null,null,null,null,null,null,null,null,null,null,null,null,null,null,null,null,null,null,null,null,null,null,null,null,null,null,null,null,null,null,null,null,null,null,null,null,null,null,null,null,null,null,null,null,null,null,null,null,""]
[null,null,null,null,null,null,null,null,null,null,null,null,null,null,null,null,null,null,null,null,null,null,null,null,null,null,null,null,null,null,null,null,null,null,null,null,null,null,null,null,null,null,null,null,null,null,null,null,null,null,null,null,null,""]
[null,null,null,null,null,null,null,null,null,null,null,null,null,null,null,null,null,null,null,null,null,null,null,null,null,null,null,null,null,null,null,null,null,null,null,null,null,null,null,null,null,null,null,null,null,null,null,null,null,null,null,null,null,""]
[null,null,null,null,null,null,null,null,null,null,null,null,null,null,null,null,null,null,null,null,null,null,null,null,null,null,null,null,null,null,null,null,null,null,null,null,null,null,null,null,null,null,null,null,null,null,null,null,null,null,null,null,null,""]
[null,null,null,null,null,null,null,null,null,null,null,null,null,null,null,null,null,null,null,null,null,null,null,null,null,null,null,null,null,null,null,null,null,null,null,null,null,null,null,null,null,null,null,null,null,null,null,null,null,null,null,null,null,""]
[null,null,null,null,null,null,null,null,null,null,null,null,null,null,null,null,null,null,null,null,null,null,null,null,null,null,null,null,null,null,null,null,null,null,null,null,null,null,null,null,null,null,null,null,null,null,null,null,null,null,null,null,null,""]
[null,null,null,null,null,null,null,null,null,null,null,null,null,null,null,null,null,null,null,null,null,null,null,null,null,null,null,null,null,null,null,null,null,null,null,null,null,null,null,null,null,null,null,null,null,null,null,null,null,null,null,null,null,""]
[null,null,null,null,null,null,null,null,null,null,null,null,null,null,null,null,null,null,null,null,null,null,null,null,null,null,null,null,null,null,null,null,null,null,null,null,null,null,null,null,null,null,null,null,null,null,null,null,null,null,null,null,null,""]
[null,null,null,null,null,null,null,null,null,null,null,null,null,null,null,null,null,null,null,null,null,null,null,null,null,null,null,null,null,null,null,null,null,null,null,null,null,null,null,null,null,null,null,null,null,null,null,null,null,null,null,null,null,""]
[null,null,null,null,null,null,null,null,null,null,null,null,null,null,null,null,null,null,null,null,null,null,null,null,null,null,null,null,null,null,null,null,null,null,null,null,null,null,null,null,null,null,null,null,null,null,null,null,null,null,null,null,null,""]
[null,null,null,null,null,null,null,null,null,null,null,null,null,null,null,null,null,null,null,null,null,null,null,null,null,null,null,null,null,null,null,null,null,null,null,null,null,null,null,null,null,null,null,null,null,null,null,null,null,null,null,null,null,""]
[null,null,null,null,null,null,null,null,null,null,null,null,null,null,null,null,null,null,null,null,null,null,null,null,null,null,null,null,null,null,null,null,null,null,null,null,null,null,null,null,null,null,null,null,null,null,null,null,null,null,null,null,null,""]
[null,null,null,null,null,null,null,null,null,null,null,null,null,null,null,null,null,null,null,null,null,null,null,null,null,null,null,null,null,null,null,null,null,null,null,null,null,null,null,null,null,null,null,null,null,null,null,null,null,null,null,null,null,""]
[null,null,null,null,null,null,null,null,null,null,null,null,null,null,null,null,null,null,null,null,null,null,null,null,null,null,null,null,null,null,null,null,null,null,null,null,null,null,null,null,null,null,null,null,null,null,null,null,null,null,null,null,null,""]
[null,null,null,null,null,null,null,null,null,null,null,null,null,null,null,null,null,null,null,null,null,null,null,null,null,null,null,null,null,null,null,null,null,null,null,null,null,null,null,null,null,null,null,null,null,null,null,null,null,null,null,null,null,""]
[null,null,null,null,null,null,null,null,null,null,null,null,null,null,null,null,null,null,null,null,null,null,null,null,null,null,null,null,null,null,null,null,null,null,null,null,null,null,null,null,null,null,null,null,null,null,null,null,null,null,null,null,null,""]
[null,null,null,null,null,null,null,null,null,null,null,null,null,null,null,null,null,null,null,null,null,null,null,null,null,null,null,null,null,null,null,null,null,null,null,null,null,null,null,null,null,null,null,null,null,null,null,null,null,null,null,null,null,""]
[null,null,null,null,null,null,null,null,null,null,null,null,null,null,null,null,null,null,null,null,null,null,null,null,null,null,null,null,null,null,null,null,null,null,null,null,null,null,null,null,null,null,null,null,null,null,null,null,null,null,null,null,null,""]
[null,null,null,null,null,null,null,null,null,null,null,null,null,null,null,null,null,null,null,null,null,null,null,null,null,null,null,null,null,null,null,null,null,null,null,null,null,null,null,null,null,null,null,null,null,null,null,null,null,null,null,null,null,""]
[null,null,null,null,null,null,null,null,null,null,null,null,null,null,null,null,null,null,null,null,null,null,null,null,null,null,null,null,null,null,null,null,null,null,null,null,null,null,null,null,null,null,null,null,null,null,null,null,null,null,null,null,null,""]
[null,null,null,null,null,null,null,null,null,null,null,null,null,null,null,null,null,null,null,null,null,null,null,null,null,null,null,null,null,null,null,null,null,null,null,null,null,null,null,null,null,null,null,null,null,null,null,null,null,null,null,null,null,""]
[null,null,null,null,null,null,null,null,null,null,null,null,null,null,null,null,null,null,null,null,null,null,null,null,null,null,null,null,null,null,null,null,null,null,null,null,null,null,null,null,null,null,null,null,null,null,null,null,null,null,null,null,null,""]
[null,null,null,null,null,null,null,null,null,null,null,null,null,null,null,null,null,null,null,null,null,null,null,null,null,null,null,null,null,null,null,null,null,null,null,null,null,null,null,null,null,null,null,null,null,null,null,null,null,null,null,null,null,""]
[null,null,null,null,null,null,null,null,null,null,null,null,null,null,null,null,null,null,null,null,null,null,null,null,null,null,null,null,null,null,null,null,null,null,null,null,null,null,null,null,null,null,null,null,null,null,null,null,null,null,null,null,null,""]
[null,null,null,null,null,null,null,null,null,null,null,null,null,null,null,null,null,null,null,null,null,null,null,null,null,null,null,null,null,null,null,null,null,null,null,null,null,null,null,null,null,null,null,null,null,null,null,null,null,null,null,null,null,""]
[null,null,null,null,null,null,null,null,null,null,null,null,null,null,null,null,null,null,null,null,null,null,null,null,null,null,null,null,null,null,null,null,null,null,null,null,null,null,null,null,null,null,null,null,null,null,null,null,null,null,null,null,null,""]
[null,null,null,null,null,null,null,null,null,null,null,null,null,null,null,null,null,null,null,null,null,null,null,null,null,null,null,null,null,null,null,null,null,null,null,null,null,null,null,null,null,null,null,null,null,null,null,null,null,null,null,null,null,""]
[null,null,null,null,null,null,null,null,null,null,null,null,null,null,null,null,null,null,null,null,null,null,null,null,null,null,null,null,null,null,null,null,null,null,null,null,null,null,null,null,null,null,null,null,null,null,null,null,null,null,null,null,null,""]
[null,null,null,null,null,null,null,null,null,null,null,null,null,null,null,null,null,null,null,null,null,null,null,null,null,null,null,null,null,null,null,null,null,null,null,null,null,null,null,null,null,null,null,null,null,null,null,null,null,null,null,null,null,""]
[null,null,null,null,null,null,null,null,null,null,null,null,null,null,null,null,null,null,null,null,null,null,null,null,null,null,null,null,null,null,null,null,null,null,null,null,null,null,null,null,null,null,null,null,null,null,null,null,null,null,null,null,null,""]
[null,null,null,null,null,null,null,null,null,null,null,null,null,null,null,null,null,null,null,null,null,null,null,null,null,null,null,null,null,null,null,null,null,null,null,null,null,null,null,null,null,null,null,null,null,null,null,null,null,null,null,null,null,""]
[null,null,null,null,null,null,null,null,null,null,null,null,null,null,null,null,null,null,null,null,null,null,null,null,null,null,null,null,null,null,null,null,null,null,null,null,null,null,null,null,null,null,null,null,null,null,null,null,null,null,null,null,null,""]
[null,null,"TOTALS",null,null,null,null,null,null,null,null,{"$f":"COUNTIF(L4:L111,\"Yes\")","v":0},{"$f":"COUNTIF(M4:M111,\"Yes\")","v":0},{"$f":"COUNTIF(N4:N111,\"Yes\")","v":0},{"$f":"COUNTIF(P4:P111,\"Yes\")","v":0},{"$f":"COUNTIF(Q4:Q111,\"Yes\")","v":0},null,{"$f":"SUM(S4:S111)","v":0},{"$f":"SUM(T4:T111)","v":0}]
[]
[]
[]
[]
[]
[]
["Type of Stay Breakdown"]
["Short Stay",{"$f":"COUNTIF(D4:D111,\"Short Term\")","v":0}]
["Long Stay",{"$f":"COUNTIF(D4:D111,\"Long Term\")","v":0}]
["Total",{"$f":"B120+B121","v":0}]
[]
[]
[]
["Dose Schedule","Total","Short Stay","Long Stay"]
["Scheduled",{"$f":"COUNTIFS(H4:H111,\"Scheduled\")","v":0},{"$f":"COUNTIFS(H4:H111,\"Scheduled\",D4:D111,\"Short Term\")","v":0},{"$f":"COUNTIFS(H4:H111,\"Scheduled\",D4:D111,\"Long Term\")","v":0}]
["PRN",{"$f":"COUNTIFS(H4:H111,\"PRN\")","v":0},{"$f":"COUNTIFS(H4:H111,\"PRN\",D4:D111,\"Short Term\")","v":0},{"$f":"COUNTIFS(H4:H111,\"PRN\",D4:D111,\"Long Term\")","v":0}]
["Both",{"$f":"COUNTIFS(H4:H111,\"Both\")","v":0},{"$f":"COUNTIFS(H4:H111,\"Both\",D4:D111,\"Short Term\")","v":0},{"$f":"COUNTIFS(H4:H111,\"Both\",D4:D111,\"Long Term\")","v":0}]
["Total",{"$f":"SUM(B127:B129)","v":0},{"$f":"SUM(C127:C129)","v":0},0]
["% on a scheduled dose",{"$f":"IFERROR(((B127/$B$130)*100), \"---\")","v":"---"},{"$f":"IFERROR(((C127/C130)*100), \"---\")","v":"---"},{"$f":"IFERROR(((D127/D130)*100), \"---\")","v":"---"}]
["% on a PRN dose",{"$f":"IFERROR(((B128/$B$130)*100), \"---\")","v":"---"},{"$f":"IFERROR(((C128/$C$130)*100), \"---\")","v":"---"},{"$f":"IFERROR(((D128/$D$130)*100), \"---\")","v":"---"}]
["% on both sched & PRN","---",{"$f":"IFERROR(((C129/C130)*100),\"---\")","v":"---"},{"$f":"IFERROR(((D129/D130)*100), \"---\")","v":"---"}]
[]
[]
[]
["Where Medication Started","Total","Short Stay","Long Stay"]
["SNF",{"$f":"COUNTIFS(J4:J111,\"SNF\")","v":0},{"$f":"COUNTIFS(J4:J111,\"SNF\",D4:D111,\"Short Term\")","v":0},{"$f":"COUNTIFS(J4:J111,\"SNF\",D4:D111,\"Long Term\")","v":0}]
["Hospital",{"$f":"COUNTIFS(J4:J111,\"Hospital\")","v":0},{"$f":"COUNTIFS(J4:J111,\"Hospital\",D4:D111,\"Short Term\")","v":0},{"$f":"COUNTIFS(J4:J111,\"Hospital\",D4:D111,\"Long Term\")","v":0}]
["Outpatient",{"$f":"COUNTIFS(J4:J111,\"Outpatient\")","v":0},{"$f":"COUNTIFS(J4:J111,\"Outpatient\",D4:D111,\"Short Term\")","v":0},{"$f":"COUNTIFS(J4:J111,\"Outpatient\",D4:D111,\"Long Term\")","v":0}]
["Total",{"$f":"SUM(B138:B140)","v":0},{"$f":"SUM(C138:C140)","v":0},0]
["% started in SNF",{"$f":"IFERROR(((B138/B141)*100), \"---\")","v":"---"},{"$f":"IFERROR(((C138/C141)*100), \"---\")","v":"---"},{"$f":"IFERROR(((D138/D141)*100), \"---\")","v":"---"}]
["% started in hospital",{"$f":"IFERROR(((B139/B141)*100), \"---\")","v":"---"},{"$f":"IFERROR(((C139/C141)*100), \"---\")","v":"---"},{"$f":"IFERROR(((D139/D141)*100), \"---\")","v":"---"}]
["% started in outpatient",{"$f":"IFERROR(((B140/B141)*100), \"---\")","v":"---"},{"$f":"IFERROR(((C140/C141)*100), \"---\")","v":"---"},{"$f":"IFERROR(((D140/D141)*100), \"---\")","v":"---"}]
[]
[]
[]
[]
["Dx appropriate","Total","Short Stay","Long Stay"]
["Yes",{"$f":"COUNTIFS(L4:L111,\"Yes\")","v":0},{"$f":"COUNTIFS(L4:L111,\"Yes\",D4:D111,\"Short Term\")","v":0},{"$f":"COUNTIFS(L4:L111,\"Yes\",D4:D111,\"Long Term\")","v":0}]
["No",{"$f":"COUNTIFS(L4:L111,\"No\")","v":0},{"$f":"COUNTIFS(L4:L111,\"No\",D4:D111,\"Short Term\")","v":0},{"$f":"COUNTIFS(L4:L111,\"No\",D4:D111,\"Long Term\")","v":0}]
["Total",{"$f":"SUM(B150:B151)","v":0},{"$f":"SUM(C150:C151)","v":0},0]
["% with appropriate diagnosis",{"$f":"IFERROR(((B150/B152)*100), \"---\")","v":"---"},{"$f":"IFERROR(((C150/C152)*100), \"---\")","v":"---"},{"$f":"IFERROR(((D150/D152)*100), \"---\")","v":"---"}]
[]
[]
[]
[]
["BPSD documented","Total","Short Stay","Long Stay"]
["Yes",{"$f":"COUNTIFS(N4:N111,\"Yes\")","v":0},{"$f":"COUNTIFS(N4:N111,\"Yes\",D4:D111,\"Short Term\")","v":0},{"$f":"COUNTIFS(N4:N111,\"Yes\",D4:D111,\"Long Term\")","v":0}]
["No",{"$f":"COUNTIFS(N4:N111,\"No\")","v":0},{"$f":"COUNTIFS(N4:N111,\"No\",D4:D111,\"Short Term\")","v":0},{"$f":"COUNTIFS(N4:N111,\"No\",D4:D111,\"Long Term\")","v":0}]
["N/A",{"$f":"COUNTIFS(N4:N111,\"N/A\")","v":0},{"$f":"COUNTIFS(N4:N111,\"N/A\",D4:D111,\"Short Term\")","v":0},{"$f":"COUNTIFS(N4:N111,\"N/A\",D4:D111,\"Long Term\")","v":0}]
["Total",{"$f":"SUM(B159:B161)","v":0},{"$f":"SUM(C159:C161)","v":0},0]
["% needing BPSD documented",{"$f":"IFERROR(((B160/(B159+B160))*100),\"---\")","v":"---"},{"$f":"IFERROR(((C160/(C159+C160))*100), \"---\")","v":"---"},{"$f":"IFERROR(((D160/(D159+D160))*100), \"---\")","v":"---"}]
[]
[]
[]
[]
["Non drug interventions documented","Total","Short Stay","Long Stay"]
["Yes",{"$f":"COUNTIFS(P4:P111,\"Yes\")","v":0},{"$f":"COUNTIFS(P4:P111,\"Yes\",D4:D111,\"Short Term\")","v":0},{"$f":"COUNTIFS(P4:P111,\"Yes\",D4:D111,\"Long Term\")","v":0}]
["No",{"$f":"COUNTIFS(P4:P111,\"No\")","v":0},{"$f":"COUNTIFS(P4:P111,\"No\",D4:D111,\"Short Term\")","v":0},{"$f":"COUNTIFS(P4:P111,\"No\",D4:D111,\"Long Term\")","v":0}]
["N/A",{"$f":"COUNTIFS(P4:P111,\"N/A\")","v":0},{"$f":"COUNTIFS(P4:P111,\"N/A\",D4:D111,\"Short Term\")","v":0},{"$f":"COUNTIFS(P4:P111,\"N/A\",D4:D111,\"Long Term\")","v":0}]
["Total",{"$f":"SUM(B169:B171)","v":0},{"$f":"SUM(C169:C171)","v":0},0]
["% without non drug interventions documented",{"$f":"IFERROR((B170/(B169+B170))*100, \"---\")","v":"---"},{"$f":"IFERROR((C72/(C169+C170)*100), \"---\")","v":"---"},{"$f":"IFERROR((D170/(D169+D170)*100), \"---\")","v":"---"}]
[]
[]
[]
[]
["GDR Outcome","Total","Short Stay","Long Stay"]
["Dose reduced",{"$f":"COUNTIFS(R4:R111,\"Dose reduced\")","v":0},{"$f":"COUNTIFS(R4:R111,\"Dose reduced\",D4:D111,\"Short Term\")","v":0},{"$f":"COUNTIFS(R4:R111,\"Dose reduced\",D4:D111,\"Long Term\")","v":0}]
["Dose discontinued",{"$f":"COUNTIFS(R4:R111,\"Drug discontinued\")","v":0},{"$f":"COUNTIFS(R4:R111,\"Drug discontinued\",D4:D111,\"Short Term\")","v":0},{"$f":"COUNTIFS(R4:R111,\"Drug discontinued\",D4:D111,\"Long Term\")","v":0}]
["Return to previous dose",{"$f":"COUNTIFS(R4:R111,\"Return to previous dose\")","v":0},{"$f":"COUNTIFS(R4:R111,\"Return to previous dose\",D4:D111,\"Short Term\")","v":0},{"$f":"COUNTIFS(R4:R111,\"Return to previous dose\",D4:D111,\"Long Term\")","v":0}]
["Total",{"$f":"SUM(B179:B181)","v":0},{"$f":"SUM(C179:C181)","v":0},0]
["dose reduced or dc'd",{"$f":"B179+B180","v":0},{"$f":"C179+C180","v":0},0]
["% dose reduction",{"$f":"IFERROR((B179/B182)*100, \"---\")","v":"---"},{"$f":"IFERROR((C179/C182)*100, \"---\")","v":"---"},{"$f":"IFERROR((D179/D182)*100, \"---\")","v":"---"}]
["% dose discontinued",{"$f":"IFERROR((B180/B182)*100, \"---\")","v":"---"},{"$f":"IFERROR((C180/C182)*100, \"---\")","v":"---"},{"$f":"IFERROR((D180/D182)*100, \"---\")","v":"---"}]
["% dose reduced or discontinued",{"$f":"IFERROR((B183/B182)*100, \"---\")","v":"---"},{"$f":"IFERROR((C183/C182)*100, \"---\")","v":"---"},{"$f":"IFERROR((D183/D182)*100, \"---\")","v":"---"}]
[]
[]
[]
[]
["GDR needed","Total","Short Stay","Long Stay"]
["Yes",{"$f":"COUNTIFS(S4:S111,\"Yes\")","v":0},{"$f":"COUNTIFS(S4:S111,\"Yes\",D4:D111,\"Short Term\")","v":0},{"$f":"COUNTIFS(S4:S111,\"Yes\",D4:D111,\"Long Term\")","v":0}]
["No",{"$f":"COUNTIFS(S4:S111,\"No\")","v":0},{"$f":"COUNTIFS(S4:S111,\"No\",D4:D111,\"Short Term\")","v":0},{"$f":"COUNTIFS(S4:S111,\"No\",D4:D111,\"Long Term\")","v":0}]
["Total",{"$f":"SUM(B192:B193)","v":0},{"$f":"SUM(C192:C193)","v":0},0]
["% needing GDR",{"$f":"IFERROR((B192/B194)*100, \"---\")","v":"---"},{"$f":"IFERROR((C192/C194)*100, \"---\")","v":"---"},{"$f":"IFERROR((D192/D194)*100, \"---\")","v":"---"}]
[]
[]
[]
[]
["Reason no GDR attempted","Total","Short Stay","Long Stay"]
["N/A",{"$f":"COUNTIFS(T4:T111,\"N/A\")","v":0},{"$f":"COUNTIFS(T4:T111,\"N/A\",D4:D111,\"Short Term\")","v":0},{"$f":"COUNTIFS(T4:T111,\"N/A\",D4:D111,\"Long Term\")","v":0}]
["Resident on lowest possible dose",{"$f":"COUNTIFS(T4:T111,\"Resident on lowest possible dose\")","v":0},{"$f":"COUNTIFS(T4:T111,\"Resident on lowest possible dose\",D4:D111,\"Short Term\")","v":0},{"$f":"COUNTIFS(T4:T111,\"Resident on lowest possible dose\",D4:D111,\"Long Term\")","v":0}]
["Contraindicated per prescriber",{"$f":"COUNTIFS(T4:T111,\"Contraindicated per prescriber\")","v":0},{"$f":"COUNTIFS(T4:T111,\"Contraindicated per prescriber\",D4:D111,\"Short Term\")","v":0},{"$f":"COUNTIFS(T4:T111,\"Contraindicated per prescriber\",D4:D111,\"Long Term\")","v":0}]
["Other",{"$f":"COUNTIFS(T4:T111,\"Other\")","v":0},{"$f":"COUNTIFS(T4:T111,\"Other\",D4:D111,\"Short Term\")","v":0},{"$f":"COUNTIFS(T4:T111,\"Other\",D4:D111,\"Long Term\")","v":0}]
["Total",{"$f":"SUM(B201:B204)","v":0},{"$f":"SUM(C201:C204)","v":0},0]
["% resident on lowest possible dose",{"$f":"IFERROR((B202/B205)*100, \"---\")","v":"---"},{"$f":"IFERROR((C202/C205)*100, \"---\")","v":"---"},{"$f":"IFERROR((D202/D205)*100, \"---\")","v":"---"}]
["% contraindicated per prescriber",{"$f":"IFERROR((B203/B205)*100, \"---\")","v":"---"},{"$f":"IFERROR((C203/C205)*100, \"---\")","v":"---"},{"$f":"IFERROR((D203/D205)*100, \"---\")","v":"---"}]
["% other",{"$f":"IFERROR((B204/B205)*100, \"---\")","v":"---"},{"$f":"IFERROR((C204/C205)*100, \"---\")","v":"---"},{"$f":"IFERROR((D204/D205)*100, \"---\")","v":"---"}]
[]
[]
[]
[]
["Adverse Effects","Total","Short Stay","Long Stay"]
["Yes",{"$f":"COUNTIFS(U4:U111,\"Yes\")","v":0},{"$f":"COUNTIFS(U4:U111,\"Yes\",D4:D111,\"Short Term\")","v":0},{"$f":"COUNTIFS(U4:U111,\"Yes\",D4:D111,\"Long Term\")","v":0}]
["No",{"$f":"COUNTIFS(U4:U111,\"No\")","v":0},{"$f":"COUNTIFS(U4:U111,\"No\",D4:D111,\"Short Term\")","v":0},{"$f":"COUNTIFS(U4:U111,\"No\",D4:D111,\"Long Term\")","v":0}]
["Total",{"$f":"SUM(B214:B215)","v":0},{"$f":"SUM(C214:C215)","v":0},0]
["% with adverse effects",{"$f":"IFERROR((B214/B216)*100, \"---\")","v":"---"},{"$f":"IFERROR((C214/C216)*100, \"---\")","v":"---"},{"$f":"IFERROR((D214/D216)*100, \"---\")","v":"---"}]

{"sheet":"August","index":9,"n_rows":217,"n_cols":22,"rows_kept":217,"cut":false,"hidden":false,"merged":[[1,0,1,4],[1,5,1,21],[0,0,0,2],[0,4,0,5]]}
["End of Month Census :",null,null,null,"Current residents on antipsychotics:",null,{"$f":"SUMPRODUCT((A4:A112<>\"\")/COUNTIF(A4:A112,A4:A112&\"\"))","v":0},"Percentage of residents on antipsychotic:",{"$f":"IFERROR((G1/D1)*100, \"---\")","v":"---"}]
["Resident Information",null,null,null,null,"Antipsychotic Medication Information"]
["Room #","Last Name","First Name","Type of Stay","Notes (New Admit, etc)","Antipsychotic Drug Prescribed","Prescriber","Dose Schedule","Date Started","Where was medication started?","Diagnosis associated with antipsychotic","Is Dx Appropriate? (See directions)","List BPSD","Appropriate BPSD documented?","List Non Drug Interventions tried","Non Drug Intv documented?","Date of most recent GDR","Outcome of GDR","GDR Needed?","Reasons for no GDR being attempted","Has resident experienced adverse drug effects?","If yes, describe adverse effects"]
[]
[]
[]
[]
[]
[]
[]
[]
[]
[]
[]
[]
[]
[]
[]
[]
[]
[]
[]
[]
[]
[]
[]
[]
[]
[]
[]
[]
[]
[]
[]
[]
[]
[]
[]
[]
[]
[]
[]
[]
[]
[]
[]
[]
[]
[]
[]
[]
[]
[]
[]
[]
[]
[]
[]
[]
[]
[]
[]
[]
[]
[]
[]
[]
[]
[]
[]
[]
[]
[]
[]
[]
[]
[]
[]
[]
[]
[]
[]
[]
[]
[]
[]
[]
[]
[]
[]
[]
[]
[]
[]
[]
[]
[]
[]
[]
[]
[]
[]
[]
[]
[]
[]
[]
[]
[]
[]
[]
[null,null,"TOTALS",null,null,null,null,null,null,null,null,{"$f":"COUNTIF(L4:L111,\"Yes\")","v":0},{"$f":"COUNTIF(M4:M111,\"Yes\")","v":0},{"$f":"COUNTIF(N4:N111,\"Yes\")","v":0},{"$f":"COUNTIF(P4:P111,\"Yes\")","v":0},{"$f":"COUNTIF(Q4:Q111,\"Yes\")","v":0},null,{"$f":"SUM(S4:S111)","v":0},{"$f":"SUM(T4:T111)","v":0}]
[]
[]
[]
[]
[]
[]
["Type of Stay Breakdown"]
["Short Stay",{"$f":"COUNTIF(D4:D111,\"Short Term\")","v":0}]
["Long Stay",{"$f":"COUNTIF(D4:D111,\"Long Term\")","v":0}]
["Total",{"$f":"B120+B121","v":0}]
[]
[]
[]
["Dose Schedule","Total","Short Stay","Long Stay"]
["Scheduled",{"$f":"COUNTIFS(H4:H111,\"Scheduled\")","v":0},{"$f":"COUNTIFS(H4:H111,\"Scheduled\",D4:D111,\"Short Term\")","v":0},{"$f":"COUNTIFS(H4:H111,\"Scheduled\",D4:D111,\"Long Term\")","v":0}]
["PRN",{"$f":"COUNTIFS(H4:H111,\"PRN\")","v":0},{"$f":"COUNTIFS(H4:H111,\"PRN\",D4:D111,\"Short Term\")","v":0},{"$f":"COUNTIFS(H4:H111,\"PRN\",D4:D111,\"Long Term\")","v":0}]
["Both",{"$f":"COUNTIFS(H4:H111,\"Both\")","v":0},{"$f":"COUNTIFS(H4:H111,\"Both\",D4:D111,\"Short Term\")","v":0},{"$f":"COUNTIFS(H4:H111,\"Both\",D4:D111,\"Long Term\")","v":0}]
["Total",{"$f":"SUM(B127:B129)","v":0},{"$f":"SUM(C127:C129)","v":0},0]
["% on a scheduled dose",{"$f":"IFERROR(((B127/$B$130)*100), \"---\")","v":"---"},{"$f":"IFERROR(((C127/C130)*100), \"---\")","v":"---"},{"$f":"IFERROR(((D127/D130)*100), \"---\")","v":"---"}]
["% on a PRN dose",{"$f":"IFERROR(((B128/$B$130)*100), \"---\")","v":"---"},{"$f":"IFERROR(((C128/$C$130)*100), \"---\")","v":"---"},{"$f":"IFERROR(((D128/$D$130)*100), \"---\")","v":"---"}]
["% on both sched & PRN","---",{"$f":"IFERROR(((C129/C130)*100),\"---\")","v":"---"},{"$f":"IFERROR(((D129/D130)*100), \"---\")","v":"---"}]
[]
[]
[]
["Where Medication Started","Total","Short Stay","Long Stay"]
["SNF",{"$f":"COUNTIFS(J4:J111,\"SNF\")","v":0},{"$f":"COUNTIFS(J4:J111,\"SNF\",D4:D111,\"Short Term\")","v":0},{"$f":"COUNTIFS(J4:J111,\"SNF\",D4:D111,\"Long Term\")","v":0}]
["Hospital",{"$f":"COUNTIFS(J4:J111,\"Hospital\")","v":0},{"$f":"COUNTIFS(J4:J111,\"Hospital\",D4:D111,\"Short Term\")","v":0},{"$f":"COUNTIFS(J4:J111,\"Hospital\",D4:D111,\"Long Term\")","v":0}]
["Outpatient",{"$f":"COUNTIFS(J4:J111,\"Outpatient\")","v":0},{"$f":"COUNTIFS(J4:J111,\"Outpatient\",D4:D111,\"Short Term\")","v":0},{"$f":"COUNTIFS(J4:J111,\"Outpatient\",D4:D111,\"Long Term\")","v":0}]
["Total",{"$f":"SUM(B138:B140)","v":0},{"$f":"SUM(C138:C140)","v":0},0]
["% started in SNF",{"$f":"IFERROR((B138/B141)*100, \"---\")","v":"---"},{"$f":"IFERROR((C138/C141)*100, \"---\")","v":"---"},{"$f":"IFERROR((D138/D141)*100, \"---\")","v":"---"}]
["% started in hospital",{"$f":"IFERROR((B139/B141)*100, \"---\")","v":"---"},{"$f":"IFERROR((C139/C141)*100, \"---\")","v":"---"},{"$f":"IFERROR((D139/D141)*100, \"---\")","v":"---"}]
["% started in outpatient",{"$f":"IFERROR((B140/B141)*100, \"---\")","v":"---"},{"$f":"IFERROR((C140/C141)*100, \"---\")","v":"---"},{"$f":"IFERROR((D140/D141)*100, \"---\")","v":"---"}]
[]
[]
[]
[]
["Dx appropriate","Total","Short Stay","Long Stay"]
["Yes",{"$f":"COUNTIFS(L4:L111,\"Yes\")","v":0},{"$f":"COUNTIFS(L4:L111,\"Yes\",D4:D111,\"Short Term\")","v":0},{"$f":"COUNTIFS(L4:L111,\"Yes\",D4:D111,\"Long Term\")","v":0}]
["No",{"$f":"COUNTIFS(L4:L111,\"No\")","v":0},{"$f":"COUNTIFS(L4:L111,\"No\",D4:D111,\"Short Term\")","v":0},{"$f":"COUNTIFS(L4:L111,\"No\",D4:D111,\"Long Term\")","v":0}]
["Total",{"$f":"SUM(B150:B151)","v":0},{"$f":"SUM(C150:C151)","v":0},0]
["% with appropriate diagnosis",{"$f":"IFERROR((B150/B152)*100, \"---\")","v":"---"},{"$f":"IFERROR((C150/C152)*100, \"---\")","v":"---"},{"$f":"IFERROR((D150/D152)*100, \"---\")","v":"---"}]
[]
[]
[]
[]
["BPSD documented","Total","Short Stay","Long Stay"]
["Yes",{"$f":"COUNTIFS(N4:N111,\"Yes\")","v":0},{"$f":"COUNTIFS(N4:N111,\"Yes\",D4:D111,\"Short Term\")","v":0},{"$f":"COUNTIFS(N4:N111,\"Yes\",D4:D111,\"Long Term\")","v":0}]
["No",{"$f":"COUNTIFS(N4:N111,\"No\")","v":0},{"$f":"COUNTIFS(N4:N111,\"No\",D4:D111,\"Short Term\")","v":0},{"$f":"COUNTIFS(N4:N111,\"No\",D4:D111,\"Long Term\")","v":0}]
["N/A",{"$f":"COUNTIFS(N4:N111,\"N/A\")","v":0},{"$f":"COUNTIFS(N4:N111,\"N/A\",D4:D111,\"Short Term\")","v":0},{"$f":"COUNTIFS(N4:N111,\"N/A\",D4:D111,\"Long Term\")","v":0}]
["Total",{"$f":"SUM(B159:B161)","v":0},{"$f":"SUM(C159:C161)","v":0},0]
["% needing BPSD documented",{"$f":"IFERROR((B160/(B159+B160))*100, \"---\")","v":"---"},{"$f":"IFERROR((C160/(C159+C160))*100, \"---\")","v":"---"},{"$f":"IFERROR((D160/(D159+D160))*100, \"---\")","v":"---"}]
[]
[]
[]
[]
["Non drug interventions documented","Total","Short Stay","Long Stay"]
["Yes",{"$f":"COUNTIFS(P4:P111,\"Yes\")","v":0},{"$f":"COUNTIFS(P4:P111,\"Yes\",D4:D111,\"Short Term\")","v":0},{"$f":"COUNTIFS(P4:P111,\"Yes\",D4:D111,\"Long Term\")","v":0}]
["No",{"$f":"COUNTIFS(P4:P111,\"No\")","v":0},{"$f":"COUNTIFS(P4:P111,\"No\",D4:D111,\"Short Term\")","v":0},{"$f":"COUNTIFS(P4:P111,\"No\",D4:D111,\"Long Term\")","v":0}]
["N/A",{"$f":"COUNTIFS(P4:P111,\"N/A\")","v":0},{"$f":"COUNTIFS(P4:P111,\"N/A\",D4:D111,\"Short Term\")","v":0},{"$f":"COUNTIFS(P4:P111,\"N/A\",D4:D111,\"Long Term\")","v":0}]
["Total",{"$f":"SUM(B169:B171)","v":0},{"$f":"SUM(C169:C171)","v":0},0]
["% without non drug interventions documented",{"$f":"IFERROR((B170/(B169+B170))*100, \"---\")","v":"---"},{"$f":"IFERROR((C170/(C169+C170))*100, \"---\")","v":"---"},{"$f":"IFERROR((D170/(D169+D170))*100, \"---\")","v":"---"}]
[]
[]
[]
[]
["GDR Outcome","Total","Short Stay","Long Stay"]
["Dose reduced",{"$f":"COUNTIFS(R4:R111,\"Dose reduced\")","v":0},{"$f":"COUNTIFS(R4:R111,\"Dose reduced\",D4:D111,\"Short Term\")","v":0},{"$f":"COUNTIFS(R4:R111,\"Dose reduced\",D4:D111,\"Long Term\")","v":0}]
["Dose discontinued",{"$f":"COUNTIFS(R4:R111,\"Drug discontinued\")","v":0},{"$f":"COUNTIFS(R4:R111,\"Drug discontinued\",D4:D111,\"Short Term\")","v":0},{"$f":"COUNTIFS(R4:R111,\"Drug discontinued\",D4:D111,\"Long Term\")","v":0}]
["Return to previous dose",{"$f":"COUNTIFS(R4:R111,\"Return to previous dose\")","v":0},{"$f":"COUNTIFS(R4:R111,\"Return to previous dose\",D4:D111,\"Short Term\")","v":0},{"$f":"COUNTIFS(R4:R111,\"Return to previous dose\",D4:D111,\"Long Term\")","v":0}]
["Total",{"$f":"SUM(B179:B181)","v":0},{"$f":"SUM(C179:C181)","v":0},0]
["dose reduced or dc'd",{"$f":"B179+B180","v":0},{"$f":"C179+C180","v":0},0]
["% dose reduction",{"$f":"IFERROR((B179/B182)*100, \"---\")","v":"---"},{"$f":"IFERROR((C179/C182)*100, \"---\")","v":"---"},{"$f":"IFERROR((D179/D182)*100, \"---\")","v":"---"}]
["% dose discontinued",{"$f":"IFERROR((B180/B182)*100, \"---\")","v":"---"},{"$f":"IFERROR((C180/C182)*100, \"---\")","v":"---"},{"$f":"IFERROR((D180/D182)*100, \"---\")","v":"---"}]
["% dose reduced or discontinued",{"$f":"IFERROR((B183/B182)*100, \"---\")","v":"---"},{"$f":"IFERROR((C183/C182)*100, \"---\")","v":"---"},{"$f":"IFERROR((D183/D182)*100, \"---\")","v":"---"}]
[]
[]
[]
[]
["GDR needed","Total","Short Stay","Long Stay"]
["Yes",{"$f":"COUNTIFS(S4:S111,\"Yes\")","v":0},{"$f":"COUNTIFS(S4:S111,\"Yes\",D4:D111,\"Short Term\")","v":0},{"$f":"COUNTIFS(S4:S111,\"Yes\",D4:D111,\"Long Term\")","v":0}]
["No",{"$f":"COUNTIFS(S4:S111,\"No\")","v":0},{"$f":"COUNTIFS(S4:S111,\"No\",D4:D111,\"Short Term\")","v":0},{"$f":"COUNTIFS(S4:S111,\"No\",D4:D111,\"Long Term\")","v":0}]
["Total",{"$f":"SUM(B192:B193)","v":0},{"$f":"SUM(C192:C193)","v":0},0]
["% needing GDR",{"$f":"IFERROR((B192/B194)*100, \"---\")","v":"---"},{"$f":"IFERROR((C192/C194)*100, \"---\")","v":"---"},{"$f":"IFERROR((D192/D194)*100, \"---\")","v":"---"}]
[]
[]
[]
[]
["Reason no GDR attempted","Total","Short Stay","Long Stay"]
["N/A",{"$f":"COUNTIFS(T4:T111,\"N/A\")","v":0},{"$f":"COUNTIFS(T4:T111,\"N/A\",D4:D111,\"Short Term\")","v":0},{"$f":"COUNTIFS(T4:T111,\"N/A\",D4:D111,\"Long Term\")","v":0}]
["Resident on lowest possible dose",{"$f":"COUNTIFS(T4:T111,\"Resident on lowest possible dose\")","v":0},{"$f":"COUNTIFS(T4:T111,\"Resident on lowest possible dose\",D4:D111,\"Short Term\")","v":0},{"$f":"COUNTIFS(T4:T111,\"Resident on lowest possible dose\",D4:D111,\"Long Term\")","v":0}]
["Contraindicated per prescriber",{"$f":"COUNTIFS(T4:T111,\"Contraindicated per prescriber\")","v":0},{"$f":"COUNTIFS(T4:T111,\"Contraindicated per prescriber\",D4:D111,\"Short Term\")","v":0},{"$f":"COUNTIFS(T4:T111,\"Contraindicated per prescriber\",D4:D111,\"Long Term\")","v":0}]
["Other",{"$f":"COUNTIFS(T4:T111,\"Other\")","v":0},{"$f":"COUNTIFS(T4:T111,\"Other\",D4:D111,\"Short Term\")","v":0},{"$f":"COUNTIFS(T4:T111,\"Other\",D4:D111,\"Long Term\")","v":0}]
["Total",{"$f":"SUM(B201:B204)","v":0},{"$f":"SUM(C201:C204)","v":0},0]
["% resident on lowest possible dose",{"$f":"IFERROR((B202/B205)*100, \"---\")","v":"---"},{"$f":"IFERROR((C202/C205)*100, \"---\")","v":"---"},{"$f":"IFERROR((D202/D205)*100, \"---\")","v":"---"}]
["% contraindicated per prescriber",{"$f":"IFERROR((B203/B205)*100, \"---\")","v":"---"},{"$f":"IFERROR((C203/C205)*100, \"---\")","v":"---"},{"$f":"IFERROR((D203/D205)*100, \"---\")","v":"---"}]
["% other",{"$f":"IFERROR((B204/B205)*100, \"---\")","v":"---"},{"$f":"IFERROR((C204/C205)*100, \"---\")","v":"---"},{"$f":"IFERROR((D204/D205)*100, \"---\")","v":"---"}]
[]
[]
[]
[]
["Adverse Effects","Total","Short Stay","Long Stay"]
["Yes",{"$f":"COUNTIFS(U4:U111,\"Yes\")","v":0},{"$f":"COUNTIFS(U4:U111,\"Yes\",D4:D111,\"Short Term\")","v":0},{"$f":"COUNTIFS(U4:U111,\"Yes\",D4:D111,\"Long Term\")","v":0}]
["No",{"$f":"COUNTIFS(U4:U111,\"No\")","v":0},{"$f":"COUNTIFS(U4:U111,\"No\",D4:D111,\"Short Term\")","v":0},{"$f":"COUNTIFS(U4:U111,\"No\",D4:D111,\"Long Term\")","v":0}]
["Total",{"$f":"SUM(B214:B215)","v":0},{"$f":"SUM(C214:C215)","v":0},0]
["% with adverse effects",{"$f":"IFERROR((B214/B216)*100, \"---\")","v":"---"},{"$f":"IFERROR(((C214/C216)*100), \"---\")","v":"---"},{"$f":"IFERROR((D214/D216)*100, \"---\")","v":"---"}]

{"sheet":"September","index":10,"n_rows":217,"n_cols":22,"rows_kept":217,"cut":false,"hidden":false,"merged":[[1,0,1,4],[1,5,1,21],[0,0,0,2],[0,4,0,5]]}
["End of Month Census :",null,null,null,"Current residents on antipsychotics:",null,{"$f":"SUMPRODUCT((A4:A112<>\"\")/COUNTIF(A4:A112,A4:A112&\"\"))","v":0},"Percentage of residents on antipsychotic:",{"$f":"IFERROR((G1/D1)*100, \"---\")","v":"---"}]
["Resident Information",null,null,null,null,"Antipsychotic Medication Information"]
["Room #","Last Name","First Name","Type of Stay","Notes (New Admit, etc)","Antipsychotic Drug Prescribed","Prescriber","Dose Schedule","Date Started","Where was medication started?","Diagnosis associated with antipsychotic","Is Dx Appropriate? (See directions)","List BPSD","Appropriate BPSD documented?","List Non Drug Interventions tried","Non Drug Intv documented?","Date of most recent GDR","Outcome of GDR","GDR Needed?","Reasons for no GDR being attempted","Has resident experienced adverse drug effects?","If yes, describe adverse effects"]
[]
[]
[]
[]
[]
[]
[]
[]
[]
[]
[]
[]
[]
[]
[]
[]
[]
[]
[]
[]
[]
[]
[]
[]
[]
[]
[]
[]
[]
[]
[]
[]
[]
[]
[]
[]
[]
[]
[]
[]
[]
[]
[]
[]
[]
[]
[]
[]
[]
[]
[]
[]
[]
[]
[]
[]
[]
[]
[]
[]
[]
[]
[]
[]
[]
[]
[]
[]
[]
[]
[]
[]
[]
[]
[]
[]
[]
[]
[]
[]
[]
[]
[]
[]
[]
[]
[]
[]
[]
[]
[]
[]
[]
[]
[]
[]
[]
[]
[]
[]
[]
[]
[]
[]
[]
[]
[]
[]
[null,null,"TOTALS",null,null,null,null,null,null,null,null,{"$f":"COUNTIF(L4:L111,\"Yes\")","v":0},{"$f":"COUNTIF(M4:M111,\"Yes\")","v":0},{"$f":"COUNTIF(N4:N111,\"Yes\")","v":0},{"$f":"COUNTIF(P4:P111,\"Yes\")","v":0},{"$f":"COUNTIF(Q4:Q111,\"Yes\")","v":0},null,{"$f":"SUM(S4:S111)","v":0},{"$f":"SUM(T4:T111)","v":0}]
[]
[]
[]
[]
[]
[]
["Type of Stay Breakdown"]
["Short Stay",{"$f":"COUNTIF(D4:D111,\"Short Term\")","v":0}]
["Long Stay",{"$f":"COUNTIF(D4:D111,\"Long Term\")","v":0}]
["Total",{"$f":"B120+B121","v":0}]
[]
[]
[]
["Dose Schedule","Total","Short Stay","Long Stay"]
["Scheduled",{"$f":"COUNTIFS(H4:H111,\"Scheduled\")","v":0},{"$f":"COUNTIFS(H4:H111,\"Scheduled\",D4:D111,\"Short Term\")","v":0},{"$f":"COUNTIFS(H4:H111,\"Scheduled\",D4:D111,\"Long Term\")","v":0}]
["PRN",{"$f":"COUNTIFS(H4:H111,\"PRN\")","v":0},{"$f":"COUNTIFS(H4:H111,\"PRN\",D4:D111,\"Short Term\")","v":0},{"$f":"COUNTIFS(H4:H111,\"PRN\",D4:D111,\"Long Term\")","v":0}]
["Both",{"$f":"COUNTIFS(H4:H111,\"Both\")","v":0},{"$f":"COUNTIFS(H4:H111,\"Both\",D4:D111,\"Short Term\")","v":0},{"$f":"COUNTIFS(H4:H111,\"Both\",D4:D111,\"Long Term\")","v":0}]
["Total",{"$f":"SUM(B127:B129)","v":0},{"$f":"SUM(C127:C129)","v":0},0]
["% on a scheduled dose",{"$f":"IFERROR(((B127/$B$130)*100), \"---\")","v":"---"},{"$f":"IFERROR(((C127/C130)*100), \"---\")","v":"---"},{"$f":"IFERROR(((D127/D130)*100), \"---\")","v":"---"}]
["% on a PRN dose",{"$f":"IFERROR(((B128/$B$130)*100), \"---\")","v":"---"},{"$f":"IFERROR(((C128/$C$130)*100), \"---\")","v":"---"},{"$f":"IFERROR(((D128/$D$130)*100), \"---\")","v":"---"}]
["% on both sched & PRN","---",{"$f":"IFERROR(((C129/C130)*100),\"---\")","v":"---"},{"$f":"IFERROR(((D129/D130)*100), \"---\")","v":"---"}]
[]
[]
[]
["Where Medication Started","Total","Short Stay","Long Stay"]
["SNF",{"$f":"COUNTIFS(J4:J111,\"SNF\")","v":0},{"$f":"COUNTIFS(J4:J111,\"SNF\",D4:D111,\"Short Term\")","v":0},{"$f":"COUNTIFS(J4:J111,\"SNF\",D4:D111,\"Long Term\")","v":0}]
["Hospital",{"$f":"COUNTIFS(J4:J111,\"Hospital\")","v":0},{"$f":"COUNTIFS(J4:J111,\"Hospital\",D4:D111,\"Short Term\")","v":0},{"$f":"COUNTIFS(J4:J111,\"Hospital\",D4:D111,\"Long Term\")","v":0}]
["Outpatient",{"$f":"COUNTIFS(J4:J111,\"Outpatient\")","v":0},{"$f":"COUNTIFS(J4:J111,\"Outpatient\",D4:D111,\"Short Term\")","v":0},{"$f":"COUNTIFS(J4:J111,\"Outpatient\",D4:D111,\"Long Term\")","v":0}]
["Total",{"$f":"SUM(B138:B140)","v":0},{"$f":"SUM(C138:C140)","v":0},0]
["% started in SNF",{"$f":"IFERROR((B138/B141)*100, \"---\")","v":"---"},{"$f":"IFERROR((C138/C141)*100, \"---\")","v":"---"},{"$f":"IFERROR((D138/D141)*100, \"---\")","v":"---"}]
["% started in hospital",{"$f":"IFERROR((B139/B141)*100, \"---\")","v":"---"},{"$f":"IFERROR((C139/C141)*100, \"---\")","v":"---"},{"$f":"IFERROR((D139/D141)*100, \"---\")","v":"---"}]
["% started in outpatient",{"$f":"IFERROR((B140/B141)*100, \"---\")","v":"---"},{"$f":"IFERROR((C140/C141)*100, \"---\")","v":"---"},{"$f":"IFERROR((D140/D141)*100, \"---\")","v":"---"}]
[]
[]
[]
[]
["Dx appropriate","Total","Short Stay","Long Stay"]
["Yes",{"$f":"COUNTIFS(L4:L111,\"Yes\")","v":0},{"$f":"COUNTIFS(L4:L111,\"Yes\",D4:D111,\"Short Term\")","v":0},{"$f":"COUNTIFS(L4:L111,\"Yes\",D4:D111,\"Long Term\")","v":0}]
["No",{"$f":"COUNTIFS(L4:L111,\"No\")","v":0},{"$f":"COUNTIFS(L4:L111,\"No\",D4:D111,\"Short Term\")","v":0},{"$f":"COUNTIFS(L4:L111,\"No\",D4:D111,\"Long Term\")","v":0}]
["Total",{"$f":"SUM(B150:B151)","v":0},{"$f":"SUM(C150:C151)","v":0},0]
["% with appropriate diagnosis",{"$f":"IFERROR((B150/B152)*100, \"---\")","v":"---"},{"$f":"IFERROR((C150/C152)*100, \"---\")","v":"---"},{"$f":"IFERROR((D150/D152)*100, \"---\")","v":"---"}]
[]
[]
[]
[]
["BPSD documented","Total","Short Stay","Long Stay"]
["Yes",{"$f":"COUNTIFS(N4:N111,\"Yes\")","v":0},{"$f":"COUNTIFS(N4:N111,\"Yes\",D4:D111,\"Short Term\")","v":0},{"$f":"COUNTIFS(N4:N111,\"Yes\",D4:D111,\"Long Term\")","v":0}]
["No",{"$f":"COUNTIFS(N4:N111,\"No\")","v":0},{"$f":"COUNTIFS(N4:N111,\"No\",D4:D111,\"Short Term\")","v":0},{"$f":"COUNTIFS(N4:N111,\"No\",D4:D111,\"Long Term\")","v":0}]
["N/A",{"$f":"COUNTIFS(N4:N111,\"N/A\")","v":0},{"$f":"COUNTIFS(N4:N111,\"N/A\",D4:D111,\"Short Term\")","v":0},{"$f":"COUNTIFS(N4:N111,\"N/A\",D4:D111,\"Long Term\")","v":0}]
["Total",{"$f":"SUM(B159:B161)","v":0},{"$f":"SUM(C159:C161)","v":0},0]
["% needing BPSD documented",{"$f":"IFERROR((B160/(B159+B160))*100, \"---\")","v":"---"},{"$f":"IFERROR((C160/(C159+C160))*100, \"---\")","v":"---"},{"$f":"IFERROR((D160/(D159+D160))*100, \"---\")","v":"---"}]
[]
[]
[]
[]
["Non drug interventions documented","Total","Short Stay","Long Stay"]
["Yes",{"$f":"COUNTIFS(P4:P111,\"Yes\")","v":0},{"$f":"COUNTIFS(P4:P111,\"Yes\",D4:D111,\"Short Term\")","v":0},{"$f":"COUNTIFS(P4:P111,\"Yes\",D4:D111,\"Long Term\")","v":0}]
["No",{"$f":"COUNTIFS(P4:P111,\"No\")","v":0},{"$f":"COUNTIFS(P4:P111,\"No\",D4:D111,\"Short Term\")","v":0},{"$f":"COUNTIFS(P4:P111,\"No\",D4:D111,\"Long Term\")","v":0}]
["N/A",{"$f":"COUNTIFS(P4:P111,\"N/A\")","v":0},{"$f":"COUNTIFS(P4:P111,\"N/A\",D4:D111,\"Short Term\")","v":0},{"$f":"COUNTIFS(P4:P111,\"N/A\",D4:D111,\"Long Term\")","v":0}]
["Total",{"$f":"SUM(B169:B171)","v":0},{"$f":"SUM(C169:C171)","v":0},0]
["% without non drug interventions documented",{"$f":"IFERROR((B170/(B169+B170))*100, \"---\")","v":"---"},{"$f":"IFERROR((C170/(C169+C170))*100, \"---\")","v":"---"},{"$f":"IFERROR((D170/(D169+D170))*100, \"---\")","v":"---"}]
[]
[]
[]
[]
["GDR Outcome","Total","Short Stay","Long Stay"]
["Dose reduced",{"$f":"COUNTIFS(R4:R111,\"Dose reduced\")","v":0},{"$f":"COUNTIFS(R4:R111,\"Dose reduced\",D4:D111,\"Short Term\")","v":0},{"$f":"COUNTIFS(R4:R111,\"Dose reduced\",D4:D111,\"Long Term\")","v":0}]
["Dose discontinued",{"$f":"COUNTIFS(R4:R111,\"Drug discontinued\")","v":0},{"$f":"COUNTIFS(R4:R111,\"Drug discontinued\",D4:D111,\"Short Term\")","v":0},{"$f":"COUNTIFS(R4:R111,\"Drug discontinued\",D4:D111,\"Long Term\")","v":0}]
["Return to previous dose",{"$f":"COUNTIFS(R4:R111,\"Return to previous dose\")","v":0},{"$f":"COUNTIFS(R4:R111,\"Return to previous dose\",D4:D111,\"Short Term\")","v":0},{"$f":"COUNTIFS(R4:R111,\"Return to previous dose\",D4:D111,\"Long Term\")","v":0}]
["Total",{"$f":"SUM(B179:B181)","v":0},{"$f":"SUM(C179:C181)","v":0},0]
["dose reduced or dc'd",{"$f":"B179+B180","v":0},{"$f":"C179+C180","v":0},0]
["% dose reduction",{"$f":"IFERROR((B179/B182)*100, \"---\")","v":"---"},{"$f":"IFERROR((C179/C182)*100, \"---\")","v":"---"},{"$f":"IFERROR((D179/D182)*100, \"---\")","v":"---"}]
["% dose discontinued",{"$f":"IFERROR((B180/B182)*100, \"---\")","v":"---"},{"$f":"IFERROR((C180/C182)*100, \"---\")","v":"---"},{"$f":"IFERROR((D180/D182)*100, \"---\")","v":"---"}]
["% dose reduced or discontinued",{"$f":"IFERROR((B183/B182)*100, \"---\")","v":"---"},{"$f":"IFERROR((C183/C182)*100, \"---\")","v":"---"},{"$f":"IFERROR((D183/D182)*100, \"---\")","v":"---"}]
[]
[]
[]
[]
["GDR needed","Total","Short Stay","Long Stay"]
["Yes",{"$f":"COUNTIFS(S4:S111,\"Yes\")","v":0},{"$f":"COUNTIFS(S4:S111,\"Yes\",D4:D111,\"Short Term\")","v":0},{"$f":"COUNTIFS(S4:S111,\"Yes\",D4:D111,\"Long Term\")","v":0}]
["No",{"$f":"COUNTIFS(S4:S111,\"No\")","v":0},{"$f":"COUNTIFS(S4:S111,\"No\",D4:D111,\"Short Term\")","v":0},{"$f":"COUNTIFS(S4:S111,\"No\",D4:D111,\"Long Term\")","v":0}]
["Total",{"$f":"SUM(B192:B193)","v":0},{"$f":"SUM(C192:C193)","v":0},0]
["% needing GDR",{"$f":"IFERROR((B192/B194)*100, \"---\")","v":"---"},{"$f":"IFERROR((C192/C194)*100, \"---\")","v":"---"},{"$f":"IFERROR((D192/D194)*100, \"---\")","v":"---"}]
[]
[]
[]
[]
["Reason no GDR attempted","Total","Short Stay","Long Stay"]
["N/A",{"$f":"COUNTIFS(T4:T111,\"N/A\")","v":0},{"$f":"COUNTIFS(T4:T111,\"N/A\",D4:D111,\"Short Term\")","v":0},{"$f":"COUNTIFS(T4:T111,\"N/A\",D4:D111,\"Long Term\")","v":0}]
["Resident on lowest possible dose",{"$f":"COUNTIFS(T4:T111,\"Resident on lowest possible dose\")","v":0},{"$f":"COUNTIFS(T4:T111,\"Resident on lowest possible dose\",D4:D111,\"Short Term\")","v":0},{"$f":"COUNTIFS(T4:T111,\"Resident on lowest possible dose\",D4:D111,\"Long Term\")","v":0}]
["Contraindicated per prescriber",{"$f":"COUNTIFS(T4:T111,\"Contraindicated per prescriber\")","v":0},{"$f":"COUNTIFS(T4:T111,\"Contraindicated per prescriber\",D4:D111,\"Short Term\")","v":0},{"$f":"COUNTIFS(T4:T111,\"Contraindicated per prescriber\",D4:D111,\"Long Term\")","v":0}]
["Other",{"$f":"COUNTIFS(T4:T111,\"Other\")","v":0},{"$f":"COUNTIFS(T4:T111,\"Other\",D4:D111,\"Short Term\")","v":0},{"$f":"COUNTIFS(T4:T111,\"Other\",D4:D111,\"Long Term\")","v":0}]
["Total",{"$f":"SUM(B201:B204)","v":0},{"$f":"SUM(C201:C204)","v":0},0]
["% resident on lowest possible dose",{"$f":"IFERROR((B202/B205)*100, \"---\")","v":"---"},{"$f":"IFERROR((C202/C205)*100, \"---\")","v":"---"},{"$f":"IFERROR((D202/D205)*100, \"---\")","v":"---"}]
["% contraindicated per prescriber",{"$f":"IFERROR((B203/B205)*100, \"---\")","v":"---"},{"$f":"IFERROR((C203/C205)*100, \"---\")","v":"---"},{"$f":"IFERROR((D203/D205)*100, \"---\")","v":"---"}]
["% other",{"$f":"IFERROR((B204/B205)*100, \"---\")","v":"---"},{"$f":"IFERROR((C204/C205)*100, \"---\")","v":"---"},{"$f":"IFERROR((D204/D205)*100, \"---\")","v":"---"}]
[]
[]
[]
[]
["Adverse Effects","Total","Short Stay","Long Stay"]
["Yes",{"$f":"COUNTIFS(U4:U111,\"Yes\")","v":0},{"$f":"COUNTIFS(U4:U111,\"Yes\",D4:D111,\"Short Term\")","v":0},{"$f":"COUNTIFS(U4:U111,\"Yes\",D4:D111,\"Long Term\")","v":0}]
["No",{"$f":"COUNTIFS(U4:U111,\"No\")","v":0},{"$f":"COUNTIFS(U4:U111,\"No\",D4:D111,\"Short Term\")","v":0},{"$f":"COUNTIFS(U4:U111,\"No\",D4:D111,\"Long Term\")","v":0}]
["Total",{"$f":"SUM(B214:B215)","v":0},{"$f":"SUM(C214:C215)","v":0},0]
["% with adverse effects",{"$f":"IFERROR((B214/B216)*100, \"---\")","v":"---"},{"$f":"IFERROR((C214/C216)*100, \"---\")","v":"---"},{"$f":"IFERROR((D214/D216)*100, \"---\")","v":"---"}]

{"sheet":"October","index":11,"n_rows":217,"n_cols":22,"rows_kept":217,"cut":false,"hidden":false,"merged":[[1,0,1,4],[1,5,1,21],[0,0,0,2],[0,4,0,5]]}
["End of Month Census :",null,null,null,"Current residents on antipsychotics:",null,{"$f":"SUMPRODUCT((A4:A112<>\"\")/COUNTIF(A4:A112,A4:A112&\"\"))","v":0},"Percentage of residents on antipsychotic:",{"$f":"IFERROR((G1/D1)*100, \"---\")","v":"---"}]
["Resident Information",null,null,null,null,"Antipsychotic Medication Information"]
["Room #","Last Name","First Name","Type of Stay","Notes (New Admit, etc)","Antipsychotic Drug Prescribed","Prescriber","Dose Schedule","Date Started","Where was medication started?","Diagnosis associated with antipsychotic","Is Dx Appropriate? (See directions)","List BPSD","Appropriate BPSD documented?","List Non Drug Interventions tried","Non Drug Intv documented?","Date of most recent GDR","Outcome of GDR","GDR Needed?","Reasons for no GDR being attempted","Has resident experienced adverse drug effects?","If yes, describe adverse effects"]
[]
[]
[]
[]
[]
[]
[]
[]
[]
[]
[]
[]
[]
[]
[]
[]
[]
[]
[]
[]
[]
[]
[]
[]
[]
[]
[]
[]
[]
[]
[]
[]
[]
[]
[]
[]
[]
[]
[]
[]
[]
[]
[]
[]
[]
[]
[]
[]
[]
[]
[]
[]
[]
[]
[]
[]
[]
[]
[]
[]
[]
[]
[]
[]
[]
[]
[]
[]
[]
[]
[]
[]
[]
[]
[]
[]
[]
[]
[]
[]
[]
[]
[]
[]
[]
[]
[]
[]
[]
[]
[]
[]
[]
[]
[]
[]
[]
[]
[]
[]
[]
[]
[]
[]
[]
[]
[]
[]
[null,null,"TOTALS",null,null,null,null,null,null,null,null,{"$f":"COUNTIF(L4:L111,\"Yes\")","v":0},{"$f":"COUNTIF(M4:M111,\"Yes\")","v":0},{"$f":"COUNTIF(N4:N111,\"Yes\")","v":0},{"$f":"COUNTIF(P4:P111,\"Yes\")","v":0},{"$f":"COUNTIF(Q4:Q111,\"Yes\")","v":0},null,{"$f":"SUM(S4:S111)","v":0},{"$f":"SUM(T4:T111)","v":0}]
[]
[]
[]
[]
[]
[]
["Type of Stay Breakdown"]
["Short Stay",{"$f":"COUNTIF(D4:D111,\"Short Term\")","v":0}]
["Long Stay",{"$f":"COUNTIF(D4:D111,\"Long Term\")","v":0}]
["Total",{"$f":"B120+B121","v":0}]
[]
[]
[]
["Dose Schedule","Total","Short Stay","Long Stay"]
["Scheduled",{"$f":"COUNTIFS(H4:H111,\"Scheduled\")","v":0},{"$f":"COUNTIFS(H4:H111,\"Scheduled\",D4:D111,\"Short Term\")","v":0},{"$f":"COUNTIFS(H4:H111,\"Scheduled\",D4:D111,\"Long Term\")","v":0}]
["PRN",{"$f":"COUNTIFS(H4:H111,\"PRN\")","v":0},{"$f":"COUNTIFS(H4:H111,\"PRN\",D4:D111,\"Short Term\")","v":0},{"$f":"COUNTIFS(H4:H111,\"PRN\",D4:D111,\"Long Term\")","v":0}]
["Both",{"$f":"COUNTIFS(H4:H111,\"Both\")","v":0},{"$f":"COUNTIFS(H4:H111,\"Both\",D4:D111,\"Short Term\")","v":0},{"$f":"COUNTIFS(H4:H111,\"Both\",D4:D111,\"Long Term\")","v":0}]
["Total",{"$f":"SUM(B127:B129)","v":0},{"$f":"SUM(C127:C129)","v":0},0]
["% on a scheduled dose",{"$f":"IFERROR(((B127/$B$130)*100), \"---\")","v":"---"},{"$f":"IFERROR(((C127/C130)*100), \"---\")","v":"---"},{"$f":"IFERROR(((D127/D130)*100), \"---\")","v":"---"}]
["% on a PRN dose",{"$f":"IFERROR(((B128/$B$130)*100), \"---\")","v":"---"},{"$f":"IFERROR(((C128/$C$130)*100), \"---\")","v":"---"},{"$f":"IFERROR(((D128/$D$130)*100), \"---\")","v":"---"}]
["% on both sched & PRN","---",{"$f":"IFERROR(((C129/C130)*100),\"---\")","v":"---"},{"$f":"IFERROR(((D129/D130)*100), \"---\")","v":"---"}]
[]
[]
[]
["Where Medication Started","Total","Short Stay","Long Stay"]
["SNF",{"$f":"COUNTIFS(J4:J111,\"SNF\")","v":0},{"$f":"COUNTIFS(J4:J111,\"SNF\",D4:D111,\"Short Term\")","v":0},{"$f":"COUNTIFS(J4:J111,\"SNF\",D4:D111,\"Long Term\")","v":0}]
["Hospital",{"$f":"COUNTIFS(J4:J111,\"Hospital\")","v":0},{"$f":"COUNTIFS(J4:J111,\"Hospital\",D4:D111,\"Short Term\")","v":0},{"$f":"COUNTIFS(J4:J111,\"Hospital\",D4:D111,\"Long Term\")","v":0}]
["Outpatient",{"$f":"COUNTIFS(J4:J111,\"Outpatient\")","v":0},{"$f":"COUNTIFS(J4:J111,\"Outpatient\",D4:D111,\"Short Term\")","v":0},{"$f":"COUNTIFS(J4:J111,\"Outpatient\",D4:D111,\"Long Term\")","v":0}]
["Total",{"$f":"SUM(B138:B140)","v":0},{"$f":"SUM(C138:C140)","v":0},0]
["% started in SNF",{"$f":"IFERROR((B138/B141)*100, \"---\")","v":"---"},{"$f":"IFERROR((C138/C141)*100, \"---\")","v":"---"},{"$f":"IFERROR((D138/D141)*100, \"---\")","v":"---"}]
["% started in hospital",{"$f":"IFERROR((B139/B141)*100, \"---\")","v":"---"},{"$f":"IFERROR((C139/C141)*100, \"---\")","v":"---"},{"$f":"IFERROR((D139/D141)*100, \"---\")","v":"---"}]
["% started in outpatient",{"$f":"IFERROR((B140/B141)*100, \"---\")","v":"---"},{"$f":"IFERROR((C140/C141)*100, \"---\")","v":"---"},{"$f":"IFERROR((D140/D141)*100, \"---\")","v":"---"}]
[]
[]
[]
[]
["Dx appropriate","Total","Short Stay","Long Stay"]
["Yes",{"$f":"COUNTIFS(L4:L111,\"Yes\")","v":0},{"$f":"COUNTIFS(L4:L111,\"Yes\",D4:D111,\"Short Term\")","v":0},{"$f":"COUNTIFS(L4:L111,\"Yes\",D4:D111,\"Long Term\")","v":0}]
["No",{"$f":"COUNTIFS(L4:L111,\"No\")","v":0},{"$f":"COUNTIFS(L4:L111,\"No\",D4:D111,\"Short Term\")","v":0},{"$f":"COUNTIFS(L4:L111,\"No\",D4:D111,\"Long Term\")","v":0}]
["Total",{"$f":"SUM(B150:B151)","v":0},{"$f":"SUM(C150:C151)","v":0},0]
["% with appropriate diagnosis",{"$f":"IFERROR((B150/B152)*100, \"---\")","v":"---"},{"$f":"IFERROR((C150/C152)*100, \"---\")","v":"---"},{"$f":"IFERROR((D150/D152)*100, \"---\")","v":"---"}]
[]
[]
[]
[]
["BPSD documented","Total","Short Stay","Long Stay"]
["Yes",{"$f":"COUNTIFS(N4:N111,\"Yes\")","v":0},{"$f":"COUNTIFS(N4:N111,\"Yes\",D4:D111,\"Short Term\")","v":0},{"$f":"COUNTIFS(N4:N111,\"Yes\",D4:D111,\"Long Term\")","v":0}]
["No",{"$f":"COUNTIFS(N4:N111,\"No\")","v":0},{"$f":"COUNTIFS(N4:N111,\"No\",D4:D111,\"Short Term\")","v":0},{"$f":"COUNTIFS(N4:N111,\"No\",D4:D111,\"Long Term\")","v":0}]
["N/A",{"$f":"COUNTIFS(N4:N111,\"N/A\")","v":0},{"$f":"COUNTIFS(N4:N111,\"N/A\",D4:D111,\"Short Term\")","v":0},{"$f":"COUNTIFS(N4:N111,\"N/A\",D4:D111,\"Long Term\")","v":0}]
["Total",{"$f":"SUM(B159:B161)","v":0},{"$f":"SUM(C159:C161)","v":0},0]
["% needing BPSD documented",{"$f":"IFERROR((B160/(B159+B160))*100, \"---\")","v":"---"},{"$f":"IFERROR((C160/(C159+C160))*100, \"---\")","v":"---"},{"$f":"IFERROR((D160/(D159+D160))*100, \"---\")","v":"---"}]
[]
[]
[]
[]
["Non drug interventions documented","Total","Short Stay","Long Stay"]
["Yes",{"$f":"COUNTIFS(P4:P111,\"Yes\")","v":0},{"$f":"COUNTIFS(P4:P111,\"Yes\",D4:D111,\"Short Term\")","v":0},{"$f":"COUNTIFS(P4:P111,\"Yes\",D4:D111,\"Long Term\")","v":0}]
["No",{"$f":"COUNTIFS(P4:P111,\"No\")","v":0},{"$f":"COUNTIFS(P4:P111,\"No\",D4:D111,\"Short Term\")","v":0},{"$f":"COUNTIFS(P4:P111,\"No\",D4:D111,\"Long Term\")","v":0}]
["N/A",{"$f":"COUNTIFS(P4:P111,\"N/A\")","v":0},{"$f":"COUNTIFS(P4:P111,\"N/A\",D4:D111,\"Short Term\")","v":0},{"$f":"COUNTIFS(P4:P111,\"N/A\",D4:D111,\"Long Term\")","v":0}]
["Total",{"$f":"SUM(B169:B171)","v":0},{"$f":"SUM(C169:C171)","v":0},0]
["% without non drug interventions documented",{"$f":"IFERROR((B170/(B169+B170))*100, \"---\")","v":"---"},{"$f":"IFERROR((C170/(C169+C170))*100, \"---\")","v":"---"},{"$f":"IFERROR((D170/(D169+D170))*100, \"---\")","v":"---"}]
[]
[]
[]
[]
["GDR Outcome","Total","Short Stay","Long Stay"]
["Dose reduced",{"$f":"COUNTIFS(R4:R111,\"Dose reduced\")","v":0},{"$f":"COUNTIFS(R4:R111,\"Dose reduced\",D4:D111,\"Short Term\")","v":0},{"$f":"COUNTIFS(R4:R111,\"Dose reduced\",D4:D111,\"Long Term\")","v":0}]
["Dose discontinued",{"$f":"COUNTIFS(R4:R111,\"Drug discontinued\")","v":0},{"$f":"COUNTIFS(R4:R111,\"Drug discontinued\",D4:D111,\"Short Term\")","v":0},{"$f":"COUNTIFS(R4:R111,\"Drug discontinued\",D4:D111,\"Long Term\")","v":0}]
["Return to previous dose",{"$f":"COUNTIFS(R4:R111,\"Return to previous dose\")","v":0},{"$f":"COUNTIFS(R4:R111,\"Return to previous dose\",D4:D111,\"Short Term\")","v":0},{"$f":"COUNTIFS(R4:R111,\"Return to previous dose\",D4:D111,\"Long Term\")","v":0}]
["Total",{"$f":"SUM(B179:B181)","v":0},{"$f":"SUM(C179:C181)","v":0},0]
["dose reduced or dc'd",{"$f":"B179+B180","v":0},{"$f":"C179+C180","v":0},0]
["% dose reduction",{"$f":"IFERROR((B179/B182)*100, \"---\")","v":"---"},{"$f":"IFERROR((C179/C182)*100, \"---\")","v":"---"},{"$f":"IFERROR((D179/D182)*100, \"---\")","v":"---"}]
["% dose discontinued",{"$f":"IFERROR((B180/B182)*100, \"---\")","v":"---"},{"$f":"IFERROR((C180/C182)*100, \"---\")","v":"---"},{"$f":"IFERROR((D180/D182)*100, \"---\")","v":"---"}]
["% dose reduced or discontinued",{"$f":"IFERROR((B183/B182)*100, \"---\")","v":"---"},{"$f":"IFERROR((C183/C182)*100, \"---\")","v":"---"},{"$f":"IFERROR((D183/D182)*100, \"---\")","v":"---"}]
[]
[]
[]
[]
["GDR needed","Total","Short Stay","Long Stay"]
["Yes",{"$f":"COUNTIFS(S4:S111,\"Yes\")","v":0},{"$f":"COUNTIFS(S4:S111,\"Yes\",D4:D111,\"Short Term\")","v":0},{"$f":"COUNTIFS(S4:S111,\"Yes\",D4:D111,\"Long Term\")","v":0}]
["No",{"$f":"COUNTIFS(S4:S111,\"No\")","v":0},{"$f":"COUNTIFS(S4:S111,\"No\",D4:D111,\"Short Term\")","v":0},{"$f":"COUNTIFS(S4:S111,\"No\",D4:D111,\"Long Term\")","v":0}]
["Total",{"$f":"SUM(B192:B193)","v":0},{"$f":"SUM(C192:C193)","v":0},0]
["% needing GDR",{"$f":"IFERROR((B192/B194)*100, \"---\")","v":"---"},{"$f":"IFERROR((C192/C194)*100, \"---\")","v":"---"},{"$f":"IFERROR((D192/D194)*100, \"---\")","v":"---"}]
[]
[]
[]
[]
["Reason no GDR attempted","Total","Short Stay","Long Stay"]
["N/A",{"$f":"COUNTIFS(T4:T111,\"N/A\")","v":0},{"$f":"COUNTIFS(T4:T111,\"N/A\",D4:D111,\"Short Term\")","v":0},{"$f":"COUNTIFS(T4:T111,\"N/A\",D4:D111,\"Long Term\")","v":0}]
["Resident on lowest possible dose",{"$f":"COUNTIFS(T4:T111,\"Resident on lowest possible dose\")","v":0},{"$f":"COUNTIFS(T4:T111,\"Resident on lowest possible dose\",D4:D111,\"Short Term\")","v":0},{"$f":"COUNTIFS(T4:T111,\"Resident on lowest possible dose\",D4:D111,\"Long Term\")","v":0}]
["Contraindicated per prescriber",{"$f":"COUNTIFS(T4:T111,\"Contraindicated per prescriber\")","v":0},{"$f":"COUNTIFS(T4:T111,\"Contraindicated per prescriber\",D4:D111,\"Short Term\")","v":0},{"$f":"COUNTIFS(T4:T111,\"Contraindicated per prescriber\",D4:D111,\"Long Term\")","v":0}]
["Other",{"$f":"COUNTIFS(T4:T111,\"Other\")","v":0},{"$f":"COUNTIFS(T4:T111,\"Other\",D4:D111,\"Short Term\")","v":0},{"$f":"COUNTIFS(T4:T111,\"Other\",D4:D111,\"Long Term\")","v":0}]
["Total",{"$f":"SUM(B201:B204)","v":0},{"$f":"SUM(C201:C204)","v":0},0]
["% resident on lowest possible dose",{"$f":"IFERROR((B202/B205)*100, \"---\")","v":"---"},{"$f":"IFERROR((C202/C205)*100,\"---\")","v":"---"},{"$f":"IFERROR((D202/D205)*100, \"---\")","v":"---"}]
["% contraindicated per prescriber",{"$f":"IFERROR((B203/B205)*100, \"---\")","v":"---"},{"$f":"IFERROR((C203/C205)*100, \"---\")","v":"---"},{"$f":"IFERROR((D203/D205)*100, \"---\")","v":"---"}]
["% other",{"$f":"IFERROR((B204/B205)*100, \"---\")","v":"---"},{"$f":"IFERROR((C204/C205)*100, \"---\")","v":"---"},{"$f":"IFERROR((D204/D205)*100, \"---\")","v":"---"}]
[]
[]
[]
[]
["Adverse Effects","Total","Short Stay","Long Stay"]
["Yes",{"$f":"COUNTIFS(U4:U111,\"Yes\")","v":0},{"$f":"COUNTIFS(U4:U111,\"Yes\",D4:D111,\"Short Term\")","v":0},{"$f":"COUNTIFS(U4:U111,\"Yes\",D4:D111,\"Long Term\")","v":0}]
["No",{"$f":"COUNTIFS(U4:U111,\"No\")","v":0},{"$f":"COUNTIFS(U4:U111,\"No\",D4:D111,\"Short Term\")","v":0},{"$f":"COUNTIFS(U4:U111,\"No\",D4:D111,\"Long Term\")","v":0}]
["Total",{"$f":"SUM(B214:B215)","v":0},{"$f":"SUM(C214:C215)","v":0},0]
["% with adverse effects",{"$f":"IFERROR((B214/B216)*100, \"---\")","v":"---"},{"$f":"IFERROR((C214/C216)*100, \"---\")","v":"---"},{"$f":"IFERROR((D214/D216)*100, \"---\")","v":"---"}]

{"sheet":"November","index":12,"n_rows":217,"n_cols":22,"rows_kept":217,"cut":false,"hidden":false,"merged":[[1,0,1,4],[1,5,1,21],[0,0,0,2],[0,4,0,5]]}
["End of Month Census :",null,null,null,"Current residents on antipsychotics:",null,{"$f":"SUMPRODUCT((A4:A112<>\"\")/COUNTIF(A4:A112,A4:A112&\"\"))","v":0},"Percentage of residents on antipsychotic:",{"$f":"IFERROR((G1/D1)*100, \"---\")","v":"---"}]
["Resident Information",null,null,null,null,"Antipsychotic Medication Information"]
["Room #","Last Name","First Name","Type of Stay","Notes (New Admit, etc)","Antipsychotic Drug Prescribed","Prescriber","Dose Schedule","Date Started","Where was medication started?","Diagnosis associated with antipsychotic","Is Dx Appropriate? (See directions)","List BPSD","Appropriate BPSD documented?","List Non Drug Interventions tried","Non Drug Intv documented?","Date of most recent GDR","Outcome of GDR","GDR Needed?","Reasons for no GDR being attempted","Has resident experienced adverse drug effects?","If yes, describe adverse effects"]
[]
[]
[]
[]
[]
[]
[]
[]
[]
[]
[]
[]
[]
[]
[]
[]
[]
[]
[]
[]
[]
[]
[]
[]
[]
[]
[]
[]
[]
[]
[]
[]
[]
[]
[]
[]
[]
[]
[]
[]
[]
[]
[]
[]
[]
[]
[]
[]
[]
[]
[]
[]
[]
[]
[]
[]
[]
[]
[]
[]
[]
[]
[]
[]
[]
[]
[]
[]
[]
[]
[]
[]
[]
[]
[]
[]
[]
[]
[]
[]
[]
[]
[]
[]
[]
[]
[]
[]
[]
[]
[]
[]
[]
[]
[]
[]
[]
[]
[]
[]
[]
[]
[]
[]
[]
[]
[]
[]
[null,null,"TOTALS",null,null,null,null,null,null,null,null,{"$f":"COUNTIF(L4:L111,\"Yes\")","v":0},{"$f":"COUNTIF(M4:M111,\"Yes\")","v":0},{"$f":"COUNTIF(N4:N111,\"Yes\")","v":0},{"$f":"COUNTIF(P4:P111,\"Yes\")","v":0},{"$f":"COUNTIF(Q4:Q111,\"Yes\")","v":0},null,{"$f":"SUM(S4:S111)","v":0},{"$f":"SUM(T4:T111)","v":0}]
[]
[]
[]
[]
[]
[]
["Type of Stay Breakdown"]
["Short Stay",{"$f":"COUNTIF(D4:D111,\"Short Term\")","v":0}]
["Long Stay",{"$f":"COUNTIF(D4:D111,\"Long Term\")","v":0}]
["Total",{"$f":"B120+B121","v":0}]
[]
[]
[]
["Dose Schedule","Total","Short Stay","Long Stay"]
["Scheduled",{"$f":"COUNTIFS(H4:H111,\"Scheduled\")","v":0},{"$f":"COUNTIFS(H4:H111,\"Scheduled\",D4:D111,\"Short Term\")","v":0},{"$f":"COUNTIFS(H4:H111,\"Scheduled\",D4:D111,\"Long Term\")","v":0}]
["PRN",{"$f":"COUNTIFS(H4:H111,\"PRN\")","v":0},{"$f":"COUNTIFS(H4:H111,\"PRN\",D4:D111,\"Short Term\")","v":0},{"$f":"COUNTIFS(H4:H111,\"PRN\",D4:D111,\"Long Term\")","v":0}]
["Both",{"$f":"COUNTIFS(H4:H111,\"Both\")","v":0},{"$f":"COUNTIFS(H4:H111,\"Both\",D4:D111,\"Short Term\")","v":0},{"$f":"COUNTIFS(H4:H111,\"Both\",D4:D111,\"Long Term\")","v":0}]
["Total",{"$f":"SUM(B127:B129)","v":0},{"$f":"SUM(C127:C129)","v":0},0]
["% on a scheduled dose",{"$f":"IFERROR(((B127/$B$130)*100), \"---\")","v":"---"},{"$f":"IFERROR(((C127/C130)*100), \"---\")","v":"---"},{"$f":"IFERROR(((D127/D130)*100), \"---\")","v":"---"}]
["% on a PRN dose",{"$f":"IFERROR(((B128/$B$130)*100), \"---\")","v":"---"},{"$f":"IFERROR(((C128/$C$130)*100), \"---\")","v":"---"},{"$f":"IFERROR(((D128/$D$130)*100), \"---\")","v":"---"}]
["% on both sched & PRN","---",{"$f":"IFERROR(((C129/C130)*100),\"---\")","v":"---"},{"$f":"IFERROR(((D129/D130)*100), \"---\")","v":"---"}]
[]
[]
[]
["Where Medication Started","Total","Short Stay","Long Stay"]
["SNF",{"$f":"COUNTIFS(J4:J111,\"SNF\")","v":0},{"$f":"COUNTIFS(J4:J111,\"SNF\",D4:D111,\"Short Term\")","v":0},{"$f":"COUNTIFS(J4:J111,\"SNF\",D4:D111,\"Long Term\")","v":0}]
["Hospital",{"$f":"COUNTIFS(J4:J111,\"Hospital\")","v":0},{"$f":"COUNTIFS(J4:J111,\"Hospital\",D4:D111,\"Short Term\")","v":0},{"$f":"COUNTIFS(J4:J111,\"Hospital\",D4:D111,\"Long Term\")","v":0}]
["Outpatient",{"$f":"COUNTIFS(J4:J111,\"Outpatient\")","v":0},{"$f":"COUNTIFS(J4:J111,\"Outpatient\",D4:D111,\"Short Term\")","v":0},{"$f":"COUNTIFS(J4:J111,\"Outpatient\",D4:D111,\"Long Term\")","v":0}]
["Total",{"$f":"SUM(B138:B140)","v":0},{"$f":"SUM(C138:C140)","v":0},0]
["% started in SNF",{"$f":"IFERROR((B138/B141)*100, \"---\")","v":"---"},{"$f":"IFERROR((C138/C141)*100, \"---\")","v":"---"},{"$f":"IFERROR((D138/D141)*100, \"---\")","v":"---"}]
["% started in hospital",{"$f":"IFERROR((B139/B141)*100, \"---\")","v":"---"},{"$f":"IFERROR((C139/C141)*100, \"---\")","v":"---"},{"$f":"IFERROR((D139/D141)*100, \"---\")","v":"---"}]
["% started in outpatient",{"$f":"IFERROR((B140/B141)*100, \"---\")","v":"---"},{"$f":"IFERROR((C140/C141)*100, \"---\")","v":"---"},{"$f":"IFERROR((D140/D141)*100, \"---\")","v":"---"}]
[]
[]
[]
[]
["Dx appropriate","Total","Short Stay","Long Stay"]
["Yes",{"$f":"COUNTIFS(L4:L111,\"Yes\")","v":0},{"$f":"COUNTIFS(L4:L111,\"Yes\",D4:D111,\"Short Term\")","v":0},{"$f":"COUNTIFS(L4:L111,\"Yes\",D4:D111,\"Long Term\")","v":0}]
["No",{"$f":"COUNTIFS(L4:L111,\"No\")","v":0},{"$f":"COUNTIFS(L4:L111,\"No\",D4:D111,\"Short Term\")","v":0},{"$f":"COUNTIFS(L4:L111,\"No\",D4:D111,\"Long Term\")","v":0}]
["Total",{"$f":"SUM(B150:B151)","v":0},{"$f":"SUM(C150:C151)","v":0},0]
["% with appropriate diagnosis",{"$f":"IFERROR((B150/B152)*100, \"---\")","v":"---"},{"$f":"IFERROR((C150/C152)*100, \"---\")","v":"---"},{"$f":"IFERROR((D150/D152)*100, \"---\")","v":"---"}]
[]
[]
[]
[]
["BPSD documented","Total","Short Stay","Long Stay"]
["Yes",{"$f":"COUNTIFS(N4:N111,\"Yes\")","v":0},{"$f":"COUNTIFS(N4:N111,\"Yes\",D4:D111,\"Short Term\")","v":0},{"$f":"COUNTIFS(N4:N111,\"Yes\",D4:D111,\"Long Term\")","v":0}]
["No",{"$f":"COUNTIFS(N4:N111,\"No\")","v":0},{"$f":"COUNTIFS(N4:N111,\"No\",D4:D111,\"Short Term\")","v":0},{"$f":"COUNTIFS(N4:N111,\"No\",D4:D111,\"Long Term\")","v":0}]
["N/A",{"$f":"COUNTIFS(N4:N111,\"N/A\")","v":0},{"$f":"COUNTIFS(N4:N111,\"N/A\",D4:D111,\"Short Term\")","v":0},{"$f":"COUNTIFS(N4:N111,\"N/A\",D4:D111,\"Long Term\")","v":0}]
["Total",{"$f":"SUM(B159:B161)","v":0},{"$f":"SUM(C159:C161)","v":0},0]
["% needing BPSD documented",{"$f":"IFERROR((B160/(B159+B160))*100, \"---\")","v":"---"},{"$f":"IFERROR((C160/(C159+C160))*100, \"---\")","v":"---"},{"$f":"IFERROR((D160/(D159+D160))*100, \"---\")","v":"---"}]
[]
[]
[]
[]
["Non drug interventions documented","Total","Short Stay","Long Stay"]
["Yes",{"$f":"COUNTIFS(P4:P111,\"Yes\")","v":0},{"$f":"COUNTIFS(P4:P111,\"Yes\",D4:D111,\"Short Term\")","v":0},{"$f":"COUNTIFS(P4:P111,\"Yes\",D4:D111,\"Long Term\")","v":0}]
["No",{"$f":"COUNTIFS(P4:P111,\"No\")","v":0},{"$f":"COUNTIFS(P4:P111,\"No\",D4:D111,\"Short Term\")","v":0},{"$f":"COUNTIFS(P4:P111,\"No\",D4:D111,\"Long Term\")","v":0}]
["N/A",{"$f":"COUNTIFS(P4:P111,\"N/A\")","v":0},{"$f":"COUNTIFS(P4:P111,\"N/A\",D4:D111,\"Short Term\")","v":0},{"$f":"COUNTIFS(P4:P111,\"N/A\",D4:D111,\"Long Term\")","v":0}]
["Total",{"$f":"SUM(B169:B171)","v":0},{"$f":"SUM(C169:C171)","v":0},0]
["% without non drug interventions documented",{"$f":"IFERROR((B170/(B169+B170))*100, \"---\")","v":"---"},{"$f":"IFERROR((C170/(C169+C170))*100, \"---\")","v":"---"},{"$f":"IFERROR((D170/(D169+D170))*100, \"---\")","v":"---"}]
[]
[]
[]
[]
["GDR Outcome","Total","Short Stay","Long Stay"]
["Dose reduced",{"$f":"COUNTIFS(R4:R111,\"Dose reduced\")","v":0},{"$f":"COUNTIFS(R4:R111,\"Dose reduced\",D4:D111,\"Short Term\")","v":0},{"$f":"COUNTIFS(R4:R111,\"Dose reduced\",D4:D111,\"Long Term\")","v":0}]
["Dose discontinued",{"$f":"COUNTIFS(R4:R111,\"Drug discontinued\")","v":0},{"$f":"COUNTIFS(R4:R111,\"Drug discontinued\",D4:D111,\"Short Term\")","v":0},{"$f":"COUNTIFS(R4:R111,\"Drug discontinued\",D4:D111,\"Long Term\")","v":0}]
["Return to previous dose",{"$f":"COUNTIFS(R4:R111,\"Return to previous dose\")","v":0},{"$f":"COUNTIFS(R4:R111,\"Return to previous dose\",D4:D111,\"Short Term\")","v":0},{"$f":"COUNTIFS(R4:R111,\"Return to previous dose\",D4:D111,\"Long Term\")","v":0}]
["Total",{"$f":"SUM(B179:B181)","v":0},{"$f":"SUM(C179:C181)","v":0},0]
["dose reduced or dc'd",{"$f":"B179+B180","v":0},{"$f":"C179+C180","v":0},0]
["% dose reduction",{"$f":"IFERROR((B179/B182)*100, \"---\")","v":"---"},{"$f":"IFERROR((C179/C182)*100, \"---\")","v":"---"},{"$f":"IFERROR((D179/D182)*100, \"---\")","v":"---"}]
["% dose discontinued",{"$f":"IFERROR((B180/B182)*100, \"---\")","v":"---"},{"$f":"IFERROR((C180/C182)*100, \"---\")","v":"---"},{"$f":"IFERROR((D180/D182)*100, \"---\")","v":"---"}]
["% dose reduced or discontinued",{"$f":"IFERROR((B183/B182)*100, \"---\")","v":"---"},{"$f":"IFERROR((C183/C182)*100, \"---\")","v":"---"},{"$f":"IFERROR((D183/D182)*100, \"---\")","v":"---"}]
[]
[]
[]
[]
["GDR needed","Total","Short Stay","Long Stay"]
["Yes",{"$f":"COUNTIFS(S4:S111,\"Yes\")","v":0},{"$f":"COUNTIFS(S4:S111,\"Yes\",D4:D111,\"Short Term\")","v":0},{"$f":"COUNTIFS(S4:S111,\"Yes\",D4:D111,\"Long Term\")","v":0}]
["No",{"$f":"COUNTIFS(S4:S111,\"No\")","v":0},{"$f":"COUNTIFS(S4:S111,\"No\",D4:D111,\"Short Term\")","v":0},{"$f":"COUNTIFS(S4:S111,\"No\",D4:D111,\"Long Term\")","v":0}]
["Total",{"$f":"SUM(B192:B193)","v":0},{"$f":"SUM(C192:C193)","v":0},0]
["% needing GDR",{"$f":"IFERROR((B192/B194)*100, \"---\")","v":"---"},{"$f":"IFERROR((C192/C194)*100, \"---\")","v":"---"},{"$f":"IFERROR((D192/D194)*100, \"---\")","v":"---"}]
[]
[]
[]
[]
["Reason no GDR attempted","Total","Short Stay","Long Stay"]
["N/A",{"$f":"COUNTIFS(T4:T111,\"N/A\")","v":0},{"$f":"COUNTIFS(T4:T111,\"N/A\",D4:D111,\"Short Term\")","v":0},{"$f":"COUNTIFS(T4:T111,\"N/A\",D4:D111,\"Long Term\")","v":0}]
["Resident on lowest possible dose",{"$f":"COUNTIFS(T4:T111,\"Resident on lowest possible dose\")","v":0},{"$f":"COUNTIFS(T4:T111,\"Resident on lowest possible dose\",D4:D111,\"Short Term\")","v":0},{"$f":"COUNTIFS(T4:T111,\"Resident on lowest possible dose\",D4:D111,\"Long Term\")","v":0}]
["Contraindicated per prescriber",{"$f":"COUNTIFS(T4:T111,\"Contraindicated per prescriber\")","v":0},{"$f":"COUNTIFS(T4:T111,\"Contraindicated per prescriber\",D4:D111,\"Short Term\")","v":0},{"$f":"COUNTIFS(T4:T111,\"Contraindicated per prescriber\",D4:D111,\"Long Term\")","v":0}]
["Other",{"$f":"COUNTIFS(T4:T111,\"Other\")","v":0},{"$f":"COUNTIFS(T4:T111,\"Other\",D4:D111,\"Short Term\")","v":0},{"$f":"COUNTIFS(T4:T111,\"Other\",D4:D111,\"Long Term\")","v":0}]
["Total",{"$f":"SUM(B201:B204)","v":0},{"$f":"SUM(C201:C204)","v":0},0]
["% resident on lowest possible dose",{"$f":"IFERROR((B202/B205)*100, \"---\")","v":"---"},{"$f":"IFERROR((C202/C205)*100, \"---\")","v":"---"},{"$f":"IFERROR((D202/D205)*100, \"---\")","v":"---"}]
["% contraindicated per prescriber",{"$f":"IFERROR((B203/B205)*100, \"---\")","v":"---"},{"$f":"IFERROR((C203/C205)*100,\"---\")","v":"---"},{"$f":"IFERROR((D203/D205)*100, \"---\")","v":"---"}]
["% other",{"$f":"IFERROR((B204/B205)*100, \"---\")","v":"---"},{"$f":"IFERROR((C204/C205)*100, \"---\")","v":"---"},{"$f":"IFERROR((D204/D205)*100, \"---\")","v":"---"}]
[]
[]
[]
[]
["Adverse Effects","Total","Short Stay","Long Stay"]
["Yes",{"$f":"COUNTIFS(U4:U111,\"Yes\")","v":0},{"$f":"COUNTIFS(U4:U111,\"Yes\",D4:D111,\"Short Term\")","v":0},{"$f":"COUNTIFS(U4:U111,\"Yes\",D4:D111,\"Long Term\")","v":0}]
["No",{"$f":"COUNTIFS(U4:U111,\"No\")","v":0},{"$f":"COUNTIFS(U4:U111,\"No\",D4:D111,\"Short Term\")","v":0},{"$f":"COUNTIFS(U4:U111,\"No\",D4:D111,\"Long Term\")","v":0}]
["Total",{"$f":"SUM(B214:B215)","v":0},{"$f":"SUM(C214:C215)","v":0},0]
["% with adverse effects",{"$f":"IFERROR((B214/B216)*100, \"---\")","v":"---"},{"$f":"IFERROR((C214/C216)*100, \"---\")","v":"---"},{"$f":"IFERROR((D214/D216)*100, \"---\")","v":"---"}]

{"sheet":"December","index":13,"n_rows":217,"n_cols":22,"rows_kept":217,"cut":false,"hidden":false,"merged":[[1,0,1,4],[1,5,1,21],[0,0,0,2],[0,4,0,5]]}
["End of Month Census :",null,null,null,"Current residents on antipsychotics:",null,{"$f":"SUMPRODUCT((A4:A112<>\"\")/COUNTIF(A4:A112,A4:A112&\"\"))","v":0},"Percentage of residents on antipsychotic:",{"$f":"IFERROR((G1/D1)*100, \"---\")","v":"---"}]
["Resident Information",null,null,null,null,"Antipsychotic Medication Information"]
["Room #","Last Name","First Name","Type of Stay","Notes (New Admit, etc.)","Antipsychotic Drug Prescribed","Prescriber","Dose Schedule","Date Started","Where was medication started?","Diagnosis associated with antipsychotic","Is Dx Appropriate? (See directions)","List BPSD","Appropriate BPSD documented?","List Non Drug Interventions tried","Non Drug Intv documented?","Date of most recent GDR","Outcome of GDR","GDR Needed?","Reasons for no GDR being attempted","Has resident experienced adverse drug effects?","If yes, describe adverse effects"]
[]
[]
[]
[]
[]
[]
[]
[]
[]
[]
[]
[]
[]
[]
[]
[]
[]
[]
[]
[]
[]
[]
[]
[]
[]
[]
[]
[]
[]
[]
[]
[]
[]
[]
[]
[]
[]
[]
[]
[]
[]
[]
[]
[]
[]
[]
[]
[]
[]
[]
[]
[]
[]
[]
[]
[]
[]
[]
[]
[]
[]
[]
[]
[]
[]
[]
[]
[]
[]
[]
[]
[]
[]
[]
[]
[]
[]
[]
[]
[]
[]
[]
[]
[]
[]
[]
[]
[]
[]
[]
[]
[]
[]
[]
[]
[]
[]
[]
[]
[]
[]
[]
[]
[]
[]
[]
[]
[]
[null,null,"TOTALS",null,null,null,null,null,null,null,null,{"$f":"COUNTIF(L4:L111,\"Yes\")","v":0},{"$f":"COUNTIF(M4:M111,\"Yes\")","v":0},{"$f":"COUNTIF(N4:N111,\"Yes\")","v":0},{"$f":"COUNTIF(P4:P111,\"Yes\")","v":0},{"$f":"COUNTIF(Q4:Q111,\"Yes\")","v":0},null,{"$f":"SUM(S4:S111)","v":0},{"$f":"SUM(T4:T111)","v":0}]
[]
[]
[]
[]
[]
[]
["Type of Stay Breakdown"]
["Short Stay",{"$f":"COUNTIF(D4:D111,\"Short Term\")","v":0}]
["Long Stay",{"$f":"COUNTIF(D4:D111,\"Long Term\")","v":0}]
["Total",{"$f":"B120+B121","v":0}]
[]
[]
[]
["Dose Schedule","Total","Short Stay","Long Stay"]
["Scheduled",{"$f":"COUNTIFS(H4:H111,\"Scheduled\")","v":0},{"$f":"COUNTIFS(H4:H111,\"Scheduled\",D4:D111,\"Short Term\")","v":0},{"$f":"COUNTIFS(H4:H111,\"Scheduled\",D4:D111,\"Long Term\")","v":0}]
["PRN",{"$f":"COUNTIFS(H4:H111,\"PRN\")","v":0},{"$f":"COUNTIFS(H4:H111,\"PRN\",D4:D111,\"Short Term\")","v":0},{"$f":"COUNTIFS(H4:H111,\"PRN\",D4:D111,\"Long Term\")","v":0}]
["Both",{"$f":"COUNTIFS(H4:H111,\"Both\")","v":0},{"$f":"COUNTIFS(H4:H111,\"Both\",D4:D111,\"Short Term\")","v":0},{"$f":"COUNTIFS(H4:H111,\"Both\",D4:D111,\"Long Term\")","v":0}]
["Total",{"$f":"SUM(B127:B129)","v":0},{"$f":"SUM(C127:C129)","v":0},0]
["% on a scheduled dose",{"$f":"IFERROR(((B127/$B$130)*100), \"---\")","v":"---"},{"$f":"IFERROR(((C127/C130)*100), \"---\")","v":"---"},{"$f":"IFERROR(((D127/D130)*100), \"---\")","v":"---"}]
["% on a PRN dose",{"$f":"IFERROR(((B128/$B$130)*100), \"---\")","v":"---"},{"$f":"IFERROR(((C128/$C$130)*100), \"---\")","v":"---"},{"$f":"IFERROR(((D128/$D$130)*100), \"---\")","v":"---"}]
["% on both sched & PRN","---",{"$f":"IFERROR(((C129/C130)*100),\"---\")","v":"---"},{"$f":"IFERROR(((D129/D130)*100), \"---\")","v":"---"}]
[]
[]
[]
["Where Medication Started","Total","Short Stay","Long Stay"]
["SNF",{"$f":"COUNTIFS(J4:J111,\"SNF\")","v":0},{"$f":"COUNTIFS(J4:J111,\"SNF\",D4:D111,\"Short Term\")","v":0},{"$f":"COUNTIFS(J4:J111,\"SNF\",D4:D111,\"Long Term\")","v":0}]
["Hospital",{"$f":"COUNTIFS(J4:J111,\"Hospital\")","v":0},{"$f":"COUNTIFS(J4:J111,\"Hospital\",D4:D111,\"Short Term\")","v":0},{"$f":"COUNTIFS(J4:J111,\"Hospital\",D4:D111,\"Long Term\")","v":0}]
["Outpatient",{"$f":"COUNTIFS(J4:J111,\"Outpatient\")","v":0},{"$f":"COUNTIFS(J4:J111,\"Outpatient\",D4:D111,\"Short Term\")","v":0},{"$f":"COUNTIFS(J4:J111,\"Outpatient\",D4:D111,\"Long Term\")","v":0}]
["Total",{"$f":"SUM(B138:B140)","v":0},{"$f":"SUM(C138:C140)","v":0},0]
["% started in SNF",{"$f":"IFERROR((B138/B141)*100, \"---\")","v":"---"},{"$f":"IFERROR((C138/C141)*100, \"---\")","v":"---"},{"$f":"IFERROR((D138/D141)*100, \"---\")","v":"---"}]
["% started in hospital",{"$f":"IFERROR((B139/B141)*100, \"---\")","v":"---"},{"$f":"IFERROR((C139/C141)*100, \"---\")","v":"---"},{"$f":"IFERROR((D139/D141)*100, \"---\")","v":"---"}]
["% started in outpatient",{"$f":"IFERROR((B140/B141)*100,\"---\")","v":"---"},{"$f":"IFERROR((C140/C141)*100, \"---\")","v":"---"},{"$f":"IFERROR((D140/D141)*100, \"---\")","v":"---"}]
[]
[]
[]
[]
["Dx appropriate","Total","Short Stay","Long Stay"]
["Yes",{"$f":"COUNTIFS(L4:L111,\"Yes\")","v":0},{"$f":"COUNTIFS(L4:L111,\"Yes\",D4:D111,\"Short Term\")","v":0},{"$f":"COUNTIFS(L4:L111,\"Yes\",D4:D111,\"Long Term\")","v":0}]
["No",{"$f":"COUNTIFS(L4:L111,\"No\")","v":0},{"$f":"COUNTIFS(L4:L111,\"No\",D4:D111,\"Short Term\")","v":0},{"$f":"COUNTIFS(L4:L111,\"No\",D4:D111,\"Long Term\")","v":0}]
["Total",{"$f":"SUM(B150:B151)","v":0},{"$f":"SUM(C150:C151)","v":0},0]
["% with appropriate diagnosis",{"$f":"IFERROR((B150/B152)*100, \"---\")","v":"---"},{"$f":"IFERROR((C150/C152)*100, \"---\")","v":"---"},{"$f":"IFERROR((D150/D152)*100, \"---\")","v":"---"}]
[]
[]
[]
[]
["BPSD documented","Total","Short Stay","Long Stay"]
["Yes",{"$f":"COUNTIFS(N4:N111,\"Yes\")","v":0},{"$f":"COUNTIFS(N4:N111,\"Yes\",D4:D111,\"Short Term\")","v":0},{"$f":"COUNTIFS(N4:N111,\"Yes\",D4:D111,\"Long Term\")","v":0}]
["No",{"$f":"COUNTIFS(N4:N111,\"No\")","v":0},{"$f":"COUNTIFS(N4:N111,\"No\",D4:D111,\"Short Term\")","v":0},{"$f":"COUNTIFS(N4:N111,\"No\",D4:D111,\"Long Term\")","v":0}]
["N/A",{"$f":"COUNTIFS(N4:N111,\"N/A\")","v":0},{"$f":"COUNTIFS(N4:N111,\"N/A\",D4:D111,\"Short Term\")","v":0},{"$f":"COUNTIFS(N4:N111,\"N/A\",D4:D111,\"Long Term\")","v":0}]
["Total",{"$f":"SUM(B159:B161)","v":0},{"$f":"SUM(C159:C161)","v":0},0]
["% needing BPSD documented",{"$f":"IFERROR((B160/(B159+B160))*100, \"---\")","v":"---"},{"$f":"IFERROR((C160/(C159+C160))*100, \"---\")","v":"---"},{"$f":"IFERROR((D160/(D159+D160))*100, \"---\")","v":"---"}]
[]
[]
[]
[]
["Non drug interventions documented","Total","Short Stay","Long Stay"]
["Yes",{"$f":"COUNTIFS(P4:P111,\"Yes\")","v":0},{"$f":"COUNTIFS(P4:P111,\"Yes\",D4:D111,\"Short Term\")","v":0},{"$f":"COUNTIFS(P4:P111,\"Yes\",D4:D111,\"Long Term\")","v":0}]
["No",{"$f":"COUNTIFS(P4:P111,\"No\")","v":0},{"$f":"COUNTIFS(P4:P111,\"No\",D4:D111,\"Short Term\")","v":0},{"$f":"COUNTIFS(P4:P111,\"No\",D4:D111,\"Long Term\")","v":0}]
["N/A",{"$f":"COUNTIFS(P4:P111,\"N/A\")","v":0},{"$f":"COUNTIFS(P4:P111,\"N/A\",D4:D111,\"Short Term\")","v":0},{"$f":"COUNTIFS(P4:P111,\"N/A\",D4:D111,\"Long Term\")","v":0}]
["Total",{"$f":"SUM(B169:B171)","v":0},{"$f":"SUM(C169:C171)","v":0},0]
["% without non drug interventions documented",{"$f":"IFERROR((B170/(B169+B170))*100, \"---\")","v":"---"},{"$f":"IFERROR((C170/(C169+C170))*100, \"---\")","v":"---"},{"$f":"IFERROR((D170/(D169+D170))*100, \"---\")","v":"---"}]
[]
[]
[]
[]
["GDR Outcome","Total","Short Stay","Long Stay"]
["Dose reduced",{"$f":"COUNTIFS(R4:R111,\"Dose reduced\")","v":0},{"$f":"COUNTIFS(R4:R111,\"Dose reduced\",D4:D111,\"Short Term\")","v":0},{"$f":"COUNTIFS(R4:R111,\"Dose reduced\",D4:D111,\"Long Term\")","v":0}]
["Dose discontinued",{"$f":"COUNTIFS(R4:R111,\"Drug discontinued\")","v":0},{"$f":"COUNTIFS(R4:R111,\"Drug discontinued\",D4:D111,\"Short Term\")","v":0},{"$f":"COUNTIFS(R4:R111,\"Drug discontinued\",D4:D111,\"Long Term\")","v":0}]
["Return to previous dose",{"$f":"COUNTIFS(R4:R111,\"Return to previous dose\")","v":0},{"$f":"COUNTIFS(R4:R111,\"Return to previous dose\",D4:D111,\"Short Term\")","v":0},{"$f":"COUNTIFS(R4:R111,\"Return to previous dose\",D4:D111,\"Long Term\")","v":0}]
["Total",{"$f":"SUM(B179:B181)","v":0},{"$f":"SUM(C179:C181)","v":0},0]
["dose reduced or dc'd",{"$f":"B179+B180","v":0},{"$f":"C179+C180","v":0},0]
["% dose reduction",{"$f":"IFERROR((B179/B182)*100, \"---\")","v":"---"},{"$f":"IFERROR((C179/C182)*100, \"---\")","v":"---"},{"$f":"IFERROR((D179/D182)*100, \"---\")","v":"---"}]
["% dose discontinued",{"$f":"IFERROR((B180/B182)*100, \"---\")","v":"---"},{"$f":"IFERROR((C180/C182)*100, \"---\")","v":"---"},{"$f":"IFERROR((D180/D182)*100, \"---\")","v":"---"}]
["% dose reduced or discontinued",{"$f":"IFERROR((B183/B182)*100, \"---\")","v":"---"},{"$f":"IFERROR((C183/C182)*100, \"---\")","v":"---"},{"$f":"IFERROR((D183/D182)*100, \"---\")","v":"---"}]
[]
[]
[]
[]
["GDR needed","Total","Short Stay","Long Stay"]
["Yes",{"$f":"COUNTIFS(S4:S111,\"Yes\")","v":0},{"$f":"COUNTIFS(S4:S111,\"Yes\",D4:D111,\"Short Term\")","v":0},{"$f":"COUNTIFS(S4:S111,\"Yes\",D4:D111,\"Long Term\")","v":0}]
["No",{"$f":"COUNTIFS(S4:S111,\"No\")","v":0},{"$f":"COUNTIFS(S4:S111,\"No\",D4:D111,\"Short Term\")","v":0},{"$f":"COUNTIFS(S4:S111,\"No\",D4:D111,\"Long Term\")","v":0}]
["Total",{"$f":"SUM(B192:B193)","v":0},{"$f":"SUM(C192:C193)","v":0},0]
["% needing GDR",{"$f":"IFERROR((B192/B194)*100, \"---\")","v":"---"},{"$f":"IFERROR((C192/C194)*100, \"---\")","v":"---"},{"$f":"IFERROR((D192/D194)*100, \"---\")","v":"---"}]
[]
[]
[]
[]
["Reason no GDR attempted","Total","Short Stay","Long Stay"]
["N/A",{"$f":"COUNTIFS(T4:T111,\"N/A\")","v":0},{"$f":"COUNTIFS(T4:T111,\"N/A\",D4:D111,\"Short Term\")","v":0},{"$f":"COUNTIFS(T4:T111,\"N/A\",D4:D111,\"Long Term\")","v":0}]
["Resident on lowest possible dose",{"$f":"COUNTIFS(T4:T111,\"Resident on lowest possible dose\")","v":0},{"$f":"COUNTIFS(T4:T111,\"Resident on lowest possible dose\",D4:D111,\"Short Term\")","v":0},{"$f":"COUNTIFS(T4:T111,\"Resident on lowest possible dose\",D4:D111,\"Long Term\")","v":0}]
["Contraindicated per prescriber",{"$f":"COUNTIFS(T4:T111,\"Contraindicated per prescriber\")","v":0},{"$f":"COUNTIFS(T4:T111,\"Contraindicated per prescriber\",D4:D111,\"Short Term\")","v":0},{"$f":"COUNTIFS(T4:T111,\"Contraindicated per prescriber\",D4:D111,\"Long Term\")","v":0}]
["Other",{"$f":"COUNTIFS(T4:T111,\"Other\")","v":0},{"$f":"COUNTIFS(T4:T111,\"Other\",D4:D111,\"Short Term\")","v":0},{"$f":"COUNTIFS(T4:T111,\"Other\",D4:D111,\"Long Term\")","v":0}]
["Total",{"$f":"SUM(B201:B204)","v":0},{"$f":"SUM(C201:C204)","v":0},0]
["% resident on lowest possible dose",{"$f":"IFERROR((B202/B205)*100, \"---\")","v":"---"},{"$f":"IFERROR((C202/C205)*100, \"---\")","v":"---"},{"$f":"IFERROR((D202/D205)*100, \"---\")","v":"---"}]
["% contraindicated per prescriber",{"$f":"IFERROR((B203/B205)*100, \"---\")","v":"---"},{"$f":"IFERROR((C203/C205)*100, \"---\")","v":"---"},{"$f":"IFERROR((D203/D205)*100, \"---\")","v":"---"}]
["% other",{"$f":"IFERROR((B204/B205)*100, \"---\")","v":"---"},{"$f":"IFERROR((C204/C205)*100,\"---\")","v":"---"},{"$f":"IFERROR((D204/D205)*100, \"---\")","v":"---"}]
[]
[]
[]
[]
["Adverse Effects","Total","Short Stay","Long Stay"]
["Yes",{"$f":"COUNTIFS(U4:U111,\"Yes\")","v":0},{"$f":"COUNTIFS(U4:U111,\"Yes\",D4:D111,\"Short Term\")","v":0},{"$f":"COUNTIFS(U4:U111,\"Yes\",D4:D111,\"Long Term\")","v":0}]
["No",{"$f":"COUNTIFS(U4:U111,\"No\")","v":0},{"$f":"COUNTIFS(U4:U111,\"No\",D4:D111,\"Short Term\")","v":0},{"$f":"COUNTIFS(U4:U111,\"No\",D4:D111,\"Long Term\")","v":0}]
["Total",{"$f":"SUM(B214:B215)","v":0},{"$f":"SUM(C214:C215)","v":0},0]
["% with adverse effects",{"$f":"IFERROR((B214/B216)*100, \"---\")","v":"---"},{"$f":"IFERROR((C214/C216)*100, \"---\")","v":"---"},{"$f":"IFERROR((D214/D216)*100, \"---\")","v":"---"}]

{"sheet":"Trending Charts","index":14,"n_rows":0,"n_cols":0,"rows_kept":0,"cut":false,"hidden":false,"merged":[]}

{"sheet":"Detail Charts","index":15,"n_rows":0,"n_cols":0,"rows_kept":0,"cut":false,"hidden":false,"merged":[]}

{"sheet":"Trending Data","index":16,"n_rows":107,"n_cols":14,"rows_kept":107,"cut":false,"hidden":true,"merged":[]}
["Antipsychotic","Totals","Jan","Feb","March","April","May","June","Jul","Aug","Sept","Oct","Nov","Dec"]
["Type of Stay","Short Stay",{"$f":"IFERROR((January!$B$120),\"---\")","v":0},{"$f":"IFERROR((February!$B$120),\"---\")","v":0},{"$f":"IFERROR((March!$B$120),\"---\")","v":0},{"$f":"IFERROR((April!$B$120),\"---\")","v":0},{"$f":"IFERROR((May!$B$120),\"---\")","v":0},{"$f":"IFERROR((June!$B$120),\"---\")","v":0},{"$f":"IFERROR((July!$B$120),\"---\")","v":0},{"$f":"IFERROR((August!$B$120),\"---\")","v":0},{"$f":"IFERROR((September!$B$120),\"---\")","v":0},{"$f":"IFERROR((October!$B$120),\"---\")","v":0},{"$f":"IFERROR((November!$B$120),\"---\")","v":0},{"$f":"IFERROR((December!$B$120),\"---\")","v":0}]
["Type of Stay","Long Stay",{"$f":"IFERROR((January!$B$121),\"---\")","v":0},{"$f":"IFERROR((February!$B$121),\"---\")","v":0},{"$f":"IFERROR((March!$B$121),\"---\")","v":0},{"$f":"IFERROR((April!$B$121),\"---\")","v":0},{"$f":"IFERROR((May!$B$121),\"---\")","v":0},{"$f":"IFERROR((June!$B$121),\"---\")","v":0},{"$f":"IFERROR((July!$B$121),\"---\")","v":0},{"$f":"IFERROR((August!$B$121),\"---\")","v":0},{"$f":"IFERROR((September!$B$121),\"---\")","v":0},{"$f":"IFERROR((October!$B$121),\"---\")","v":0},{"$f":"IFERROR((November!$B$121),\"---\")","v":0},{"$f":"IFERROR((December!$B$121),\"---\")","v":0}]
["Type of Stay","Total",{"$f":"IFERROR((January!$B$122),\"---\")","v":0},{"$f":"IFERROR((February!$B$122),\"---\")","v":0},{"$f":"IFERROR((March!$B$122),\"---\")","v":0},{"$f":"IFERROR((April!$B$122),\"---\")","v":0},{"$f":"IFERROR((May!$B$122),\"---\")","v":0},{"$f":"IFERROR((June!$B$122),\"---\")","v":0},{"$f":"IFERROR((July!$B$122),\"---\")","v":0},{"$f":"IFERROR((August!$B$122),\"---\")","v":0},{"$f":"IFERROR((September!$B$122),\"---\")","v":0},{"$f":"IFERROR((October!$B$122),\"---\")","v":0},{"$f":"IFERROR((November!$B$122),\"---\")","v":0},{"$f":"IFERROR((December!$B$122),\"---\")","v":0}]
["Dose Scheduled","Short Stay",{"$f":"IFERROR((January!$C$127),\"---\")","v":0},{"$f":"IFERROR((February!$C$127),\"---\")","v":0},{"$f":"IFERROR((March!$C$127),\"---\")","v":0},{"$f":"IFERROR((April!$C$127),\"---\")","v":0},{"$f":"IFERROR((May!$C$127),\"---\")","v":0},{"$f":"IFERROR((June!$C$127),\"---\")","v":0},{"$f":"IFERROR((July!$C$127),\"---\")","v":0},{"$f":"IFERROR((August!$C$127),\"---\")","v":0},{"$f":"IFERROR((September!$C$127),\"---\")","v":0},{"$f":"IFERROR((October!$C$127),\"---\")","v":0},{"$f":"IFERROR((November!$C$127),\"---\")","v":0},{"$f":"IFERROR((December!$C$127),\"---\")","v":0}]
["Dose Scheduled","Long Stay",{"$f":"IFERROR((January!$D$127),\"---\")","v":0},{"$f":"IFERROR((February!$D$127),\"---\")","v":0},{"$f":"IFERROR((March!$D$127),\"---\")","v":0},{"$f":"IFERROR((April!$D$127),\"---\")","v":0},{"$f":"IFERROR((May!$D$127),\"---\")","v":0},{"$f":"IFERROR((June!$D$127),\"---\")","v":0},{"$f":"IFERROR((July!$D$127),\"---\")","v":0},{"$f":"IFERROR((August!$D$127),\"---\")","v":0},{"$f":"IFERROR((September!$D$127),\"---\")","v":0},{"$f":"IFERROR((October!$D$127),\"---\")","v":0},{"$f":"IFERROR((November!$D$127),\"---\")","v":0},{"$f":"IFERROR((December!$D$127),\"---\")","v":0}]
["Dose Scheduled","Total",{"$f":"IFERROR((January!$B$127),\"---\")","v":0},{"$f":"IFERROR((February!$B$127),\"---\")","v":0},{"$f":"IFERROR((March!$B$127),\"---\")","v":0},{"$f":"IFERROR((April!$B$127),\"---\")","v":0},{"$f":"IFERROR((May!$B$127),\"---\")","v":0},{"$f":"IFERROR((June!$B$127),\"---\")","v":0},{"$f":"IFERROR((July!$B$127),\"---\")","v":0},{"$f":"IFERROR((August!$B$127),\"---\")","v":0},{"$f":"IFERROR((September!$B$127),\"---\")","v":0},{"$f":"IFERROR((October!$B$127),\"---\")","v":0},{"$f":"IFERROR((November!$B$127),\"---\")","v":0},{"$f":"IFERROR((December!$B$127),\"---\")","v":0}]
["% Scheduled","Short Stay",{"$f":"IFERROR((January!$C$131),\"---\")","v":"---"},{"$f":"IFERROR((February!$C$131),\"---\")","v":"---"},{"$f":"IFERROR((March!$C$131),\"---\")","v":"---"},{"$f":"IFERROR((April!$C$131),\"---\")","v":"---"},{"$f":"IFERROR((May!$C$131),\"---\")","v":"---"},{"$f":"IFERROR((June!$C$131),\"---\")","v":"---"},{"$f":"IFERROR((July!$C$131),\"---\")","v":"---"},{"$f":"IFERROR((August!$C$131),\"---\")","v":"---"},{"$f":"IFERROR((September!$C$131),\"---\")","v":"---"},{"$f":"IFERROR((October!$C$131),\"---\")","v":"---"},{"$f":"IFERROR((November!$C$131),\"---\")","v":"---"},{"$f":"IFERROR((December!$C$131),\"---\")","v":"---"}]
["% Scheduled","Long Stay",{"$f":"IFERROR((January!$D$131),\"---\")","v":"---"},{"$f":"IFERROR((February!$D$131),\"---\")","v":"---"},{"$f":"IFERROR((March!$D$131),\"---\")","v":"---"},{"$f":"IFERROR((April!$D$131),\"---\")","v":"---"},{"$f":"IFERROR((May!$D$131),\"---\")","v":"---"},{"$f":"IFERROR((June!$D$131),\"---\")","v":"---"},{"$f":"IFERROR((July!$D$131),\"---\")","v":"---"},{"$f":"IFERROR((August!$D$131),\"---\")","v":"---"},{"$f":"IFERROR((September!$D$131),\"---\")","v":"---"},{"$f":"IFERROR((October!$D$131),\"---\")","v":"---"},{"$f":"IFERROR((November!$D$131),\"---\")","v":"---"},{"$f":"IFERROR((December!$D$131),\"---\")","v":"---"}]
["% Scheduled","Total",{"$f":"IFERROR((January!$B$131),\"---\")","v":"---"},{"$f":"IFERROR((February!$B$131),\"---\")","v":"---"},{"$f":"IFERROR((March!$B$131),\"---\")","v":"---"},{"$f":"IFERROR((April!$B$131),\"---\")","v":"---"},{"$f":"IFERROR((May!$B$131),\"---\")","v":"---"},{"$f":"IFERROR((June!$B$131),\"---\")","v":"---"},{"$f":"IFERROR((July!$B$131),\"---\")","v":"---"},{"$f":"IFERROR((August!$B$131),\"---\")","v":"---"},{"$f":"IFERROR((September!$B$131),\"---\")","v":"---"},{"$f":"IFERROR((October!$B$131),\"---\")","v":"---"},{"$f":"IFERROR((November!$B$131),\"---\")","v":"---"},{"$f":"IFERROR((December!$B$131),\"---\")","v":"---"}]
["Dose PRN","Short Stay",{"$f":"IFERROR((January!$C$128),\"---\")","v":0},{"$f":"IFERROR((February!$C$128),\"---\")","v":0},{"$f":"IFERROR((March!$C$128),\"---\")","v":0},{"$f":"IFERROR((April!$C$128),\"---\")","v":0},{"$f":"IFERROR((May!$C$128),\"---\")","v":0},{"$f":"IFERROR((June!$C$128),\"---\")","v":0},{"$f":"IFERROR((July!$C$128),\"---\")","v":0},{"$f":"IFERROR((August!$C$128),\"---\")","v":0},{"$f":"IFERROR((September!$C$128),\"---\")","v":0},{"$f":"IFERROR((October!$C$128),\"---\")","v":0},{"$f":"IFERROR((November!$C$128),\"---\")","v":0},{"$f":"IFERROR((December!$C$128),\"---\")","v":0}]
["Dose PRN","Long Stay",{"$f":"IFERROR((January!$D$128),\"---\")","v":0},{"$f":"IFERROR((February!$D$128),\"---\")","v":0},{"$f":"IFERROR((March!$D$128),\"---\")","v":0},{"$f":"IFERROR((April!$D$128),\"---\")","v":0},{"$f":"IFERROR((May!$D$128),\"---\")","v":0},{"$f":"IFERROR((June!$D$128),\"---\")","v":0},{"$f":"IFERROR((July!$D$128),\"---\")","v":0},{"$f":"IFERROR((August!$D$128),\"---\")","v":0},{"$f":"IFERROR((September!$D$128),\"---\")","v":0},{"$f":"IFERROR((October!$D$128),\"---\")","v":0},{"$f":"IFERROR((November!$D$128),\"---\")","v":0},{"$f":"IFERROR((December!$D$128),\"---\")","v":0}]
["Dose PRN","Total",{"$f":"IFERROR((January!$B$128),\"---\")","v":0},{"$f":"IFERROR((February!$B$128),\"---\")","v":0},{"$f":"IFERROR((March!$B$128),\"---\")","v":0},{"$f":"IFERROR((April!$B$128),\"---\")","v":0},{"$f":"IFERROR((May!$B$128),\"---\")","v":0},{"$f":"IFERROR((June!$B$128),\"---\")","v":0},{"$f":"IFERROR((July!$B$128),\"---\")","v":0},{"$f":"IFERROR((August!$B$128),\"---\")","v":0},{"$f":"IFERROR((September!$B$128),\"---\")","v":0},{"$f":"IFERROR((October!$B$128),\"---\")","v":0},{"$f":"IFERROR((November!$B$128),\"---\")","v":0},{"$f":"IFERROR((December!$B$128),\"---\")","v":0}]
["% PRN","Short Stay",{"$f":"IFERROR((January!$C$132),\"---\")","v":"---"},{"$f":"IFERROR((February!$C$132),\"---\")","v":"---"},{"$f":"IFERROR((March!$C$132),\"---\")","v":"---"},{"$f":"IFERROR((April!$C$132),\"---\")","v":"---"},{"$f":"IFERROR((May!$C$132),\"---\")","v":"---"},{"$f":"IFERROR((June!$C$132),\"---\")","v":"---"},{"$f":"IFERROR((July!$C$132),\"---\")","v":"---"},{"$f":"IFERROR((August!$C$132),\"---\")","v":"---"},{"$f":"IFERROR((September!$C$132),\"---\")","v":"---"},{"$f":"IFERROR((October!$C$132),\"---\")","v":"---"},{"$f":"IFERROR((November!$C$132),\"---\")","v":"---"},{"$f":"IFERROR((December!$C$132),\"---\")","v":"---"}]
["% PRN","Long Stay",{"$f":"IFERROR((January!$D$132),\"---\")","v":"---"},{"$f":"IFERROR((February!$D$132),\"---\")","v":"---"},{"$f":"IFERROR((March!$D$132),\"---\")","v":"---"},{"$f":"IFERROR((April!$D$132),\"---\")","v":"---"},{"$f":"IFERROR((May!$D$132),\"---\")","v":"---"},{"$f":"IFERROR((June!$D$132),\"---\")","v":"---"},{"$f":"IFERROR((July!$D$132),\"---\")","v":"---"},{"$f":"IFERROR((August!$D$132),\"---\")","v":"---"},{"$f":"IFERROR((September!$D$132),\"---\")","v":"---"},{"$f":"IFERROR((October!$D$132),\"---\")","v":"---"},{"$f":"IFERROR((November!$D$132),\"---\")","v":"---"},{"$f":"IFERROR((December!$D$132),\"---\")","v":"---"}]
["% PRN","Total",{"$f":"IFERROR((January!$B$132),\"---\")","v":"---"},{"$f":"IFERROR((February!$B$132),\"---\")","v":"---"},{"$f":"IFERROR((March!$B$132),\"---\")","v":"---"},{"$f":"IFERROR((April!$B$132),\"---\")","v":"---"},{"$f":"IFERROR((May!$B$132),\"---\")","v":"---"},{"$f":"IFERROR((June!$B$132),\"---\")","v":"---"},{"$f":"IFERROR((July!$B$132),\"---\")","v":"---"},{"$f":"IFERROR((August!$B$132),\"---\")","v":"---"},{"$f":"IFERROR((September!$B$132),\"---\")","v":"---"},{"$f":"IFERROR((October!$B$132),\"---\")","v":"---"},{"$f":"IFERROR((November!$B$132),\"---\")","v":"---"},{"$f":"IFERROR((December!$B$132),\"---\")","v":"---"}]
["Dose Both (Sched + PRN)","Short Stay",{"$f":"IFERROR((January!$C$129),\"---\")","v":0},{"$f":"IFERROR((February!$C$129),\"---\")","v":0},{"$f":"IFERROR((March!$C$129),\"---\")","v":0},{"$f":"IFERROR((April!$C$129),\"---\")","v":0},{"$f":"IFERROR((May!$C$129),\"---\")","v":0},{"$f":"IFERROR((June!$C$129),\"---\")","v":0},{"$f":"IFERROR((July!$C$129),\"---\")","v":0},{"$f":"IFERROR((August!$C$129),\"---\")","v":0},{"$f":"IFERROR((September!$C$129),\"---\")","v":0},{"$f":"IFERROR((October!$C$129),\"---\")","v":0},{"$f":"IFERROR((November!$C$129),\"---\")","v":0},{"$f":"IFERROR((December!$C$129),\"---\")","v":0}]
["Dose Both (Sched + PRN)","Long Stay",{"$f":"IFERROR((January!$D$129),\"---\")","v":0},{"$f":"IFERROR((February!$D$129),\"---\")","v":0},{"$f":"IFERROR((March!$D$129),\"---\")","v":0},{"$f":"IFERROR((April!$D$129),\"---\")","v":0},{"$f":"IFERROR((May!$D$129),\"---\")","v":0},{"$f":"IFERROR((June!$D$129),\"---\")","v":0},{"$f":"IFERROR((July!$D$129),\"---\")","v":0},{"$f":"IFERROR((August!$D$129),\"---\")","v":0},{"$f":"IFERROR((September!$D$129),\"---\")","v":0},{"$f":"IFERROR((October!$D$129),\"---\")","v":0},{"$f":"IFERROR((November!$D$129),\"---\")","v":0},{"$f":"IFERROR((December!$D$129),\"---\")","v":0}]
["Dose Both (Sched + PRN)","Total",{"$f":"IFERROR((January!$B$129),\"---\")","v":0},{"$f":"IFERROR((February!$B$129),\"---\")","v":0},{"$f":"IFERROR((March!$B$129),\"---\")","v":0},{"$f":"IFERROR((April!$B$129),\"---\")","v":0},{"$f":"IFERROR((May!$B$129),\"---\")","v":0},{"$f":"IFERROR((June!$B$129),\"---\")","v":0},{"$f":"IFERROR((July!$B$129),\"---\")","v":0},{"$f":"IFERROR((August!$B$129),\"---\")","v":0},{"$f":"IFERROR((September!$B$129),\"---\")","v":0},{"$f":"IFERROR((October!$B$129),\"---\")","v":0},{"$f":"IFERROR((November!$B$129),\"---\")","v":0},{"$f":"IFERROR((December!$B$129),\"---\")","v":0}]
["% sched both","Short Stay",{"$f":"IFERROR((January!$C$133),\"---\")","v":"---"},{"$f":"IFERROR((February!#REF!),\"---\")","v":"---"},{"$f":"IFERROR((March!#REF!),\"---\")","v":"---"},{"$f":"IFERROR((April!#REF!),\"---\")","v":"---"},{"$f":"IFERROR((May!#REF!),\"---\")","v":"---"},{"$f":"IFERROR((June!#REF!),\"---\")","v":"---"},{"$f":"IFERROR((July!#REF!),\"---\")","v":"---"},{"$f":"IFERROR((August!#REF!),\"---\")","v":"---"},{"$f":"IFERROR((September!#REF!),\"---\")","v":"---"},{"$f":"IFERROR((October!#REF!),\"---\")","v":"---"},{"$f":"IFERROR((November!#REF!),\"---\")","v":"---"},{"$f":"IFERROR((December!#REF!),\"---\")","v":"---"}]
["% sched both","Long Stay",{"$f":"IFERROR((January!$D$133),\"---\")","v":"---"},{"$f":"IFERROR((February!#REF!),\"---\")","v":"---"},{"$f":"IFERROR((March!#REF!),\"---\")","v":"---"},{"$f":"IFERROR((April!#REF!),\"---\")","v":"---"},{"$f":"IFERROR((May!#REF!),\"---\")","v":"---"},{"$f":"IFERROR((June!#REF!),\"---\")","v":"---"},{"$f":"IFERROR((July!#REF!),\"---\")","v":"---"},{"$f":"IFERROR((August!#REF!),\"---\")","v":"---"},{"$f":"IFERROR((September!#REF!),\"---\")","v":"---"},{"$f":"IFERROR((October!#REF!),\"---\")","v":"---"},{"$f":"IFERROR((November!#REF!),\"---\")","v":"---"},{"$f":"IFERROR((December!#REF!),\"---\")","v":"---"}]
["% sched both","Total",{"$f":"IFERROR((January!$B$133),\"---\")","v":"---"},{"$f":"IFERROR((February!#REF!),\"---\")","v":"---"},{"$f":"IFERROR((March!#REF!),\"---\")","v":"---"},{"$f":"IFERROR((April!#REF!),\"---\")","v":"---"},{"$f":"IFERROR((May!#REF!),\"---\")","v":"---"},{"$f":"IFERROR((June!#REF!),\"---\")","v":"---"},{"$f":"IFERROR((July!#REF!),\"---\")","v":"---"},{"$f":"IFERROR((August!#REF!),\"---\")","v":"---"},{"$f":"IFERROR((September!#REF!),\"---\")","v":"---"},{"$f":"IFERROR((October!#REF!),\"---\")","v":"---"},{"$f":"IFERROR((November!#REF!),\"---\")","v":"---"},{"$f":"IFERROR((December!#REF!),\"---\")","v":"---"}]
["Started in SNF","Short Stay",{"$f":"IFERROR((January!$C$138),\"---\")","v":0},{"$f":"IFERROR((February!$C$138),\"---\")","v":0},{"$f":"IFERROR((March!$C$138),\"---\")","v":0},{"$f":"IFERROR((April!$C$138),\"---\")","v":0},{"$f":"IFERROR((May!$C$138),\"---\")","v":0},{"$f":"IFERROR((June!$C$138),\"---\")","v":0},{"$f":"IFERROR((July!$C$138),\"---\")","v":0},{"$f":"IFERROR((August!$C$138),\"---\")","v":0},{"$f":"IFERROR((September!$C$138),\"---\")","v":0},{"$f":"IFERROR((October!$C$138),\"---\")","v":0},{"$f":"IFERROR((November!$C$138),\"---\")","v":0},{"$f":"IFERROR((December!$C$138),\"---\")","v":0}]
["Started in SNF","Long Stay",{"$f":"IFERROR((January!$D$138),\"---\")","v":0},{"$f":"IFERROR((February!$D$138),\"---\")","v":0},{"$f":"IFERROR((March!$D$138),\"---\")","v":0},{"$f":"IFERROR((April!$D$138),\"---\")","v":0},{"$f":"IFERROR((May!$D$138),\"---\")","v":0},{"$f":"IFERROR((June!$D$138),\"---\")","v":0},{"$f":"IFERROR((July!$D$138),\"---\")","v":0},{"$f":"IFERROR((August!$D$138),\"---\")","v":0},{"$f":"IFERROR((September!$D$138),\"---\")","v":0},{"$f":"IFERROR((October!$D$138),\"---\")","v":0},{"$f":"IFERROR((November!$D$138),\"---\")","v":0},{"$f":"IFERROR((December!$D$138),\"---\")","v":0}]
["Started in SNF","Total",{"$f":"IFERROR((January!$B$138),\"---\")","v":0},{"$f":"IFERROR((February!$B$138),\"---\")","v":0},{"$f":"IFERROR((March!$B$138),\"---\")","v":0},{"$f":"IFERROR((April!$B$138),\"---\")","v":0},{"$f":"IFERROR((May!$B$138),\"---\")","v":0},{"$f":"IFERROR((June!$B$138),\"---\")","v":0},{"$f":"IFERROR((July!$B$138),\"---\")","v":0},{"$f":"IFERROR((August!$B$138),\"---\")","v":0},{"$f":"IFERROR((September!$B$138),\"---\")","v":0},{"$f":"IFERROR((October!$B$138),\"---\")","v":0},{"$f":"IFERROR((November!$B$138),\"---\")","v":0},{"$f":"IFERROR((December!$B$138),\"---\")","v":0}]
["Started in Hospital","Short Stay",{"$f":"IFERROR((January!$C$139),\"---\")","v":0},{"$f":"IFERROR((February!$C$139),\"---\")","v":0},{"$f":"IFERROR((March!$C$139),\"---\")","v":0},{"$f":"IFERROR((April!$C$139),\"---\")","v":0},{"$f":"IFERROR((May!$C$139),\"---\")","v":0},{"$f":"IFERROR((June!$C$139),\"---\")","v":0},{"$f":"IFERROR((July!$C$139),\"---\")","v":0},{"$f":"IFERROR((August!$C$139),\"---\")","v":0},{"$f":"IFERROR((September!$C$139),\"---\")","v":0},{"$f":"IFERROR((October!$C$139),\"---\")","v":0},{"$f":"IFERROR((November!$C$139),\"---\")","v":0},{"$f":"IFERROR((December!$C$139),\"---\")","v":0}]
["Started in Hospital","Long Stay",{"$f":"IFERROR((January!$D$139),\"---\")","v":0},{"$f":"IFERROR((February!$D$139),\"---\")","v":0},{"$f":"IFERROR((March!$D$139),\"---\")","v":0},{"$f":"IFERROR((April!$D$139),\"---\")","v":0},{"$f":"IFERROR((May!$D$139),\"---\")","v":0},{"$f":"IFERROR((June!$D$139),\"---\")","v":0},{"$f":"IFERROR((July!$D$139),\"---\")","v":0},{"$f":"IFERROR((August!$D$139),\"---\")","v":0},{"$f":"IFERROR((September!$D$139),\"---\")","v":0},{"$f":"IFERROR((October!$D$139),\"---\")","v":0},{"$f":"IFERROR((November!$D$139),\"---\")","v":0},{"$f":"IFERROR((December!$D$139),\"---\")","v":0}]
["Started in Hospital","Total",{"$f":"IFERROR((January!$B$139),\"---\")","v":0},{"$f":"IFERROR((February!$B$139),\"---\")","v":0},{"$f":"IFERROR((March!$B$139),\"---\")","v":0},{"$f":"IFERROR((April!$B$139),\"---\")","v":0},{"$f":"IFERROR((May!$B$139),\"---\")","v":0},{"$f":"IFERROR((June!$B$139),\"---\")","v":0},{"$f":"IFERROR((July!$B$139),\"---\")","v":0},{"$f":"IFERROR((August!$B$139),\"---\")","v":0},{"$f":"IFERROR((September!$B$139),\"---\")","v":0},{"$f":"IFERROR((October!$B$139),\"---\")","v":0},{"$f":"IFERROR((November!$B$139),\"---\")","v":0},{"$f":"IFERROR((December!$B$139),\"---\")","v":0}]
["Started in Outpatient","Short Stay",{"$f":"IFERROR((January!$C$140),\"---\")","v":0},{"$f":"IFERROR((February!$C$140),\"---\")","v":0},{"$f":"IFERROR((March!$C$140),\"---\")","v":0},{"$f":"IFERROR((April!$C$140),\"---\")","v":0},{"$f":"IFERROR((May!$C$140),\"---\")","v":0},{"$f":"IFERROR((June!$C$140),\"---\")","v":0},{"$f":"IFERROR((July!$C$140),\"---\")","v":0},{"$f":"IFERROR((August!$C$140),\"---\")","v":0},{"$f":"IFERROR((September!$C$140),\"---\")","v":0},{"$f":"IFERROR((October!$C$140),\"---\")","v":0},{"$f":"IFERROR((November!$C$140),\"---\")","v":0},{"$f":"IFERROR((December!$C$140),\"---\")","v":0}]
["Started in Outpatient","Long Stay",{"$f":"IFERROR((January!$D$140),\"---\")","v":0},{"$f":"IFERROR((February!$D$140),\"---\")","v":0},{"$f":"IFERROR((March!$D$140),\"---\")","v":0},{"$f":"IFERROR((April!$D$140),\"---\")","v":0},{"$f":"IFERROR((May!$D$140),\"---\")","v":0},{"$f":"IFERROR((June!$D$140),\"---\")","v":0},{"$f":"IFERROR((July!$D$140),\"---\")","v":0},{"$f":"IFERROR((August!$D$140),\"---\")","v":0},{"$f":"IFERROR((September!$D$140),\"---\")","v":0},{"$f":"IFERROR((October!$D$140),\"---\")","v":0},{"$f":"IFERROR((November!$D$140),\"---\")","v":0},{"$f":"IFERROR((December!$D$140),\"---\")","v":0}]
["Started in Outpatient","Total",{"$f":"IFERROR((January!$B$140),\"---\")","v":0},{"$f":"IFERROR((February!$B$140),\"---\")","v":0},{"$f":"IFERROR((March!$B$140),\"---\")","v":0},{"$f":"IFERROR((April!$B$140),\"---\")","v":0},{"$f":"IFERROR((May!$B$140),\"---\")","v":0},{"$f":"IFERROR((June!$B$140),\"---\")","v":0},{"$f":"IFERROR((July!$B$140),\"---\")","v":0},{"$f":"IFERROR((August!$B$140),\"---\")","v":0},{"$f":"IFERROR((September!$B$140),\"---\")","v":0},{"$f":"IFERROR((October!$B$140),\"---\")","v":0},{"$f":"IFERROR((November!$B$140),\"---\")","v":0},{"$f":"IFERROR((December!$B$140),\"---\")","v":0}]
["% started in SNF","Short Stay",{"$f":"IFERROR((January!$C$142),\"---\")","v":"---"},{"$f":"IFERROR((February!$C$142),\"---\")","v":"---"},{"$f":"IFERROR((March!$C$142),\"---\")","v":"---"},{"$f":"IFERROR((April!$C$142),\"---\")","v":"---"},{"$f":"IFERROR((May!$C$142),\"---\")","v":"---"},{"$f":"IFERROR((June!$C$142),\"---\")","v":"---"},{"$f":"IFERROR((July!$C$142),\"---\")","v":"---"},{"$f":"IFERROR((August!$C$142),\"---\")","v":"---"},{"$f":"IFERROR((September!$C$142),\"---\")","v":"---"},{"$f":"IFERROR((October!$C$142),\"---\")","v":"---"},{"$f":"IFERROR((November!$C$142),\"---\")","v":"---"},{"$f":"IFERROR((December!$C$142),\"---\")","v":"---"}]
["% started in SNF","Long Stay",{"$f":"IFERROR((January!$D$142),\"---\")","v":"---"},{"$f":"IFERROR((February!$D$142),\"---\")","v":"---"},{"$f":"IFERROR((March!$D$142),\"---\")","v":"---"},{"$f":"IFERROR((April!$D$142),\"---\")","v":"---"},{"$f":"IFERROR((May!$D$142),\"---\")","v":"---"},{"$f":"IFERROR((June!$D$142),\"---\")","v":"---"},{"$f":"IFERROR((July!$D$142),\"---\")","v":"---"},{"$f":"IFERROR((August!$D$142),\"---\")","v":"---"},{"$f":"IFERROR((September!$D$142),\"---\")","v":"---"},{"$f":"IFERROR((October!$D$142),\"---\")","v":"---"},{"$f":"IFERROR((November!$D$142),\"---\")","v":"---"},{"$f":"IFERROR((December!$D$142),\"---\")","v":"---"}]
["% started in SNF","Total",{"$f":"IFERROR((January!$B$142),\"---\")","v":"---"},{"$f":"IFERROR((February!$B$142),\"---\")","v":"---"},{"$f":"IFERROR((March!$B$142),\"---\")","v":"---"},{"$f":"IFERROR((April!$B$142),\"---\")","v":"---"},{"$f":"IFERROR((May!$B$142),\"---\")","v":"---"},{"$f":"IFERROR((June!$B$142),\"---\")","v":"---"},{"$f":"IFERROR((July!$B$142),\"---\")","v":"---"},{"$f":"IFERROR((August!$B$142),\"---\")","v":"---"},{"$f":"IFERROR((September!$B$142),\"---\")","v":"---"},{"$f":"IFERROR((October!$B$142),\"---\")","v":"---"},{"$f":"IFERROR((November!$B$142),\"---\")","v":"---"},{"$f":"IFERROR((December!$B$142),\"---\")","v":"---"}]
["% started in hospital","Short Stay",{"$f":"IFERROR((January!$C$143),\"---\")","v":"---"},{"$f":"IFERROR((February!$C$143),\"---\")","v":"---"},{"$f":"IFERROR((March!$C$143),\"---\")","v":"---"},{"$f":"IFERROR((April!$C$143),\"---\")","v":"---"},{"$f":"IFERROR((May!$C$143),\"---\")","v":"---"},{"$f":"IFERROR((June!$C$143),\"---\")","v":"---"},{"$f":"IFERROR((July!$C$143),\"---\")","v":"---"},{"$f":"IFERROR((August!$C$143),\"---\")","v":"---"},{"$f":"IFERROR((September!$C$143),\"---\")","v":"---"},{"$f":"IFERROR((October!$C$143),\"---\")","v":"---"},{"$f":"IFERROR((November!$C$143),\"---\")","v":"---"},{"$f":"IFERROR((December!$C$143),\"---\")","v":"---"}]
["% started in hospital","Long Stay",{"$f":"IFERROR((January!$D$143),\"---\")","v":"---"},{"$f":"IFERROR((February!$D$143),\"---\")","v":"---"},{"$f":"IFERROR((March!$D$143),\"---\")","v":"---"},{"$f":"IFERROR((April!$D$143),\"---\")","v":"---"},{"$f":"IFERROR((May!$D$143),\"---\")","v":"---"},{"$f":"IFERROR((June!$D$143),\"---\")","v":"---"},{"$f":"IFERROR((July!$D$143),\"---\")","v":"---"},{"$f":"IFERROR((August!$D$143),\"---\")","v":"---"},{"$f":"IFERROR((September!$D$143),\"---\")","v":"---"},{"$f":"IFERROR((October!$D$143),\"---\")","v":"---"},{"$f":"IFERROR((November!$D$143),\"---\")","v":"---"},{"$f":"IFERROR((December!$D$143),\"---\")","v":"---"}]
["% started in hospital","Total",{"$f":"IFERROR((January!$B$143),\"---\")","v":"---"},{"$f":"IFERROR((February!$B$143),\"---\")","v":"---"},{"$f":"IFERROR((March!$B$143),\"---\")","v":"---"},{"$f":"IFERROR((April!$B$143),\"---\")","v":"---"},{"$f":"IFERROR((May!$B$143),\"---\")","v":"---"},{"$f":"IFERROR((June!$B$143),\"---\")","v":"---"},{"$f":"IFERROR((July!$B$143),\"---\")","v":"---"},{"$f":"IFERROR((August!$B$143),\"---\")","v":"---"},{"$f":"IFERROR((September!$B$143),\"---\")","v":"---"},{"$f":"IFERROR((October!$B$143),\"---\")","v":"---"},{"$f":"IFERROR((November!$B$143),\"---\")","v":"---"},{"$f":"IFERROR((December!$B$143),\"---\")","v":"---"}]
["% started in outpatient","Short Stay",{"$f":"IFERROR((January!$C$144),\"---\")","v":"---"},{"$f":"IFERROR((February!$C$144),\"---\")","v":"---"},{"$f":"IFERROR((March!$C$144),\"---\")","v":"---"},{"$f":"IFERROR((April!$C$144),\"---\")","v":"---"},{"$f":"IFERROR((May!$C$144),\"---\")","v":"---"},{"$f":"IFERROR((June!$C$144),\"---\")","v":"---"},{"$f":"IFERROR((July!$C$144),\"---\")","v":"---"},{"$f":"IFERROR((August!$C$144),\"---\")","v":"---"},{"$f":"IFERROR((September!$C$144),\"---\")","v":"---"},{"$f":"IFERROR((October!$C$144),\"---\")","v":"---"},{"$f":"IFERROR((November!$C$144),\"---\")","v":"---"},{"$f":"IFERROR((December!$C$144),\"---\")","v":"---"}]
["% started in outpatient","Long Stay",{"$f":"IFERROR((January!$D$144),\"---\")","v":"---"},{"$f":"IFERROR((February!$D$144),\"---\")","v":"---"},{"$f":"IFERROR((March!$D$144),\"---\")","v":"---"},{"$f":"IFERROR((April!$D$144),\"---\")","v":"---"},{"$f":"IFERROR((May!$D$144),\"---\")","v":"---"},{"$f":"IFERROR((June!$D$144),\"---\")","v":"---"},{"$f":"IFERROR((July!$D$144),\"---\")","v":"---"},{"$f":"IFERROR((August!$D$144),\"---\")","v":"---"},{"$f":"IFERROR((September!$D$144),\"---\")","v":"---"},{"$f":"IFERROR((October!$D$144),\"---\")","v":"---"},{"$f":"IFERROR((November!$D$144),\"---\")","v":"---"},{"$f":"IFERROR((December!$D$144),\"---\")","v":"---"}]
["% started in outpatient","Total",{"$f":"IFERROR((January!$B$144),\"---\")","v":"---"},{"$f":"IFERROR((February!$B$144),\"---\")","v":"---"},{"$f":"IFERROR((March!$B$144),\"---\")","v":"---"},{"$f":"IFERROR((April!$B$144),\"---\")","v":"---"},{"$f":"IFERROR((May!$B$144),\"---\")","v":"---"},{"$f":"IFERROR((June!$B$144),\"---\")","v":"---"},{"$f":"IFERROR((July!$B$144),\"---\")","v":"---"},{"$f":"IFERROR((August!$B$144),\"---\")","v":"---"},{"$f":"IFERROR((September!$B$144),\"---\")","v":"---"},{"$f":"IFERROR((October!$B$144),\"---\")","v":"---"},{"$f":"IFERROR((November!$B$144),\"---\")","v":"---"},{"$f":"IFERROR((December!$B$144),\"---\")","v":"---"}]
["dx approprite","Short Stay",{"$f":"IFERROR((January!$C$150),\"---\")","v":0},{"$f":"IFERROR((February!$C$150),\"---\")","v":0},{"$f":"IFERROR((March!$C$150),\"---\")","v":0},{"$f":"IFERROR((April!$C$150),\"---\")","v":0},{"$f":"IFERROR((May!$C$150),\"---\")","v":0},{"$f":"IFERROR((June!$C$150),\"---\")","v":0},{"$f":"IFERROR((July!$C$150),\"---\")","v":0},{"$f":"IFERROR((August!$C$150),\"---\")","v":0},{"$f":"IFERROR((September!$C$150),\"---\")","v":0},{"$f":"IFERROR((October!$C$150),\"---\")","v":0},{"$f":"IFERROR((November!$C$150),\"---\")","v":0},{"$f":"IFERROR((December!$C$150),\"---\")","v":0}]
["dx approprite","Long Stay",{"$f":"IFERROR((January!$D$150),\"---\")","v":0},{"$f":"IFERROR((February!$D$150),\"---\")","v":0},{"$f":"IFERROR((March!$D$150),\"---\")","v":0},{"$f":"IFERROR((April!$D$150),\"---\")","v":0},{"$f":"IFERROR((May!$D$150),\"---\")","v":0},{"$f":"IFERROR((June!$D$150),\"---\")","v":0},{"$f":"IFERROR((July!$D$150),\"---\")","v":0},{"$f":"IFERROR((August!$D$150),\"---\")","v":0},{"$f":"IFERROR((September!$D$150),\"---\")","v":0},{"$f":"IFERROR((October!$D$150),\"---\")","v":0},{"$f":"IFERROR((November!$D$150),\"---\")","v":0},{"$f":"IFERROR((December!$D$150),\"---\")","v":0}]
["dx approprite","Total",{"$f":"IFERROR((January!$B$150),\"---\")","v":0},{"$f":"IFERROR((February!$B$150),\"---\")","v":0},{"$f":"IFERROR((March!$B$150),\"---\")","v":0},{"$f":"IFERROR((April!$B$150),\"---\")","v":0},{"$f":"IFERROR((May!$B$150),\"---\")","v":0},{"$f":"IFERROR((June!$B$150),\"---\")","v":0},{"$f":"IFERROR((July!$B$150),\"---\")","v":0},{"$f":"IFERROR((August!$B$150),\"---\")","v":0},{"$f":"IFERROR((September!$B$150),\"---\")","v":0},{"$f":"IFERROR((October!$B$150),\"---\")","v":0},{"$f":"IFERROR((November!$B$150),\"---\")","v":0},{"$f":"IFERROR((December!$B$150),\"---\")","v":0}]
["% with appropriate dx","Short Stay",{"$f":"IFERROR((January!$C$153),\"---\")","v":"---"},{"$f":"IFERROR((February!$C$153),\"---\")","v":"---"},{"$f":"IFERROR((March!$C$153),\"---\")","v":"---"},{"$f":"IFERROR((April!$C$153),\"---\")","v":"---"},{"$f":"IFERROR((May!$C$153),\"---\")","v":"---"},{"$f":"IFERROR((June!$C$153),\"---\")","v":"---"},{"$f":"IFERROR((July!$C$153),\"---\")","v":"---"},{"$f":"IFERROR((August!$C$153),\"---\")","v":"---"},{"$f":"IFERROR((September!$C$153),\"---\")","v":"---"},{"$f":"IFERROR((October!$C$153),\"---\")","v":"---"},{"$f":"IFERROR((November!$C$153),\"---\")","v":"---"},{"$f":"IFERROR((December!$C$153),\"---\")","v":"---"}]
["% with appropriate dx","Long Stay",{"$f":"IFERROR((January!$D$153),\"---\")","v":"---"},{"$f":"IFERROR((February!$D$153),\"---\")","v":"---"},{"$f":"IFERROR((March!$D$153),\"---\")","v":"---"},{"$f":"IFERROR((April!$D$153),\"---\")","v":"---"},{"$f":"IFERROR((May!$D$153),\"---\")","v":"---"},{"$f":"IFERROR((June!$D$153),\"---\")","v":"---"},{"$f":"IFERROR((July!$D$153),\"---\")","v":"---"},{"$f":"IFERROR((August!$D$153),\"---\")","v":"---"},{"$f":"IFERROR((September!$D$153),\"---\")","v":"---"},{"$f":"IFERROR((October!$D$153),\"---\")","v":"---"},{"$f":"IFERROR((November!$D$153),\"---\")","v":"---"},{"$f":"IFERROR((December!$D$153),\"---\")","v":"---"}]
["% with appropriate dx","Total",{"$f":"IFERROR((January!$B$153),\"---\")","v":"---"},{"$f":"IFERROR((February!$B$153),\"---\")","v":"---"},{"$f":"IFERROR((March!$B$153),\"---\")","v":"---"},{"$f":"IFERROR((April!$B$153),\"---\")","v":"---"},{"$f":"IFERROR((May!$B$153),\"---\")","v":"---"},{"$f":"IFERROR((June!$B$153),\"---\")","v":"---"},{"$f":"IFERROR((July!$B$153),\"---\")","v":"---"},{"$f":"IFERROR((August!$B$153),\"---\")","v":"---"},{"$f":"IFERROR((September!$B$153),\"---\")","v":"---"},{"$f":"IFERROR((October!$B$153),\"---\")","v":"---"},{"$f":"IFERROR((November!$B$153),\"---\")","v":"---"},{"$f":"IFERROR((December!$B$153),\"---\")","v":"---"}]
["BPSD documented","Short Stay",{"$f":"IFERROR((January!$C$159),\"---\")","v":0},{"$f":"IFERROR((February!$C$159),\"---\")","v":0},{"$f":"IFERROR((March!$C$159),\"---\")","v":0},{"$f":"IFERROR((April!$C$159),\"---\")","v":0},{"$f":"IFERROR((May!$C$159),\"---\")","v":0},{"$f":"IFERROR((June!$C$159),\"---\")","v":0},{"$f":"IFERROR((July!$C$159),\"---\")","v":0},{"$f":"IFERROR((August!$C$159),\"---\")","v":0},{"$f":"IFERROR((September!$C$159),\"---\")","v":0},{"$f":"IFERROR((October!$C$159),\"---\")","v":0},{"$f":"IFERROR((November!$C$159),\"---\")","v":0},{"$f":"IFERROR((December!$C$159),\"---\")","v":0}]
["BPSD documented","Long Stay",{"$f":"IFERROR((January!$D$159),\"---\")","v":0},{"$f":"IFERROR((February!$D$159),\"---\")","v":0},{"$f":"IFERROR((March!$D$159),\"---\")","v":0},{"$f":"IFERROR((April!$D$159),\"---\")","v":0},{"$f":"IFERROR((May!$D$159),\"---\")","v":0},{"$f":"IFERROR((June!$D$159),\"---\")","v":0},{"$f":"IFERROR((July!$D$159),\"---\")","v":0},{"$f":"IFERROR((August!$D$159),\"---\")","v":0},{"$f":"IFERROR((September!$D$159),\"---\")","v":0},{"$f":"IFERROR((October!$D$159),\"---\")","v":0},{"$f":"IFERROR((November!$D$159),\"---\")","v":0},{"$f":"IFERROR((December!$D$159),\"---\")","v":0}]
["BPSD documented","Total",{"$f":"IFERROR((January!$B$159),\"---\")","v":0},{"$f":"IFERROR((February!$B$159),\"---\")","v":0},{"$f":"IFERROR((March!$B$159),\"---\")","v":0},{"$f":"IFERROR((April!$B$159),\"---\")","v":0},{"$f":"IFERROR((May!$B$159),\"---\")","v":0},{"$f":"IFERROR((June!$B$159),\"---\")","v":0},{"$f":"IFERROR((July!$B$159),\"---\")","v":0},{"$f":"IFERROR((August!$B$159),\"---\")","v":0},{"$f":"IFERROR((September!$B$159),\"---\")","v":0},{"$f":"IFERROR((October!$B$159),\"---\")","v":0},{"$f":"IFERROR((November!$B$159),\"---\")","v":0},{"$f":"IFERROR((December!$B$159),\"---\")","v":0}]
["% needing BPSD documented","Short Stay",{"$f":"IFERROR((January!$C$163),\"---\")","v":"---"},{"$f":"IFERROR((February!$C$163),\"---\")","v":"---"},{"$f":"IFERROR((March!$C$163),\"---\")","v":"---"},{"$f":"IFERROR((April!$C$163),\"---\")","v":"---"},{"$f":"IFERROR((May!$C$163),\"---\")","v":"---"},{"$f":"IFERROR((June!$C$163),\"---\")","v":"---"},{"$f":"IFERROR((July!$C$163),\"---\")","v":"---"},{"$f":"IFERROR((August!$C$163),\"---\")","v":"---"},{"$f":"IFERROR((September!$C$163),\"---\")","v":"---"},{"$f":"IFERROR((October!$C$163),\"---\")","v":"---"},{"$f":"IFERROR((November!$C$163),\"---\")","v":"---"},{"$f":"IFERROR((December!$C$163),\"---\")","v":"---"}]
["% needing BPSD documented","Long Stay",{"$f":"IFERROR((January!$D$163),\"---\")","v":"---"},{"$f":"IFERROR((February!$D$163),\"---\")","v":"---"},{"$f":"IFERROR((March!$D$163),\"---\")","v":"---"},{"$f":"IFERROR((April!$D$163),\"---\")","v":"---"},{"$f":"IFERROR((May!$D$163),\"---\")","v":"---"},{"$f":"IFERROR((June!$D$163),\"---\")","v":"---"},{"$f":"IFERROR((July!$D$163),\"---\")","v":"---"},{"$f":"IFERROR((August!$D$163),\"---\")","v":"---"},{"$f":"IFERROR((September!$D$163),\"---\")","v":"---"},{"$f":"IFERROR((October!$D$163),\"---\")","v":"---"},{"$f":"IFERROR((November!$D$163),\"---\")","v":"---"},{"$f":"IFERROR((December!$D$163),\"---\")","v":"---"}]
["% needing BPSD documented","Total",{"$f":"IFERROR((January!$B$163),\"---\")","v":"---"},{"$f":"IFERROR((February!$B$163),\"---\")","v":"---"},{"$f":"IFERROR((March!$B$163),\"---\")","v":"---"},{"$f":"IFERROR((April!$B$163),\"---\")","v":"---"},{"$f":"IFERROR((May!$B$163),\"---\")","v":"---"},{"$f":"IFERROR((June!$B$163),\"---\")","v":"---"},{"$f":"IFERROR((July!$B$163),\"---\")","v":"---"},{"$f":"IFERROR((August!$B$163),\"---\")","v":"---"},{"$f":"IFERROR((September!$B$163),\"---\")","v":"---"},{"$f":"IFERROR((October!$B$163),\"---\")","v":"---"},{"$f":"IFERROR((November!$B$163),\"---\")","v":"---"},{"$f":"IFERROR((December!$B$163),\"---\")","v":"---"}]
["# without non drug interventions documented","Short Stay",{"$f":"IFERROR((January!$C$170),\"---\")","v":0},{"$f":"IFERROR((February!$C$170),\"---\")","v":0},{"$f":"IFERROR((March!$C$170),\"---\")","v":0},{"$f":"IFERROR((April!$C$170),\"---\")","v":0},{"$f":"IFERROR((May!$C$170),\"---\")","v":0},{"$f":"IFERROR((June!$C$170),\"---\")","v":0},{"$f":"IFERROR((July!$C$170),\"---\")","v":0},{"$f":"IFERROR((August!$C$170),\"---\")","v":0},{"$f":"IFERROR((September!$C$170),\"---\")","v":0},{"$f":"IFERROR((October!$C$170),\"---\")","v":0},{"$f":"IFERROR((November!$C$170),\"---\")","v":0},{"$f":"IFERROR((December!$C$170),\"---\")","v":0}]
["# without non drug interventions documented","Long Stay",{"$f":"IFERROR((January!$D$170),\"---\")","v":0},{"$f":"IFERROR((February!$D$170),\"---\")","v":0},{"$f":"IFERROR((March!$D$170),\"---\")","v":0},{"$f":"IFERROR((April!$D$170),\"---\")","v":0},{"$f":"IFERROR((May!$D$170),\"---\")","v":0},{"$f":"IFERROR((June!$D$170),\"---\")","v":0},{"$f":"IFERROR((July!$D$170),\"---\")","v":0},{"$f":"IFERROR((August!$D$170),\"---\")","v":0},{"$f":"IFERROR((September!$D$170),\"---\")","v":0},{"$f":"IFERROR((October!$D$170),\"---\")","v":0},{"$f":"IFERROR((November!$D$170),\"---\")","v":0},{"$f":"IFERROR((December!$D$170),\"---\")","v":0}]
["# without non drug interventions documented","Total",{"$f":"IFERROR((January!$B$170), \"---\")","v":0},{"$f":"IFERROR((February!$B$170), \"---\")","v":0},{"$f":"IFERROR((March!$B$170), \"---\")","v":0},{"$f":"IFERROR((April!$B$170), \"---\")","v":0},{"$f":"IFERROR((May!$B$170), \"---\")","v":0},{"$f":"IFERROR((June!$B$170), \"---\")","v":0},{"$f":"IFERROR((July!$B$170), \"---\")","v":0},{"$f":"IFERROR((August!$B$170), \"---\")","v":0},{"$f":"IFERROR((September!$B$170), \"---\")","v":0},{"$f":"IFERROR((October!$B$170), \"---\")","v":0},{"$f":"IFERROR((November!$B$170), \"---\")","v":0},{"$f":"IFERROR((July!$B$170), \"---\")","v":0}]
["% without non drug interventions documented","Short Stay",{"$f":"IFERROR((January!$C$173),\"---\")","v":"---"},{"$f":"IFERROR((February!$C$173),\"---\")","v":"---"},{"$f":"IFERROR((March!$C$173),\"---\")","v":"---"},{"$f":"IFERROR((April!$C$173),\"---\")","v":"---"},{"$f":"IFERROR((May!$C$173),\"---\")","v":"---"},{"$f":"IFERROR((June!$C$173),\"---\")","v":"---"},{"$f":"IFERROR((July!$C$173),\"---\")","v":"---"},{"$f":"IFERROR((August!$C$173),\"---\")","v":"---"},{"$f":"IFERROR((September!$C$173),\"---\")","v":"---"},{"$f":"IFERROR((October!$C$173),\"---\")","v":"---"},{"$f":"IFERROR((November!$C$173),\"---\")","v":"---"},{"$f":"IFERROR((December!$C$173),\"---\")","v":"---"}]
["% without non drug interventions documented","Long Stay",{"$f":"IFERROR((January!$D$173),\"---\")","v":"---"},{"$f":"IFERROR((February!$D$173),\"---\")","v":"---"},{"$f":"IFERROR((March!$D$173),\"---\")","v":"---"},{"$f":"IFERROR((April!$D$173),\"---\")","v":"---"},{"$f":"IFERROR((May!$D$173),\"---\")","v":"---"},{"$f":"IFERROR((June!$D$173),\"---\")","v":"---"},{"$f":"IFERROR((July!$D$173),\"---\")","v":"---"},{"$f":"IFERROR((August!$D$173),\"---\")","v":"---"},{"$f":"IFERROR((September!$D$173),\"---\")","v":"---"},{"$f":"IFERROR((October!$D$173),\"---\")","v":"---"},{"$f":"IFERROR((November!$D$173),\"---\")","v":"---"},{"$f":"IFERROR((December!$D$173),\"---\")","v":"---"}]
["% without non drug interventions documented","Total",{"$f":"IFERROR((January!$B$173),\"---\")","v":"---"},{"$f":"IFERROR((February!$B$173),\"---\")","v":"---"},{"$f":"IFERROR((March!$B$173),\"---\")","v":"---"},{"$f":"IFERROR((April!$B$173),\"---\")","v":"---"},{"$f":"IFERROR((May!$B$173),\"---\")","v":"---"},{"$f":"IFERROR((June!$B$173),\"---\")","v":"---"},{"$f":"IFERROR((July!$B$173),\"---\")","v":"---"},{"$f":"IFERROR((August!$B$173),\"---\")","v":"---"},{"$f":"IFERROR((September!$B$173),\"---\")","v":"---"},{"$f":"IFERROR((October!$B$173),\"---\")","v":"---"},{"$f":"IFERROR((November!$B$173),\"---\")","v":"---"},{"$f":"IFERROR((December!$B$173),\"---\")","v":"---"}]
["GDR Outcome - Dose reduced","Short Stay",{"$f":"IFERROR((January!$C$179),\"---\")","v":0},{"$f":"IFERROR((February!$C$179),\"---\")","v":0},{"$f":"IFERROR((March!$C$179),\"---\")","v":0},{"$f":"IFERROR((April!$C$179),\"---\")","v":0},{"$f":"IFERROR((May!$C$179),\"---\")","v":0},{"$f":"IFERROR((June!$C$179),\"---\")","v":0},{"$f":"IFERROR((July!$C$179),\"---\")","v":0},{"$f":"IFERROR((August!$C$179),\"---\")","v":0},{"$f":"IFERROR((September!$C$179),\"---\")","v":0},{"$f":"IFERROR((October!$C$179),\"---\")","v":0},{"$f":"IFERROR((November!$C$179),\"---\")","v":0},{"$f":"IFERROR((December!$C$179),\"---\")","v":0}]
["GDR Outcome - Dose reduced","Long Stay",{"$f":"IFERROR((January!$D$179),\"---\")","v":0},{"$f":"IFERROR((February!$D$179),\"---\")","v":0},{"$f":"IFERROR((March!$D$179),\"---\")","v":0},{"$f":"IFERROR((April!$D$179),\"---\")","v":0},{"$f":"IFERROR((May!$D$179),\"---\")","v":0},{"$f":"IFERROR((June!$D$179),\"---\")","v":0},{"$f":"IFERROR((July!$D$179),\"---\")","v":0},{"$f":"IFERROR((August!$D$179),\"---\")","v":0},{"$f":"IFERROR((September!$D$179),\"---\")","v":0},{"$f":"IFERROR((October!$D$179),\"---\")","v":0},{"$f":"IFERROR((November!$D$179),\"---\")","v":0},{"$f":"IFERROR((December!$D$179),\"---\")","v":0}]
["GDR Outcome - Dose reduced","Total",{"$f":"IFERROR((January!$B$179),\"---\")","v":0},{"$f":"IFERROR((February!$B$179),\"---\")","v":0},{"$f":"IFERROR((March!$B$179),\"---\")","v":0},{"$f":"IFERROR((April!$B$179),\"---\")","v":0},{"$f":"IFERROR((May!$B$179),\"---\")","v":0},{"$f":"IFERROR((June!$B$179),\"---\")","v":0},{"$f":"IFERROR((July!$B$179),\"---\")","v":0},{"$f":"IFERROR((August!$B$179),\"---\")","v":0},{"$f":"IFERROR((September!$B$179),\"---\")","v":0},{"$f":"IFERROR((October!$B$179),\"---\")","v":0},{"$f":"IFERROR((November!$B$179),\"---\")","v":0},{"$f":"IFERROR((December!$B$179),\"---\")","v":0}]
["GDR Outcome - Dose dc'd","Short Stay",{"$f":"IFERROR((January!$C$180),\"---\")","v":0},{"$f":"IFERROR((February!$C$180),\"---\")","v":0},{"$f":"IFERROR((March!$C$180),\"---\")","v":0},{"$f":"IFERROR((April!$C$180),\"---\")","v":0},{"$f":"IFERROR((May!$C$180),\"---\")","v":0},{"$f":"IFERROR((June!$C$180),\"---\")","v":0},{"$f":"IFERROR((July!$C$180),\"---\")","v":0},{"$f":"IFERROR((August!$C$180),\"---\")","v":0},{"$f":"IFERROR((September!$C$180),\"---\")","v":0},{"$f":"IFERROR((October!$C$180),\"---\")","v":0},{"$f":"IFERROR((November!$C$180),\"---\")","v":0},{"$f":"IFERROR((December!$C$180),\"---\")","v":0}]
["GDR Outcome - Dose dc'd","Long Stay",{"$f":"IFERROR((January!$D$180),\"---\")","v":0},{"$f":"IFERROR((February!$D$180),\"---\")","v":0},{"$f":"IFERROR((March!$D$180),\"---\")","v":0},{"$f":"IFERROR((April!$D$180),\"---\")","v":0},{"$f":"IFERROR((May!$D$180),\"---\")","v":0},{"$f":"IFERROR((June!$D$180),\"---\")","v":0},{"$f":"IFERROR((July!$D$180),\"---\")","v":0},{"$f":"IFERROR((August!$D$180),\"---\")","v":0},{"$f":"IFERROR((September!$D$180),\"---\")","v":0},{"$f":"IFERROR((October!$D$180),\"---\")","v":0},{"$f":"IFERROR((November!$D$180),\"---\")","v":0},{"$f":"IFERROR((December!$D$180),\"---\")","v":0}]
["GDR Outcome - Dose dc'd","Total",{"$f":"IFERROR((January!$B$180),\"---\")","v":0},{"$f":"IFERROR((February!$B$180),\"---\")","v":0},{"$f":"IFERROR((March!$B$180),\"---\")","v":0},{"$f":"IFERROR((April!$B$180),\"---\")","v":0},{"$f":"IFERROR((May!$B$180),\"---\")","v":0},{"$f":"IFERROR((June!$B$180),\"---\")","v":0},{"$f":"IFERROR((July!$B$180),\"---\")","v":0},{"$f":"IFERROR((August!$B$180),\"---\")","v":0},{"$f":"IFERROR((September!$B$180),\"---\")","v":0},{"$f":"IFERROR((October!$B$180),\"---\")","v":0},{"$f":"IFERROR((November!$B$180),\"---\")","v":0},{"$f":"IFERROR((December!$B$180),\"---\")","v":0}]
["GDR Outcome - Return to previous dose","Short Stay",{"$f":"IFERROR((January!$C$181),\"---\")","v":0},{"$f":"IFERROR((February!$C$181),\"---\")","v":0},{"$f":"IFERROR((March!$C$181),\"---\")","v":0},{"$f":"IFERROR((April!$C$181),\"---\")","v":0},{"$f":"IFERROR((May!$C$181),\"---\")","v":0},{"$f":"IFERROR((June!$C$181),\"---\")","v":0},{"$f":"IFERROR((July!$C$181),\"---\")","v":0},{"$f":"IFERROR((August!$C$181),\"---\")","v":0},{"$f":"IFERROR((September!$C$181),\"---\")","v":0},{"$f":"IFERROR((October!$C$181),\"---\")","v":0},{"$f":"IFERROR((November!$C$181),\"---\")","v":0},{"$f":"IFERROR((December!$C$181),\"---\")","v":0}]
["GDR Outcome - Return to previous dose","Long Stay",{"$f":"IFERROR((January!$D$181),\"---\")","v":0},{"$f":"IFERROR((February!$D$181),\"---\")","v":0},{"$f":"IFERROR((March!$D$181),\"---\")","v":0},{"$f":"IFERROR((April!$D$181),\"---\")","v":0},{"$f":"IFERROR((May!$D$181),\"---\")","v":0},{"$f":"IFERROR((June!$D$181),\"---\")","v":0},{"$f":"IFERROR((July!$D$181),\"---\")","v":0},{"$f":"IFERROR((August!$D$181),\"---\")","v":0},{"$f":"IFERROR((September!$D$181),\"---\")","v":0},{"$f":"IFERROR((October!$D$181),\"---\")","v":0},{"$f":"IFERROR((November!$D$181),\"---\")","v":0},{"$f":"IFERROR((December!$D$181),\"---\")","v":0}]
["GDR Outcome - Return to previous dose","Total",{"$f":"IFERROR((January!$B$181),\"---\")","v":0},{"$f":"IFERROR((February!$B$181),\"---\")","v":0},{"$f":"IFERROR((March!$B$181),\"---\")","v":0},{"$f":"IFERROR((April!$B$181),\"---\")","v":0},{"$f":"IFERROR((May!$B$181),\"---\")","v":0},{"$f":"IFERROR((June!$B$181),\"---\")","v":0},{"$f":"IFERROR((July!$B$181),\"---\")","v":0},{"$f":"IFERROR((August!$B$181),\"---\")","v":0},{"$f":"IFERROR((September!$B$181),\"---\")","v":0},{"$f":"IFERROR((October!$B$181),\"---\")","v":0},{"$f":"IFERROR((November!$B$181),\"---\")","v":0},{"$f":"IFERROR((December!$B$181),\"---\")","v":0}]
["GDR Outcome - % with dose reduction","Short Stay",{"$f":"IFERROR((January!$C$184),\"---\")","v":"---"},{"$f":"IFERROR((February!$C$184),\"---\")","v":"---"},{"$f":"IFERROR((March!$C$184),\"---\")","v":"---"},{"$f":"IFERROR((April!$C$184),\"---\")","v":"---"},{"$f":"IFERROR((May!$C$184),\"---\")","v":"---"},{"$f":"IFERROR((June!$C$184),\"---\")","v":"---"},{"$f":"IFERROR((July!$C$184),\"---\")","v":"---"},{"$f":"IFERROR((August!$C$184),\"---\")","v":"---"},{"$f":"IFERROR((September!$C$184),\"---\")","v":"---"},{"$f":"IFERROR((October!$C$184),\"---\")","v":"---"},{"$f":"IFERROR((November!$C$184),\"---\")","v":"---"},{"$f":"IFERROR((December!$C$184),\"---\")","v":"---"}]
["GDR Outcome - % with dose reduction","Long Stay",{"$f":"IFERROR((January!$D$184),\"---\")","v":"---"},{"$f":"IFERROR((February!$D$184),\"---\")","v":"---"},{"$f":"IFERROR((March!$D$184),\"---\")","v":"---"},{"$f":"IFERROR((April!$D$184),\"---\")","v":"---"},{"$f":"IFERROR((May!$D$184),\"---\")","v":"---"},{"$f":"IFERROR((June!$D$184),\"---\")","v":"---"},{"$f":"IFERROR((July!$D$184),\"---\")","v":"---"},{"$f":"IFERROR((August!$D$184),\"---\")","v":"---"},{"$f":"IFERROR((September!$D$184),\"---\")","v":"---"},{"$f":"IFERROR((October!$D$184),\"---\")","v":"---"},{"$f":"IFERROR((November!$D$184),\"---\")","v":"---"},{"$f":"IFERROR((December!$D$184),\"---\")","v":"---"}]
["GDR Outcome - % with dose reduction","Total",{"$f":"IFERROR((January!$B$184),\"---\")","v":"---"},{"$f":"IFERROR((February!$B$184),\"---\")","v":"---"},{"$f":"IFERROR((March!$B$184),\"---\")","v":"---"},{"$f":"IFERROR((April!$B$184),\"---\")","v":"---"},{"$f":"IFERROR((May!$B$184),\"---\")","v":"---"},{"$f":"IFERROR((June!$B$184),\"---\")","v":"---"},{"$f":"IFERROR((July!$B$184),\"---\")","v":"---"},{"$f":"IFERROR((August!$B$184),\"---\")","v":"---"},{"$f":"IFERROR((September!$B$184),\"---\")","v":"---"},{"$f":"IFERROR((October!$B$184),\"---\")","v":"---"},{"$f":"IFERROR((November!$B$184),\"---\")","v":"---"},{"$f":"IFERROR((December!$B$184),\"---\")","v":"---"}]
["GDR Outcome - % with dose dc'd","Short Stay",{"$f":"IFERROR((January!$C$185),\"---\")","v":"---"},{"$f":"IFERROR((February!$C$185),\"---\")","v":"---"},{"$f":"IFERROR((March!$C$185),\"---\")","v":"---"},{"$f":"IFERROR((April!$C$185),\"---\")","v":"---"},{"$f":"IFERROR((May!$C$185),\"---\")","v":"---"},{"$f":"IFERROR((June!$C$185),\"---\")","v":"---"},{"$f":"IFERROR((July!$C$185),\"---\")","v":"---"},{"$f":"IFERROR((August!$C$185),\"---\")","v":"---"},{"$f":"IFERROR((September!$C$185),\"---\")","v":"---"},{"$f":"IFERROR((October!$C$185),\"---\")","v":"---"},{"$f":"IFERROR((November!$C$185),\"---\")","v":"---"},{"$f":"IFERROR((December!$C$185),\"---\")","v":"---"}]
["GDR Outcome - % with dose dc'd","Long Stay",{"$f":"IFERROR((January!$D$185),\"---\")","v":"---"},{"$f":"IFERROR((February!$D$185),\"---\")","v":"---"},{"$f":"IFERROR((March!$D$185),\"---\")","v":"---"},{"$f":"IFERROR((April!$D$185),\"---\")","v":"---"},{"$f":"IFERROR((May!$D$185),\"---\")","v":"---"},{"$f":"IFERROR((June!$D$185),\"---\")","v":"---"},{"$f":"IFERROR((July!$D$185),\"---\")","v":"---"},{"$f":"IFERROR((August!$D$185),\"---\")","v":"---"},{"$f":"IFERROR((September!$D$185),\"---\")","v":"---"},{"$f":"IFERROR((October!$D$185),\"---\")","v":"---"},{"$f":"IFERROR((November!$D$185),\"---\")","v":"---"},{"$f":"IFERROR((December!$D$185),\"---\")","v":"---"}]
["GDR Outcome - % with dose dc'd","Total",{"$f":"IFERROR((January!$B$185),\"---\")","v":"---"},{"$f":"IFERROR((February!$B$185),\"---\")","v":"---"},{"$f":"IFERROR((March!$B$185),\"---\")","v":"---"},{"$f":"IFERROR((April!$B$185),\"---\")","v":"---"},{"$f":"IFERROR((May!$B$185),\"---\")","v":"---"},{"$f":"IFERROR((June!$B$185),\"---\")","v":"---"},{"$f":"IFERROR((July!$B$185),\"---\")","v":"---"},{"$f":"IFERROR((August!$B$185),\"---\")","v":"---"},{"$f":"IFERROR((September!$B$185),\"---\")","v":"---"},{"$f":"IFERROR((October!$B$185),\"---\")","v":"---"},{"$f":"IFERROR((November!$B$185),\"---\")","v":"---"},{"$f":"IFERROR((December!$B$185),\"---\")","v":"---"}]
["GDR Outcome - % with dose reduced or dc'd","Short Stay",{"$f":"IFERROR((January!$C$186),\"---\")","v":"---"},{"$f":"IFERROR((February!$C$186),\"---\")","v":"---"},{"$f":"IFERROR((March!$C$186),\"---\")","v":"---"},{"$f":"IFERROR((April!$C$186),\"---\")","v":"---"},{"$f":"IFERROR((May!$C$186),\"---\")","v":"---"},{"$f":"IFERROR((June!$C$186),\"---\")","v":"---"},{"$f":"IFERROR((July!$C$186),\"---\")","v":"---"},{"$f":"IFERROR((August!$C$186),\"---\")","v":"---"},{"$f":"IFERROR((September!$C$186),\"---\")","v":"---"},{"$f":"IFERROR((October!$C$186),\"---\")","v":"---"},{"$f":"IFERROR((November!$C$186),\"---\")","v":"---"},{"$f":"IFERROR((December!$C$186),\"---\")","v":"---"}]
["GDR Outcome - % with dose reduced or dc'd","Long Stay",{"$f":"IFERROR((January!$D$186),\"---\")","v":"---"},{"$f":"IFERROR((February!$D$186),\"---\")","v":"---"},{"$f":"IFERROR((March!$D$186),\"---\")","v":"---"},{"$f":"IFERROR((April!$D$186),\"---\")","v":"---"},{"$f":"IFERROR((May!$D$186),\"---\")","v":"---"},{"$f":"IFERROR((June!$D$186),\"---\")","v":"---"},{"$f":"IFERROR((July!$D$186),\"---\")","v":"---"},{"$f":"IFERROR((August!$D$186),\"---\")","v":"---"},{"$f":"IFERROR((September!$D$186),\"---\")","v":"---"},{"$f":"IFERROR((October!$D$186),\"---\")","v":"---"},{"$f":"IFERROR((November!$D$186),\"---\")","v":"---"},{"$f":"IFERROR((December!$D$186),\"---\")","v":"---"}]
["GDR Outcome - % with dose reduced or dc'd","Total",{"$f":"IFERROR((January!$B$186),\"---\")","v":"---"},{"$f":"IFERROR((February!$B$186),\"---\")","v":"---"},{"$f":"IFERROR((March!$B$186),\"---\")","v":"---"},{"$f":"IFERROR((April!$B$186),\"---\")","v":"---"},{"$f":"IFERROR((May!$B$186),\"---\")","v":"---"},{"$f":"IFERROR((June!$B$186),\"---\")","v":"---"},{"$f":"IFERROR((July!$B$186),\"---\")","v":"---"},{"$f":"IFERROR((August!$B$186),\"---\")","v":"---"},{"$f":"IFERROR((September!$B$186),\"---\")","v":"---"},{"$f":"IFERROR((October!$B$186),\"---\")","v":"---"},{"$f":"IFERROR((November!$B$186),\"---\")","v":"---"},{"$f":"IFERROR((December!$B$186),\"---\")","v":"---"}]
["# needing GDR","Short Stay",{"$f":"IFERROR((January!$C$192),\"---\")","v":0},{"$f":"IFERROR((February!$C$192),\"---\")","v":0},{"$f":"IFERROR((March!$C$192),\"---\")","v":0},{"$f":"IFERROR((April!$C$192),\"---\")","v":0},{"$f":"IFERROR((May!$C$192),\"---\")","v":0},{"$f":"IFERROR((June!$C$192),\"---\")","v":0},{"$f":"IFERROR((July!$C$192),\"---\")","v":0},{"$f":"IFERROR((August!$C$192),\"---\")","v":0},{"$f":"IFERROR((September!$C$192),\"---\")","v":0},{"$f":"IFERROR((October!$C$192),\"---\")","v":0},{"$f":"IFERROR((November!$C$192),\"---\")","v":0},{"$f":"IFERROR((December!$C$192),\"---\")","v":0}]
["# needing GDR","Long Stay",{"$f":"IFERROR((January!$D$192),\"---\")","v":0},{"$f":"IFERROR((February!$D$192),\"---\")","v":0},{"$f":"IFERROR((March!$D$192),\"---\")","v":0},{"$f":"IFERROR((April!$D$192),\"---\")","v":0},{"$f":"IFERROR((May!$D$192),\"---\")","v":0},{"$f":"IFERROR((June!$D$192),\"---\")","v":0},{"$f":"IFERROR((July!$D$192),\"---\")","v":0},{"$f":"IFERROR((August!$D$192),\"---\")","v":0},{"$f":"IFERROR((September!$D$192),\"---\")","v":0},{"$f":"IFERROR((October!$D$192),\"---\")","v":0},{"$f":"IFERROR((November!$D$192),\"---\")","v":0},{"$f":"IFERROR((December!$D$192),\"---\")","v":0}]
["# needing GDR","Total",{"$f":"IFERROR((January!$B$192),\"---\")","v":0},{"$f":"IFERROR((February!$B$192),\"---\")","v":0},{"$f":"IFERROR((March!$B$192),\"---\")","v":0},{"$f":"IFERROR((April!$B$192),\"---\")","v":0},{"$f":"IFERROR((May!$B$192),\"---\")","v":0},{"$f":"IFERROR((June!$B$192),\"---\")","v":0},{"$f":"IFERROR((July!$B$192),\"---\")","v":0},{"$f":"IFERROR((August!$B$192),\"---\")","v":0},{"$f":"IFERROR((September!$B$192),\"---\")","v":0},{"$f":"IFERROR((October!$B$192),\"---\")","v":0},{"$f":"IFERROR((November!$B$192),\"---\")","v":0},{"$f":"IFERROR((December!$B$192),\"---\")","v":0}]
["% needing GDR","Short Stay",{"$f":"IFERROR((January!$C$195),\"---\")","v":"---"},{"$f":"IFERROR((February!$C$195),\"---\")","v":"---"},{"$f":"IFERROR((March!$C$195),\"---\")","v":"---"},{"$f":"IFERROR((April!$C$195),\"---\")","v":"---"},{"$f":"IFERROR((May!$C$195),\"---\")","v":"---"},{"$f":"IFERROR((June!$C$195),\"---\")","v":"---"},{"$f":"IFERROR((July!$C$195),\"---\")","v":"---"},{"$f":"IFERROR((August!$C$195),\"---\")","v":"---"},{"$f":"IFERROR((September!$C$195),\"---\")","v":"---"},{"$f":"IFERROR((October!$C$195),\"---\")","v":"---"},{"$f":"IFERROR((November!$C$195),\"---\")","v":"---"},{"$f":"IFERROR((December!$C$195),\"---\")","v":"---"}]
["% needing GDR","Long Stay",{"$f":"IFERROR((January!$D$195),\"---\")","v":"---"},{"$f":"IFERROR((February!$D$195),\"---\")","v":"---"},{"$f":"IFERROR((March!$D$195),\"---\")","v":"---"},{"$f":"IFERROR((April!$D$195),\"---\")","v":"---"},{"$f":"IFERROR((May!$D$195),\"---\")","v":"---"},{"$f":"IFERROR((June!$D$195),\"---\")","v":"---"},{"$f":"IFERROR((July!$D$195),\"---\")","v":"---"},{"$f":"IFERROR((August!$D$195),\"---\")","v":"---"},{"$f":"IFERROR((September!$D$195),\"---\")","v":"---"},{"$f":"IFERROR((October!$D$195),\"---\")","v":"---"},{"$f":"IFERROR((November!$D$195),\"---\")","v":"---"},{"$f":"IFERROR((December!$D$195),\"---\")","v":"---"}]
["% needing GDR","Total",{"$f":"IFERROR((January!$B$195),\"---\")","v":"---"},{"$f":"IFERROR((February!$B$195),\"---\")","v":"---"},{"$f":"IFERROR((March!$B$195),\"---\")","v":"---"},{"$f":"IFERROR((April!$B$195),\"---\")","v":"---"},{"$f":"IFERROR((May!$B$195),\"---\")","v":"---"},{"$f":"IFERROR((June!$B$195),\"---\")","v":"---"},{"$f":"IFERROR((July!$B$195),\"---\")","v":"---"},{"$f":"IFERROR((August!$B$195),\"---\")","v":"---"},{"$f":"IFERROR((September!$B$195),\"---\")","v":"---"},{"$f":"IFERROR((October!$B$195),\"---\")","v":"---"},{"$f":"IFERROR((November!$B$195),\"---\")","v":"---"},{"$f":"IFERROR((December!$B$195),\"---\")","v":"---"}]
["Reason No GDR - Resident on lowest possible dose","Short Stay",{"$f":"IFERROR((January!$C$202),\"---\")","v":0},{"$f":"IFERROR((February!$C$202),\"---\")","v":0},{"$f":"IFERROR((March!$C$202),\"---\")","v":0},{"$f":"IFERROR((April!$C$202),\"---\")","v":0},{"$f":"IFERROR((May!$C$202),\"---\")","v":0},{"$f":"IFERROR((June!$C$202),\"---\")","v":0},{"$f":"IFERROR((July!$C$202),\"---\")","v":0},{"$f":"IFERROR((August!$C$202),\"---\")","v":0},{"$f":"IFERROR((September!$C$202),\"---\")","v":0},{"$f":"IFERROR((October!$C$202),\"---\")","v":0},{"$f":"IFERROR((November!$C$202),\"---\")","v":0},{"$f":"IFERROR((December!$C$202),\"---\")","v":0}]
["Reason No GDR - Resident on lowest possible dose","Long Stay",{"$f":"IFERROR((January!$D$202),\"---\")","v":0},{"$f":"IFERROR((February!$D$202),\"---\")","v":0},{"$f":"IFERROR((March!$D$202),\"---\")","v":0},{"$f":"IFERROR((April!$D$202),\"---\")","v":0},{"$f":"IFERROR((May!$D$202),\"---\")","v":0},{"$f":"IFERROR((June!$D$202),\"---\")","v":0},{"$f":"IFERROR((July!$D$202),\"---\")","v":0},{"$f":"IFERROR((August!$D$202),\"---\")","v":0},{"$f":"IFERROR((September!$D$202),\"---\")","v":0},{"$f":"IFERROR((October!$D$202),\"---\")","v":0},{"$f":"IFERROR((November!$D$202),\"---\")","v":0},{"$f":"IFERROR((December!$D$202),\"---\")","v":0}]
["Reason No GDR - Resident on lowest possible dose","Total",{"$f":"IFERROR((January!$B$202),\"---\")","v":0},{"$f":"IFERROR((February!$B$202),\"---\")","v":0},{"$f":"IFERROR((March!$B$202),\"---\")","v":0},{"$f":"IFERROR((April!$B$202),\"---\")","v":0},{"$f":"IFERROR((May!$B$202),\"---\")","v":0},{"$f":"IFERROR((June!$B$202),\"---\")","v":0},{"$f":"IFERROR((July!$B$202),\"---\")","v":0},{"$f":"IFERROR((August!$B$202),\"---\")","v":0},{"$f":"IFERROR((September!$B$202),\"---\")","v":0},{"$f":"IFERROR((October!$B$202),\"---\")","v":0},{"$f":"IFERROR((November!$B$202),\"---\")","v":0},{"$f":"IFERROR((December!$B$202),\"---\")","v":0}]
["Reason No GDR - Contraindicated per prescriber","Short Stay",{"$f":"IFERROR((January!$C$203),\"---\")","v":0},{"$f":"IFERROR((February!$C$203),\"---\")","v":0},{"$f":"IFERROR((March!$C$203),\"---\")","v":0},{"$f":"IFERROR((April!$C$203),\"---\")","v":0},{"$f":"IFERROR((May!$C$203),\"---\")","v":0},{"$f":"IFERROR((June!$C$203),\"---\")","v":0},{"$f":"IFERROR((July!$C$203),\"---\")","v":0},{"$f":"IFERROR((August!$C$203),\"---\")","v":0},{"$f":"IFERROR((September!$C$203),\"---\")","v":0},{"$f":"IFERROR((October!$C$203),\"---\")","v":0},{"$f":"IFERROR((November!$C$203),\"---\")","v":0},{"$f":"IFERROR((December!$C$203),\"---\")","v":0}]
["Reason No GDR - Contraindicated per prescriber","Long Stay",{"$f":"IFERROR((January!$D$203),\"---\")","v":0},{"$f":"IFERROR((February!$D$203),\"---\")","v":0},{"$f":"IFERROR((March!$D$203),\"---\")","v":0},{"$f":"IFERROR((April!$D$203),\"---\")","v":0},{"$f":"IFERROR((May!$D$203),\"---\")","v":0},{"$f":"IFERROR((June!$D$203),\"---\")","v":0},{"$f":"IFERROR((July!$D$203),\"---\")","v":0},{"$f":"IFERROR((August!$D$203),\"---\")","v":0},{"$f":"IFERROR((September!$D$203),\"---\")","v":0},{"$f":"IFERROR((October!$D$203),\"---\")","v":0},{"$f":"IFERROR((November!$D$203),\"---\")","v":0},{"$f":"IFERROR((December!$D$203),\"---\")","v":0}]
["Reason No GDR - Contraindicated per prescriber","Total",{"$f":"IFERROR((January!$B$203),\"---\")","v":0},{"$f":"IFERROR((February!$B$203),\"---\")","v":0},{"$f":"IFERROR((March!$B$203),\"---\")","v":0},{"$f":"IFERROR((April!$B$203),\"---\")","v":0},{"$f":"IFERROR((May!$B$203),\"---\")","v":0},{"$f":"IFERROR((June!$B$203),\"---\")","v":0},{"$f":"IFERROR((July!$B$203),\"---\")","v":0},{"$f":"IFERROR((August!$B$203),\"---\")","v":0},{"$f":"IFERROR((September!$B$203),\"---\")","v":0},{"$f":"IFERROR((October!$B$203),\"---\")","v":0},{"$f":"IFERROR((November!$B$203),\"---\")","v":0},{"$f":"IFERROR((December!$B$203),\"---\")","v":0}]
["Reason No GDR - other","Short Stay",{"$f":"IFERROR((January!$C$204),\"---\")","v":0},{"$f":"IFERROR((February!$C$204),\"---\")","v":0},{"$f":"IFERROR((March!$C$204),\"---\")","v":0},{"$f":"IFERROR((April!$C$204),\"---\")","v":0},{"$f":"IFERROR((May!$C$204),\"---\")","v":0},{"$f":"IFERROR((June!$C$204),\"---\")","v":0},{"$f":"IFERROR((July!$C$204),\"---\")","v":0},{"$f":"IFERROR((August!$C$204),\"---\")","v":0},{"$f":"IFERROR((September!$C$204),\"---\")","v":0},{"$f":"IFERROR((October!$C$204),\"---\")","v":0},{"$f":"IFERROR((November!$C$204),\"---\")","v":0},{"$f":"IFERROR((December!$C$204),\"---\")","v":0}]
["Reason No GDR - other","Long Stay",{"$f":"IFERROR((January!$D$204),\"---\")","v":0},{"$f":"IFERROR((February!$D$204),\"---\")","v":0},{"$f":"IFERROR((March!$D$204),\"---\")","v":0},{"$f":"IFERROR((April!$D$204),\"---\")","v":0},{"$f":"IFERROR((May!$D$204),\"---\")","v":0},{"$f":"IFERROR((June!$D$204),\"---\")","v":0},{"$f":"IFERROR((July!$D$204),\"---\")","v":0},{"$f":"IFERROR((August!$D$204),\"---\")","v":0},{"$f":"IFERROR((September!$D$204),\"---\")","v":0},{"$f":"IFERROR((October!$D$204),\"---\")","v":0},{"$f":"IFERROR((November!$D$204),\"---\")","v":0},{"$f":"IFERROR((December!$D$204),\"---\")","v":0}]
["Reason No GDR - other","Total",{"$f":"IFERROR((January!$B$204),\"---\")","v":0},{"$f":"IFERROR((February!$B$204),\"---\")","v":0},{"$f":"IFERROR((March!$B$204),\"---\")","v":0},{"$f":"IFERROR((April!$B$204),\"---\")","v":0},{"$f":"IFERROR((May!$B$204),\"---\")","v":0},{"$f":"IFERROR((June!$B$204),\"---\")","v":0},{"$f":"IFERROR((July!$B$204),\"---\")","v":0},{"$f":"IFERROR((August!$B$204),\"---\")","v":0},{"$f":"IFERROR((September!$B$204),\"---\")","v":0},{"$f":"IFERROR((October!$B$204),\"---\")","v":0},{"$f":"IFERROR((November!$B$204),\"---\")","v":0},{"$f":"IFERROR((December!$B$204),\"---\")","v":0}]
["Reason No GDR - % resident on lowest possible dose","Short Stay",{"$f":"IFERROR((January!$C$206),\"---\")","v":"---"},{"$f":"IFERROR((February!$C$206),\"---\")","v":"---"},{"$f":"IFERROR((March!$C$206),\"---\")","v":"---"},{"$f":"IFERROR((April!$C$206),\"---\")","v":"---"},{"$f":"IFERROR((May!$C$206),\"---\")","v":"---"},{"$f":"IFERROR((June!$C$206),\"---\")","v":"---"},{"$f":"IFERROR((July!$C$206),\"---\")","v":"---"},{"$f":"IFERROR((August!$C$206),\"---\")","v":"---"},{"$f":"IFERROR((September!$C$206),\"---\")","v":"---"},{"$f":"IFERROR((October!$C$206),\"---\")","v":"---"},{"$f":"IFERROR((November!$C$206),\"---\")","v":"---"},{"$f":"IFERROR((December!$C$206),\"---\")","v":"---"}]
["Reason No GDR - % resident on lowest possible dose","Long Stay",{"$f":"IFERROR((January!$D$206),\"---\")","v":"---"},{"$f":"IFERROR((February!$D$206),\"---\")","v":"---"},{"$f":"IFERROR((March!$D$206),\"---\")","v":"---"},{"$f":"IFERROR((April!$D$206),\"---\")","v":"---"},{"$f":"IFERROR((May!$D$206),\"---\")","v":"---"},{"$f":"IFERROR((June!$D$206),\"---\")","v":"---"},{"$f":"IFERROR((July!$D$206),\"---\")","v":"---"},{"$f":"IFERROR((August!$D$206),\"---\")","v":"---"},{"$f":"IFERROR((September!$D$206),\"---\")","v":"---"},{"$f":"IFERROR((October!$D$206),\"---\")","v":"---"},{"$f":"IFERROR((November!$D$206),\"---\")","v":"---"},{"$f":"IFERROR((December!$D$206),\"---\")","v":"---"}]
["Reason No GDR - % resident on lowest possible dose","Total",{"$f":"IFERROR((January!$B$206),\"---\")","v":"---"},{"$f":"IFERROR((February!$B$206),\"---\")","v":"---"},{"$f":"IFERROR((March!$B$206),\"---\")","v":"---"},{"$f":"IFERROR((April!$B$206),\"---\")","v":"---"},{"$f":"IFERROR((May!$B$206),\"---\")","v":"---"},{"$f":"IFERROR((June!$B$206),\"---\")","v":"---"},{"$f":"IFERROR((July!$B$206),\"---\")","v":"---"},{"$f":"IFERROR((August!$B$206),\"---\")","v":"---"},{"$f":"IFERROR((September!$B$206),\"---\")","v":"---"},{"$f":"IFERROR((October!$B$206),\"---\")","v":"---"},{"$f":"IFERROR((November!$B$206),\"---\")","v":"---"},{"$f":"IFERROR((December!$B$206),\"---\")","v":"---"}]
["Reason No GDR - % contrainicated per prescriber","Short Stay",{"$f":"IFERROR((January!$C$207),\"---\")","v":"---"},{"$f":"IFERROR((February!$C$207),\"---\")","v":"---"},{"$f":"IFERROR((March!$C$207),\"---\")","v":"---"},{"$f":"IFERROR((April!$C$207),\"---\")","v":"---"},{"$f":"IFERROR((May!$C$207),\"---\")","v":"---"},{"$f":"IFERROR((June!$C$207),\"---\")","v":"---"},{"$f":"IFERROR((July!$C$207),\"---\")","v":"---"},{"$f":"IFERROR((August!$C$207),\"---\")","v":"---"},{"$f":"IFERROR((September!$C$207),\"---\")","v":"---"},{"$f":"IFERROR((October!$C$207),\"---\")","v":"---"},{"$f":"IFERROR((November!$C$207),\"---\")","v":"---"},{"$f":"IFERROR((December!$C$207),\"---\")","v":"---"}]
["Reason No GDR - % contrainicated per prescriber","Long Stay",{"$f":"IFERROR((January!$D$207),\"---\")","v":"---"},{"$f":"IFERROR((February!$D$207),\"---\")","v":"---"},{"$f":"IFERROR((March!$D$207),\"---\")","v":"---"},{"$f":"IFERROR((April!$D$207),\"---\")","v":"---"},{"$f":"IFERROR((May!$D$207),\"---\")","v":"---"},{"$f":"IFERROR((June!$D$207),\"---\")","v":"---"},{"$f":"IFERROR((July!$D$207),\"---\")","v":"---"},{"$f":"IFERROR((August!$D$207),\"---\")","v":"---"},{"$f":"IFERROR((September!$D$207),\"---\")","v":"---"},{"$f":"IFERROR((October!$D$207),\"---\")","v":"---"},{"$f":"IFERROR((November!$D$207),\"---\")","v":"---"},{"$f":"IFERROR((December!$D$207),\"---\")","v":"---"}]
["Reason No GDR - % contrainicated per prescriber","Total",{"$f":"IFERROR((January!$B$207),\"---\")","v":"---"},{"$f":"IFERROR((February!$B$207),\"---\")","v":"---"},{"$f":"IFERROR((March!$B$207),\"---\")","v":"---"},{"$f":"IFERROR((April!$B$207),\"---\")","v":"---"},{"$f":"IFERROR((May!$B$207),\"---\")","v":"---"},{"$f":"IFERROR((June!$B$207),\"---\")","v":"---"},{"$f":"IFERROR((July!$B$207),\"---\")","v":"---"},{"$f":"IFERROR((August!$B$207),\"---\")","v":"---"},{"$f":"IFERROR((September!$B$207),\"---\")","v":"---"},{"$f":"IFERROR((October!$B$207),\"---\")","v":"---"},{"$f":"IFERROR((November!$B$207),\"---\")","v":"---"},{"$f":"IFERROR((December!$B$207),\"---\")","v":"---"}]
["Reason No GDR - % other","Short Stay",{"$f":"IFERROR((January!$C$202),\"---\")","v":0},{"$f":"IFERROR((February!$C$202),\"---\")","v":0},{"$f":"IFERROR((March!$C$202),\"---\")","v":0},{"$f":"IFERROR((April!$C$202),\"---\")","v":0},{"$f":"IFERROR((May!$C$202),\"---\")","v":0},{"$f":"IFERROR((June!$C$202),\"---\")","v":0},{"$f":"IFERROR((July!$C$202),\"---\")","v":0},{"$f":"IFERROR((August!$C$202),\"---\")","v":0},{"$f":"IFERROR((September!$C$202),\"---\")","v":0},{"$f":"IFERROR((October!$C$202),\"---\")","v":0},{"$f":"IFERROR((November!$C$202),\"---\")","v":0},{"$f":"IFERROR((December!$C$202),\"---\")","v":0}]
["Reason No GDR - % other","Long Stay",{"$f":"IFERROR((January!$D$208),\"---\")","v":"---"},{"$f":"IFERROR((February!$D$208),\"---\")","v":"---"},{"$f":"IFERROR((March!$D$208),\"---\")","v":"---"},{"$f":"IFERROR((April!$D$208),\"---\")","v":"---"},{"$f":"IFERROR((May!$D$208),\"---\")","v":"---"},{"$f":"IFERROR((June!$D$208),\"---\")","v":"---"},{"$f":"IFERROR((July!$D$208),\"---\")","v":"---"},{"$f":"IFERROR((August!$D$208),\"---\")","v":"---"},{"$f":"IFERROR((September!$D$208),\"---\")","v":"---"},{"$f":"IFERROR((October!$D$208),\"---\")","v":"---"},{"$f":"IFERROR((November!$D$208),\"---\")","v":"---"},{"$f":"IFERROR((December!$D$208),\"---\")","v":"---"}]
["Reason No GDR - % other","Total",{"$f":"IFERROR((January!$B$208),\"---\")","v":"---"},{"$f":"IFERROR((February!$B$208),\"---\")","v":"---"},{"$f":"IFERROR((March!$B$208),\"---\")","v":"---"},{"$f":"IFERROR((April!$B$208),\"---\")","v":"---"},{"$f":"IFERROR((May!$B$208),\"---\")","v":"---"},{"$f":"IFERROR((June!$B$208),\"---\")","v":"---"},{"$f":"IFERROR((July!$B$208),\"---\")","v":"---"},{"$f":"IFERROR((August!$B$208),\"---\")","v":"---"},{"$f":"IFERROR((September!$B$208),\"---\")","v":"---"},{"$f":"IFERROR((October!$B$208),\"---\")","v":"---"},{"$f":"IFERROR((November!$B$208),\"---\")","v":"---"},{"$f":"IFERROR((December!$B$208),\"---\")","v":"---"}]
["# with Adverse Effects","Short Stay",{"$f":"IFERROR((January!$C$214),\"---\")","v":0},{"$f":"IFERROR((February!$C$214),\"---\")","v":0},{"$f":"IFERROR((March!$C$214),\"---\")","v":0},{"$f":"IFERROR((April!$C$214),\"---\")","v":0},{"$f":"IFERROR((May!$C$214),\"---\")","v":0},{"$f":"IFERROR((June!$C$214),\"---\")","v":0},{"$f":"IFERROR((July!$C$214),\"---\")","v":0},{"$f":"IFERROR((August!$C$214),\"---\")","v":0},{"$f":"IFERROR((September!$C$214),\"---\")","v":0},{"$f":"IFERROR((October!$C$214),\"---\")","v":0},{"$f":"IFERROR((November!$C$214),\"---\")","v":0},{"$f":"IFERROR((December!$C$214),\"---\")","v":0}]
["# with Adverse Effects","Long Stay",{"$f":"IFERROR((January!$D$214),\"---\")","v":0},{"$f":"IFERROR((February!$D$214),\"---\")","v":0},{"$f":"IFERROR((March!$D$214),\"---\")","v":0},{"$f":"IFERROR((April!$D$214),\"---\")","v":0},{"$f":"IFERROR((May!$D$214),\"---\")","v":0},{"$f":"IFERROR((June!$D$214),\"---\")","v":0},{"$f":"IFERROR((July!$D$214),\"---\")","v":0},{"$f":"IFERROR((August!$D$214),\"---\")","v":0},{"$f":"IFERROR((September!$D$214),\"---\")","v":0},{"$f":"IFERROR((October!$D$214),\"---\")","v":0},{"$f":"IFERROR((November!$D$214),\"---\")","v":0},{"$f":"IFERROR((December!$D$214),\"---\")","v":0}]
["# with Adverse Effects","Total",{"$f":"IFERROR((January!$B$214),\"---\")","v":0},{"$f":"IFERROR((February!$B$214),\"---\")","v":0},{"$f":"IFERROR((March!$B$214),\"---\")","v":0},{"$f":"IFERROR((April!$B$214),\"---\")","v":0},{"$f":"IFERROR((May!$B$214),\"---\")","v":0},{"$f":"IFERROR((June!$B$214),\"---\")","v":0},{"$f":"IFERROR((July!$B$214),\"---\")","v":0},{"$f":"IFERROR((August!$B$214),\"---\")","v":0},{"$f":"IFERROR((September!$B$214),\"---\")","v":0},{"$f":"IFERROR((October!$B$214),\"---\")","v":0},{"$f":"IFERROR((November!$B$214),\"---\")","v":0},{"$f":"IFERROR((December!$B$214),\"---\")","v":0}]
["% with Adverse Effects","Short Stay",{"$f":"IFERROR((January!$C$217),\"---\")","v":"---"},{"$f":"IFERROR((February!$C$217),\"---\")","v":"---"},{"$f":"IFERROR((March!$C$217),\"---\")","v":"---"},{"$f":"IFERROR((April!$C$217),\"---\")","v":"---"},{"$f":"IFERROR((May!$C$217),\"---\")","v":"---"},{"$f":"IFERROR((June!$C$217),\"---\")","v":"---"},{"$f":"IFERROR((July!$C$217),\"---\")","v":"---"},{"$f":"IFERROR((August!$C$217),\"---\")","v":"---"},{"$f":"IFERROR((September!$C$217),\"---\")","v":"---"},{"$f":"IFERROR((October!$C$217),\"---\")","v":"---"},{"$f":"IFERROR((November!$C$217),\"---\")","v":"---"},{"$f":"IFERROR((December!$C$217),\"---\")","v":"---"}]
["% with Adverse Effects","Long Stay",{"$f":"IFERROR((January!$D$217),\"---\")","v":"---"},{"$f":"IFERROR((February!$D$217),\"---\")","v":"---"},{"$f":"IFERROR((March!$D$217),\"---\")","v":"---"},{"$f":"IFERROR((April!$D$217),\"---\")","v":"---"},{"$f":"IFERROR((May!$D$217),\"---\")","v":"---"},{"$f":"IFERROR((June!$D$217),\"---\")","v":"---"},{"$f":"IFERROR((July!$D$217),\"---\")","v":"---"},{"$f":"IFERROR((August!$D$217),\"---\")","v":"---"},{"$f":"IFERROR((September!$D$217),\"---\")","v":"---"},{"$f":"IFERROR((October!$D$217),\"---\")","v":"---"},{"$f":"IFERROR((November!$D$217),\"---\")","v":"---"},{"$f":"IFERROR((December!$D$217),\"---\")","v":"---"}]
["% with Adverse Effects","Total",{"$f":"IFERROR((January!$B$217),\"---\")","v":"---"},{"$f":"IFERROR((February!$B$217),\"---\")","v":"---"},{"$f":"IFERROR((March!$B$217),\"---\")","v":"---"},{"$f":"IFERROR((April!$B$217),\"---\")","v":"---"},{"$f":"IFERROR((May!$B$217),\"---\")","v":"---"},{"$f":"IFERROR((June!$B$217),\"---\")","v":"---"},{"$f":"IFERROR((July!$B$217),\"---\")","v":"---"},{"$f":"IFERROR((August!$B$217),\"---\")","v":"---"},{"$f":"IFERROR((September!$B$217),\"---\")","v":"---"},{"$f":"IFERROR((October!$B$217),\"---\")","v":"---"},{"$f":"IFERROR((November!$B$217),\"---\")","v":"---"},{"$f":"IFERROR((December!$B$217),\"---\")","v":"---"}]
["Antipsychotic rate","Total",{"$f":"IFERROR((January!$I$1), \"---\")","v":0},{"$f":"IFERROR((February!$I$1), \"---\")","v":"---"},{"$f":"IFERROR((March!$I$1), \"---\")","v":"---"},{"$f":"IFERROR((April!$I$1), \"---\")","v":"---"},{"$f":"IFERROR((May!$I$1), \"---\")","v":"---"},{"$f":"IFERROR((June!$I$1), \"---\")","v":"---"},{"$f":"IFERROR((July!$I$1), \"---\")","v":"---"},{"$f":"IFERROR((August!$I$1), \"---\")","v":"---"},{"$f":"IFERROR((September!$I$1), \"---\")","v":"---"},{"$f":"IFERROR((October!$I$1), \"---\")","v":"---"},{"$f":"IFERROR((November!$I$1), \"---\")","v":"---"},{"$f":"IFERROR((December!$I$1), \"---\")","v":"---"}]

{"sheet":"Drop Downs","index":17,"n_rows":5,"n_cols":8,"rows_kept":5,"cut":false,"hidden":true,"merged":[]}
["YN","X","YNNA","Sched","Stay Type","Where Started","GDROutcome","NoGDR"]
["Yes","X","Yes","Scheduled","Long Term","SNF","Dose reduced","N/A"]
["No","X","No","PRN","Short Term","Hospital","Drug discontinued","Resident on lowest possible dose"]
[null,null,"N/A","Both",null,"Outpatient","Return to previous dose","Contraindicated per prescriber"]
[null,null,null,null,null,null,null,"Other"]

{"sheet":"Sheet1","index":18,"n_rows":0,"n_cols":0,"rows_kept":0,"cut":false,"hidden":false,"merged":[]}